Workbook

Sheet Instrucciones
B1: Calculadora de Márgenes Agrícolas BCCBA
B3: Paso 1:
B5: Dirigirse a la calculadora haciendo click en la imagen de la derecha, o en el botón "Calcualdora"que se
B6: encuentra al final de las instrucciones.
B7: EVITAR AGREGAR/QUITAR FILAS Y COLUMNAS EN ESTE EXCEL PARA SU CORRECTO FUNCIONAMIENTO.
B10: Paso 2:
B20: Seleccionar el departamento en el cual se encuentra su campo, dando click en el recuadro que dice "¿En qué departamento se ubica su campo?".
B22: Esto abrirá una lista desplegable donde podrá seleccionar el departamento.
B24: Paso 3:
B26: Al seleccionar el departamento, el Excel se completará con los datos de
B27: costos y rendimientos de los distintos cultivos de nuestra base de datos.
B29: Si así lo desea, puede cambiar las celdas en amarillo con los datos de su
B30: campo para tener una estimación más certera de su rentabilidad.
B32: Al cambiar el nivel de derechos de exportación, estos se veran reflejados
B33: en el precio disponible que aparece en la tabla de resultados.
B35: El precio disponible resulta de descontarle al precio de exportación FOB
B36: los gastos portuarios, comerciales e impuestos (incluidos los derechos de
B37: exportación).
B39: * Tambien se puede cambiar el precio FOB y valor del dólar de cada cultivo,
B40: aunque no se recomienda porque se encuentan actualizados quincenalmente.
B44: Paso 4:
B46: Para más flexibilidad, se puede seleccionar la opción "Modificá tus propios costos"
B47: haciendo click en el botón señalado. Esto lo llevará a una hoja de cálculo donde
B48: podrá decidir la distancia al puerto, el costo de arrendamiento, los costos de
B49: labranzas, cosecha, fertilizantes y otros insumos, como se aprecia en la imagen.
B50: El botón "Guardar" guardará los cambios ingresados y lo llevará de nuevo a la
B51: calculadora. El botón "Restablecer" borrará los datos modificados y volverá a
B52: ingresar los valores originales para el departamento, desde nuestra base de datos.
B53: El botón "No Guardar" lo llevará de vuelta a la calculadora sin guardar ningún cambio.
B75: Paso 5:
B77: Los resultados se mostrarán en la tabla de resultados
B78: (imagen de la derecha), y en los gráficos debajo de ésta.
B80: La tabla de resultados muestra:
B81: Ingresos Totales
B82: Costos Directos
B83: Gastos Comerciales
B84: Margen Bruto
B85: Rendimiento de Indiferencia
B86: Costos Indirectos
B87: Resultado Operativo
B88: Impuestos
B89: Margen Neto
B90: Intereses sobre el capital invertido
B91: Resultado Económico
B92: Rentabilidad de la Actividad
B94: Se detallaran al final de las instrucciones.
B97: Paso 6:
B99: Para realizar el Análisis de Sensibilidad de la Rentabilidad
B100: se debe hacer click en el boton "Hacer Analisis".
B102: El Análisis de sensibilidad muestra la rentabilidad que se
B103: obtendría combinando distintos valores de rendimiento
B104: y precios disponibles. Las celdas con fondo naranja claro
B105: son las combinaciones más probables, ya que estos
B106: precios y rendimientos estan muy cerca de los colocados
B107: por el productor cuando se llenan los datos.
B113: Paso 7:
B115: Al finalizar, podrá guardar un resumen de lo que ha hecho.
B116: Para guardarlo como un PDF, seleccione el botón "Guardar
B117: en PDF". Para guardar en formato Excel seleccione el botón
B118: "Guardar en Excel".
B120: Tener en cuenta que la calculadora tiene fecha de expiración
B121: cada 15 días para poder actualizar la información de la misma,
B122: por lo que se sugiere guardar lo ya trabajado en otro archivo.
B125: Ingresos totales: Es el ingreso que resulta de vender la producción de una hectárea al precio disponible en el puerto de
B126: Rosario (precio que recibe el productor en mano). En la tabla, resulta de multiplicar el rendimiento por el precio.
B127: Costos directos: Son los costos que estan directamente relacionados con la cantidad de hectáreas sembradas y del nivel
B128: de producción. Ejemplo de estos costos son: agroquímicos y tareas de labranza.
B129: Gastos comerciales: Son los gastos incurridos en la comercialización del cultivo. Incluye el costo del flete para llevar la
B130: mercadería al puerto de rosario, comisiones del acopio, paritarias, zarandeo, secado, etc.
B131: Margen Bruto: Es el ingreso que le queda al productor luego de pagar los costos directos y gastos comerciales.
B132: Rendimiento de indiferencia: Con las condiciones descritas, indica cuál debería ser el rendimiento del cultivo para
B133: lograr un márgen bruto igual a cero.
B134: Costos indirectos: Son los costos que no se encuentran relacionados al nivel de producción, como el arrendamiento,
B135: gastos en personal, gastos en movilidad, gastos de oficina, etc. El gasto en personal incluye el salario de una persona
B136: encargada de la dirección del campo y un peón.
B137: Resultado Operativo: Es el dinero que le queda al productor luego de pagar todos los costos (costos directos e indirectos
B138: y gastos comerciales).
B139: Impuestos: Agrega el impuesto a las ganancias, impuesto a los sellos y el impuestos a los creditos y debitos bancarios.
B140: Margen Neto: Es el dinero que le queda al productor luego de pagar todos los costos e impuestos.
B141: Intereses: Es el ingreso que se deja de percibir para realizar la inversión en esta actividad (costo de inmovilizar el capital).
B142: En la tabla se calculó como el 0,25% anual de la inversión inicial en dolares.
B143: Inversión inicial: Se considero como la suma de los costos indirectos y directos, a excepción del costo de cosecha.
B144: Resultado Económico: Es la medida de rentabilidad final del cultivo. Resulta de restarle al margen neto los intereses.
B145: Este resultado incluye el costo de oportunidad tanto de la tierra (arrendamiento), como del trabajo propio (administración
B146: del campo) y del dinero invertido inicialmente.
B147: Costo de oportunidad: Cuando hablamos de costo de oportunidad hacemos referencia al dinero que se podría haber
B148: obtenido al destinar los recursos en una actividad alternativa. Por ejemplo, una persona que trabaje en su campo tiene el
B149: costo de su tiempo, ya que podría estar trabajando en otro sitio y percibir un salario. Si esta persona no administrase su
B150: campo, debería contratar a un encargado.
B151: Rentabilidad de la Actividad: Es la tasa de rentabilidad que se obtendría con el cultivo. Resulta de dividir el Resultado
B152: Economico por la inversión inicial.
B161: Nota: La calculadora dejará de funcionar el día 04/08/2022. Se deberá descargar nuevamente desde https://www.bccba.org.ar/calculadora-de-margenes/

Sheet Calculadora BCCBA
B1: PROVINCIA | Q1: Analisis de Sensibilidad de la Rentabilidad
B3: Podés modificar los datos en amarillo | E3: =CONCATENATE("Rentabilidad Campaña 2022/23 Der. de export. ",TEXT(C26,"0.0%")," maíz, ",TEXT(C24,"0.0%")," trigo, ",TEXT(C25,"0.0%")," soja y ",TEXT(C27,"0.0%")," sorgo.") -> Rentabilidad Campaña 2022/23 Der. de export. 12% maíz, 12% trigo, 33% soja y 12% sorgo. | R3: Nota: Antes de ver el análisis clickear en "Ejecutar".
E4: Rendimiento | F4: qq/ha | G4: =+C6 -> 32.55249732 | H4: =TEXT(C5,"0,#")&" || "&TEXT(C7,"0,#") -> 29,8 || 26,4 | I4: =+C8 -> 87.2092179 | J4: =+C9 -> 78.36714459 | K4: =+C10 -> 52.3298805 | R4: SOJA
B5: Rendimiento trigo | C5: =INDEX(Listas!$A$1:$H$19,MATCH('Calculadora BCCBA'!$B$1,Listas!$A$1:$A$19,0),MATCH('Calculadora BCCBA'!$B$5,Listas!$A$1:$G$1,0)) -> 29.78213336 | E5: Precio Disponible (descontando Derechos de Exportación) | F5: USD/tn | G5: =+HLOOKUP($B$1,'Soja 1ª'!$F$105:$AF$120,3,FALSE) -> 367.5 | H5: =TEXT('Trigo + Soja 2ª'!E147,"##")&" || "&TEXT('Trigo + Soja 2ª'!E148,"##") -> 289 || 368 | I5: =+HLOOKUP($B$1,'Maíz temprano'!$F$101:$AF$116,3,FALSE) -> 227 | J5: =+HLOOKUP($B$1,'Maíz tardío'!$F$101:$AF$116,3,FALSE) -> 205 | K5: =+HLOOKUP($B$1,Sorgo!$F$95:$AF$110,3,FALSE) -> 220 | L5: Rendimiento trigo | M5: 29.78213336 | R5: =+"DER. DE EXPORTACIÓN "&TEXT(0.33,"##%")&" A LA SOJA." -> DER. DE EXPORTACIÓN 33% A LA SOJA.
B6: Rendimiento soja 1ª | C6: =INDEX(Listas!$A$1:$H$19,MATCH('Calculadora BCCBA'!$B$1,Listas!$A$1:$A$19,0),MATCH('Calculadora BCCBA'!$B$6,Listas!$A$1:$G$1,0)) -> 32.55249732 | E6: Ingresos Totales | F6: USD/ha | G6: =+HLOOKUP($B$1,'Soja 1ª'!$F$105:$AF$120,4,FALSE) -> 1196.304277 | H6: =+HLOOKUP($B$1,'Trigo + Soja 2ª'!$F$162:$AF$178,6,FALSE) -> 1830.284974 | I6: =+HLOOKUP($B$1,'Maíz temprano'!$F$101:$AF$116,4,FALSE) -> 1979.649246 | J6: =+HLOOKUP($B$1,'Maíz tardío'!$F$101:$AF$116,4,FALSE) -> 1606.526464 | K6: =+HLOOKUP($B$1,Sorgo!$F$95:$AF$110,4,FALSE) -> 1151.257371 | L6: Rendimiento soja 1ª | M6: 32.55249732
B7: Rendimiento soja 2ª | C7: =INDEX(Listas!$A$1:$H$19,MATCH('Calculadora BCCBA'!$B$1,Listas!$A$1:$A$19,0),MATCH('Calculadora BCCBA'!$B$7,Listas!$A$1:$G$1,0)) -> 26.42368508 | E7: Costos Directos | F7: USD/ha | G7: =+HLOOKUP($B$1,'Soja 1ª'!$F$105:$AF$120,5,FALSE) -> 455.9490276 | H7: =+HLOOKUP($B$1,'Trigo + Soja 2ª'!$F$162:$AF$178,7,FALSE) -> 763.4603275 | I7: =+HLOOKUP($B$1,'Maíz temprano'!$F$101:$AF$116,5,FALSE) -> 693.9010742 | J7: =+HLOOKUP($B$1,'Maíz tardío'!$F$101:$AF$116,5,FALSE) -> 683.8809492 | K7: =+HLOOKUP($B$1,Sorgo!$F$95:$AF$110,5,FALSE) -> 382.8642681 | L7: Rendimiento soja 2ª | M7: 26.42368508 | S7: Rendimiento de soja (qq/ha)
B8: Rendimiento maíz temprano | C8: =INDEX(Listas!$A$1:$H$19,MATCH('Calculadora BCCBA'!$B$1,Listas!$A$1:$A$19,0),MATCH('Calculadora BCCBA'!$B$8,Listas!$A$1:$G$1,0)) -> 87.2092179 | E8: Gastos Comerciales | F8: USD/ha | G8: =+HLOOKUP($B$1,'Soja 1ª'!$F$105:$AF$120,6,FALSE) -> 169.8120728 | H8: =+HLOOKUP($B$1,'Trigo + Soja 2ª'!$F$162:$AF$178,8,FALSE) -> 257.9024846 | I8: =+HLOOKUP($B$1,'Maíz temprano'!$F$101:$AF$116,6,FALSE) -> 430.5291256 | J8: =+HLOOKUP($B$1,'Maíz tardío'!$F$101:$AF$116,6,FALSE) -> 404.9036865 | K8: =+HLOOKUP($B$1,Sorgo!$F$95:$AF$110,6,FALSE) -> 253.5659158 | L8: Rendimiento maíz temprano | M8: 87.2092179 | Q8: Precio disp. (USD/Tn) | R8: =G18 -> 0.01327583968 | S8: 26.55249732 | T8: 29.55249732 | U8: 32.55249732 | V8: 35.55249732 | W8: 38.55249732
B9: Rendimiento maíz tardío | C9: =INDEX(Listas!$A$1:$H$19,MATCH('Calculadora BCCBA'!$B$1,Listas!$A$1:$A$19,0),MATCH('Calculadora BCCBA'!$B$9,Listas!$A$1:$G$1,0)) -> 78.36714459 | E9: Margen Bruto | F9: USD/ha | G9: =+HLOOKUP($B$1,'Soja 1ª'!$F$105:$AF$120,7,FALSE) -> 570.5431761 | H9: =+HLOOKUP($B$1,'Trigo + Soja 2ª'!$F$162:$AF$178,9,FALSE) -> 808.9221618 | I9: =+HLOOKUP($B$1,'Maíz temprano'!$F$101:$AF$116,7,FALSE) -> 855.2190466 | J9: =+HLOOKUP($B$1,'Maíz tardío'!$F$101:$AF$116,7,FALSE) -> 517.7418285 | K9: =+HLOOKUP($B$1,Sorgo!$F$95:$AF$110,7,FALSE) -> 514.827187 | L9: Rendimiento maíz tardío | M9: 78.36714459 | R9: 323.5 | S9: -0.2474137047 | T9: -0.1535985712 | U9: -0.06038638266 | V9: 0.007954359774 | W9: 0.07172160349
B10: Rendimiento sorgo | C10: =INDEX(Listas!$A$1:$H$19,MATCH('Calculadora BCCBA'!$B$1,Listas!$A$1:$A$19,0),MATCH('Calculadora BCCBA'!$B$10,Listas!$A$1:$G$1,0)) -> 52.3298805 | E10: Rendimiento de Indiferencia | F10: qq/ha | G10: =+HLOOKUP($B$1,'Soja 1ª'!$F$105:$AF$120,8,FALSE) -> 17.02751294 | H10: - | I10: =+HLOOKUP($B$1,'Maíz temprano'!$F$101:$AF$116,8,FALSE) -> 49.53437004 | J10: =+HLOOKUP($B$1,'Maíz tardío'!$F$101:$AF$116,8,FALSE) -> 53.11144564 | K10: =+HLOOKUP($B$1,Sorgo!$F$95:$AF$110,8,FALSE) -> 28.92864472 | L10: Rendimiento sorgo | M10: 52.3298805 | R10: 343.5 | S10: -0.2069601258 | T10: -0.1088532209 | U10: -0.02216770996 | V10: 0.04508341453 | W10: 0.1118283397
E11: Costos Indirectos | F11: USD/ha | G11: =+HLOOKUP($B$1,'Soja 1ª'!$F$105:$AF$120,9,FALSE) -> 494.8483061 | H11: =+HLOOKUP($B$1,'Trigo + Soja 2ª'!$F$162:$AF$178,10,FALSE) -> 538.146082 | I11: =+HLOOKUP($B$1,'Maíz temprano'!$F$101:$AF$116,9,FALSE) -> 509.2714925 | J11: =+HLOOKUP($B$1,'Maíz tardío'!$F$101:$AF$116,9,FALSE) -> 511.023598 | K11: =+HLOOKUP($B$1,Sorgo!$F$95:$AF$110,9,FALSE) -> 506.470907 | R11: 363.5 | S11: -0.1687278333 | T11: -0.06656795092 | U11: 0.01010153447 | V11: 0.0801659472 | W11: 0.1497216381
B12: Precio DISPONIBLE trigo (USD/Tn.) | C12: 288.5 | E12: Resultado Operativo | F12: USD/ha | G12: =+HLOOKUP($B$1,'Soja 1ª'!$F$105:$AF$120,10,FALSE) -> 75.69487002 | H12: =+HLOOKUP($B$1,'Trigo + Soja 2ª'!$F$162:$AF$178,11,FALSE) -> 270.7760798 | I12: =+HLOOKUP($B$1,'Maíz temprano'!$F$101:$AF$116,10,FALSE) -> 345.9475541 | J12: =+HLOOKUP($B$1,'Maíz tardío'!$F$101:$AF$116,10,FALSE) -> 6.718230502 | K12: =+HLOOKUP($B$1,Sorgo!$F$95:$AF$110,10,FALSE) -> 8.356279975 | R12: 383.5 | S12: -0.1325387614 | T12: -0.03254525191 | U12: 0.04064195996 | V12: 0.1133666235 | W12: 0.1855798132
B13: Precio DISPONIBLE soja 1ª (USD/Tn.) | C13: 367.5 | E13: Impuestos | F13: USD/ha | G13: =+HLOOKUP($B$1,'Soja 1ª'!$F$105:$AF$120,11,FALSE) -> 42.62470517 | H13: =+HLOOKUP($B$1,'Trigo + Soja 2ª'!$F$162:$AF$178,12,FALSE) -> 111.3317489 | I13: =+HLOOKUP($B$1,'Maíz temprano'!$F$101:$AF$116,11,FALSE) -> 136.2120994 | J13: =+HLOOKUP($B$1,'Maíz tardío'!$F$101:$AF$116,11,FALSE) -> 28.98898999 | K13: =+HLOOKUP($B$1,Sorgo!$F$95:$AF$110,11,FALSE) -> 21.82795275 | R13: 403.5 | S13: -0.09823338133 | T13: -0.006122029461 | U13: 0.06958887371 | V13: 0.144832905 | W13: 0.2195625273
B14: Precio DISPONIBLE maíz temprano (USD/Tn.) | C14: 227 | E14: Margen Neto | F14: USD/ha | G14: =+HLOOKUP($B$1,'Soja 1ª'!$F$105:$AF$120,12,FALSE) -> 33.07016486 | H14: =+HLOOKUP($B$1,'Trigo + Soja 2ª'!$F$162:$AF$178,13,FALSE) -> 159.4443309 | I14: =+HLOOKUP($B$1,'Maíz temprano'!$F$101:$AF$116,12,FALSE) -> 209.7354547 | J14: =+HLOOKUP($B$1,'Maíz tardío'!$F$101:$AF$116,12,FALSE) -> -22.27075949 | K14: =+HLOOKUP($B$1,Sorgo!$F$95:$AF$110,12,FALSE) -> -13.47167278
B15: Precio DISPONIBLE maíz tardío (USD/Tn.) | C15: 205 | E15: Intereses sobre el Capital Invertido | F15: USD/ha | G15: =+HLOOKUP($B$1,'Soja 1ª'!$F$105:$AF$120,13,FALSE) -> 21.59989509 | H15: =+HLOOKUP($B$1,'Trigo + Soja 2ª'!$F$162:$AF$178,14,FALSE) -> 44.90000311 | I15: =+HLOOKUP($B$1,'Maíz temprano'!$F$101:$AF$116,13,FALSE) -> 31.63571228 | J15: =+HLOOKUP($B$1,'Maíz tardío'!$F$101:$AF$116,13,FALSE) -> 36.21350327 | K15: =+HLOOKUP($B$1,Sorgo!$F$95:$AF$110,13,FALSE) -> 27.33627223
B16: Precio DISPONIBLE sorgo (USD/Tn.) | C16: 220 | E16: Resultado Económico | F16: USD/ha | G16: =+HLOOKUP($B$1,'Soja 1ª'!$F$105:$AF$120,14,FALSE) -> 11.47026977 | H16: =+HLOOKUP($B$1,'Trigo + Soja 2ª'!$F$162:$AF$178,15,FALSE) -> 114.5443278 | I16: =+HLOOKUP($B$1,'Maíz temprano'!$F$101:$AF$116,14,FALSE) -> 178.0997424 | J16: =+HLOOKUP($B$1,'Maíz tardío'!$F$101:$AF$116,14,FALSE) -> -58.48426276 | K16: =+HLOOKUP($B$1,Sorgo!$F$95:$AF$110,14,FALSE) -> -40.80794501 | R16: TRIGO + SOJA
E17: Inversión inicial | F17: USD/ha | G17: =+HLOOKUP($B$1,'Soja 1ª'!$F$105:$AF$120,15,FALSE) -> 863.9958036 | H17: =+HLOOKUP($B$1,'Trigo + Soja 2ª'!$F$162:$AF$178,16,FALSE) -> 898.0000621 | I17: =+HLOOKUP($B$1,'Maíz temprano'!$F$101:$AF$116,15,FALSE) -> 1084.652992 | J17: =+HLOOKUP($B$1,'Maíz tardío'!$F$101:$AF$116,15,FALSE) -> 1086.405098 | K17: =+HLOOKUP($B$1,Sorgo!$F$95:$AF$110,15,FALSE) -> 820.088167 | R17: =+"DER. DE EXPORTACIÓN "&TEXT(0.12,"##%")&" TRIGO, "&TEXT(0.3,"33%")&" SOJA." -> DER. DE EXPORTACIÓN 12% TRIGO, 33% SOJA.
B18: Dólar a cosecha trigo (diciembre) | C18: 191 | E18: Rentabilidad de la Actividad | F18: % | G18: =+HLOOKUP($B$1,'Soja 1ª'!$F$105:$AF$120,16,FALSE) -> 0.01327583968 | H18: =+HLOOKUP($B$1,'Trigo + Soja 2ª'!$F$162:$AF$178,17,FALSE) -> 0.1275549219 | I18: =+HLOOKUP($B$1,'Maíz temprano'!$F$101:$AF$116,16,FALSE) -> 0.1641997428 | J18: =+HLOOKUP($B$1,'Maíz tardío'!$F$101:$AF$116,16,FALSE) -> -0.05383283166 | K18: =+HLOOKUP($B$1,Sorgo!$F$95:$AF$110,16,FALSE) -> -0.04976043632
B19: Dólar a cosecha soja (mayo) | C19: 238.5 | S19: Rendimiento de soja (qq/ha)
B20: Dólar a cosecha maíz temp. (abril) | C20: 228.1 | Q20: Precio disp. (USD/Tn) | R20: =+H18 -> 0.1275549219 | S20: 20.42368508 | T20: 23.42368508 | U20: 26.42368508 | V20: 29.42368508 | W20: 32.42368508
B21: Dólar a cosecha maíz tardío (julio) | C21: 258 | R21: 323.5 | S21: -0.02898747913 | T21: 0.03382835396 | U21: 0.09653169329 | V21: 0.158777631 | W21: 0.2206558149
B22: Dólar a cosecha sorgo (mayo) | C22: =+C19 -> 238.5 | R22: 343.5 | S22: -0.01639453935 | T22: 0.04937020406 | U22: 0.1150098431 | V22: 0.1801888805 | W22: 0.2449946384
R23: 363.5 | S23: -0.004463169084 | T23: 0.06409447142 | U23: 0.13251465 | V23: 0.2004707875 | W23: 0.2680480053
B24: Derecho de exportación trigo | C24: 0.12 | R24: 383.5 | S24: 0.006857430585 | T24: 0.07806401637 | U24: 0.149121047 | V24: 0.2197104073 | W24: 0.2899151329
B25: Derecho de exportación soja | C25: 0.33 | R25: 403.5 | S25: 0.01761298755 | T25: 0.09133541616 | U25: 0.1648964681 | V25: 0.2379860717 | W25: 0.3106852837
B26: Derecho de exportación maíz | C26: 0.12
B27: Derecho de exportación sorgo | C27: 0.12
R28: MAÍZ TEMPRANO
R29: ="DER. DE EXPORTACIÓN "&TEXT(0.12,"##%")&" MAÍZ, "&TEXT(0.3,"33%")&" SOJA." -> DER. DE EXPORTACIÓN 12% MAÍZ, 33% SOJA.
B30: Links utiles para cambiar datos de las variables
B31: Rendimientos | S31: Rendimiento de maíz (qq/ha)
B32: Precio disponible futuro | Q32: Precio disp. (USD/Tn) | R32: =+I18 -> 0.1641997428 | S32: 77.2092179 | T32: 82.2092179 | U32: 87.2092179 | V32: 92.2092179 | W32: 97.2092179
B33: Dólar | R33: 162.4 | S33: -0.3298270083 | T33: -0.2797670305 | U33: -0.2326866121 | V33: -0.1860073626 | W33: -0.1397683479
R34: 187.4 | S34: -0.1549716049 | T34: -0.09384597395 | U34: -0.04139454694 | V34: -0.001400140287 | W34: 0.03826623928
R35: 212.4 | S35: -0.002893802053 | T35: 0.04714647335 | U35: 0.0950616388 | V35: 0.1426522657 | W35: 0.1898914261
R36: 222.4 | S36: 0.04546292027 | T36: 0.09854350617 | U36: 0.149489801 | V36: 0.2001011633 | W36: 0.2503507662
R37: 232.4 | S37: 0.0937503867 | T37: 0.1498622462 | U37: 0.2038301052 | V37: 0.2574521153 | W37: 0.3107015555
R40: MAÍZ TARDÍO
R41: ="DER. DE EXPORTACIÓN "&TEXT(0.12,"##%")&" MAÍZ, "&TEXT(0.3,"33%")&" SOJA." -> DER. DE EXPORTACIÓN 12% MAÍZ, 33% SOJA.
S43: Rendimiento de maíz (qq/ha)
Q44: Precio disp. (USD/Tn) | R44: =+J18 -> -0.05383283166 | S44: 62.36714459 | T44: 70.36714459 | U44: 78.36714459 | V44: 86.36714459 | W44: 94.36714459
R45: 168.5 | S45: -0.4603220681 | T45: -0.3802176037 | U45: -0.300781047 | V45: -0.2220895633 | W45: -0.1442299162
R46: 183.5 | S46: -0.3756602168 | T46: -0.2849043374 | U46: -0.1948623907 | V46: -0.1056110398 | W46: -0.03009286625
R47: 198.5 | S47: -0.2911452911 | T47: -0.1897774249 | U47: -0.08917402875 | V47: -0.01051636895 | W47: 0.05801566182
R48: 213.5 | S48: -0.2067769091 | T48: -0.09483632024 | U48: -0.006336511162 | V48: 0.07012109771 | W48: 0.1458944823
R49: 228.5 | S49: -0.1225546899 | T49: -0.01750538445 | U49: 0.06686310297 | V49: 0.1505660838 | W49: 0.2335444924
B51: Contacto:
B52: economia@bccba.org.ar | R52: SORGO
R53: ="DER. DE EXPORTACIÓN "&TEXT(0.12,"##%")&" MAÍZ, "&TEXT(0.3,"33%")&" SOJA." -> DER. DE EXPORTACIÓN 12% MAÍZ, 33% SOJA.
B54: www.bccba.com.ar
B55: Tel: 54 351 4229637. Int: 140 | S55: Rendimiento de sorgo (qq/ha)
B56: Tel: 54 351 4253716. Int: 140 | Q56: Precio disp. (USD/Tn) | R56: =+K18 -> -0.04976043632 | S56: 36.3298805 | T56: 44.3298805 | U56: 52.3298805 | V56: 60.3298805 | W56: 68.3298805
R57: 180 | S57: -0.5222425618 | T57: -0.4024571154 | U57: -0.285155352 | V57: -0.1691010609 | W57: -0.06155209177
R58: 190 | S58: -0.478539215 | T58: -0.3492952368 | U58: -0.2225922199 | V58: -0.09719381693 | W58: -0.004197859812
R59: 200 | S59: -0.4348750116 | T59: -0.2961913439 | U59: -0.1601094845 | V59: -0.03520361573 | W59: 0.05219253903
R60: 210 | S60: -0.391249899 | T60: -0.2431453418 | U60: -0.09770699092 | V60: 0.01466831805 | W60: 0.1084887663
R61: 220 | S61: -0.3476638248 | T61: -0.1901571361 | U61: -0.04186881741 | V61: 0.06446662014 | W61: 0.1646910575

Sheet Sorgo (hidden)
B2: Planteo Tecnico (Por Ha) | C2: Unidad de medida | D2: Mes de actualiz. | E2: Cantidades | F2: Calamuchita | G2: Capital | H2: Colón | I2: Cruz del Eje | J2: Gral. Roca | K2: Gral. San Martín | L2: Ischilin | M2: Juárez Celman | N2: Marcos Juárez | O2: Minas | P2: Pocho | Q2: Pte. R. Sáenz Peña | R2: Punilla | S2: Río Cuarto | T2: Río Primero | U2: Río Seco | V2: Río Segundo | W2: San Alberto | X2: San Javier | Y2: San Justo | Z2: Santa María | AA2: Sobremonte | AB2: Tercero Arriba | AC2: Totoral | AD2: Tulumba | AE2: Unión | AF2: PROVINCIA
B3: Rendimiento | C3: qq/ha | D3: Noviembre | E3: - | F3: =+'Calculadora BCCBA'!$M$10 -> 52.3298805 | G3: =+'Calculadora BCCBA'!$M$10 -> 52.3298805 | H3: =+'Calculadora BCCBA'!$M$10 -> 52.3298805 | I3: =+'Calculadora BCCBA'!$M$10 -> 52.3298805 | J3: =+'Calculadora BCCBA'!$M$10 -> 52.3298805 | K3: =+'Calculadora BCCBA'!$M$10 -> 52.3298805 | L3: =+'Calculadora BCCBA'!$M$10 -> 52.3298805 | M3: =+'Calculadora BCCBA'!$M$10 -> 52.3298805 | N3: =+'Calculadora BCCBA'!$M$10 -> 52.3298805 | O3: =+'Calculadora BCCBA'!$M$10 -> 52.3298805 | P3: =+'Calculadora BCCBA'!$M$10 -> 52.3298805 | Q3: =+'Calculadora BCCBA'!$M$10 -> 52.3298805 | R3: =+'Calculadora BCCBA'!$M$10 -> 52.3298805 | S3: =+'Calculadora BCCBA'!$M$10 -> 52.3298805 | T3: =+'Calculadora BCCBA'!$M$10 -> 52.3298805 | U3: =+'Calculadora BCCBA'!$M$10 -> 52.3298805 | V3: =+'Calculadora BCCBA'!$M$10 -> 52.3298805 | W3: =+'Calculadora BCCBA'!$M$10 -> 52.3298805 | X3: =+'Calculadora BCCBA'!$M$10 -> 52.3298805 | Y3: =+'Calculadora BCCBA'!$M$10 -> 52.3298805 | Z3: =+'Calculadora BCCBA'!$M$10 -> 52.3298805 | AA3: =+'Calculadora BCCBA'!$M$10 -> 52.3298805 | AB3: =+'Calculadora BCCBA'!$M$10 -> 52.3298805 | AC3: =+'Calculadora BCCBA'!$M$10 -> 52.3298805 | AD3: =+'Calculadora BCCBA'!$M$10 -> 52.3298805 | AE3: =+'Calculadora BCCBA'!$M$10 -> 52.3298805 | AF3: =+'Calculadora BCCBA'!$M$10 -> 52.3298805
B4: Participación Provincial | C4: Porcentaje | D4: Abril | E4: - | F4: 1 | AF4: -
B5: Pulverización terrestre | C5: Cantidad | D5: Abril | E5: 3 | F5: =$E5 -> 3 | H5: 3 | J5: 3 | K5: 3 | M5: 3 | N5: 3 | Q5: 3 | S5: 3 | T5: 3 | U5: 3 | V5: =$E5 -> 3 | Y5: 3 | Z5: 3 | AB5: 3 | AC5: 3 | AD5: 3 | AE5: 3 | AF5: =SUMPRODUCT(F5:AE5,$F$4:$AE$4) -> 3
B6: Fertilización | C6: Cantidad | D6: =D5 -> Abril | E6: 1 | F6: 1 | H6: 1 | J6: 1 | K6: 1 | M6: 1 | N6: 1 | Q6: 1 | S6: 1 | T6: 1 | U6: 1 | V6: 1 | Y6: 1 | Z6: 1 | AB6: 1 | AC6: 1 | AD6: 1 | AE6: 1 | AF6: =SUMPRODUCT(F6:AE6,$F$4:$AE$4) -> 1
B7: Pulverización aérea | C7: Cantidad | D7: =D6 -> Abril | E7: 1
B8: Glifosato 54% | C8: lt/ha | D8: =D6 -> Abril | E8: 1.65 | F8: 1.65 | H8: 1.65 | J8: 1.65 | K8: 1.65 | M8: 1.65 | N8: 1.65 | Q8: 1.65 | S8: 1.65 | T8: 1.65 | U8: 1.65 | V8: 1.65 | Y8: 1.65 | Z8: 1.65 | AB8: 1.65 | AC8: 1.65 | AD8: 1.65 | AE8: 1.65 | AF8: =+AVERAGE(F8:AE8) -> 1.65
B9: Atrazina 50 | C9: kg/ha | D9: =D8 -> Abril | E9: 5 | F9: 5 | H9: 5 | J9: 5 | K9: 5 | M9: 5 | N9: 5 | Q9: 5 | S9: 5 | T9: 5 | U9: 5 | V9: 5 | Y9: 5 | Z9: 5 | AB9: 5 | AC9: 5 | AD9: 5 | AE9: 5 | AF9: =+AVERAGE(F9:AE9) -> 5
B10: 2 4 D 100% | C10: lt/ha | D10: Abril | E10: 0.87 | F10: 0.87 | H10: 0.87 | J10: 0.87 | K10: 0.87 | M10: 0.87 | N10: 0.87 | Q10: 0.87 | S10: 0.87 | T10: 0.87 | U10: 0.87 | V10: 0.87 | Y10: 0.87 | Z10: 0.87 | AB10: 0.87 | AC10: 0.87 | AD10: 0.87 | AE10: 0.87 | AF10: =+AVERAGE(F10:AE10) -> 0.87
B11: FIGHTER PLUS | C11: lt/ha | D11: Abril | E11: 0.023 | F11: 0.023 | H11: 0.023 | J11: 0.023 | K11: 0.023 | M11: 0.023 | N11: 0.023 | Q11: 0.023 | S11: 0.023 | T11: 0.023 | U11: 0.023 | V11: 0.023 | Y11: 0.023 | Z11: 0.023 | AB11: 0.023 | AC11: 0.023 | AD11: 0.023 | AE11: 0.023 | AF11: =+AVERAGE(F11:AE11) -> 0.023
B12: SEMILLA | C12: bls/ha | D12: Abril | E12: 6 | F12: 6 | H12: 6 | J12: 6 | K12: 6 | M12: 6 | N12: 6 | Q12: 6 | S12: 6 | T12: 6 | U12: 6 | V12: 6 | Y12: 6 | Z12: 6 | AB12: 6 | AC12: 6 | AD12: 6 | AE12: 6 | AF12: =SUMPRODUCT(F12:AE12,$F$4:$AE$4) -> 6
B13: UREA | C13: kg/ha | D13: Abril | E13: 100 | F13: 100 | H13: 100 | J13: 100 | K13: 100 | M13: 100 | N13: 100 | Q13: 100 | S13: 100 | T13: 100 | U13: 100 | V13: 100 | Y13: 100 | Z13: 100 | AB13: 100 | AC13: 100 | AD13: 100 | AE13: 100 | AF13: =SUMPRODUCT(F13:AE13,$F$4:$AE$4) -> 100
B14: FOSFATO DIAMONICO | C14: kg/ha | D14: Abril | E14: 30 | F14: 30 | H14: 30 | J14: 30 | K14: 30 | M14: 30 | N14: 30 | Q14: 30 | S14: 30 | T14: 30 | U14: 30 | V14: 30 | Y14: 30 | Z14: 30 | AB14: 30 | AC14: 30 | AD14: 30 | AE14: 30 | AF14: =SUMPRODUCT(F14:AE14,$F$4:$AE$4) -> 30
B15: KARATE ZEON 25% | C15: lt/ha | D15: Abril | E15: 0.034 | F15: 0.034 | H15: 0.034 | J15: 0.034 | K15: 0.034 | M15: 0.034 | N15: 0.034 | Q15: 0.034 | S15: 0.034 | T15: 0.034 | U15: 0.034 | V15: 0.034 | Y15: 0.034 | Z15: 0.034 | AB15: 0.034 | AC15: 0.034 | AD15: 0.034 | AE15: 0.034 | AF15: =+AVERAGE(F15:AE15) -> 0.034
B16: Riego | C16: mm/ha | D16: - | E16: - | F16: 0 | H16: =+$F$16 -> 0 | J16: =+$F$16 -> 0 | K16: 0 | M16: 0 | N16: 0 | Q16: 0 | S16: 0 | T16: 0 | U16: 0 | V16: =+$F$16 -> 0 | Y16: =+$F$16 -> 0 | Z16: 0 | AB16: 0 | AC16: =+$F$16 -> 0 | AD16: =+$F$16 -> 0 | AE16: =+$F$16 -> 0 | AF16: 0
B18: Costos Directos (Por Ha) | C18: =C2 -> Unidad de medida | D18: =D2 -> Mes de actualiz. | E18: Precio | F18: =F$2 -> Calamuchita | G18: =G$2 -> Capital | H18: Colón | I18: Cruz del Eje | J18: Gral. Roca | K18: Gral. San Martín | L18: Ischilin | M18: Juárez Celman | N18: Marcos Juárez | O18: Minas | P18: Pocho | Q18: Pte. R. Sáenz Peña | R18: Punilla | S18: Río Cuarto | T18: Río Primero | U18: Río Seco | V18: Río Segundo | W18: San Alberto | X18: San Javier | Y18: San Justo | Z18: Santa María | AA18: Sobremonte | AB18: Tercero Arriba | AC18: Totoral | AD18: Tulumba | AE18: Unión | AF18: PROVINCIA
A19: L | B19: Pulverización terrestre | C19: Cantidad | D19: Julio | E19: 6.32 | F19: =$E19*F5 -> 18.96 | H19: =$E19*H5 -> 18.96 | J19: =$E19*J5 -> 18.96 | K19: 18.96 | M19: =$E19*M5 -> 18.96 | N19: 18.96 | Q19: =$E19*Q5 -> 18.96 | S19: =$E19*S5 -> 18.96 | T19: 18.96 | U19: 18.96 | V19: 18.96 | Y19: =$E19*Y5 -> 18.96 | Z19: 18.96 | AB19: =$E19*AB5 -> 18.96 | AC19: 18.96 | AD19: 18.96 | AE19: 18.96 | AF19: 18.96
A20: L | B20: Fertilización | C20: Cantidad | D20: =D19 -> Julio | E20: 10.53 | F20: 10.53 | H20: 10.53 | J20: 10.53 | K20: 10.53 | M20: 10.53 | N20: 10.53 | Q20: 10.53 | S20: 10.53 | T20: 10.53 | U20: 10.53 | V20: 10.53 | Y20: 10.53 | Z20: 10.53 | AB20: 10.53 | AC20: 10.53 | AD20: 10.53 | AE20: 10.53 | AF20: 10.53
B21: Pulverización aérea | C21: Cantidad | D21: =D20 -> Julio | E21: 12.63 | F21: 0 | H21: 0 | J21: 0 | K21: 0 | M21: 0 | N21: 0 | Q21: 0 | S21: 0 | T21: 0 | U21: 0 | V21: 0 | Y21: 0 | Z21: 0 | AB21: 0 | AC21: 0 | AD21: 0 | AE21: 0 | AF21: 0
A22: H | B22: Glifosato | C22: lt/ha | D22: =D20 -> Julio | E22: 12.5 | F22: 20.625 | H22: 20.625 | J22: 20.625 | K22: 20.625 | M22: 20.625 | N22: 20.625 | Q22: 20.625 | S22: 20.625 | T22: 20.625 | U22: 20.625 | V22: 20.625 | Y22: 20.625 | Z22: 20.625 | AB22: 20.625 | AC22: 20.625 | AD22: 20.625 | AE22: 20.625 | AF22: 20.625
A23: H | B23: Atrazina 50 | C23: kg/ha | D23: =D22 -> Julio | E23: 5.7 | F23: 28.5 | H23: 28.5 | J23: 28.5 | K23: 28.5 | M23: 28.5 | N23: 28.5 | Q23: 28.5 | S23: 28.5 | T23: 28.5 | U23: 28.5 | V23: 28.5 | Y23: 28.5 | Z23: 28.5 | AB23: 28.5 | AC23: 28.5 | AD23: 28.5 | AE23: 28.5 | AF23: 28.5
A24: H | B24: 2 4 D 100% | C24: lt/ha | D24: =D23 -> Julio | E24: 7.2 | F24: 6.264 | H24: 6.264 | J24: 6.264 | K24: 6.264 | M24: 6.264 | N24: 6.264 | Q24: 6.264 | S24: 6.264 | T24: 6.264 | U24: 6.264 | V24: 6.264 | Y24: 6.264 | Z24: 6.264 | AB24: 6.264 | AC24: 6.264 | AD24: 6.264 | AE24: 6.264 | AF24: 6.264
A25: INS | B25: FIGHTER PLUS | C25: lt/ha | D25: Julio | E25: 66 | F25: 1.518 | H25: 1.518 | J25: 1.518 | K25: 1.518 | M25: 1.518 | N25: 1.518 | Q25: 1.518 | S25: 1.518 | T25: 1.518 | U25: 1.518 | V25: 1.518 | Y25: 1.518 | Z25: 1.518 | AB25: 1.518 | AC25: 1.518 | AD25: 1.518 | AE25: 1.518 | AF25: 1.518
A26: S | B26: SEMILLA | C26: bls/ha | D26: Julio | E26: 7 | F26: 42 | H26: 42 | J26: 42 | K26: 42 | M26: 42 | N26: 42 | Q26: 42 | S26: 42 | T26: 42 | U26: 42 | V26: 42 | Y26: 42 | Z26: 42 | AB26: 42 | AC26: 42 | AD26: 42 | AE26: 42 | AF26: 42
A27: F | B27: UREA | C27: kg/ha | D27: Julio | E27: 0.95 | F27: 95 | H27: 95 | J27: 95 | K27: 95 | M27: 95 | N27: 95 | Q27: 95 | S27: 95 | T27: 95 | U27: 95 | V27: 95 | Y27: 95 | Z27: 95 | AB27: 95 | AC27: 95 | AD27: 95 | AE27: 95 | AF27: 95
A28: F | B28: FOSFATO DIAMONICO | C28: kg/ha | D28: Julio | E28: 1.4 | F28: 42 | H28: 42 | J28: 42 | K28: 42 | M28: 42 | N28: 42 | Q28: 42 | S28: 42 | T28: 42 | U28: 42 | V28: 42 | Y28: 42 | Z28: 42 | AB28: 42 | AC28: 42 | AD28: 42 | AE28: 42 | AF28: 42
A29: INS | B29: KARATE ZEON 5% | C29: lt/ha | D29: Julio | E29: 55.89 | F29: 1.90026 | H29: 1.90026 | J29: 1.90026 | K29: 1.90026 | M29: 1.90026 | N29: 1.90026 | Q29: 1.90026 | S29: 1.90026 | T29: 1.90026 | U29: 1.90026 | V29: 1.90026 | Y29: 1.90026 | Z29: 1.90026 | AB29: 1.90026 | AC29: 1.90026 | AD29: 1.90026 | AE29: 1.90026 | AF29: 1.90026
B30: Riego | C30: =+"USD/"&LEFT(C16,2) -> USD/mm | D30: Julio | E30: 1 | F30: 0 | H30: 0 | J30: 0 | K30: 0 | M30: 0 | N30: 0 | Q30: 0 | S30: 0 | T30: 0 | U30: 0 | V30: 0 | Y30: 0 | Z30: 0 | AB30: 0 | AC30: 0 | AD30: 0 | AE30: 0 | AF30: 0
A31: L | B31: Siembra | C31: USD/Unidad | D31: Julio | E31: 46.32 | F31: =$E$31 -> 46.32 | H31: =$E$31 -> 46.32 | J31: 46.32 | K31: 46.32 | M31: 46.32 | N31: 46.32 | Q31: 46.32 | S31: 46.32 | T31: 46.32 | U31: 46.32 | V31: 46.32 | Y31: 46.32 | Z31: 46.32 | AB31: 46.32 | AC31: 46.32 | AD31: 46.32 | AE31: 46.32 | AF31: =$E$31 -> 46.32
B32: Cosecha | C32: $/Unidad | E32: - | F32: =+Listas!$AL$10 -> 9410.490841 | G32: =+Listas!$AL$10 -> 9410.490841 | H32: =+Listas!$AL$10 -> 9410.490841 | I32: =+Listas!$AL$10 -> 9410.490841 | J32: =+Listas!$AL$10 -> 9410.490841 | K32: =+Listas!$AL$10 -> 9410.490841 | L32: =+Listas!$AL$10 -> 9410.490841 | M32: =+Listas!$AL$10 -> 9410.490841 | N32: =+Listas!$AL$10 -> 9410.490841 | O32: =+Listas!$AL$10 -> 9410.490841 | P32: =+Listas!$AL$10 -> 9410.490841 | Q32: =+Listas!$AL$10 -> 9410.490841 | R32: =+Listas!$AL$10 -> 9410.490841 | S32: =+Listas!$AL$10 -> 9410.490841 | T32: =+Listas!$AL$10 -> 9410.490841 | U32: =+Listas!$AL$10 -> 9410.490841 | V32: =+Listas!$AL$10 -> 9410.490841 | W32: =+Listas!$AL$10 -> 9410.490841 | X32: =+Listas!$AL$10 -> 9410.490841 | Y32: =+Listas!$AL$10 -> 9410.490841 | Z32: =+Listas!$AL$10 -> 9410.490841 | AA32: =+Listas!$AL$10 -> 9410.490841 | AB32: =+Listas!$AL$10 -> 9410.490841 | AC32: =+Listas!$AL$10 -> 9410.490841 | AD32: =+Listas!$AL$10 -> 9410.490841 | AE32: =+Listas!$AL$10 -> 9410.490841 | AF32: =+Listas!$AL$10 -> 9410.490841
A33: C | B33: Cosecha en USD | C33: USD/Unidad | E33: - | F33: =+F32*(1+$E$90)/$E$88 -> 69.24700808 | H33: =+H32*(1+$E$90)/$E$88 -> 69.24700808 | J33: =+J32*(1+$E$90)/$E$88 -> 69.24700808 | K33: =+K32*(1+$E$90)/$E$88 -> 69.24700808 | M33: =+M32*(1+$E$90)/$E$88 -> 69.24700808 | N33: =+N32*(1+$E$90)/$E$88 -> 69.24700808 | Q33: =+Q32*(1+$E$90)/$E$88 -> 69.24700808 | S33: =+S32*(1+$E$90)/$E$88 -> 69.24700808 | T33: =+T32*(1+$E$90)/$E$88 -> 69.24700808 | U33: =+U32*(1+$E$90)/$E$88 -> 69.24700808 | V33: =+V32*(1+$E$90)/$E$88 -> 69.24700808 | Y33: =+Y32*(1+$E$90)/$E$88 -> 69.24700808 | Z33: =+Z32*(1+$E$90)/$E$88 -> 69.24700808 | AB33: =+AB32*(1+$E$90)/$E$88 -> 69.24700808 | AC33: =+AC32*(1+$E$90)/$E$88 -> 69.24700808 | AD33: =+AD32*(1+$E$90)/$E$88 -> 69.24700808 | AE33: =+AE32*(1+$E$90)/$E$88 -> 69.24700808 | AF33: =+AF32*(1+$E$90)/$E$88 -> 69.24700808
B34: Costos directos | C34: USD/ha | F34: =+SUM(F33,F19:F31) -> 382.8642681 | H34: =+SUM(H33,H19:H31) -> 382.8642681 | J34: =+SUM(J33,J19:J31) -> 382.8642681 | K34: =+SUM(K33,K19:K31) -> 382.8642681 | M34: =+SUM(M33,M19:M31) -> 382.8642681 | N34: =+SUM(N33,N19:N31) -> 382.8642681 | Q34: =+SUM(Q33,Q19:Q31) -> 382.8642681 | S34: =+SUM(S33,S19:S31) -> 382.8642681 | T34: =+SUM(T33,T19:T31) -> 382.8642681 | U34: =+SUM(U33,U19:U31) -> 382.8642681 | V34: =+SUM(V33,V19:V31) -> 382.8642681 | Y34: =+SUM(Y33,Y19:Y31) -> 382.8642681 | Z34: =+SUM(Z33,Z19:Z31) -> 382.8642681 | AB34: =+SUM(AB33,AB19:AB31) -> 382.8642681 | AC34: =+SUM(AC33,AC19:AC31) -> 382.8642681 | AD34: =+SUM(AD33,AD19:AD31) -> 382.8642681 | AE34: =+SUM(AE33,AE19:AE31) -> 382.8642681 | AF34: =+SUM(AF33,AF19:AF31) -> 382.8642681
B36: Opciones avanzadas (completado por el usuario) | C36: Unidad de medida | D36: Mes de actualiz. | E36: - | F36: Calamuchita | G36: Capital | H36: Colón | I36: Cruz del Eje | J36: Gral. Roca | K36: Gral. San Martín | L36: Ischilin | M36: Juárez Celman | N36: Marcos Juárez | O36: Minas | P36: Pocho | Q36: Pte. R. Sáenz Peña | R36: Punilla | S36: Río Cuarto | T36: Río Primero | U36: Río Seco | V36: Río Segundo | W36: San Alberto | X36: San Javier | Y36: San Justo | Z36: Santa María | AA36: Sobremonte | AB36: Tercero Arriba | AC36: Totoral | AD36: Tulumba | AE36: Unión | AF36: PROVINCIA
B37: Servicios de labranza | C37: USD/ha | D37: Estos datos son los ingresados en opciones avanzadas | E37: - | F37: =+'Opciones Avanzadas'!$H13 -> 75.81 | G37: =+'Opciones Avanzadas'!$H13 -> 75.81 | H37: =+'Opciones Avanzadas'!$H13 -> 75.81 | I37: =+'Opciones Avanzadas'!$H13 -> 75.81 | J37: =+'Opciones Avanzadas'!$H13 -> 75.81 | K37: =+'Opciones Avanzadas'!$H13 -> 75.81 | L37: =+'Opciones Avanzadas'!$H13 -> 75.81 | M37: =+'Opciones Avanzadas'!$H13 -> 75.81 | N37: =+'Opciones Avanzadas'!$H13 -> 75.81 | O37: =+'Opciones Avanzadas'!$H13 -> 75.81 | P37: =+'Opciones Avanzadas'!$H13 -> 75.81 | Q37: =+'Opciones Avanzadas'!$H13 -> 75.81 | R37: =+'Opciones Avanzadas'!$H13 -> 75.81 | S37: =+'Opciones Avanzadas'!$H13 -> 75.81 | T37: =+'Opciones Avanzadas'!$H13 -> 75.81 | U37: =+'Opciones Avanzadas'!$H13 -> 75.81 | V37: =+'Opciones Avanzadas'!$H13 -> 75.81 | W37: =+'Opciones Avanzadas'!$H13 -> 75.81 | X37: =+'Opciones Avanzadas'!$H13 -> 75.81 | Y37: =+'Opciones Avanzadas'!$H13 -> 75.81 | Z37: =+'Opciones Avanzadas'!$H13 -> 75.81 | AA37: =+'Opciones Avanzadas'!$H13 -> 75.81 | AB37: =+'Opciones Avanzadas'!$H13 -> 75.81 | AC37: =+'Opciones Avanzadas'!$H13 -> 75.81 | AD37: =+'Opciones Avanzadas'!$H13 -> 75.81 | AE37: =+'Opciones Avanzadas'!$H13 -> 75.81 | AF37: =+'Opciones Avanzadas'!$H13 -> 75.81
B38: Cosecha | C38: USD/ha | E38: - | F38: =+'Opciones Avanzadas'!$H14 -> 69.24700808 | G38: =+'Opciones Avanzadas'!$H14 -> 69.24700808 | H38: =+'Opciones Avanzadas'!$H14 -> 69.24700808 | I38: =+'Opciones Avanzadas'!$H14 -> 69.24700808 | J38: =+'Opciones Avanzadas'!$H14 -> 69.24700808 | K38: =+'Opciones Avanzadas'!$H14 -> 69.24700808 | L38: =+'Opciones Avanzadas'!$H14 -> 69.24700808 | M38: =+'Opciones Avanzadas'!$H14 -> 69.24700808 | N38: =+'Opciones Avanzadas'!$H14 -> 69.24700808 | O38: =+'Opciones Avanzadas'!$H14 -> 69.24700808 | P38: =+'Opciones Avanzadas'!$H14 -> 69.24700808 | Q38: =+'Opciones Avanzadas'!$H14 -> 69.24700808 | R38: =+'Opciones Avanzadas'!$H14 -> 69.24700808 | S38: =+'Opciones Avanzadas'!$H14 -> 69.24700808 | T38: =+'Opciones Avanzadas'!$H14 -> 69.24700808 | U38: =+'Opciones Avanzadas'!$H14 -> 69.24700808 | V38: =+'Opciones Avanzadas'!$H14 -> 69.24700808 | W38: =+'Opciones Avanzadas'!$H14 -> 69.24700808 | X38: =+'Opciones Avanzadas'!$H14 -> 69.24700808 | Y38: =+'Opciones Avanzadas'!$H14 -> 69.24700808 | Z38: =+'Opciones Avanzadas'!$H14 -> 69.24700808 | AA38: =+'Opciones Avanzadas'!$H14 -> 69.24700808 | AB38: =+'Opciones Avanzadas'!$H14 -> 69.24700808 | AC38: =+'Opciones Avanzadas'!$H14 -> 69.24700808 | AD38: =+'Opciones Avanzadas'!$H14 -> 69.24700808 | AE38: =+'Opciones Avanzadas'!$H14 -> 69.24700808 | AF38: =+'Opciones Avanzadas'!$H14 -> 69.24700808
B39: Herbicida | C39: USD/ha | E39: - | F39: =+'Opciones Avanzadas'!$H15 -> 55.389 | G39: =+'Opciones Avanzadas'!$H15 -> 55.389 | H39: =+'Opciones Avanzadas'!$H15 -> 55.389 | I39: =+'Opciones Avanzadas'!$H15 -> 55.389 | J39: =+'Opciones Avanzadas'!$H15 -> 55.389 | K39: =+'Opciones Avanzadas'!$H15 -> 55.389 | L39: =+'Opciones Avanzadas'!$H15 -> 55.389 | M39: =+'Opciones Avanzadas'!$H15 -> 55.389 | N39: =+'Opciones Avanzadas'!$H15 -> 55.389 | O39: =+'Opciones Avanzadas'!$H15 -> 55.389 | P39: =+'Opciones Avanzadas'!$H15 -> 55.389 | Q39: =+'Opciones Avanzadas'!$H15 -> 55.389 | R39: =+'Opciones Avanzadas'!$H15 -> 55.389 | S39: =+'Opciones Avanzadas'!$H15 -> 55.389 | T39: =+'Opciones Avanzadas'!$H15 -> 55.389 | U39: =+'Opciones Avanzadas'!$H15 -> 55.389 | V39: =+'Opciones Avanzadas'!$H15 -> 55.389 | W39: =+'Opciones Avanzadas'!$H15 -> 55.389 | X39: =+'Opciones Avanzadas'!$H15 -> 55.389 | Y39: =+'Opciones Avanzadas'!$H15 -> 55.389 | Z39: =+'Opciones Avanzadas'!$H15 -> 55.389 | AA39: =+'Opciones Avanzadas'!$H15 -> 55.389 | AB39: =+'Opciones Avanzadas'!$H15 -> 55.389 | AC39: =+'Opciones Avanzadas'!$H15 -> 55.389 | AD39: =+'Opciones Avanzadas'!$H15 -> 55.389 | AE39: =+'Opciones Avanzadas'!$H15 -> 55.389 | AF39: =+'Opciones Avanzadas'!$H15 -> 55.389
B40: Fertilizantes | C40: USD/ha | E40: - | F40: =+'Opciones Avanzadas'!$H16 -> 137 | G40: =+'Opciones Avanzadas'!$H16 -> 137 | H40: =+'Opciones Avanzadas'!$H16 -> 137 | I40: =+'Opciones Avanzadas'!$H16 -> 137 | J40: =+'Opciones Avanzadas'!$H16 -> 137 | K40: =+'Opciones Avanzadas'!$H16 -> 137 | L40: =+'Opciones Avanzadas'!$H16 -> 137 | M40: =+'Opciones Avanzadas'!$H16 -> 137 | N40: =+'Opciones Avanzadas'!$H16 -> 137 | O40: =+'Opciones Avanzadas'!$H16 -> 137 | P40: =+'Opciones Avanzadas'!$H16 -> 137 | Q40: =+'Opciones Avanzadas'!$H16 -> 137 | R40: =+'Opciones Avanzadas'!$H16 -> 137 | S40: =+'Opciones Avanzadas'!$H16 -> 137 | T40: =+'Opciones Avanzadas'!$H16 -> 137 | U40: =+'Opciones Avanzadas'!$H16 -> 137 | V40: =+'Opciones Avanzadas'!$H16 -> 137 | W40: =+'Opciones Avanzadas'!$H16 -> 137 | X40: =+'Opciones Avanzadas'!$H16 -> 137 | Y40: =+'Opciones Avanzadas'!$H16 -> 137 | Z40: =+'Opciones Avanzadas'!$H16 -> 137 | AA40: =+'Opciones Avanzadas'!$H16 -> 137 | AB40: =+'Opciones Avanzadas'!$H16 -> 137 | AC40: =+'Opciones Avanzadas'!$H16 -> 137 | AD40: =+'Opciones Avanzadas'!$H16 -> 137 | AE40: =+'Opciones Avanzadas'!$H16 -> 137 | AF40: =+'Opciones Avanzadas'!$H16 -> 137
B41: Insecticidas | C41: USD/ha | E41: - | F41: =+'Opciones Avanzadas'!$H17 -> 3.41826 | G41: =+'Opciones Avanzadas'!$H17 -> 3.41826 | H41: =+'Opciones Avanzadas'!$H17 -> 3.41826 | I41: =+'Opciones Avanzadas'!$H17 -> 3.41826 | J41: =+'Opciones Avanzadas'!$H17 -> 3.41826 | K41: =+'Opciones Avanzadas'!$H17 -> 3.41826 | L41: =+'Opciones Avanzadas'!$H17 -> 3.41826 | M41: =+'Opciones Avanzadas'!$H17 -> 3.41826 | N41: =+'Opciones Avanzadas'!$H17 -> 3.41826 | O41: =+'Opciones Avanzadas'!$H17 -> 3.41826 | P41: =+'Opciones Avanzadas'!$H17 -> 3.41826 | Q41: =+'Opciones Avanzadas'!$H17 -> 3.41826 | R41: =+'Opciones Avanzadas'!$H17 -> 3.41826 | S41: =+'Opciones Avanzadas'!$H17 -> 3.41826 | T41: =+'Opciones Avanzadas'!$H17 -> 3.41826 | U41: =+'Opciones Avanzadas'!$H17 -> 3.41826 | V41: =+'Opciones Avanzadas'!$H17 -> 3.41826 | W41: =+'Opciones Avanzadas'!$H17 -> 3.41826 | X41: =+'Opciones Avanzadas'!$H17 -> 3.41826 | Y41: =+'Opciones Avanzadas'!$H17 -> 3.41826 | Z41: =+'Opciones Avanzadas'!$H17 -> 3.41826 | AA41: =+'Opciones Avanzadas'!$H17 -> 3.41826 | AB41: =+'Opciones Avanzadas'!$H17 -> 3.41826 | AC41: =+'Opciones Avanzadas'!$H17 -> 3.41826 | AD41: =+'Opciones Avanzadas'!$H17 -> 3.41826 | AE41: =+'Opciones Avanzadas'!$H17 -> 3.41826 | AF41: =+'Opciones Avanzadas'!$H17 -> 3.41826
B42: Fungicidas | C42: USD/ha | E42: - | F42: =+'Opciones Avanzadas'!$H18 -> 0 | G42: =+'Opciones Avanzadas'!$H18 -> 0 | H42: =+'Opciones Avanzadas'!$H18 -> 0 | I42: =+'Opciones Avanzadas'!$H18 -> 0 | J42: =+'Opciones Avanzadas'!$H18 -> 0 | K42: =+'Opciones Avanzadas'!$H18 -> 0 | L42: =+'Opciones Avanzadas'!$H18 -> 0 | M42: =+'Opciones Avanzadas'!$H18 -> 0 | N42: =+'Opciones Avanzadas'!$H18 -> 0 | O42: =+'Opciones Avanzadas'!$H18 -> 0 | P42: =+'Opciones Avanzadas'!$H18 -> 0 | Q42: =+'Opciones Avanzadas'!$H18 -> 0 | R42: =+'Opciones Avanzadas'!$H18 -> 0 | S42: =+'Opciones Avanzadas'!$H18 -> 0 | T42: =+'Opciones Avanzadas'!$H18 -> 0 | U42: =+'Opciones Avanzadas'!$H18 -> 0 | V42: =+'Opciones Avanzadas'!$H18 -> 0 | W42: =+'Opciones Avanzadas'!$H18 -> 0 | X42: =+'Opciones Avanzadas'!$H18 -> 0 | Y42: =+'Opciones Avanzadas'!$H18 -> 0 | Z42: =+'Opciones Avanzadas'!$H18 -> 0 | AA42: =+'Opciones Avanzadas'!$H18 -> 0 | AB42: =+'Opciones Avanzadas'!$H18 -> 0 | AC42: =+'Opciones Avanzadas'!$H18 -> 0 | AD42: =+'Opciones Avanzadas'!$H18 -> 0 | AE42: =+'Opciones Avanzadas'!$H18 -> 0 | AF42: =+'Opciones Avanzadas'!$H18 -> 0
B43: Curasemillas | C43: USD/ha | E43: - | F43: =+'Opciones Avanzadas'!$H19 -> 0 | G43: =+'Opciones Avanzadas'!$H19 -> 0 | H43: =+'Opciones Avanzadas'!$H19 -> 0 | I43: =+'Opciones Avanzadas'!$H19 -> 0 | J43: =+'Opciones Avanzadas'!$H19 -> 0 | K43: =+'Opciones Avanzadas'!$H19 -> 0 | L43: =+'Opciones Avanzadas'!$H19 -> 0 | M43: =+'Opciones Avanzadas'!$H19 -> 0 | N43: =+'Opciones Avanzadas'!$H19 -> 0 | O43: =+'Opciones Avanzadas'!$H19 -> 0 | P43: =+'Opciones Avanzadas'!$H19 -> 0 | Q43: =+'Opciones Avanzadas'!$H19 -> 0 | R43: =+'Opciones Avanzadas'!$H19 -> 0 | S43: =+'Opciones Avanzadas'!$H19 -> 0 | T43: =+'Opciones Avanzadas'!$H19 -> 0 | U43: =+'Opciones Avanzadas'!$H19 -> 0 | V43: =+'Opciones Avanzadas'!$H19 -> 0 | W43: =+'Opciones Avanzadas'!$H19 -> 0 | X43: =+'Opciones Avanzadas'!$H19 -> 0 | Y43: =+'Opciones Avanzadas'!$H19 -> 0 | Z43: =+'Opciones Avanzadas'!$H19 -> 0 | AA43: =+'Opciones Avanzadas'!$H19 -> 0 | AB43: =+'Opciones Avanzadas'!$H19 -> 0 | AC43: =+'Opciones Avanzadas'!$H19 -> 0 | AD43: =+'Opciones Avanzadas'!$H19 -> 0 | AE43: =+'Opciones Avanzadas'!$H19 -> 0 | AF43: =+'Opciones Avanzadas'!$H19 -> 0
B44: Semillas | C44: USD/ha | E44: - | F44: =+'Opciones Avanzadas'!$H20 -> 42 | G44: =+'Opciones Avanzadas'!$H20 -> 42 | H44: =+'Opciones Avanzadas'!$H20 -> 42 | I44: =+'Opciones Avanzadas'!$H20 -> 42 | J44: =+'Opciones Avanzadas'!$H20 -> 42 | K44: =+'Opciones Avanzadas'!$H20 -> 42 | L44: =+'Opciones Avanzadas'!$H20 -> 42 | M44: =+'Opciones Avanzadas'!$H20 -> 42 | N44: =+'Opciones Avanzadas'!$H20 -> 42 | O44: =+'Opciones Avanzadas'!$H20 -> 42 | P44: =+'Opciones Avanzadas'!$H20 -> 42 | Q44: =+'Opciones Avanzadas'!$H20 -> 42 | R44: =+'Opciones Avanzadas'!$H20 -> 42 | S44: =+'Opciones Avanzadas'!$H20 -> 42 | T44: =+'Opciones Avanzadas'!$H20 -> 42 | U44: =+'Opciones Avanzadas'!$H20 -> 42 | V44: =+'Opciones Avanzadas'!$H20 -> 42 | W44: =+'Opciones Avanzadas'!$H20 -> 42 | X44: =+'Opciones Avanzadas'!$H20 -> 42 | Y44: =+'Opciones Avanzadas'!$H20 -> 42 | Z44: =+'Opciones Avanzadas'!$H20 -> 42 | AA44: =+'Opciones Avanzadas'!$H20 -> 42 | AB44: =+'Opciones Avanzadas'!$H20 -> 42 | AC44: =+'Opciones Avanzadas'!$H20 -> 42 | AD44: =+'Opciones Avanzadas'!$H20 -> 42 | AE44: =+'Opciones Avanzadas'!$H20 -> 42 | AF44: =+'Opciones Avanzadas'!$H20 -> 42
B45: Total | C45: USD/ha | E45: - | F45: =+'Opciones Avanzadas'!$H21 -> 382.8642681 | G45: =+'Opciones Avanzadas'!$H21 -> 382.8642681 | H45: =+'Opciones Avanzadas'!$H21 -> 382.8642681 | I45: =+'Opciones Avanzadas'!$H21 -> 382.8642681 | J45: =+'Opciones Avanzadas'!$H21 -> 382.8642681 | K45: =+'Opciones Avanzadas'!$H21 -> 382.8642681 | L45: =+'Opciones Avanzadas'!$H21 -> 382.8642681 | M45: =+'Opciones Avanzadas'!$H21 -> 382.8642681 | N45: =+'Opciones Avanzadas'!$H21 -> 382.8642681 | O45: =+'Opciones Avanzadas'!$H21 -> 382.8642681 | P45: =+'Opciones Avanzadas'!$H21 -> 382.8642681 | Q45: =+'Opciones Avanzadas'!$H21 -> 382.8642681 | R45: =+'Opciones Avanzadas'!$H21 -> 382.8642681 | S45: =+'Opciones Avanzadas'!$H21 -> 382.8642681 | T45: =+'Opciones Avanzadas'!$H21 -> 382.8642681 | U45: =+'Opciones Avanzadas'!$H21 -> 382.8642681 | V45: =+'Opciones Avanzadas'!$H21 -> 382.8642681 | W45: =+'Opciones Avanzadas'!$H21 -> 382.8642681 | X45: =+'Opciones Avanzadas'!$H21 -> 382.8642681 | Y45: =+'Opciones Avanzadas'!$H21 -> 382.8642681 | Z45: =+'Opciones Avanzadas'!$H21 -> 382.8642681 | AA45: =+'Opciones Avanzadas'!$H21 -> 382.8642681 | AB45: =+'Opciones Avanzadas'!$H21 -> 382.8642681 | AC45: =+'Opciones Avanzadas'!$H21 -> 382.8642681 | AD45: =+'Opciones Avanzadas'!$H21 -> 382.8642681 | AE45: =+'Opciones Avanzadas'!$H21 -> 382.8642681 | AF45: =+'Opciones Avanzadas'!$H21 -> 382.8642681
B47: Gastos Comerciales (Por Tn) | C47: =C18 -> Unidad de medida | D47: Mes de actualiz. | E47: Costo | F47: =F$2 -> Calamuchita | G47: Capital | H47: Colón | I47: Cruz del Eje | J47: Gral. Roca | K47: Gral. San Martín | L47: Ischilin | M47: Juárez Celman | N47: Marcos Juárez | O47: Minas | P47: Pocho | Q47: Pte. R. Sáenz Peña | R47: Punilla | S47: Río Cuarto | T47: Río Primero | U47: Río Seco | V47: Río Segundo | W47: San Alberto | X47: San Javier | Y47: San Justo | Z47: Santa María | AA47: Sobremonte | AB47: Tercero Arriba | AC47: Totoral | AD47: Tulumba | AE47: Unión | AF47: PROVINCIA
B48: Flete Largo | C48: $/tn | D48: 2021-04-01 | E48: - | F48: =+IF('Opciones Avanzadas'!$E$7<=MROUND('Opciones Avanzadas'!$E$7,5),VLOOKUP(MROUND('Opciones Avanzadas'!$E$7-2.5,5),Listas!$AE$21:$AF$135,2,FALSE)+(VLOOKUP(MROUND('Opciones Avanzadas'!$E$7,5),Listas!$AE$21:$AF$135,2,FALSE)-VLOOKUP(MROUND('Opciones Avanzadas'!$E$7-2.5,5),Listas!$AE$21:$AF$135,2,FALSE))/5*('Opciones Avanzadas'!$E$7-MROUND('Opciones Avanzadas'!$E$7-2.5,5)),VLOOKUP(MROUND('Opciones Avanzadas'!$E$7,5),Listas!$AE$21:$AF$135,2,FALSE)+(VLOOKUP(MROUND('Opciones Avanzadas'!$E$7+2.5,5),Listas!$AE$21:$AF$135,2,FALSE)-VLOOKUP(MROUND('Opciones Avanzadas'!$E$7,5),Listas!$AE$21:$AF$135,2,FALSE))/5*('Opciones Avanzadas'!$E$7-MROUND('Opciones Avanzadas'!$E$7,5))) -> 4378.154088 | G48: =+IF('Opciones Avanzadas'!$E$7<=MROUND('Opciones Avanzadas'!$E$7,5),VLOOKUP(MROUND('Opciones Avanzadas'!$E$7-2.5,5),Listas!$AE$21:$AF$135,2,FALSE)+(VLOOKUP(MROUND('Opciones Avanzadas'!$E$7,5),Listas!$AE$21:$AF$135,2,FALSE)-VLOOKUP(MROUND('Opciones Avanzadas'!$E$7-2.5,5),Listas!$AE$21:$AF$135,2,FALSE))/5*('Opciones Avanzadas'!$E$7-MROUND('Opciones Avanzadas'!$E$7-2.5,5)),VLOOKUP(MROUND('Opciones Avanzadas'!$E$7,5),Listas!$AE$21:$AF$135,2,FALSE)+(VLOOKUP(MROUND('Opciones Avanzadas'!$E$7+2.5,5),Listas!$AE$21:$AF$135,2,FALSE)-VLOOKUP(MROUND('Opciones Avanzadas'!$E$7,5),Listas!$AE$21:$AF$135,2,FALSE))/5*('Opciones Avanzadas'!$E$7-MROUND('Opciones Avanzadas'!$E$7,5))) -> 4378.154088 | H48: =+IF('Opciones Avanzadas'!$E$7<=MROUND('Opciones Avanzadas'!$E$7,5),VLOOKUP(MROUND('Opciones Avanzadas'!$E$7-2.5,5),Listas!$AE$21:$AF$135,2,FALSE)+(VLOOKUP(MROUND('Opciones Avanzadas'!$E$7,5),Listas!$AE$21:$AF$135,2,FALSE)-VLOOKUP(MROUND('Opciones Avanzadas'!$E$7-2.5,5),Listas!$AE$21:$AF$135,2,FALSE))/5*('Opciones Avanzadas'!$E$7-MROUND('Opciones Avanzadas'!$E$7-2.5,5)),VLOOKUP(MROUND('Opciones Avanzadas'!$E$7,5),Listas!$AE$21:$AF$135,2,FALSE)+(VLOOKUP(MROUND('Opciones Avanzadas'!$E$7+2.5,5),Listas!$AE$21:$AF$135,2,FALSE)-VLOOKUP(MROUND('Opciones Avanzadas'!$E$7,5),Listas!$AE$21:$AF$135,2,FALSE))/5*('Opciones Avanzadas'!$E$7-MROUND('Opciones Avanzadas'!$E$7,5))) -> 4378.154088 | I48: =+IF('Opciones Avanzadas'!$E$7<=MROUND('Opciones Avanzadas'!$E$7,5),VLOOKUP(MROUND('Opciones Avanzadas'!$E$7-2.5,5),Listas!$AE$21:$AF$135,2,FALSE)+(VLOOKUP(MROUND('Opciones Avanzadas'!$E$7,5),Listas!$AE$21:$AF$135,2,FALSE)-VLOOKUP(MROUND('Opciones Avanzadas'!$E$7-2.5,5),Listas!$AE$21:$AF$135,2,FALSE))/5*('Opciones Avanzadas'!$E$7-MROUND('Opciones Avanzadas'!$E$7-2.5,5)),VLOOKUP(MROUND('Opciones Avanzadas'!$E$7,5),Listas!$AE$21:$AF$135,2,FALSE)+(VLOOKUP(MROUND('Opciones Avanzadas'!$E$7+2.5,5),Listas!$AE$21:$AF$135,2,FALSE)-VLOOKUP(MROUND('Opciones Avanzadas'!$E$7,5),Listas!$AE$21:$AF$135,2,FALSE))/5*('Opciones Avanzadas'!$E$7-MROUND('Opciones Avanzadas'!$E$7,5))) -> 4378.154088 | J48: =+IF('Opciones Avanzadas'!$E$7<=MROUND('Opciones Avanzadas'!$E$7,5),VLOOKUP(MROUND('Opciones Avanzadas'!$E$7-2.5,5),Listas!$AE$21:$AF$135,2,FALSE)+(VLOOKUP(MROUND('Opciones Avanzadas'!$E$7,5),Listas!$AE$21:$AF$135,2,FALSE)-VLOOKUP(MROUND('Opciones Avanzadas'!$E$7-2.5,5),Listas!$AE$21:$AF$135,2,FALSE))/5*('Opciones Avanzadas'!$E$7-MROUND('Opciones Avanzadas'!$E$7-2.5,5)),VLOOKUP(MROUND('Opciones Avanzadas'!$E$7,5),Listas!$AE$21:$AF$135,2,FALSE)+(VLOOKUP(MROUND('Opciones Avanzadas'!$E$7+2.5,5),Listas!$AE$21:$AF$135,2,FALSE)-VLOOKUP(MROUND('Opciones Avanzadas'!$E$7,5),Listas!$AE$21:$AF$135,2,FALSE))/5*('Opciones Avanzadas'!$E$7-MROUND('Opciones Avanzadas'!$E$7,5))) -> 4378.154088 | K48: =+IF('Opciones Avanzadas'!$E$7<=MROUND('Opciones Avanzadas'!$E$7,5),VLOOKUP(MROUND('Opciones Avanzadas'!$E$7-2.5,5),Listas!$AE$21:$AF$135,2,FALSE)+(VLOOKUP(MROUND('Opciones Avanzadas'!$E$7,5),Listas!$AE$21:$AF$135,2,FALSE)-VLOOKUP(MROUND('Opciones Avanzadas'!$E$7-2.5,5),Listas!$AE$21:$AF$135,2,FALSE))/5*('Opciones Avanzadas'!$E$7-MROUND('Opciones Avanzadas'!$E$7-2.5,5)),VLOOKUP(MROUND('Opciones Avanzadas'!$E$7,5),Listas!$AE$21:$AF$135,2,FALSE)+(VLOOKUP(MROUND('Opciones Avanzadas'!$E$7+2.5,5),Listas!$AE$21:$AF$135,2,FALSE)-VLOOKUP(MROUND('Opciones Avanzadas'!$E$7,5),Listas!$AE$21:$AF$135,2,FALSE))/5*('Opciones Avanzadas'!$E$7-MROUND('Opciones Avanzadas'!$E$7,5))) -> 4378.154088 | L48: =+IF('Opciones Avanzadas'!$E$7<=MROUND('Opciones Avanzadas'!$E$7,5),VLOOKUP(MROUND('Opciones Avanzadas'!$E$7-2.5,5),Listas!$AE$21:$AF$135,2,FALSE)+(VLOOKUP(MROUND('Opciones Avanzadas'!$E$7,5),Listas!$AE$21:$AF$135,2,FALSE)-VLOOKUP(MROUND('Opciones Avanzadas'!$E$7-2.5,5),Listas!$AE$21:$AF$135,2,FALSE))/5*('Opciones Avanzadas'!$E$7-MROUND('Opciones Avanzadas'!$E$7-2.5,5)),VLOOKUP(MROUND('Opciones Avanzadas'!$E$7,5),Listas!$AE$21:$AF$135,2,FALSE)+(VLOOKUP(MROUND('Opciones Avanzadas'!$E$7+2.5,5),Listas!$AE$21:$AF$135,2,FALSE)-VLOOKUP(MROUND('Opciones Avanzadas'!$E$7,5),Listas!$AE$21:$AF$135,2,FALSE))/5*('Opciones Avanzadas'!$E$7-MROUND('Opciones Avanzadas'!$E$7,5))) -> 4378.154088 | M48: =+IF('Opciones Avanzadas'!$E$7<=MROUND('Opciones Avanzadas'!$E$7,5),VLOOKUP(MROUND('Opciones Avanzadas'!$E$7-2.5,5),Listas!$AE$21:$AF$135,2,FALSE)+(VLOOKUP(MROUND('Opciones Avanzadas'!$E$7,5),Listas!$AE$21:$AF$135,2,FALSE)-VLOOKUP(MROUND('Opciones Avanzadas'!$E$7-2.5,5),Listas!$AE$21:$AF$135,2,FALSE))/5*('Opciones Avanzadas'!$E$7-MROUND('Opciones Avanzadas'!$E$7-2.5,5)),VLOOKUP(MROUND('Opciones Avanzadas'!$E$7,5),Listas!$AE$21:$AF$135,2,FALSE)+(VLOOKUP(MROUND('Opciones Avanzadas'!$E$7+2.5,5),Listas!$AE$21:$AF$135,2,FALSE)-VLOOKUP(MROUND('Opciones Avanzadas'!$E$7,5),Listas!$AE$21:$AF$135,2,FALSE))/5*('Opciones Avanzadas'!$E$7-MROUND('Opciones Avanzadas'!$E$7,5))) -> 4378.154088 | N48: =+IF('Opciones Avanzadas'!$E$7<=MROUND('Opciones Avanzadas'!$E$7,5),VLOOKUP(MROUND('Opciones Avanzadas'!$E$7-2.5,5),Listas!$AE$21:$AF$135,2,FALSE)+(VLOOKUP(MROUND('Opciones Avanzadas'!$E$7,5),Listas!$AE$21:$AF$135,2,FALSE)-VLOOKUP(MROUND('Opciones Avanzadas'!$E$7-2.5,5),Listas!$AE$21:$AF$135,2,FALSE))/5*('Opciones Avanzadas'!$E$7-MROUND('Opciones Avanzadas'!$E$7-2.5,5)),VLOOKUP(MROUND('Opciones Avanzadas'!$E$7,5),Listas!$AE$21:$AF$135,2,FALSE)+(VLOOKUP(MROUND('Opciones Avanzadas'!$E$7+2.5,5),Listas!$AE$21:$AF$135,2,FALSE)-VLOOKUP(MROUND('Opciones Avanzadas'!$E$7,5),Listas!$AE$21:$AF$135,2,FALSE))/5*('Opciones Avanzadas'!$E$7-MROUND('Opciones Avanzadas'!$E$7,5))) -> 4378.154088 | O48: =+IF('Opciones Avanzadas'!$E$7<=MROUND('Opciones Avanzadas'!$E$7,5),VLOOKUP(MROUND('Opciones Avanzadas'!$E$7-2.5,5),Listas!$AE$21:$AF$135,2,FALSE)+(VLOOKUP(MROUND('Opciones Avanzadas'!$E$7,5),Listas!$AE$21:$AF$135,2,FALSE)-VLOOKUP(MROUND('Opciones Avanzadas'!$E$7-2.5,5),Listas!$AE$21:$AF$135,2,FALSE))/5*('Opciones Avanzadas'!$E$7-MROUND('Opciones Avanzadas'!$E$7-2.5,5)),VLOOKUP(MROUND('Opciones Avanzadas'!$E$7,5),Listas!$AE$21:$AF$135,2,FALSE)+(VLOOKUP(MROUND('Opciones Avanzadas'!$E$7+2.5,5),Listas!$AE$21:$AF$135,2,FALSE)-VLOOKUP(MROUND('Opciones Avanzadas'!$E$7,5),Listas!$AE$21:$AF$135,2,FALSE))/5*('Opciones Avanzadas'!$E$7-MROUND('Opciones Avanzadas'!$E$7,5))) -> 4378.154088 | P48: =+IF('Opciones Avanzadas'!$E$7<=MROUND('Opciones Avanzadas'!$E$7,5),VLOOKUP(MROUND('Opciones Avanzadas'!$E$7-2.5,5),Listas!$AE$21:$AF$135,2,FALSE)+(VLOOKUP(MROUND('Opciones Avanzadas'!$E$7,5),Listas!$AE$21:$AF$135,2,FALSE)-VLOOKUP(MROUND('Opciones Avanzadas'!$E$7-2.5,5),Listas!$AE$21:$AF$135,2,FALSE))/5*('Opciones Avanzadas'!$E$7-MROUND('Opciones Avanzadas'!$E$7-2.5,5)),VLOOKUP(MROUND('Opciones Avanzadas'!$E$7,5),Listas!$AE$21:$AF$135,2,FALSE)+(VLOOKUP(MROUND('Opciones Avanzadas'!$E$7+2.5,5),Listas!$AE$21:$AF$135,2,FALSE)-VLOOKUP(MROUND('Opciones Avanzadas'!$E$7,5),Listas!$AE$21:$AF$135,2,FALSE))/5*('Opciones Avanzadas'!$E$7-MROUND('Opciones Avanzadas'!$E$7,5))) -> 4378.154088 | Q48: =+IF('Opciones Avanzadas'!$E$7<=MROUND('Opciones Avanzadas'!$E$7,5),VLOOKUP(MROUND('Opciones Avanzadas'!$E$7-2.5,5),Listas!$AE$21:$AF$135,2,FALSE)+(VLOOKUP(MROUND('Opciones Avanzadas'!$E$7,5),Listas!$AE$21:$AF$135,2,FALSE)-VLOOKUP(MROUND('Opciones Avanzadas'!$E$7-2.5,5),Listas!$AE$21:$AF$135,2,FALSE))/5*('Opciones Avanzadas'!$E$7-MROUND('Opciones Avanzadas'!$E$7-2.5,5)),VLOOKUP(MROUND('Opciones Avanzadas'!$E$7,5),Listas!$AE$21:$AF$135,2,FALSE)+(VLOOKUP(MROUND('Opciones Avanzadas'!$E$7+2.5,5),Listas!$AE$21:$AF$135,2,FALSE)-VLOOKUP(MROUND('Opciones Avanzadas'!$E$7,5),Listas!$AE$21:$AF$135,2,FALSE))/5*('Opciones Avanzadas'!$E$7-MROUND('Opciones Avanzadas'!$E$7,5))) -> 4378.154088 | R48: =+IF('Opciones Avanzadas'!$E$7<=MROUND('Opciones Avanzadas'!$E$7,5),VLOOKUP(MROUND('Opciones Avanzadas'!$E$7-2.5,5),Listas!$AE$21:$AF$135,2,FALSE)+(VLOOKUP(MROUND('Opciones Avanzadas'!$E$7,5),Listas!$AE$21:$AF$135,2,FALSE)-VLOOKUP(MROUND('Opciones Avanzadas'!$E$7-2.5,5),Listas!$AE$21:$AF$135,2,FALSE))/5*('Opciones Avanzadas'!$E$7-MROUND('Opciones Avanzadas'!$E$7-2.5,5)),VLOOKUP(MROUND('Opciones Avanzadas'!$E$7,5),Listas!$AE$21:$AF$135,2,FALSE)+(VLOOKUP(MROUND('Opciones Avanzadas'!$E$7+2.5,5),Listas!$AE$21:$AF$135,2,FALSE)-VLOOKUP(MROUND('Opciones Avanzadas'!$E$7,5),Listas!$AE$21:$AF$135,2,FALSE))/5*('Opciones Avanzadas'!$E$7-MROUND('Opciones Avanzadas'!$E$7,5))) -> 4378.154088 | S48: =+IF('Opciones Avanzadas'!$E$7<=MROUND('Opciones Avanzadas'!$E$7,5),VLOOKUP(MROUND('Opciones Avanzadas'!$E$7-2.5,5),Listas!$AE$21:$AF$135,2,FALSE)+(VLOOKUP(MROUND('Opciones Avanzadas'!$E$7,5),Listas!$AE$21:$AF$135,2,FALSE)-VLOOKUP(MROUND('Opciones Avanzadas'!$E$7-2.5,5),Listas!$AE$21:$AF$135,2,FALSE))/5*('Opciones Avanzadas'!$E$7-MROUND('Opciones Avanzadas'!$E$7-2.5,5)),VLOOKUP(MROUND('Opciones Avanzadas'!$E$7,5),Listas!$AE$21:$AF$135,2,FALSE)+(VLOOKUP(MROUND('Opciones Avanzadas'!$E$7+2.5,5),Listas!$AE$21:$AF$135,2,FALSE)-VLOOKUP(MROUND('Opciones Avanzadas'!$E$7,5),Listas!$AE$21:$AF$135,2,FALSE))/5*('Opciones Avanzadas'!$E$7-MROUND('Opciones Avanzadas'!$E$7,5))) -> 4378.154088 | T48: =+IF('Opciones Avanzadas'!$E$7<=MROUND('Opciones Avanzadas'!$E$7,5),VLOOKUP(MROUND('Opciones Avanzadas'!$E$7-2.5,5),Listas!$AE$21:$AF$135,2,FALSE)+(VLOOKUP(MROUND('Opciones Avanzadas'!$E$7,5),Listas!$AE$21:$AF$135,2,FALSE)-VLOOKUP(MROUND('Opciones Avanzadas'!$E$7-2.5,5),Listas!$AE$21:$AF$135,2,FALSE))/5*('Opciones Avanzadas'!$E$7-MROUND('Opciones Avanzadas'!$E$7-2.5,5)),VLOOKUP(MROUND('Opciones Avanzadas'!$E$7,5),Listas!$AE$21:$AF$135,2,FALSE)+(VLOOKUP(MROUND('Opciones Avanzadas'!$E$7+2.5,5),Listas!$AE$21:$AF$135,2,FALSE)-VLOOKUP(MROUND('Opciones Avanzadas'!$E$7,5),Listas!$AE$21:$AF$135,2,FALSE))/5*('Opciones Avanzadas'!$E$7-MROUND('Opciones Avanzadas'!$E$7,5))) -> 4378.154088 | U48: =+IF('Opciones Avanzadas'!$E$7<=MROUND('Opciones Avanzadas'!$E$7,5),VLOOKUP(MROUND('Opciones Avanzadas'!$E$7-2.5,5),Listas!$AE$21:$AF$135,2,FALSE)+(VLOOKUP(MROUND('Opciones Avanzadas'!$E$7,5),Listas!$AE$21:$AF$135,2,FALSE)-VLOOKUP(MROUND('Opciones Avanzadas'!$E$7-2.5,5),Listas!$AE$21:$AF$135,2,FALSE))/5*('Opciones Avanzadas'!$E$7-MROUND('Opciones Avanzadas'!$E$7-2.5,5)),VLOOKUP(MROUND('Opciones Avanzadas'!$E$7,5),Listas!$AE$21:$AF$135,2,FALSE)+(VLOOKUP(MROUND('Opciones Avanzadas'!$E$7+2.5,5),Listas!$AE$21:$AF$135,2,FALSE)-VLOOKUP(MROUND('Opciones Avanzadas'!$E$7,5),Listas!$AE$21:$AF$135,2,FALSE))/5*('Opciones Avanzadas'!$E$7-MROUND('Opciones Avanzadas'!$E$7,5))) -> 4378.154088 | V48: =+IF('Opciones Avanzadas'!$E$7<=MROUND('Opciones Avanzadas'!$E$7,5),VLOOKUP(MROUND('Opciones Avanzadas'!$E$7-2.5,5),Listas!$AE$21:$AF$135,2,FALSE)+(VLOOKUP(MROUND('Opciones Avanzadas'!$E$7,5),Listas!$AE$21:$AF$135,2,FALSE)-VLOOKUP(MROUND('Opciones Avanzadas'!$E$7-2.5,5),Listas!$AE$21:$AF$135,2,FALSE))/5*('Opciones Avanzadas'!$E$7-MROUND('Opciones Avanzadas'!$E$7-2.5,5)),VLOOKUP(MROUND('Opciones Avanzadas'!$E$7,5),Listas!$AE$21:$AF$135,2,FALSE)+(VLOOKUP(MROUND('Opciones Avanzadas'!$E$7+2.5,5),Listas!$AE$21:$AF$135,2,FALSE)-VLOOKUP(MROUND('Opciones Avanzadas'!$E$7,5),Listas!$AE$21:$AF$135,2,FALSE))/5*('Opciones Avanzadas'!$E$7-MROUND('Opciones Avanzadas'!$E$7,5))) -> 4378.154088 | W48: =+IF('Opciones Avanzadas'!$E$7<=MROUND('Opciones Avanzadas'!$E$7,5),VLOOKUP(MROUND('Opciones Avanzadas'!$E$7-2.5,5),Listas!$AE$21:$AF$135,2,FALSE)+(VLOOKUP(MROUND('Opciones Avanzadas'!$E$7,5),Listas!$AE$21:$AF$135,2,FALSE)-VLOOKUP(MROUND('Opciones Avanzadas'!$E$7-2.5,5),Listas!$AE$21:$AF$135,2,FALSE))/5*('Opciones Avanzadas'!$E$7-MROUND('Opciones Avanzadas'!$E$7-2.5,5)),VLOOKUP(MROUND('Opciones Avanzadas'!$E$7,5),Listas!$AE$21:$AF$135,2,FALSE)+(VLOOKUP(MROUND('Opciones Avanzadas'!$E$7+2.5,5),Listas!$AE$21:$AF$135,2,FALSE)-VLOOKUP(MROUND('Opciones Avanzadas'!$E$7,5),Listas!$AE$21:$AF$135,2,FALSE))/5*('Opciones Avanzadas'!$E$7-MROUND('Opciones Avanzadas'!$E$7,5))) -> 4378.154088 | X48: =+IF('Opciones Avanzadas'!$E$7<=MROUND('Opciones Avanzadas'!$E$7,5),VLOOKUP(MROUND('Opciones Avanzadas'!$E$7-2.5,5),Listas!$AE$21:$AF$135,2,FALSE)+(VLOOKUP(MROUND('Opciones Avanzadas'!$E$7,5),Listas!$AE$21:$AF$135,2,FALSE)-VLOOKUP(MROUND('Opciones Avanzadas'!$E$7-2.5,5),Listas!$AE$21:$AF$135,2,FALSE))/5*('Opciones Avanzadas'!$E$7-MROUND('Opciones Avanzadas'!$E$7-2.5,5)),VLOOKUP(MROUND('Opciones Avanzadas'!$E$7,5),Listas!$AE$21:$AF$135,2,FALSE)+(VLOOKUP(MROUND('Opciones Avanzadas'!$E$7+2.5,5),Listas!$AE$21:$AF$135,2,FALSE)-VLOOKUP(MROUND('Opciones Avanzadas'!$E$7,5),Listas!$AE$21:$AF$135,2,FALSE))/5*('Opciones Avanzadas'!$E$7-MROUND('Opciones Avanzadas'!$E$7,5))) -> 4378.154088 | Y48: =+IF('Opciones Avanzadas'!$E$7<=MROUND('Opciones Avanzadas'!$E$7,5),VLOOKUP(MROUND('Opciones Avanzadas'!$E$7-2.5,5),Listas!$AE$21:$AF$135,2,FALSE)+(VLOOKUP(MROUND('Opciones Avanzadas'!$E$7,5),Listas!$AE$21:$AF$135,2,FALSE)-VLOOKUP(MROUND('Opciones Avanzadas'!$E$7-2.5,5),Listas!$AE$21:$AF$135,2,FALSE))/5*('Opciones Avanzadas'!$E$7-MROUND('Opciones Avanzadas'!$E$7-2.5,5)),VLOOKUP(MROUND('Opciones Avanzadas'!$E$7,5),Listas!$AE$21:$AF$135,2,FALSE)+(VLOOKUP(MROUND('Opciones Avanzadas'!$E$7+2.5,5),Listas!$AE$21:$AF$135,2,FALSE)-VLOOKUP(MROUND('Opciones Avanzadas'!$E$7,5),Listas!$AE$21:$AF$135,2,FALSE))/5*('Opciones Avanzadas'!$E$7-MROUND('Opciones Avanzadas'!$E$7,5))) -> 4378.154088 | Z48: =+IF('Opciones Avanzadas'!$E$7<=MROUND('Opciones Avanzadas'!$E$7,5),VLOOKUP(MROUND('Opciones Avanzadas'!$E$7-2.5,5),Listas!$AE$21:$AF$135,2,FALSE)+(VLOOKUP(MROUND('Opciones Avanzadas'!$E$7,5),Listas!$AE$21:$AF$135,2,FALSE)-VLOOKUP(MROUND('Opciones Avanzadas'!$E$7-2.5,5),Listas!$AE$21:$AF$135,2,FALSE))/5*('Opciones Avanzadas'!$E$7-MROUND('Opciones Avanzadas'!$E$7-2.5,5)),VLOOKUP(MROUND('Opciones Avanzadas'!$E$7,5),Listas!$AE$21:$AF$135,2,FALSE)+(VLOOKUP(MROUND('Opciones Avanzadas'!$E$7+2.5,5),Listas!$AE$21:$AF$135,2,FALSE)-VLOOKUP(MROUND('Opciones Avanzadas'!$E$7,5),Listas!$AE$21:$AF$135,2,FALSE))/5*('Opciones Avanzadas'!$E$7-MROUND('Opciones Avanzadas'!$E$7,5))) -> 4378.154088 | AA48: =+IF('Opciones Avanzadas'!$E$7<=MROUND('Opciones Avanzadas'!$E$7,5),VLOOKUP(MROUND('Opciones Avanzadas'!$E$7-2.5,5),Listas!$AE$21:$AF$135,2,FALSE)+(VLOOKUP(MROUND('Opciones Avanzadas'!$E$7,5),Listas!$AE$21:$AF$135,2,FALSE)-VLOOKUP(MROUND('Opciones Avanzadas'!$E$7-2.5,5),Listas!$AE$21:$AF$135,2,FALSE))/5*('Opciones Avanzadas'!$E$7-MROUND('Opciones Avanzadas'!$E$7-2.5,5)),VLOOKUP(MROUND('Opciones Avanzadas'!$E$7,5),Listas!$AE$21:$AF$135,2,FALSE)+(VLOOKUP(MROUND('Opciones Avanzadas'!$E$7+2.5,5),Listas!$AE$21:$AF$135,2,FALSE)-VLOOKUP(MROUND('Opciones Avanzadas'!$E$7,5),Listas!$AE$21:$AF$135,2,FALSE))/5*('Opciones Avanzadas'!$E$7-MROUND('Opciones Avanzadas'!$E$7,5))) -> 4378.154088 | AB48: =+IF('Opciones Avanzadas'!$E$7<=MROUND('Opciones Avanzadas'!$E$7,5),VLOOKUP(MROUND('Opciones Avanzadas'!$E$7-2.5,5),Listas!$AE$21:$AF$135,2,FALSE)+(VLOOKUP(MROUND('Opciones Avanzadas'!$E$7,5),Listas!$AE$21:$AF$135,2,FALSE)-VLOOKUP(MROUND('Opciones Avanzadas'!$E$7-2.5,5),Listas!$AE$21:$AF$135,2,FALSE))/5*('Opciones Avanzadas'!$E$7-MROUND('Opciones Avanzadas'!$E$7-2.5,5)),VLOOKUP(MROUND('Opciones Avanzadas'!$E$7,5),Listas!$AE$21:$AF$135,2,FALSE)+(VLOOKUP(MROUND('Opciones Avanzadas'!$E$7+2.5,5),Listas!$AE$21:$AF$135,2,FALSE)-VLOOKUP(MROUND('Opciones Avanzadas'!$E$7,5),Listas!$AE$21:$AF$135,2,FALSE))/5*('Opciones Avanzadas'!$E$7-MROUND('Opciones Avanzadas'!$E$7,5))) -> 4378.154088 | AC48: =+IF('Opciones Avanzadas'!$E$7<=MROUND('Opciones Avanzadas'!$E$7,5),VLOOKUP(MROUND('Opciones Avanzadas'!$E$7-2.5,5),Listas!$AE$21:$AF$135,2,FALSE)+(VLOOKUP(MROUND('Opciones Avanzadas'!$E$7,5),Listas!$AE$21:$AF$135,2,FALSE)-VLOOKUP(MROUND('Opciones Avanzadas'!$E$7-2.5,5),Listas!$AE$21:$AF$135,2,FALSE))/5*('Opciones Avanzadas'!$E$7-MROUND('Opciones Avanzadas'!$E$7-2.5,5)),VLOOKUP(MROUND('Opciones Avanzadas'!$E$7,5),Listas!$AE$21:$AF$135,2,FALSE)+(VLOOKUP(MROUND('Opciones Avanzadas'!$E$7+2.5,5),Listas!$AE$21:$AF$135,2,FALSE)-VLOOKUP(MROUND('Opciones Avanzadas'!$E$7,5),Listas!$AE$21:$AF$135,2,FALSE))/5*('Opciones Avanzadas'!$E$7-MROUND('Opciones Avanzadas'!$E$7,5))) -> 4378.154088 | AD48: =+IF('Opciones Avanzadas'!$E$7<=MROUND('Opciones Avanzadas'!$E$7,5),VLOOKUP(MROUND('Opciones Avanzadas'!$E$7-2.5,5),Listas!$AE$21:$AF$135,2,FALSE)+(VLOOKUP(MROUND('Opciones Avanzadas'!$E$7,5),Listas!$AE$21:$AF$135,2,FALSE)-VLOOKUP(MROUND('Opciones Avanzadas'!$E$7-2.5,5),Listas!$AE$21:$AF$135,2,FALSE))/5*('Opciones Avanzadas'!$E$7-MROUND('Opciones Avanzadas'!$E$7-2.5,5)),VLOOKUP(MROUND('Opciones Avanzadas'!$E$7,5),Listas!$AE$21:$AF$135,2,FALSE)+(VLOOKUP(MROUND('Opciones Avanzadas'!$E$7+2.5,5),Listas!$AE$21:$AF$135,2,FALSE)-VLOOKUP(MROUND('Opciones Avanzadas'!$E$7,5),Listas!$AE$21:$AF$135,2,FALSE))/5*('Opciones Avanzadas'!$E$7-MROUND('Opciones Avanzadas'!$E$7,5))) -> 4378.154088 | AE48: =+IF('Opciones Avanzadas'!$E$7<=MROUND('Opciones Avanzadas'!$E$7,5),VLOOKUP(MROUND('Opciones Avanzadas'!$E$7-2.5,5),Listas!$AE$21:$AF$135,2,FALSE)+(VLOOKUP(MROUND('Opciones Avanzadas'!$E$7,5),Listas!$AE$21:$AF$135,2,FALSE)-VLOOKUP(MROUND('Opciones Avanzadas'!$E$7-2.5,5),Listas!$AE$21:$AF$135,2,FALSE))/5*('Opciones Avanzadas'!$E$7-MROUND('Opciones Avanzadas'!$E$7-2.5,5)),VLOOKUP(MROUND('Opciones Avanzadas'!$E$7,5),Listas!$AE$21:$AF$135,2,FALSE)+(VLOOKUP(MROUND('Opciones Avanzadas'!$E$7+2.5,5),Listas!$AE$21:$AF$135,2,FALSE)-VLOOKUP(MROUND('Opciones Avanzadas'!$E$7,5),Listas!$AE$21:$AF$135,2,FALSE))/5*('Opciones Avanzadas'!$E$7-MROUND('Opciones Avanzadas'!$E$7,5))) -> 4378.154088 | AF48: =+IF('Opciones Avanzadas'!$E$7<=MROUND('Opciones Avanzadas'!$E$7,5),VLOOKUP(MROUND('Opciones Avanzadas'!$E$7-2.5,5),Listas!$AE$21:$AF$135,2,FALSE)+(VLOOKUP(MROUND('Opciones Avanzadas'!$E$7,5),Listas!$AE$21:$AF$135,2,FALSE)-VLOOKUP(MROUND('Opciones Avanzadas'!$E$7-2.5,5),Listas!$AE$21:$AF$135,2,FALSE))/5*('Opciones Avanzadas'!$E$7-MROUND('Opciones Avanzadas'!$E$7-2.5,5)),VLOOKUP(MROUND('Opciones Avanzadas'!$E$7,5),Listas!$AE$21:$AF$135,2,FALSE)+(VLOOKUP(MROUND('Opciones Avanzadas'!$E$7+2.5,5),Listas!$AE$21:$AF$135,2,FALSE)-VLOOKUP(MROUND('Opciones Avanzadas'!$E$7,5),Listas!$AE$21:$AF$135,2,FALSE))/5*('Opciones Avanzadas'!$E$7-MROUND('Opciones Avanzadas'!$E$7,5))) -> 4378.154088
B49: Flete Corto (30Km) | C49: $/tn | D49: =D48 -> 2021-04-01 | E49: =+VLOOKUP(30,Listas!$AE$21:$AF$135,2,FALSE) -> 1172.52 | F49: =+E49 -> 1172.52 | G49: =+F49 -> 1172.52 | H49: 1172.52 | I49: 1172.52 | J49: 1172.52 | K49: 1172.52 | L49: 1172.52 | M49: 1172.52 | N49: 1172.52 | O49: 1172.52 | P49: 1172.52 | Q49: 1172.52 | R49: 1172.52 | S49: 1172.52 | T49: 1172.52 | U49: 1172.52 | V49: 1172.52 | W49: 1172.52 | X49: 1172.52 | Y49: 1172.52 | Z49: 1172.52 | AA49: 1172.52 | AB49: 1172.52 | AC49: 1172.52 | AD49: 1172.52 | AE49: 1172.52 | AF49: 1172.52
B50: Flete Conjunto | C50: USD/tn | D50: - | E50: - | F50: =0.95*(1+$E$91)*(F48+F49)/$E$88 -> 34.9552828 | H50: =0.95*(1+$E$91)*(H48+H49)/$E$88 -> 34.9552828 | J50: =0.95*(1+$E$91)*(J48+J49)/$E$88 -> 34.9552828 | K50: =0.95*(1+$E$91)*(K48+K49)/$E$88 -> 34.9552828 | M50: =0.95*(1+$E$91)*(M48+M49)/$E$88 -> 34.9552828 | N50: =0.95*(1+$E$91)*(N48+N49)/$E$88 -> 34.9552828 | Q50: =0.95*(1+$E$91)*(Q48+Q49)/$E$88 -> 34.9552828 | S50: =0.95*(1+$E$91)*(S48+S49)/$E$88 -> 34.9552828 | T50: =0.95*(1+$E$91)*(T48+T49)/$E$88 -> 34.9552828 | U50: =0.95*(1+$E$91)*(U48+U49)/$E$88 -> 34.9552828 | V50: =0.95*(1+$E$91)*(V48+V49)/$E$88 -> 34.9552828 | Y50: =0.95*(1+$E$91)*(Y48+Y49)/$E$88 -> 34.9552828 | Z50: =0.95*(1+$E$91)*(Z48+Z49)/$E$88 -> 34.9552828 | AB50: =0.95*(1+$E$91)*(AB48+AB49)/$E$88 -> 34.9552828 | AC50: =0.95*(1+$E$91)*(AC48+AC49)/$E$88 -> 34.9552828 | AD50: =0.95*(1+$E$91)*(AD48+AD49)/$E$88 -> 34.9552828 | AE50: =0.95*(1+$E$91)*(AE48+AE49)/$E$88 -> 34.9552828 | AF50: =0.95*(1+$E$91)*(AF48+AF49)/$E$88 -> 34.9552828
B51: Paritaria | C51: USD/tn | D51: Abril | E51: 3.4 | F51: =+$E$51 -> 3.4 | H51: =+$E$51 -> 3.4 | J51: 3.4 | K51: 3.4 | M51: 3.4 | N51: 3.4 | Q51: 3.4 | S51: 3.4 | T51: =+$E$51 -> 3.4 | U51: 3.4 | V51: 3.4 | Y51: 3.4 | Z51: 3.4 | AB51: 3.4 | AC51: 3.4 | AD51: 3.4 | AE51: 3.4 | AF51: =+$E$51 -> 3.4
B52: Secado | C52: USD/tn | D52: Abril | E52: 9 | F52: =+$E$52 -> 9 | H52: =+$E$52 -> 9 | J52: 9 | K52: 9 | M52: 9 | N52: 9 | Q52: 9 | S52: 9 | T52: 9 | U52: 9 | V52: 9 | Y52: 9 | Z52: 9 | AB52: 9 | AC52: 9 | AD52: 9 | AE52: 9 | AF52: =+$E$52 -> 9
B53: Comisión Acopio | C53: % s. Precio Cosecha | D53: - | E53: 0.005 | F53: =$E$85*$E53 -> 1.1 | H53: 1.1 | J53: 1.1 | K53: 1.1 | M53: 1.1 | N53: 1.1 | Q53: 1.1 | S53: 1.1 | T53: 1.1 | U53: 1.1 | V53: 1.1 | Y53: 1.1 | Z53: 1.1 | AB53: 1.1 | AC53: 1.1 | AD53: 1.1 | AE53: 1.1 | AF53: =$E$85*$E53 -> 1.1
B54: Total Gastos Comerciales | C54: USD/tn | F54: =SUM(F50:F53) -> 48.4552828 | H54: 48.4552828 | J54: 48.4552828 | K54: 48.4552828 | M54: 48.4552828 | N54: 48.4552828 | Q54: 48.4552828 | S54: 48.4552828 | T54: 48.4552828 | U54: 48.4552828 | V54: 48.4552828 | Y54: 48.4552828 | Z54: 48.4552828 | AB54: 48.4552828 | AC54: 48.4552828 | AD54: 48.4552828 | AE54: 48.4552828 | AF54: =SUM(AF50:AF53) -> 48.4552828
B56: Costos Indirectos (Por Ha) | C56: Unidad de medida | D56: Mes de actualiz. | E56: Costo | F56: =F$2 -> Calamuchita | G56: Capital | H56: Colón | I56: Cruz del Eje | J56: Gral. Roca | K56: Gral. San Martín | L56: Ischilin | M56: Juárez Celman | N56: Marcos Juárez | O56: Minas | P56: Pocho | Q56: Pte. R. Sáenz Peña | R56: Punilla | S56: Río Cuarto | T56: Río Primero | U56: Río Seco | V56: Río Segundo | W56: San Alberto | X56: San Javier | Y56: San Justo | Z56: Santa María | AA56: Sobremonte | AB56: Tercero Arriba | AC56: Totoral | AD56: Tulumba | AE56: Unión | AF56: PROVINCIA
B57: Arrendamiento en qq | C57: qq/ha | D57: Abril | E57: - | F57: =+'Opciones Avanzadas'!$E$9 -> 11.5 | H57: =+'Opciones Avanzadas'!$E$9 -> 11.5 | J57: =+'Opciones Avanzadas'!$E$9 -> 11.5 | K57: =+'Opciones Avanzadas'!$E$9 -> 11.5 | M57: =+'Opciones Avanzadas'!$E$9 -> 11.5 | N57: =+'Opciones Avanzadas'!$E$9 -> 11.5 | Q57: =+'Opciones Avanzadas'!$E$9 -> 11.5 | S57: =+'Opciones Avanzadas'!$E$9 -> 11.5 | T57: =+'Opciones Avanzadas'!$E$9 -> 11.5 | U57: =+'Opciones Avanzadas'!$E$9 -> 11.5 | V57: =+'Opciones Avanzadas'!$E$9 -> 11.5 | Y57: =+'Opciones Avanzadas'!$E$9 -> 11.5 | Z57: =+'Opciones Avanzadas'!$E$9 -> 11.5 | AB57: =+'Opciones Avanzadas'!$E$9 -> 11.5 | AC57: =+'Opciones Avanzadas'!$E$9 -> 11.5 | AD57: =+'Opciones Avanzadas'!$E$9 -> 11.5 | AE57: =+'Opciones Avanzadas'!$E$9 -> 11.5 | AF57: =+'Opciones Avanzadas'!$E$9 -> 11.5
B58: Arrendamiento en USD | C58: USD/ha | D58: Abril | E58: =+E86 -> 367.5 | F58: =+$E$58*F57/10 -> 422.625 | H58: =+$E$58*H57/10 -> 422.625 | J58: 422.625 | K58: 422.625 | M58: 422.625 | N58: =+$E$58*N57/10 -> 422.625 | Q58: 422.625 | S58: 422.625 | T58: 422.625 | U58: 422.625 | V58: 422.625 | Y58: 422.625 | Z58: 422.625 | AB58: 422.625 | AC58: 422.625 | AD58: 422.625 | AE58: 422.625 | AF58: =+$E$58*AF57/10 -> 422.625
B59: Movilidad Campo (Campo + Adm) | C59: USD/ha | D59: Enero | E59: 12.3 | F59: =+$E59 -> 12.3 | H59: =+$E59 -> 12.3 | J59: 12.3 | K59: 12.3 | M59: 12.3 | N59: 12.3 | Q59: 12.3 | S59: 12.3 | T59: 12.3 | U59: 12.3 | V59: 12.3 | Y59: =+$E59 -> 12.3 | Z59: 12.3 | AB59: 12.3 | AC59: 12.3 | AD59: 12.3 | AE59: 12.3 | AF59: =+$E59 -> 12.3
B60: Personal (Salarios) | C60: USD/ha | D60: Octubre | E60: 40.4 | F60: =+$E60 -> 40.4 | H60: 40.4 | J60: 40.4 | K60: 40.4 | M60: 40.4 | N60: 40.4 | Q60: 40.4 | S60: 40.4 | T60: 40.4 | U60: 40.4 | V60: 40.4 | Y60: 40.4 | Z60: 40.4 | AB60: 40.4 | AC60: 40.4 | AD60: 40.4 | AE60: 40.4 | AF60: =+$E60*7/6 -> 47.13333333
B61: Asesoramiento Técnico | C61: USD/ha | D61: =D60 -> Octubre | E61: 0.01 | F61: =$E61*F98 -> 11.51257371 | H61: 11.51257371 | J61: 11.51257371 | K61: 11.51257371 | M61: 11.51257371 | N61: 11.51257371 | Q61: 11.51257371 | S61: 11.51257371 | T61: 11.51257371 | U61: 11.51257371 | V61: 11.51257371 | Y61: 11.51257371 | Z61: 11.51257371 | AB61: 11.51257371 | AC61: 11.51257371 | AD61: 11.51257371 | AE61: 11.51257371 | AF61: =$E61*AF98 -> 11.51257371
B62: Asesoramiento Contable | C62: USD/ha | D62: Octubre | E62: 6 | F62: 6 | H62: 6 | J62: 6 | K62: 6 | M62: 6 | N62: 6 | Q62: 6 | S62: 6 | T62: 6 | U62: 6 | V62: 6 | Y62: 6 | Z62: 6 | AB62: 6 | AC62: 6 | AD62: 6 | AE62: 6 | AF62: 6
B63: Gastos de oficina/comunicaciones | C63: USD/ha | D63: Octubre | E63: 3.9 | F63: 3.9 | H63: 3.9 | J63: 3.9 | K63: 3.9 | M63: 3.9 | N63: 3.9 | Q63: 3.9 | S63: 3.9 | T63: 3.9 | U63: 3.9 | V63: 3.9 | Y63: 3.9 | Z63: 3.9 | AB63: 3.9 | AC63: 3.9 | AD63: 3.9 | AE63: 3.9 | AF63: 3.9
B64: Receta Fitosanitaria | C64: USD/ha | D64: Octubre | E64: 0 | F64: 0 | H64: 0 | J64: 0 | K64: 0 | M64: 0 | N64: 0 | Q64: 0 | S64: 0 | T64: 0 | U64: 0 | V64: 0 | Y64: 0 | Z64: 0 | AB64: 0 | AC64: 0 | AD64: 0 | AE64: 0 | AF64: 0
B65: Asesor Financiero | C65: USD/ha | D65: Octubre | E65: 0 | F65: 0 | H65: 0 | J65: 0 | K65: 0 | M65: 0 | N65: 0 | Q65: 0 | S65: 0 | T65: 0 | U65: 0 | V65: 0 | Y65: 0 | Z65: 0 | AB65: 0 | AC65: 0 | AD65: 0 | AE65: 0 | AF65: 0
B66: Seguro Climatico | C66: USD/ha | D66: Octubre | E66: 0 | F66: 0 | H66: 0 | J66: 0 | K66: 0 | M66: 0 | N66: 0 | Q66: 0 | S66: 0 | T66: 0 | U66: 0 | V66: 0 | Y66: 0 | Z66: 0 | AB66: 0 | AC66: 0 | AD66: 0 | AE66: 0 | AF66: 0
B67: Conservaciones y Mejoras | C67: USD/ha | D67: Octubre | E67: 3 | F67: 3 | H67: 3 | J67: 3 | K67: 3 | M67: 3 | N67: 3 | Q67: 3 | S67: 3 | T67: 3 | U67: 3 | V67: 3 | Y67: 3 | Z67: 3 | AB67: 3 | AC67: 3 | AD67: 3 | AE67: 3 | AF67: 3
B68: Gastos imprevistos/Otros | C68: USD/ha | D68: Octubre | E68: 0 | F68: 0 | H68: 0 | J68: 0 | K68: 0 | M68: 0 | N68: 0 | Q68: 0 | S68: 0 | T68: 0 | U68: 0 | V68: 0 | Y68: 0 | Z68: 0 | AB68: 0 | AC68: 0 | AD68: 0 | AE68: 0 | AF68: 0
B69: Total Costos Indirectos | F69: =+SUM(F58:F68) -> 499.7375737 | H69: =+SUM(H58:H68) -> 499.7375737 | J69: 499.7375737 | K69: 499.7375737 | M69: 499.7375737 | N69: 499.7375737 | Q69: 499.7375737 | S69: 499.7375737 | T69: 499.7375737 | U69: 499.7375737 | V69: 499.7375737 | Y69: 499.7375737 | Z69: 499.7375737 | AB69: 499.7375737 | AC69: 499.7375737 | AD69: 499.7375737 | AE69: 499.7375737 | AF69: =+SUM(AF58:AF68) -> 506.470907
B71: Impuestos (Por Ha) | C71: =C56 -> Unidad de medida | D71: =D56 -> Mes de actualiz. | E71: Porcentaje | F71: =F$2 -> Calamuchita | G71: Capital | H71: Colón | I71: Cruz del Eje | J71: Gral. Roca | K71: Gral. San Martín | L71: Ischilin | M71: Juárez Celman | N71: Marcos Juárez | O71: Minas | P71: Pocho | Q71: Pte. R. Sáenz Peña | R71: Punilla | S71: Río Cuarto | T71: Río Primero | U71: Río Seco | V71: Río Segundo | W71: San Alberto | X71: San Javier | Y71: San Justo | Z71: Santa María | AA71: Sobremonte | AB71: Tercero Arriba | AC71: Totoral | AD71: Tulumba | AE71: Unión | AF71: PROVINCIA
B72: Impuesto a las ganancias | C72: % s. Resultado Positivo | D72: - | E72: 0.3 | F72: =IF(F104<0,0,$E$72*F104) -> 4.526883993 | H72: 4.526883993 | J72: 4.526883993 | K72: 4.526883993 | M72: 4.526883993 | N72: 4.526883993 | Q72: 4.526883993 | S72: 4.526883993 | T72: 4.526883993 | U72: 4.526883993 | V72: 4.526883993 | Y72: 4.526883993 | Z72: 4.526883993 | AB72: 4.526883993 | AC72: 4.526883993 | AD72: 4.526883993 | AE72: =IF(AE104<0,0,$E$72*AE104) -> 4.526883993 | AF72: =IF(AF104<0,0,$E$72*AF104) -> 2.506883993
B73: Impuesto a la ganancia mínima presunta | C73: - | D73: - | E73: -
B74: Impuestos a los combustibles | C74: - | D74: - | E74: -
B75: Impuesto al cheque | C75: % s. Ingresos Totales | D75: - | E75: 0.012 | F75: =$E$75/2*(F98+F99+F100+F103)*0.4 -> 5.489820308 | H75: =$E$75/2*(H98+H99+H100+H103)*0.4 -> 5.489820308 | J75: =$E$75/2*(J98+J99+J100+J103)*0.4 -> 5.489820308 | K75: =$E$75/2*(K98+K99+K100+K103)*0.4 -> 5.489820308 | M75: =$E$75/2*(M98+M99+M100+M103)*0.4 -> 5.489820308 | N75: =$E$75/2*(N98+N99+N100+N103)*0.4 -> 5.489820308 | Q75: =$E$75/2*(Q98+Q99+Q100+Q103)*0.4 -> 5.489820308 | S75: =$E$75/2*(S98+S99+S100+S103)*0.4 -> 5.489820308 | T75: =$E$75/2*(T98+T99+T100+T103)*0.4 -> 5.489820308 | U75: =$E$75/2*(U98+U99+U100+U103)*0.4 -> 5.489820308 | V75: =$E$75/2*(V98+V99+V100+V103)*0.4 -> 5.489820308 | Y75: =$E$75/2*(Y98+Y99+Y100+Y103)*0.4 -> 5.489820308 | Z75: =$E$75/2*(Z98+Z99+Z100+Z103)*0.4 -> 5.489820308 | AB75: =$E$75/2*(AB98+AB99+AB100+AB103)*0.4 -> 5.489820308 | AC75: =$E$75/2*(AC98+AC99+AC100+AC103)*0.4 -> 5.489820308 | AD75: =$E$75/2*(AD98+AD99+AD100+AD103)*0.4 -> 5.489820308 | AE75: =$E$75/2*(AE98+AE99+AE100+AE103)*0.4 -> 5.489820308 | AF75: =$E$75/2*(AF98+AF99+AF100+AF103)*0.4 -> 5.505980308
B76: Impuesto a los sellos | C76: % s. Ingresos Totales | D76: - | E76: 0.012 | F76: =$E76*F98 -> 13.81508845 | H76: =$E76*H98 -> 13.81508845 | J76: =$E76*J98 -> 13.81508845 | K76: =$E76*K98 -> 13.81508845 | M76: =$E76*M98 -> 13.81508845 | N76: =$E76*N98 -> 13.81508845 | Q76: =$E76*Q98 -> 13.81508845 | S76: =$E76*S98 -> 13.81508845 | T76: =$E76*T98 -> 13.81508845 | U76: =$E76*U98 -> 13.81508845 | V76: =$E76*V98 -> 13.81508845 | Y76: =$E76*Y98 -> 13.81508845 | Z76: =$E76*Z98 -> 13.81508845 | AB76: =$E76*AB98 -> 13.81508845 | AC76: =$E76*AC98 -> 13.81508845 | AD76: =$E76*AD98 -> 13.81508845 | AE76: =$E76*AE98 -> 13.81508845 | AF76: =$E76*AF98 -> 13.81508845
B77: Impuesto inmobiliario | C77: - | D77: - | E77: -
B78: Impuesto a los automotores (rentas) | C78: - | D78: - | E78: -
B79: Impuesto a la renta financiera | C79: - | D79: - | E79: -
B80: Impuesto a utilidades y dividendos | C80: - | D80: - | E80: -
B81: IVA crédito | C81: - | D81: - | E81: -
B82: IVA Débito | C82: - | D82: - | E82: -
B83: Total impuestos | F83: =+SUM(F72:F82) -> 23.83179275 | H83: =+SUM(H72:H82) -> 23.83179275 | J83: 23.83179275 | K83: 23.83179275 | M83: 23.83179275 | N83: 23.83179275 | Q83: 23.83179275 | S83: 23.83179275 | T83: 23.83179275 | U83: 23.83179275 | V83: 23.83179275 | Y83: 23.83179275 | Z83: 23.83179275 | AB83: 23.83179275 | AC83: 23.83179275 | AD83: 23.83179275 | AE83: 23.83179275 | AF83: =+SUM(AF72:AF82) -> 21.82795275
B85: Precio sorgo cosecha USD/tn | E85: =+Listas!G29 -> 220
B86: Precio soja cosecha USD/tn | E86: =+'Soja 1ª'!E96 -> 367.5
B87: Dólar siembra | D87: Abril | E87: 179.6
B88: Dólar Cosecha | E88: =+'Calculadora BCCBA'!C22 -> 238.5
B89: Dólar Promedio | D89: - | E89: =+AVERAGE(E87:E88) -> 209.05
B90: Inflación esperada hasta dato FACMA de esta campaña | D90: Abril | E90: 0.755
B91: Inflación esp. desde FECOTAC hasta agosto | D91: Abril | E91: 0.581
B92: Tasa de interes del costo de oportunidad | D92: Abril | E92: 0.05
B93: Precio combustible | D93: - | E93: -
B95: RENTABILIDAD EN DÓLARES | F95: =F$2 -> Calamuchita | G95: Capital | H95: Colón | I95: Cruz del Eje | J95: Gral. Roca | K95: Gral. San Martín | L95: Ischilin | M95: Juárez Celman | N95: Marcos Juárez | O95: Minas | P95: Pocho | Q95: Pte. R. Sáenz Peña | R95: Punilla | S95: Río Cuarto | T95: Río Primero | U95: Río Seco | V95: Río Segundo | W95: San Alberto | X95: San Javier | Y95: San Justo | Z95: Santa María | AA95: Sobremonte | AB95: Tercero Arriba | AC95: Totoral | AD95: Tulumba | AE95: Unión | AF95: PROVINCIA
B96: Rendimientos Sorgo | D96: qq/ha | F96: =F3 -> 52.3298805 | G96: 52.3298805 | H96: 52.3298805 | I96: 52.3298805 | J96: 52.3298805 | K96: 52.3298805 | L96: 52.3298805 | M96: 52.3298805 | N96: 52.3298805 | O96: 52.3298805 | P96: 52.3298805 | Q96: 52.3298805 | R96: 52.3298805 | S96: 52.3298805 | T96: 52.3298805 | U96: 52.3298805 | V96: 52.3298805 | W96: 52.3298805 | X96: 52.3298805 | Y96: 52.3298805 | Z96: 52.3298805 | AA96: 52.3298805 | AB96: 52.3298805 | AC96: 52.3298805 | AD96: 52.3298805 | AE96: 52.3298805 | AF96: 52.3298805
B97: Precio Sorgo | D97: USD/qq | F97: =IF(F96=0,"",$E$85) -> 220 | G97: 220 | H97: 220 | I97: 220 | J97: 220 | K97: 220 | L97: 220 | M97: 220 | N97: 220 | O97: 220 | P97: 220 | Q97: 220 | R97: 220 | S97: 220 | T97: 220 | U97: 220 | V97: 220 | W97: 220 | X97: 220 | Y97: 220 | Z97: 220 | AA97: 220 | AB97: 220 | AC97: 220 | AD97: 220 | AE97: 220 | AF97: =IF(AF96=0,"",$E$85) -> 220
B98: Ingresos Totales | D98: USD/ha | F98: =IF(F96=0,"",F97*F96/10) -> 1151.257371 | G98: 1151.257371 | H98: 1151.257371 | I98: 1151.257371 | J98: 1151.257371 | K98: 1151.257371 | L98: 1151.257371 | M98: 1151.257371 | N98: 1151.257371 | O98: 1151.257371 | P98: 1151.257371 | Q98: 1151.257371 | R98: 1151.257371 | S98: 1151.257371 | T98: 1151.257371 | U98: 1151.257371 | V98: 1151.257371 | W98: 1151.257371 | X98: 1151.257371 | Y98: 1151.257371 | Z98: 1151.257371 | AA98: 1151.257371 | AB98: 1151.257371 | AC98: 1151.257371 | AD98: 1151.257371 | AE98: 1151.257371 | AF98: =IF(AF96=0,"",AF97*AF96/10) -> 1151.257371
B99: Costos Directos | D99: USD/ha | F99: =IF(F96=0,"",F45) -> 382.8642681 | G99: =IF(G96=0,"",G45) -> 382.8642681 | H99: 382.8642681 | I99: 382.8642681 | J99: 382.8642681 | K99: 382.8642681 | L99: 382.8642681 | M99: 382.8642681 | N99: 382.8642681 | O99: 382.8642681 | P99: 382.8642681 | Q99: 382.8642681 | R99: 382.8642681 | S99: 382.8642681 | T99: 382.8642681 | U99: 382.8642681 | V99: 382.8642681 | W99: 382.8642681 | X99: 382.8642681 | Y99: 382.8642681 | Z99: 382.8642681 | AA99: 382.8642681 | AB99: 382.8642681 | AC99: 382.8642681 | AD99: 382.8642681 | AE99: 382.8642681 | AF99: 382.8642681
B100: Gastos Comerciales | D100: USD/ha | F100: =IF(F96=0,"",F54*F96/10) -> 253.5659158 | G100: 0 | H100: 253.5659158 | I100: 0 | J100: 253.5659158 | K100: 253.5659158 | L100: 0 | M100: 253.5659158 | N100: 253.5659158 | O100: 0 | P100: 0 | Q100: 253.5659158 | R100: 0 | S100: 253.5659158 | T100: 253.5659158 | U100: 253.5659158 | V100: 253.5659158 | W100: 0 | X100: 0 | Y100: 253.5659158 | Z100: 253.5659158 | AA100: 0 | AB100: 253.5659158 | AC100: 253.5659158 | AD100: 253.5659158 | AE100: 253.5659158 | AF100: 253.5659158
B101: Margen Bruto | D101: USD/ha | F101: =IF(F96=0,"",F98-F99-F100) -> 514.827187 | G101: 768.3931028 | H101: 514.827187 | I101: 768.3931028 | J101: 514.827187 | K101: 514.827187 | L101: 768.3931028 | M101: 514.827187 | N101: 514.827187 | O101: 768.3931028 | P101: 768.3931028 | Q101: 514.827187 | R101: 768.3931028 | S101: 514.827187 | T101: 514.827187 | U101: 514.827187 | V101: 514.827187 | W101: 768.3931028 | X101: 768.3931028 | Y101: 514.827187 | Z101: 514.827187 | AA101: 768.3931028 | AB101: 514.827187 | AC101: 514.827187 | AD101: 514.827187 | AE101: 514.827187 | AF101: =IF(AF96=0,"",AF98-AF99-AF100) -> 514.827187
B102: Rendimiento de Indiferencia | D102: USD/ha | F102: =IF(F96=0,"",(F100+F99)*10/F97) -> 28.92864472 | G102: 17.40292128 | H102: 28.92864472 | I102: 17.40292128 | J102: 28.92864472 | K102: 28.92864472 | L102: 17.40292128 | M102: 28.92864472 | N102: 28.92864472 | O102: 17.40292128 | P102: 17.40292128 | Q102: 28.92864472 | R102: 17.40292128 | S102: 28.92864472 | T102: 28.92864472 | U102: 28.92864472 | V102: 28.92864472 | W102: 17.40292128 | X102: 17.40292128 | Y102: 28.92864472 | Z102: 28.92864472 | AA102: 17.40292128 | AB102: 28.92864472 | AC102: 28.92864472 | AD102: 28.92864472 | AE102: 28.92864472 | AF102: =IF(AF96=0,"",(AF100+AF99)*10/AF97) -> 28.92864472
B103: Costos Indirectos | D103: USD/ha | F103: =IF(F96=0,"",F69) -> 499.7375737 | G103: 0 | H103: 499.7375737 | I103: 0 | J103: 499.7375737 | K103: 499.7375737 | L103: 0 | M103: 499.7375737 | N103: 499.7375737 | O103: 0 | P103: 0 | Q103: 499.7375737 | R103: 0 | S103: 499.7375737 | T103: 499.7375737 | U103: 499.7375737 | V103: 499.7375737 | W103: 0 | X103: 0 | Y103: 499.7375737 | Z103: 499.7375737 | AA103: 0 | AB103: 499.7375737 | AC103: 499.7375737 | AD103: 499.7375737 | AE103: 499.7375737 | AF103: 506.470907
B104: Resultado Operativo | D104: USD/ha | F104: =IF(F96=0,"",F101-F103) -> 15.08961331 | G104: 768.3931028 | H104: 15.08961331 | I104: 768.3931028 | J104: 15.08961331 | K104: 15.08961331 | L104: 768.3931028 | M104: 15.08961331 | N104: 15.08961331 | O104: 768.3931028 | P104: 768.3931028 | Q104: 15.08961331 | R104: 768.3931028 | S104: 15.08961331 | T104: 15.08961331 | U104: 15.08961331 | V104: 15.08961331 | W104: 768.3931028 | X104: 768.3931028 | Y104: 15.08961331 | Z104: 15.08961331 | AA104: 768.3931028 | AB104: 15.08961331 | AC104: 15.08961331 | AD104: 15.08961331 | AE104: 15.08961331 | AF104: =IF(AF96=0,"",AF101-AF103) -> 8.356279975
B105: Impuesto a las Ganancias | D105: USD/ha | F105: =IF(F96=0,"",F83) -> 23.83179275 | G105: 0 | H105: 23.83179275 | I105: 0 | J105: 23.83179275 | K105: 23.83179275 | L105: 0 | M105: 23.83179275 | N105: 23.83179275 | O105: 0 | P105: 0 | Q105: 23.83179275 | R105: 0 | S105: 23.83179275 | T105: 23.83179275 | U105: 23.83179275 | V105: 23.83179275 | W105: 0 | X105: 0 | Y105: 23.83179275 | Z105: 23.83179275 | AA105: 0 | AB105: 23.83179275 | AC105: 23.83179275 | AD105: 23.83179275 | AE105: 23.83179275 | AF105: 21.82795275
B106: Margen Neto | D106: USD/ha | F106: =IF(F96=0,"",F104-F105) -> -8.742179443 | G106: 768.3931028 | H106: -8.742179443 | I106: 768.3931028 | J106: -8.742179443 | K106: -8.742179443 | L106: 768.3931028 | M106: -8.742179443 | N106: -8.742179443 | O106: 768.3931028 | P106: 768.3931028 | Q106: -8.742179443 | R106: 768.3931028 | S106: -8.742179443 | T106: -8.742179443 | U106: -8.742179443 | V106: -8.742179443 | W106: 768.3931028 | X106: 768.3931028 | Y106: -8.742179443 | Z106: -8.742179443 | AA106: 768.3931028 | AB106: -8.742179443 | AC106: -8.742179443 | AD106: -8.742179443 | AE106: -8.742179443 | AF106: =IF(AF96=0,"",AF104-AF105) -> -13.47167278
B107: Intereses sobre el Capital Invertido | D107: USD/ha | F107: =IF(F96=0,"",F109*$E$92*8/12) -> 27.11182779 | G107: 10.45390867 | H107: 27.11182779 | I107: 10.45390867 | J107: 27.11182779 | K107: 27.11182779 | L107: 10.45390867 | M107: 27.11182779 | N107: 27.11182779 | O107: 10.45390867 | P107: 10.45390867 | Q107: 27.11182779 | R107: 10.45390867 | S107: 27.11182779 | T107: 27.11182779 | U107: 27.11182779 | V107: 27.11182779 | W107: 10.45390867 | X107: 10.45390867 | Y107: 27.11182779 | Z107: 27.11182779 | AA107: 10.45390867 | AB107: 27.11182779 | AC107: 27.11182779 | AD107: 27.11182779 | AE107: 27.11182779 | AF107: 27.33627223
B108: Resultado Económico | D108: USD/ha | F108: =IF(F96=0,"",F106-F107) -> -35.85400723 | G108: 757.9391942 | H108: -35.85400723 | I108: 757.9391942 | J108: -35.85400723 | K108: -35.85400723 | L108: 757.9391942 | M108: -35.85400723 | N108: -35.85400723 | O108: 757.9391942 | P108: 757.9391942 | Q108: -35.85400723 | R108: 757.9391942 | S108: -35.85400723 | T108: -35.85400723 | U108: -35.85400723 | V108: -35.85400723 | W108: 757.9391942 | X108: 757.9391942 | Y108: -35.85400723 | Z108: -35.85400723 | AA108: 757.9391942 | AB108: -35.85400723 | AC108: -35.85400723 | AD108: -35.85400723 | AE108: -35.85400723 | AF108: =IF(AF96=0,"",AF106-AF107) -> -40.80794501
B109: Inversión Inicial | D109: USD/ha | F109: =IF(F96=0,"",F45-F38+F69) -> 813.3548337 | G109: =IF(G96=0,"",G45-G38+G69) -> 313.61726 | H109: 813.3548337 | I109: 313.61726 | J109: 813.3548337 | K109: 813.3548337 | L109: 313.61726 | M109: 813.3548337 | N109: 813.3548337 | O109: 313.61726 | P109: 313.61726 | Q109: 813.3548337 | R109: 313.61726 | S109: 813.3548337 | T109: 813.3548337 | U109: 813.3548337 | V109: 813.3548337 | W109: 313.61726 | X109: 313.61726 | Y109: 813.3548337 | Z109: 813.3548337 | AA109: 313.61726 | AB109: 813.3548337 | AC109: 813.3548337 | AD109: 813.3548337 | AE109: 813.3548337 | AF109: 820.088167
B110: Rentabilidad de la Actividad | D110: % | F110: =IF(F96=0,"",F108/F109) -> -0.04408163049 | G110: 2.416764926 | H110: -0.04408163049 | I110: 2.416764926 | J110: -0.04408163049 | K110: -0.04408163049 | L110: 2.416764926 | M110: -0.04408163049 | N110: -0.04408163049 | O110: 2.416764926 | P110: 2.416764926 | Q110: -0.04408163049 | R110: 2.416764926 | S110: -0.04408163049 | T110: -0.04408163049 | U110: -0.04408163049 | V110: -0.04408163049 | W110: 2.416764926 | X110: 2.416764926 | Y110: -0.04408163049 | Z110: -0.04408163049 | AA110: 2.416764926 | AB110: -0.04408163049 | AC110: -0.04408163049 | AD110: -0.04408163049 | AE110: -0.04408163049 | AF110: =IF(AF96=0,"",AF108/AF109) -> -0.04976043632 | AG110: 59.1 | AH110: 67.1 | AI110: 75.1 | AJ110: 83.1 | AK110: 91.1
AF111: 142.1 | AG111: 0.04524126002 | AH111: 0.1570582024 | AI111: 0.2683981155 | AJ111: 0.3792640456 | AK111: 0.4896590129
AF112: 149.1 | AG112: 0.04524126002 | AH112: 0.1570582024 | AI112: 0.2683981155 | AJ112: 0.3792640456 | AK112: 0.4896590129
AF113: 156.1 | AG113: 0.04524126002 | AH113: 0.1570582024 | AI113: 0.2683981155 | AJ113: 0.3792640456 | AK113: 0.4896590129
F114: =H$2 -> Colón | G114: -0.178430506 | AF114: 163.1 | AG114: 0.04524126002 | AH114: 0.1570582024 | AI114: 0.2683981155 | AJ114: 0.3792640456 | AK114: 0.4896590129
F115: =T$2 -> Río Primero | G115: -0.150113825 | AF115: 170.1 | AG115: 0.04524126002 | AH115: 0.1570582024 | AI115: 0.2683981155 | AJ115: 0.3792640456 | AK115: 0.4896590129
F116: =S$2 -> Río Cuarto | G116: -0.1347825025
F117: =AC$2 -> Totoral | G117: -0.1315351502
F118: =U$2 -> Río Seco | G118: -0.1276834789
F119: =Y$2 -> San Justo | G119: -0.08525938322
F120: =J$2 -> Gral. Roca | G120: -0.07951240703
F121: =F$2 -> Calamuchita | G121: -0.07897082942
F122: =AD$2 -> Tulumba | G122: -0.07543255271
F123: =AE$2 -> Unión | G123: -0.05273636211
F124: =Q$2 -> Pte. R. Sáenz Peña | G124: -0.04201779682
F125: =V$2 -> Río Segundo | G125: -0.0411317623
F126: =N$2 -> Marcos Juárez | G126: -0.03640090758
F127: =Z$2 -> Santa María | G127: -0.03453926009
F128: =K$2 -> Gral. San Martín | G128: -0.02005910866
F129: =AB$2 -> Tercero Arriba | G129: -0.004231171655
F130: =M$2 -> Juárez Celman | G130: -0.0005598374882

Sheet Listas (hidden)
A1: Deptos | B1: Rendimiento trigo | C1: Rendimiento soja 1ª | D1: Rendimiento soja 2ª | E1: Rendimiento maíz temprano | F1: Rendimiento maíz tardío | G1: Rendimiento sorgo | K1: Soja | M1: Maíz | O1: Trigo | Q1: Sorgo | V1: Calculador Soja 1ª | Y1: Calculador Soja 2ª | AB1: Calculador Trigo | AE1: Calculador Maíz Temprano | AH1: Calculador Maíz Tardío | AK1: Calculador Sorgo | AP1: Departamento | AQ1: Arrendamiento | AU1: Opciones avanzadas (completado por el usuario) | AV1: Mes de actualiz. | AW1: Cantidades | AX1: Calamuchita | AY1: Capital | AZ1: Colón | BA1: Cruz del Eje | BB1: Gral. Roca | BC1: Gral. San Martín | BD1: Ischilin | BE1: Juárez Celman | BF1: Marcos Juárez | BG1: Minas | BH1: Pocho | BI1: Pte. R. Sáenz Peña | BJ1: Punilla | BK1: Río Cuarto | BL1: Río Primero | BM1: Río Seco | BN1: Río Segundo | BO1: San Alberto | BP1: San Javier | BQ1: San Justo | BR1: Santa María | BS1: Sobremonte | BT1: Tercero Arriba | BU1: Totoral | BV1: Tulumba | BW1: Unión | BX1: PROVINCIA
A2: Calamuchita | B2: 19.16016084 | C2: 27.26070011 | D2: 22.39919154 | E2: 72.74693031 | F2: 79.35656113 | G2: 66.04540298 | K2: Rendimiento | L2: Costos cosecha | M2: Rendimiento | N2: Costos cosecha | O2: Rendimiento | P2: Costos cosecha | Q2: Rendimiento | R2: Costos cosecha | V2: qq | W2: Depto | Y2: qq | Z2: Depto | AB2: qq | AC2: Depto | AE2: qq | AF2: Depto | AH2: qq | AI2: Depto | AK2: qq | AL2: Depto | AP2: Calamuchita | AQ2: 10.4 | AU2: Servicios de Labranza | AV2: Estos datos son los ingresados en opciones avanzadas | AW2: SOJA DE 1ª | AX2: =+'Soja 1ª'!F24+'Soja 1ª'!F25+'Soja 1ª'!F41 -> 96.7 | AY2: =+'Soja 1ª'!G24+'Soja 1ª'!G25+'Soja 1ª'!G41 -> 0 | AZ2: =+'Soja 1ª'!H24+'Soja 1ª'!H25+'Soja 1ª'!H41 -> 96.7 | BA2: =+'Soja 1ª'!I24+'Soja 1ª'!I25+'Soja 1ª'!I41 -> 0 | BB2: =+'Soja 1ª'!J24+'Soja 1ª'!J25+'Soja 1ª'!J41 -> 96.7 | BC2: =+'Soja 1ª'!K24+'Soja 1ª'!K25+'Soja 1ª'!K41 -> 96.7 | BD2: =+'Soja 1ª'!L24+'Soja 1ª'!L25+'Soja 1ª'!L41 -> 0 | BE2: =+'Soja 1ª'!M24+'Soja 1ª'!M25+'Soja 1ª'!M41 -> 96.7 | BF2: =+'Soja 1ª'!N24+'Soja 1ª'!N25+'Soja 1ª'!N41 -> 96.7 | BG2: =+'Soja 1ª'!O24+'Soja 1ª'!O25+'Soja 1ª'!O41 -> 0 | BH2: =+'Soja 1ª'!P24+'Soja 1ª'!P25+'Soja 1ª'!P41 -> 0 | BI2: =+'Soja 1ª'!Q24+'Soja 1ª'!Q25+'Soja 1ª'!Q41 -> 96.7 | BJ2: =+'Soja 1ª'!R24+'Soja 1ª'!R25+'Soja 1ª'!R41 -> 0 | BK2: =+'Soja 1ª'!S24+'Soja 1ª'!S25+'Soja 1ª'!S41 -> 96.7 | BL2: =+'Soja 1ª'!T24+'Soja 1ª'!T25+'Soja 1ª'!T41 -> 96.7 | BM2: =+'Soja 1ª'!U24+'Soja 1ª'!U25+'Soja 1ª'!U41 -> 96.7 | BN2: =+'Soja 1ª'!V24+'Soja 1ª'!V25+'Soja 1ª'!V41 -> 96.7 | BO2: =+'Soja 1ª'!W24+'Soja 1ª'!W25+'Soja 1ª'!W41 -> 0 | BP2: =+'Soja 1ª'!X24+'Soja 1ª'!X25+'Soja 1ª'!X41 -> 0 | BQ2: =+'Soja 1ª'!Y24+'Soja 1ª'!Y25+'Soja 1ª'!Y41 -> 96.7 | BR2: =+'Soja 1ª'!Z24+'Soja 1ª'!Z25+'Soja 1ª'!Z41 -> 96.7 | BS2: =+'Soja 1ª'!AA24+'Soja 1ª'!AA25+'Soja 1ª'!AA41 -> 0 | BT2: =+'Soja 1ª'!AB24+'Soja 1ª'!AB25+'Soja 1ª'!AB41 -> 96.7 | BU2: =+'Soja 1ª'!AC24+'Soja 1ª'!AC25+'Soja 1ª'!AC41 -> 96.7 | BV2: =+'Soja 1ª'!AD24+'Soja 1ª'!AD25+'Soja 1ª'!AD41 -> 96.7 | BW2: =+'Soja 1ª'!AE24+'Soja 1ª'!AE25+'Soja 1ª'!AE41 -> 96.7 | BX2: =+'Soja 1ª'!AF24+'Soja 1ª'!AF25+'Soja 1ª'!AF41 -> 96.53123399
A3: Colón | B3: 22.31015333 | C3: 33.29552151 | D3: 27.06888785 | E3: 80.7298061 | F3: 77.85612573 | G3: 55.85375969 | K3: 8 | L3: =L5 -> 9192 | M3: 44 | N3: =+N4 -> 11889 | O3: 6 | P3: 7283 | Q3: =+Q4-3 -> 18 | R3: =+R4*(R4/R5) -> 6417.564052 | V3: Inicial | W3: =IF(ISBLANK(W5),"",INT(INT(W5)/2)*2) -> 32 | Y3: Inicial | Z3: =IF(ISBLANK(Z5),"",INT(INT(Z5)/2)*2) -> 26 | AB3: Inicial | AC3: =IF(ISBLANK(AC5),"",INT(INT(AC5)/2)*2) -> 28 | AE3: Inicial | AF3: =IF(ISBLANK(AF5),"",INT((INT(AF5)+2)/4)*4-2) -> 86 | AH3: Inicial | AI3: =IF(ISBLANK(AI5),"",INT((INT(AI5)+2)/4)*4-2) -> 78 | AK3: Inicial | AL3: =IF(ISBLANK(AL5),"",INT((INT(AL5))/3)*3) -> 51 | AP3: Colón | AQ3: 11.2 | AU3: Servicios de Cosecha | AX3: =+'Soja 1ª'!F43 -> 86.80153021 | AY3: =+'Soja 1ª'!G43 -> 0 | AZ3: =+'Soja 1ª'!H43 -> 86.80153021 | BA3: =+'Soja 1ª'!I43 -> 0 | BB3: =+'Soja 1ª'!J43 -> 86.80153021 | BC3: =+'Soja 1ª'!K43 -> 86.80153021 | BD3: =+'Soja 1ª'!L43 -> 0 | BE3: =+'Soja 1ª'!M43 -> 86.80153021 | BF3: =+'Soja 1ª'!N43 -> 86.80153021 | BG3: =+'Soja 1ª'!O43 -> 0 | BH3: =+'Soja 1ª'!P43 -> 0 | BI3: =+'Soja 1ª'!Q43 -> 86.80153021 | BJ3: =+'Soja 1ª'!R43 -> 0 | BK3: =+'Soja 1ª'!S43 -> 86.80153021 | BL3: =+'Soja 1ª'!T43 -> 86.80153021 | BM3: =+'Soja 1ª'!U43 -> 86.80153021 | BN3: =+'Soja 1ª'!V43 -> 86.80153021 | BO3: =+'Soja 1ª'!W43 -> 0 | BP3: =+'Soja 1ª'!X43 -> 0 | BQ3: =+'Soja 1ª'!Y43 -> 86.80153021 | BR3: =+'Soja 1ª'!Z43 -> 86.80153021 | BS3: =+'Soja 1ª'!AA43 -> 0 | BT3: =+'Soja 1ª'!AB43 -> 86.80153021 | BU3: =+'Soja 1ª'!AC43 -> 86.80153021 | BV3: =+'Soja 1ª'!AD43 -> 86.80153021 | BW3: =+'Soja 1ª'!AE43 -> 86.80153021 | BX3: =+'Soja 1ª'!AF43 -> 86.80153021
A4: Gral. Roca | B4: 29.93842898 | C4: 31.68686214 | D4: 22.93143864 | E4: 76.24360393 | F4: 75.39231931 | G4: 50.04775374 | K4: =+K5-2 -> 10 | L4: =L5 -> 9192 | M4: 46 | N4: 11889 | O4: 8 | P4: 7283 | Q4: 21 | R4: =R5 -> 6417.564052 | V4: Final | W4: =IF(ISBLANK(W5),"",W3+2) -> 34 | Y4: Final | Z4: =IF(ISBLANK(Z5),"",Z3+2) -> 28 | AB4: Final | AC4: =IF(ISBLANK(AC5),"",AC3+2) -> 30 | AE4: Final | AF4: =IF(ISBLANK(AF5),"",AF3+4) -> 90 | AH4: Final | AI4: =IF(ISBLANK(AI5),"",AI3+4) -> 82 | AK4: Final | AL4: =IF(ISBLANK(AL5),"",AL3+3) -> 54 | AP4: Gral. Roca | AQ4: 11 | AU4: Herbicida | AX4: =+'Soja 1ª'!F26+'Soja 1ª'!F27+'Soja 1ª'!F28+'Soja 1ª'!F29+'Soja 1ª'!F30+'Soja 1ª'!F35 -> 98.669 | AY4: =+'Soja 1ª'!G26+'Soja 1ª'!G27+'Soja 1ª'!G28+'Soja 1ª'!G29+'Soja 1ª'!G30+'Soja 1ª'!G35 -> 0 | AZ4: =+'Soja 1ª'!H26+'Soja 1ª'!H27+'Soja 1ª'!H28+'Soja 1ª'!H29+'Soja 1ª'!H30+'Soja 1ª'!H35 -> 98.669 | BA4: =+'Soja 1ª'!I26+'Soja 1ª'!I27+'Soja 1ª'!I28+'Soja 1ª'!I29+'Soja 1ª'!I30+'Soja 1ª'!I35 -> 0 | BB4: =+'Soja 1ª'!J26+'Soja 1ª'!J27+'Soja 1ª'!J28+'Soja 1ª'!J29+'Soja 1ª'!J30+'Soja 1ª'!J35 -> 98.669 | BC4: =+'Soja 1ª'!K26+'Soja 1ª'!K27+'Soja 1ª'!K28+'Soja 1ª'!K29+'Soja 1ª'!K30+'Soja 1ª'!K35 -> 98.669 | BD4: =+'Soja 1ª'!L26+'Soja 1ª'!L27+'Soja 1ª'!L28+'Soja 1ª'!L29+'Soja 1ª'!L30+'Soja 1ª'!L35 -> 0 | BE4: =+'Soja 1ª'!M26+'Soja 1ª'!M27+'Soja 1ª'!M28+'Soja 1ª'!M29+'Soja 1ª'!M30+'Soja 1ª'!M35 -> 98.669 | BF4: =+'Soja 1ª'!N26+'Soja 1ª'!N27+'Soja 1ª'!N28+'Soja 1ª'!N29+'Soja 1ª'!N30+'Soja 1ª'!N35 -> 98.669 | BG4: =+'Soja 1ª'!O26+'Soja 1ª'!O27+'Soja 1ª'!O28+'Soja 1ª'!O29+'Soja 1ª'!O30+'Soja 1ª'!O35 -> 0 | BH4: =+'Soja 1ª'!P26+'Soja 1ª'!P27+'Soja 1ª'!P28+'Soja 1ª'!P29+'Soja 1ª'!P30+'Soja 1ª'!P35 -> 0 | BI4: =+'Soja 1ª'!Q26+'Soja 1ª'!Q27+'Soja 1ª'!Q28+'Soja 1ª'!Q29+'Soja 1ª'!Q30+'Soja 1ª'!Q35 -> 98.669 | BJ4: =+'Soja 1ª'!R26+'Soja 1ª'!R27+'Soja 1ª'!R28+'Soja 1ª'!R29+'Soja 1ª'!R30+'Soja 1ª'!R35 -> 0 | BK4: =+'Soja 1ª'!S26+'Soja 1ª'!S27+'Soja 1ª'!S28+'Soja 1ª'!S29+'Soja 1ª'!S30+'Soja 1ª'!S35 -> 98.669 | BL4: =+'Soja 1ª'!T26+'Soja 1ª'!T27+'Soja 1ª'!T28+'Soja 1ª'!T29+'Soja 1ª'!T30+'Soja 1ª'!T35 -> 98.669 | BM4: =+'Soja 1ª'!U26+'Soja 1ª'!U27+'Soja 1ª'!U28+'Soja 1ª'!U29+'Soja 1ª'!U30+'Soja 1ª'!U35 -> 98.669 | BN4: =+'Soja 1ª'!V26+'Soja 1ª'!V27+'Soja 1ª'!V28+'Soja 1ª'!V29+'Soja 1ª'!V30+'Soja 1ª'!V35 -> 98.669 | BO4: =+'Soja 1ª'!W26+'Soja 1ª'!W27+'Soja 1ª'!W28+'Soja 1ª'!W29+'Soja 1ª'!W30+'Soja 1ª'!W35 -> 0 | BP4: =+'Soja 1ª'!X26+'Soja 1ª'!X27+'Soja 1ª'!X28+'Soja 1ª'!X29+'Soja 1ª'!X30+'Soja 1ª'!X35 -> 0 | BQ4: =+'Soja 1ª'!Y26+'Soja 1ª'!Y27+'Soja 1ª'!Y28+'Soja 1ª'!Y29+'Soja 1ª'!Y30+'Soja 1ª'!Y35 -> 98.669 | BR4: =+'Soja 1ª'!Z26+'Soja 1ª'!Z27+'Soja 1ª'!Z28+'Soja 1ª'!Z29+'Soja 1ª'!Z30+'Soja 1ª'!Z35 -> 98.669 | BS4: =+'Soja 1ª'!AA26+'Soja 1ª'!AA27+'Soja 1ª'!AA28+'Soja 1ª'!AA29+'Soja 1ª'!AA30+'Soja 1ª'!AA35 -> 0 | BT4: =+'Soja 1ª'!AB26+'Soja 1ª'!AB27+'Soja 1ª'!AB28+'Soja 1ª'!AB29+'Soja 1ª'!AB30+'Soja 1ª'!AB35 -> 98.669 | BU4: =+'Soja 1ª'!AC26+'Soja 1ª'!AC27+'Soja 1ª'!AC28+'Soja 1ª'!AC29+'Soja 1ª'!AC30+'Soja 1ª'!AC35 -> 98.669 | BV4: =+'Soja 1ª'!AD26+'Soja 1ª'!AD27+'Soja 1ª'!AD28+'Soja 1ª'!AD29+'Soja 1ª'!AD30+'Soja 1ª'!AD35 -> 98.669 | BW4: =+'Soja 1ª'!AE26+'Soja 1ª'!AE27+'Soja 1ª'!AE28+'Soja 1ª'!AE29+'Soja 1ª'!AE30+'Soja 1ª'!AE35 -> 98.669 | BX4: =+'Soja 1ª'!AF26+'Soja 1ª'!AF27+'Soja 1ª'!AF28+'Soja 1ª'!AF29+'Soja 1ª'!AF30+'Soja 1ª'!AF35 -> 98.47645941
A5: Gral. San Martín | B5: 30.04063137 | C5: 30.68452627 | D5: 24.08620725 | E5: 81.70168665 | F5: 81.34002992 | G5: 55.69773426 | K5: =+K6-2 -> 12 | L5: =+L6-(L7-L6) -> 9192 | M5: 50 | N5: 12150 | O5: =+O6-2 -> 10 | P5: 7283 | Q5: 24 | R5: 6417.564052 | V5: Depto | W5: =+'Calculadora BCCBA'!$M$6 -> 32.55249732 | Y5: Depto | Z5: =+'Calculadora BCCBA'!M7 -> 26.42368508 | AB5: Depto | AC5: =+'Calculadora BCCBA'!M5 -> 29.78213336 | AE5: Depto | AF5: =+'Calculadora BCCBA'!M8 -> 87.2092179 | AH5: Depto | AI5: =+'Calculadora BCCBA'!M9 -> 78.36714459 | AK5: Depto | AL5: =+'Calculadora BCCBA'!M10 -> 52.3298805 | AP5: Gral. San Martín | AQ5: 11.4 | AU5: Fertilizantes | AX5: =+'Soja 1ª'!F33+'Soja 1ª'!F34 -> 75 | AY5: =+'Soja 1ª'!G33+'Soja 1ª'!G34 -> 0 | AZ5: =+'Soja 1ª'!H33+'Soja 1ª'!H34 -> 75 | BA5: =+'Soja 1ª'!I33+'Soja 1ª'!I34 -> 0 | BB5: =+'Soja 1ª'!J33+'Soja 1ª'!J34 -> 75 | BC5: =+'Soja 1ª'!K33+'Soja 1ª'!K34 -> 75 | BD5: =+'Soja 1ª'!L33+'Soja 1ª'!L34 -> 0 | BE5: =+'Soja 1ª'!M33+'Soja 1ª'!M34 -> 75 | BF5: =+'Soja 1ª'!N33+'Soja 1ª'!N34 -> 75 | BG5: =+'Soja 1ª'!O33+'Soja 1ª'!O34 -> 0 | BH5: =+'Soja 1ª'!P33+'Soja 1ª'!P34 -> 0 | BI5: =+'Soja 1ª'!Q33+'Soja 1ª'!Q34 -> 75 | BJ5: =+'Soja 1ª'!R33+'Soja 1ª'!R34 -> 0 | BK5: =+'Soja 1ª'!S33+'Soja 1ª'!S34 -> 75 | BL5: =+'Soja 1ª'!T33+'Soja 1ª'!T34 -> 75 | BM5: =+'Soja 1ª'!U33+'Soja 1ª'!U34 -> 75 | BN5: =+'Soja 1ª'!V33+'Soja 1ª'!V34 -> 75 | BO5: =+'Soja 1ª'!W33+'Soja 1ª'!W34 -> 0 | BP5: =+'Soja 1ª'!X33+'Soja 1ª'!X34 -> 0 | BQ5: =+'Soja 1ª'!Y33+'Soja 1ª'!Y34 -> 75 | BR5: =+'Soja 1ª'!Z33+'Soja 1ª'!Z34 -> 75 | BS5: =+'Soja 1ª'!AA33+'Soja 1ª'!AA34 -> 0 | BT5: =+'Soja 1ª'!AB33+'Soja 1ª'!AB34 -> 75 | BU5: =+'Soja 1ª'!AC33+'Soja 1ª'!AC34 -> 75 | BV5: =+'Soja 1ª'!AD33+'Soja 1ª'!AD34 -> 75 | BW5: =+'Soja 1ª'!AE33+'Soja 1ª'!AE34 -> 75 | BX5: =+'Soja 1ª'!AF33+'Soja 1ª'!AF34 -> 74.7488601
A6: Juárez Celman | B6: 30.31066726 | C6: 31.97038181 | D6: 24.53349569 | E6: 78.7198496 | F6: 83.06841751 | G6: 55.03014141 | K6: 14 | L6: 9192 | M6: 54 | N6: 12423 | O6: =+O7-2 -> 12 | P6: 7283 | Q6: =+Q7-3 -> 27 | R6: =+R7*(R7/R8) -> 6677.997649 | AP6: Juárez Celman | AQ6: 11.5 | AU6: Insecticidas | AX6: =+'Soja 1ª'!F36+'Soja 1ª'!F37+'Soja 1ª'!F38 -> 18.43525 | AY6: =+'Soja 1ª'!G36+'Soja 1ª'!G37+'Soja 1ª'!G38 -> 0 | AZ6: =+'Soja 1ª'!H36+'Soja 1ª'!H37+'Soja 1ª'!H38 -> 18.43525 | BA6: =+'Soja 1ª'!I36+'Soja 1ª'!I37+'Soja 1ª'!I38 -> 0 | BB6: =+'Soja 1ª'!J36+'Soja 1ª'!J37+'Soja 1ª'!J38 -> 18.43525 | BC6: =+'Soja 1ª'!K36+'Soja 1ª'!K37+'Soja 1ª'!K38 -> 18.43525 | BD6: =+'Soja 1ª'!L36+'Soja 1ª'!L37+'Soja 1ª'!L38 -> 0 | BE6: =+'Soja 1ª'!M36+'Soja 1ª'!M37+'Soja 1ª'!M38 -> 18.43525 | BF6: =+'Soja 1ª'!N36+'Soja 1ª'!N37+'Soja 1ª'!N38 -> 18.43525 | BG6: =+'Soja 1ª'!O36+'Soja 1ª'!O37+'Soja 1ª'!O38 -> 0 | BH6: =+'Soja 1ª'!P36+'Soja 1ª'!P37+'Soja 1ª'!P38 -> 0 | BI6: =+'Soja 1ª'!Q36+'Soja 1ª'!Q37+'Soja 1ª'!Q38 -> 18.43525 | BJ6: =+'Soja 1ª'!R36+'Soja 1ª'!R37+'Soja 1ª'!R38 -> 0 | BK6: =+'Soja 1ª'!S36+'Soja 1ª'!S37+'Soja 1ª'!S38 -> 18.43525 | BL6: =+'Soja 1ª'!T36+'Soja 1ª'!T37+'Soja 1ª'!T38 -> 18.43525 | BM6: =+'Soja 1ª'!U36+'Soja 1ª'!U37+'Soja 1ª'!U38 -> 18.43525 | BN6: =+'Soja 1ª'!V36+'Soja 1ª'!V37+'Soja 1ª'!V38 -> 18.43525 | BO6: =+'Soja 1ª'!W36+'Soja 1ª'!W37+'Soja 1ª'!W38 -> 0 | BP6: =+'Soja 1ª'!X36+'Soja 1ª'!X37+'Soja 1ª'!X38 -> 0 | BQ6: =+'Soja 1ª'!Y36+'Soja 1ª'!Y37+'Soja 1ª'!Y38 -> 18.43525 | BR6: =+'Soja 1ª'!Z36+'Soja 1ª'!Z37+'Soja 1ª'!Z38 -> 18.43525 | BS6: =+'Soja 1ª'!AA36+'Soja 1ª'!AA37+'Soja 1ª'!AA38 -> 0 | BT6: =+'Soja 1ª'!AB36+'Soja 1ª'!AB37+'Soja 1ª'!AB38 -> 18.43525 | BU6: =+'Soja 1ª'!AC36+'Soja 1ª'!AC37+'Soja 1ª'!AC38 -> 18.43525 | BV6: =+'Soja 1ª'!AD36+'Soja 1ª'!AD37+'Soja 1ª'!AD38 -> 18.43525 | BW6: =+'Soja 1ª'!AE36+'Soja 1ª'!AE37+'Soja 1ª'!AE38 -> 18.43525 | BX6: =+'Soja 1ª'!AF36+'Soja 1ª'!AF37+'Soja 1ª'!AF38 -> 18.43525
A7: Marcos Juárez | B7: 38.33062798 | C7: 40.93516672 | D7: 32.45520298 | E7: 109.9318111 | F7: 91.34110547 | G7: 51.67915329 | K7: 16 | L7: 9192 | M7: 58 | N7: 12709 | O7: =+O8-2 -> 14 | P7: 7283 | Q7: 30 | R7: 6949 | V7: Precios | W7: Depto | Y7: Precios | Z7: Depto | AB7: Precios | AC7: Depto | AE7: Precios | AF7: Depto | AH7: Precios | AI7: Depto | AK7: Precios | AL7: Depto | AP7: Marcos Juárez | AQ7: 17.3 | AU7: Fungicidas | AX7: =+'Soja 1ª'!F39 -> 11.25 | AY7: =+'Soja 1ª'!G39 -> 0 | AZ7: =+'Soja 1ª'!H39 -> 11.25 | BA7: =+'Soja 1ª'!I39 -> 0 | BB7: =+'Soja 1ª'!J39 -> 11.25 | BC7: =+'Soja 1ª'!K39 -> 11.25 | BD7: =+'Soja 1ª'!L39 -> 0 | BE7: =+'Soja 1ª'!M39 -> 11.25 | BF7: =+'Soja 1ª'!N39 -> 11.25 | BG7: =+'Soja 1ª'!O39 -> 0 | BH7: =+'Soja 1ª'!P39 -> 0 | BI7: =+'Soja 1ª'!Q39 -> 11.25 | BJ7: =+'Soja 1ª'!R39 -> 0 | BK7: =+'Soja 1ª'!S39 -> 11.25 | BL7: =+'Soja 1ª'!T39 -> 11.25 | BM7: =+'Soja 1ª'!U39 -> 11.25 | BN7: =+'Soja 1ª'!V39 -> 11.25 | BO7: =+'Soja 1ª'!W39 -> 0 | BP7: =+'Soja 1ª'!X39 -> 0 | BQ7: =+'Soja 1ª'!Y39 -> 11.25 | BR7: =+'Soja 1ª'!Z39 -> 11.25 | BS7: =+'Soja 1ª'!AA39 -> 0 | BT7: =+'Soja 1ª'!AB39 -> 11.25 | BU7: =+'Soja 1ª'!AC39 -> 11.25 | BV7: =+'Soja 1ª'!AD39 -> 11.25 | BW7: =+'Soja 1ª'!AE39 -> 11.25 | BX7: =+'Soja 1ª'!AF39 -> 11.25
A8: Pte. R. Sáenz Peña | B8: 35.50466725 | C8: 33.65859937 | D8: 25.57836018 | E8: 82.6822226 | F8: 81.00467452 | G8: 47.6299683 | K8: 18 | L8: 9444 | M8: 62 | N8: 13008 | O8: 16 | P8: 7283 | Q8: 33 | R8: 7231 | V8: Inicial | W8: =IF(W3="","",VLOOKUP(W3,$K$3:$L$27,2,FALSE)) -> 11436 | Y8: Inicial | Z8: =IF(Z3="","",VLOOKUP(Z3,$K$3:$L$27,2,FALSE)) -> 10494 | AB8: Inicial | AC8: =IF(AC3="","",VLOOKUP(AC3,$O$3:$P$28,2,FALSE)) -> 7871 | AE8: Inicial | AF8: =IF(AF3="","",VLOOKUP(AF3,$M$3:$N$27,2,FALSE)) -> 15146 | AH8: Inicial | AI8: =IF(AI3="","",VLOOKUP(AI3,$M$3:$N$27,2,FALSE)) -> 14359 | AK8: Inicial | AL8: =IF(AL3="","",VLOOKUP(AL3,$Q$3:$R$28,2,FALSE)) -> 9086 | AP8: Pte. R. Sáenz Peña | AQ8: 12 | AU8: Curasemilla + Inoculante | AX8: =+'Soja 1ª'!F32 -> 5.92 | AY8: =+'Soja 1ª'!G32 -> 0 | AZ8: =+'Soja 1ª'!H32 -> 5.92 | BA8: =+'Soja 1ª'!I32 -> 0 | BB8: =+'Soja 1ª'!J32 -> 5.92 | BC8: =+'Soja 1ª'!K32 -> 5.92 | BD8: =+'Soja 1ª'!L32 -> 0 | BE8: =+'Soja 1ª'!M32 -> 5.92 | BF8: =+'Soja 1ª'!N32 -> 5.92 | BG8: =+'Soja 1ª'!O32 -> 0 | BH8: =+'Soja 1ª'!P32 -> 0 | BI8: =+'Soja 1ª'!Q32 -> 5.92 | BJ8: =+'Soja 1ª'!R32 -> 0 | BK8: =+'Soja 1ª'!S32 -> 5.92 | BL8: =+'Soja 1ª'!T32 -> 5.92 | BM8: =+'Soja 1ª'!U32 -> 5.92 | BN8: =+'Soja 1ª'!V32 -> 5.92 | BO8: =+'Soja 1ª'!W32 -> 0 | BP8: =+'Soja 1ª'!X32 -> 0 | BQ8: =+'Soja 1ª'!Y32 -> 5.92 | BR8: =+'Soja 1ª'!Z32 -> 5.92 | BS8: =+'Soja 1ª'!AA32 -> 0 | BT8: =+'Soja 1ª'!AB32 -> 5.92 | BU8: =+'Soja 1ª'!AC32 -> 5.92 | BV8: =+'Soja 1ª'!AD32 -> 5.92 | BW8: =+'Soja 1ª'!AE32 -> 5.92 | BX8: =+'Soja 1ª'!AF32 -> 5.92
A9: Río Cuarto | B9: 25.28010216 | C9: 29.5863706 | D9: 22.99039767 | E9: 75.35969252 | F9: 74.70658392 | G9: 55.9456724 | K9: 20 | L9: 9696 | M9: 66 | N9: 13321 | O9: 18 | P9: 7283 | Q9: 36 | R9: 7536 | V9: Final | W9: =IF(W4="","",VLOOKUP(W4,$K$3:$L$27,2,FALSE)) -> 11788 | Y9: Final | Z9: =IF(Z4="","",VLOOKUP(Z4,$K$3:$L$27,2,FALSE)) -> 10790 | AB9: Final | AC9: =IF(AC4="","",VLOOKUP(AC4,$O$3:$P$28,2,FALSE)) -> 8033 | AE9: Final | AF9: =IF(AF4="","",VLOOKUP(AF4,$M$3:$N$27,2,FALSE)) -> 15573 | AH9: Final | AI9: =IF(AI4="","",VLOOKUP(AI4,$M$3:$N$27,2,FALSE)) -> 14742 | AK9: Final | AL9: =IF(AL4="","",VLOOKUP(AL4,$Q$3:$R$28,2,FALSE)) -> 9574 | AP9: Río Cuarto | AQ9: 10.7 | AU9: Semillas | AX9: =+'Soja 1ª'!F31 -> 64 | AY9: =+'Soja 1ª'!G31 -> 0 | AZ9: =+'Soja 1ª'!H31 -> 64 | BA9: =+'Soja 1ª'!I31 -> 0 | BB9: =+'Soja 1ª'!J31 -> 64 | BC9: =+'Soja 1ª'!K31 -> 64 | BD9: =+'Soja 1ª'!L31 -> 0 | BE9: =+'Soja 1ª'!M31 -> 64 | BF9: =+'Soja 1ª'!N31 -> 64 | BG9: =+'Soja 1ª'!O31 -> 0 | BH9: =+'Soja 1ª'!P31 -> 0 | BI9: =+'Soja 1ª'!Q31 -> 64 | BJ9: =+'Soja 1ª'!R31 -> 0 | BK9: =+'Soja 1ª'!S31 -> 64 | BL9: =+'Soja 1ª'!T31 -> 64 | BM9: =+'Soja 1ª'!U31 -> 64 | BN9: =+'Soja 1ª'!V31 -> 64 | BO9: =+'Soja 1ª'!W31 -> 0 | BP9: =+'Soja 1ª'!X31 -> 0 | BQ9: =+'Soja 1ª'!Y31 -> 64 | BR9: =+'Soja 1ª'!Z31 -> 64 | BS9: =+'Soja 1ª'!AA31 -> 0 | BT9: =+'Soja 1ª'!AB31 -> 64 | BU9: =+'Soja 1ª'!AC31 -> 64 | BV9: =+'Soja 1ª'!AD31 -> 64 | BW9: =+'Soja 1ª'!AE31 -> 64 | BX9: =+'Soja 1ª'!AF31 -> 63.78569395
A10: Río Primero | B10: 20.54717849 | C10: 29.52749598 | D10: 24.51303964 | E10: 72.0836144 | F10: 74.85887092 | G10: 49.15264761 | K10: 22 | L10: 9948 | M10: 70 | N10: 13650 | O10: 20 | P10: 7283 | Q10: 39 | R10: 7869 | V10: Depto | W10: =IF(W3="","",(W9-W8)/2*(W5-W3)+W8) -> 11533.23953 | Y10: Depto | Z10: =IF(Z3="","",(Z9-Z8)/2*(Z5-Z3)+Z8) -> 10556.70539 | AB10: Depto | AC10: =IF(AC3="","",(AC9-AC8)/2*(AC5-AC3)+AC8) -> 8015.352802 | AE10: Depto | AF10: =IF(AF3="","",(AF9-AF8)/2*(AF5-AF3)+AF8) -> 15404.16802 | AH10: Depto | AI10: =IF(AI3="","",(AI9-AI8)/2*(AI5-AI3)+AI8) -> 14429.30819 | AK10: Depto | AL10: =IF(AL3="","",(AL9-AL8)/2*(AL5-AL3)+AL8) -> 9410.490841 | AP10: Río Primero | AQ10: 10 | AU10: Total | AX10: =+SUM(AX2:AX9) -> 456.7757802 | AY10: 0 | AZ10: 456.7757802 | BA10: 0 | BB10: 456.7757802 | BC10: 456.7757802 | BD10: 0 | BE10: 456.7757802 | BF10: 456.7757802 | BG10: 0 | BH10: 0 | BI10: 456.7757802 | BJ10: 0 | BK10: 456.7757802 | BL10: 456.7757802 | BM10: 456.7757802 | BN10: 456.7757802 | BO10: 0 | BP10: 0 | BQ10: 456.7757802 | BR10: 456.7757802 | BS10: 0 | BT10: 456.7757802 | BU10: 456.7757802 | BV10: 456.7757802 | BW10: 456.7757802 | BX10: 455.9490276
A11: Río Seco | B11: 21.1601427 | C11: 30.09339665 | D11: 25.83647943 | E11: 69.21233363 | F11: 75.06239046 | G11: 48.89177426 | K11: 24 | L11: 10240 | M11: 74 | N11: 13996 | O11: 22 | P11: 7422 | Q11: 42 | R11: 8053 | AP11: Río Seco | AQ11: 9.8
A12: Río Segundo | B12: 23.85394594 | C12: 30.32445888 | D12: 25.47151472 | E12: 76.12513026 | F12: 82.62540114 | G12: 52.42377407 | K12: 26 | L12: 10494 | M12: 78 | N12: 14359 | O12: 24 | P12: 7566 | Q12: 45 | R12: 8338 | AP12: Río Segundo | AQ12: 10.5 | AU12: Opciones avanzadas (completado por el usuario) | AV12: Mes de actualiz. | AW12: Cantidades | AX12: Calamuchita | AY12: Capital | AZ12: Colón | BA12: Cruz del Eje | BB12: Gral. Roca | BC12: Gral. San Martín | BD12: Ischilin | BE12: Juárez Celman | BF12: Marcos Juárez | BG12: Minas | BH12: Pocho | BI12: Pte. R. Sáenz Peña | BJ12: Punilla | BK12: Río Cuarto | BL12: Río Primero | BM12: Río Seco | BN12: Río Segundo | BO12: San Alberto | BP12: San Javier | BQ12: San Justo | BR12: Santa María | BS12: Sobremonte | BT12: Tercero Arriba | BU12: Totoral | BV12: Tulumba | BW12: Unión | BX12: PROVINCIA
A13: San Justo | B13: 24.86489724 | C13: 33.91031111 | D13: 28.42215247 | E13: 76.8310727 | F13: 77.29017051 | G13: 52.55354116 | K13: 28 | L13: 10790 | M13: 82 | N13: 14742 | O13: 26 | P13: 7715 | Q13: 48 | R13: 8748 | AP13: San Justo | AQ13: 11 | AU13: Servicios de Labranza | AV13: Estos datos son los ingresados en opciones avanzadas | AW13: TRIGO | AX13: =+SUM('Trigo + Soja 2ª'!F22:F24,'Trigo + Soja 2ª'!F37) -> 75.81 | AY13: =+SUM('Trigo + Soja 2ª'!G22:G24,'Trigo + Soja 2ª'!G37) -> 0 | AZ13: =+SUM('Trigo + Soja 2ª'!H22:H24,'Trigo + Soja 2ª'!H37) -> 75.81 | BA13: =+SUM('Trigo + Soja 2ª'!I22:I24,'Trigo + Soja 2ª'!I37) -> 0 | BB13: =+SUM('Trigo + Soja 2ª'!J22:J24,'Trigo + Soja 2ª'!J37) -> 75.81 | BC13: =+SUM('Trigo + Soja 2ª'!K22:K24,'Trigo + Soja 2ª'!K37) -> 75.81 | BD13: =+SUM('Trigo + Soja 2ª'!L22:L24,'Trigo + Soja 2ª'!L37) -> 0 | BE13: =+SUM('Trigo + Soja 2ª'!M22:M24,'Trigo + Soja 2ª'!M37) -> 75.81 | BF13: =+SUM('Trigo + Soja 2ª'!N22:N24,'Trigo + Soja 2ª'!N37) -> 75.81 | BG13: =+SUM('Trigo + Soja 2ª'!O22:O24,'Trigo + Soja 2ª'!O37) -> 0 | BH13: =+SUM('Trigo + Soja 2ª'!P22:P24,'Trigo + Soja 2ª'!P37) -> 0 | BI13: =+SUM('Trigo + Soja 2ª'!Q22:Q24,'Trigo + Soja 2ª'!Q37) -> 75.81 | BJ13: =+SUM('Trigo + Soja 2ª'!R22:R24,'Trigo + Soja 2ª'!R37) -> 0 | BK13: =+SUM('Trigo + Soja 2ª'!S22:S24,'Trigo + Soja 2ª'!S37) -> 75.81 | BL13: =+SUM('Trigo + Soja 2ª'!T22:T24,'Trigo + Soja 2ª'!T37) -> 75.81 | BM13: =+SUM('Trigo + Soja 2ª'!U22:U24,'Trigo + Soja 2ª'!U37) -> 75.81 | BN13: =+SUM('Trigo + Soja 2ª'!V22:V24,'Trigo + Soja 2ª'!V37) -> 75.81 | BO13: =+SUM('Trigo + Soja 2ª'!W22:W24,'Trigo + Soja 2ª'!W37) -> 0 | BP13: =+SUM('Trigo + Soja 2ª'!X22:X24,'Trigo + Soja 2ª'!X37) -> 0 | BQ13: =+SUM('Trigo + Soja 2ª'!Y22:Y24,'Trigo + Soja 2ª'!Y37) -> 75.81 | BR13: =+SUM('Trigo + Soja 2ª'!Z22:Z24,'Trigo + Soja 2ª'!Z37) -> 75.81 | BS13: =+SUM('Trigo + Soja 2ª'!AA22:AA24,'Trigo + Soja 2ª'!AA37) -> 0 | BT13: =+SUM('Trigo + Soja 2ª'!AB22:AB24,'Trigo + Soja 2ª'!AB37) -> 75.81 | BU13: =+SUM('Trigo + Soja 2ª'!AC22:AC24,'Trigo + Soja 2ª'!AC37) -> 75.81 | BV13: =+SUM('Trigo + Soja 2ª'!AD22:AD24,'Trigo + Soja 2ª'!AD37) -> 75.81 | BW13: =+SUM('Trigo + Soja 2ª'!AE22:AE24,'Trigo + Soja 2ª'!AE37) -> 75.81 | BX13: =+SUM('Trigo + Soja 2ª'!AF22:AF24,'Trigo + Soja 2ª'!AF37) -> 75.66913557
A14: Santa María | B14: 21.07303746 | C14: 29.3057573 | D14: 24.26701385 | E14: 72.35591235 | F14: 85.63754398 | G14: 60.40491707 | K14: 30 | L14: 11104 | M14: 86 | N14: 15146 | O14: 28 | P14: 7871 | Q14: 51 | R14: 9086 | AP14: Santa María | AQ14: 10.8 | AU14: Servicios de Cosecha | AX14: =+'Trigo + Soja 2ª'!F39 -> 77.15810637 | AY14: =+'Trigo + Soja 2ª'!G39 -> 0 | AZ14: =+'Trigo + Soja 2ª'!H39 -> 77.15810637 | BA14: =+'Trigo + Soja 2ª'!I39 -> 0 | BB14: =+'Trigo + Soja 2ª'!J39 -> 77.15810637 | BC14: =+'Trigo + Soja 2ª'!K39 -> 77.15810637 | BD14: =+'Trigo + Soja 2ª'!L39 -> 0 | BE14: =+'Trigo + Soja 2ª'!M39 -> 77.15810637 | BF14: =+'Trigo + Soja 2ª'!N39 -> 77.15810637 | BG14: =+'Trigo + Soja 2ª'!O39 -> 0 | BH14: =+'Trigo + Soja 2ª'!P39 -> 0 | BI14: =+'Trigo + Soja 2ª'!Q39 -> 77.15810637 | BJ14: =+'Trigo + Soja 2ª'!R39 -> 0 | BK14: =+'Trigo + Soja 2ª'!S39 -> 77.15810637 | BL14: =+'Trigo + Soja 2ª'!T39 -> 77.15810637 | BM14: =+'Trigo + Soja 2ª'!U39 -> 77.15810637 | BN14: =+'Trigo + Soja 2ª'!V39 -> 77.15810637 | BO14: =+'Trigo + Soja 2ª'!W39 -> 0 | BP14: =+'Trigo + Soja 2ª'!X39 -> 0 | BQ14: =+'Trigo + Soja 2ª'!Y39 -> 77.15810637 | BR14: =+'Trigo + Soja 2ª'!Z39 -> 77.15810637 | BS14: =+'Trigo + Soja 2ª'!AA39 -> 0 | BT14: =+'Trigo + Soja 2ª'!AB39 -> 77.15810637 | BU14: =+'Trigo + Soja 2ª'!AC39 -> 77.15810637 | BV14: =+'Trigo + Soja 2ª'!AD39 -> 77.15810637 | BW14: =+'Trigo + Soja 2ª'!AE39 -> 77.15810637 | BX14: =+'Trigo + Soja 2ª'!AF39 -> 77.15810637
A15: Tercero Arriba | B15: 25.38435286 | C15: 29.64362703 | D15: 24.46715692 | E15: 77.70820552 | F15: 81.0845021 | G15: 56.32122395 | K15: 32 | L15: 11436 | M15: 90 | N15: 15573 | O15: 30 | P15: 8033 | Q15: 54 | R15: 9574 | AP15: Tercero Arriba | AQ15: 10.3 | AU15: Herbicida | AX15: =+SUM('Trigo + Soja 2ª'!F25:F27,'Trigo + Soja 2ª'!F32:F33) -> 25.3794 | AY15: =+SUM('Trigo + Soja 2ª'!G25:G27,'Trigo + Soja 2ª'!G32:G33) -> 0 | AZ15: =+SUM('Trigo + Soja 2ª'!H25:H27,'Trigo + Soja 2ª'!H32:H33) -> 25.3794 | BA15: =+SUM('Trigo + Soja 2ª'!I25:I27,'Trigo + Soja 2ª'!I32:I33) -> 0 | BB15: =+SUM('Trigo + Soja 2ª'!J25:J27,'Trigo + Soja 2ª'!J32:J33) -> 25.3794 | BC15: =+SUM('Trigo + Soja 2ª'!K25:K27,'Trigo + Soja 2ª'!K32:K33) -> 25.3794 | BD15: =+SUM('Trigo + Soja 2ª'!L25:L27,'Trigo + Soja 2ª'!L32:L33) -> 0 | BE15: =+SUM('Trigo + Soja 2ª'!M25:M27,'Trigo + Soja 2ª'!M32:M33) -> 25.3794 | BF15: =+SUM('Trigo + Soja 2ª'!N25:N27,'Trigo + Soja 2ª'!N32:N33) -> 25.3794 | BG15: =+SUM('Trigo + Soja 2ª'!O25:O27,'Trigo + Soja 2ª'!O32:O33) -> 0 | BH15: =+SUM('Trigo + Soja 2ª'!P25:P27,'Trigo + Soja 2ª'!P32:P33) -> 0 | BI15: =+SUM('Trigo + Soja 2ª'!Q25:Q27,'Trigo + Soja 2ª'!Q32:Q33) -> 25.3794 | BJ15: =+SUM('Trigo + Soja 2ª'!R25:R27,'Trigo + Soja 2ª'!R32:R33) -> 0 | BK15: =+SUM('Trigo + Soja 2ª'!S25:S27,'Trigo + Soja 2ª'!S32:S33) -> 25.3794 | BL15: =+SUM('Trigo + Soja 2ª'!T25:T27,'Trigo + Soja 2ª'!T32:T33) -> 25.3794 | BM15: =+SUM('Trigo + Soja 2ª'!U25:U27,'Trigo + Soja 2ª'!U32:U33) -> 25.3794 | BN15: =+SUM('Trigo + Soja 2ª'!V25:V27,'Trigo + Soja 2ª'!V32:V33) -> 25.3794 | BO15: =+SUM('Trigo + Soja 2ª'!W25:W27,'Trigo + Soja 2ª'!W32:W33) -> 0 | BP15: =+SUM('Trigo + Soja 2ª'!X25:X27,'Trigo + Soja 2ª'!X32:X33) -> 0 | BQ15: =+SUM('Trigo + Soja 2ª'!Y25:Y27,'Trigo + Soja 2ª'!Y32:Y33) -> 25.3794 | BR15: =+SUM('Trigo + Soja 2ª'!Z25:Z27,'Trigo + Soja 2ª'!Z32:Z33) -> 25.3794 | BS15: =+SUM('Trigo + Soja 2ª'!AA25:AA27,'Trigo + Soja 2ª'!AA32:AA33) -> 0 | BT15: =+SUM('Trigo + Soja 2ª'!AB25:AB27,'Trigo + Soja 2ª'!AB32:AB33) -> 25.3794 | BU15: =+SUM('Trigo + Soja 2ª'!AC25:AC27,'Trigo + Soja 2ª'!AC32:AC33) -> 25.3794 | BV15: =+SUM('Trigo + Soja 2ª'!AD25:AD27,'Trigo + Soja 2ª'!AD32:AD33) -> 25.3794 | BW15: =+SUM('Trigo + Soja 2ª'!AE25:AE27,'Trigo + Soja 2ª'!AE32:AE33) -> 25.3794 | BX15: =+SUM('Trigo + Soja 2ª'!AF25:AF27,'Trigo + Soja 2ª'!AF32:AF33) -> 25.3794
A16: Totoral | B16: 25.76260203 | C16: 29.96648606 | D16: 26.61643722 | E16: 77.87755212 | F16: 77.80903093 | G16: 53.13182764 | K16: 34 | L16: 11788 | M16: 94 | N16: 16024 | O16: 32 | P16: 8202 | Q16: 57 | R16: 9980 | AP16: Totoral | AQ16: 10.2 | AU16: Fertilizantes | AX16: =+SUM('Trigo + Soja 2ª'!F30:F31) -> 144.1795489 | AY16: =+SUM('Trigo + Soja 2ª'!G30:G31) -> 0 | AZ16: =+SUM('Trigo + Soja 2ª'!H30:H31) -> 98.92627885 | BA16: =+SUM('Trigo + Soja 2ª'!I30:I31) -> 0 | BB16: =+SUM('Trigo + Soja 2ª'!J30:J31) -> 140.353762 | BC16: =+SUM('Trigo + Soja 2ª'!K30:K31) -> 160.9896507 | BD16: =+SUM('Trigo + Soja 2ª'!L30:L31) -> 0 | BE16: =+SUM('Trigo + Soja 2ª'!M30:M31) -> 259.5544958 | BF16: =+SUM('Trigo + Soja 2ª'!N30:N31) -> 258.908923 | BG16: =+SUM('Trigo + Soja 2ª'!O30:O31) -> 0 | BH16: =+SUM('Trigo + Soja 2ª'!P30:P31) -> 0 | BI16: =+SUM('Trigo + Soja 2ª'!Q30:Q31) -> 159.0182342 | BJ16: =+SUM('Trigo + Soja 2ª'!R30:R31) -> 0 | BK16: =+SUM('Trigo + Soja 2ª'!S30:S31) -> 186.0585327 | BL16: =+SUM('Trigo + Soja 2ª'!T30:T31) -> 57.09189576 | BM16: =+SUM('Trigo + Soja 2ª'!U30:U31) -> 53.75978261 | BN16: =+SUM('Trigo + Soja 2ª'!V30:V31) -> 127.8096274 | BO16: =+SUM('Trigo + Soja 2ª'!W30:W31) -> 0 | BP16: =+SUM('Trigo + Soja 2ª'!X30:X31) -> 0 | BQ16: =+SUM('Trigo + Soja 2ª'!Y30:Y31) -> 108.5981536 | BR16: =+SUM('Trigo + Soja 2ª'!Z30:Z31) -> 83.25765467 | BS16: =+SUM('Trigo + Soja 2ª'!AA30:AA31) -> 0 | BT16: =+SUM('Trigo + Soja 2ª'!AB30:AB31) -> 123.2643531 | BU16: =+SUM('Trigo + Soja 2ª'!AC30:AC31) -> 104.9591101 | BV16: =+SUM('Trigo + Soja 2ª'!AD30:AD31) -> 58.83921328 | BW16: =+SUM('Trigo + Soja 2ª'!AE30:AE31) -> 251.1343108 | BX16: =+SUM('Trigo + Soja 2ª'!AF30:AF31) -> 161.0878997
A17: Tulumba | B17: 20.333804 | C17: 29.21630856 | D17: 23.94720612 | E17: 71.45757388 | F17: 78.90809819 | G17: 48.07253606 | K17: 36 | L17: 12163 | M17: 98 | N17: 16502 | O17: 34 | P17: 8378 | Q17: 60 | R17: 10423 | AP17: Tulumba | AQ17: 9.8 | AU17: Insecticidas | AX17: =+SUM('Trigo + Soja 2ª'!F35) -> 1.39725 | AY17: =+SUM('Trigo + Soja 2ª'!G35) -> 0 | AZ17: =+SUM('Trigo + Soja 2ª'!H35) -> 1.39725 | BA17: =+SUM('Trigo + Soja 2ª'!I35) -> 0 | BB17: =+SUM('Trigo + Soja 2ª'!J35) -> 1.39725 | BC17: =+SUM('Trigo + Soja 2ª'!K35) -> 1.39725 | BD17: =+SUM('Trigo + Soja 2ª'!L35) -> 0 | BE17: =+SUM('Trigo + Soja 2ª'!M35) -> 1.39725 | BF17: =+SUM('Trigo + Soja 2ª'!N35) -> 1.39725 | BG17: =+SUM('Trigo + Soja 2ª'!O35) -> 0 | BH17: =+SUM('Trigo + Soja 2ª'!P35) -> 0 | BI17: =+SUM('Trigo + Soja 2ª'!Q35) -> 1.39725 | BJ17: =+SUM('Trigo + Soja 2ª'!R35) -> 0 | BK17: =+SUM('Trigo + Soja 2ª'!S35) -> 1.39725 | BL17: =+SUM('Trigo + Soja 2ª'!T35) -> 1.39725 | BM17: =+SUM('Trigo + Soja 2ª'!U35) -> 1.39725 | BN17: =+SUM('Trigo + Soja 2ª'!V35) -> 1.39725 | BO17: =+SUM('Trigo + Soja 2ª'!W35) -> 0 | BP17: =+SUM('Trigo + Soja 2ª'!X35) -> 0 | BQ17: =+SUM('Trigo + Soja 2ª'!Y35) -> 1.39725 | BR17: =+SUM('Trigo + Soja 2ª'!Z35) -> 1.39725 | BS17: =+SUM('Trigo + Soja 2ª'!AA35) -> 0 | BT17: =+SUM('Trigo + Soja 2ª'!AB35) -> 1.39725 | BU17: =+SUM('Trigo + Soja 2ª'!AC35) -> 1.39725 | BV17: =+SUM('Trigo + Soja 2ª'!AD35) -> 1.39725 | BW17: =+SUM('Trigo + Soja 2ª'!AE35) -> 1.39725 | BX17: =+SUM('Trigo + Soja 2ª'!AF35) -> 1.39725
A18: Unión | B18: 35.53784928 | C18: 36.99437672 | D18: 29.09053124 | E18: 98.1000247 | F18: 83.63520992 | G18: 51.67963635 | K18: 38 | L18: 12562 | M18: 102 | N18: 17010 | O18: 36 | P18: 8562 | Q18: 63 | R18: 11070 | AP18: Unión | AQ18: 14.3 | AU18: Fungicidas | AX18: =+SUM('Trigo + Soja 2ª'!F34) -> 15.832 | AY18: =+SUM('Trigo + Soja 2ª'!G34) -> 0 | AZ18: =+SUM('Trigo + Soja 2ª'!H34) -> 15.832 | BA18: =+SUM('Trigo + Soja 2ª'!I34) -> 0 | BB18: =+SUM('Trigo + Soja 2ª'!J34) -> 15.832 | BC18: =+SUM('Trigo + Soja 2ª'!K34) -> 15.832 | BD18: =+SUM('Trigo + Soja 2ª'!L34) -> 0 | BE18: =+SUM('Trigo + Soja 2ª'!M34) -> 15.832 | BF18: =+SUM('Trigo + Soja 2ª'!N34) -> 15.832 | BG18: =+SUM('Trigo + Soja 2ª'!O34) -> 0 | BH18: =+SUM('Trigo + Soja 2ª'!P34) -> 0 | BI18: =+SUM('Trigo + Soja 2ª'!Q34) -> 15.832 | BJ18: =+SUM('Trigo + Soja 2ª'!R34) -> 0 | BK18: =+SUM('Trigo + Soja 2ª'!S34) -> 15.832 | BL18: =+SUM('Trigo + Soja 2ª'!T34) -> 15.832 | BM18: =+SUM('Trigo + Soja 2ª'!U34) -> 15.832 | BN18: =+SUM('Trigo + Soja 2ª'!V34) -> 15.832 | BO18: =+SUM('Trigo + Soja 2ª'!W34) -> 0 | BP18: =+SUM('Trigo + Soja 2ª'!X34) -> 0 | BQ18: =+SUM('Trigo + Soja 2ª'!Y34) -> 15.832 | BR18: =+SUM('Trigo + Soja 2ª'!Z34) -> 15.832 | BS18: =+SUM('Trigo + Soja 2ª'!AA34) -> 0 | BT18: =+SUM('Trigo + Soja 2ª'!AB34) -> 15.832 | BU18: =+SUM('Trigo + Soja 2ª'!AC34) -> 15.832 | BV18: =+SUM('Trigo + Soja 2ª'!AD34) -> 15.832 | BW18: =+SUM('Trigo + Soja 2ª'!AE34) -> 15.832 | BX18: =+SUM('Trigo + Soja 2ª'!AF34) -> 15.832
A19: PROVINCIA | B19: 29.78213336 | C19: 32.55249732 | D19: 26.42368508 | E19: 87.2092179 | F19: 78.36714459 | G19: 52.3298805 | K19: 40 | L19: 12989 | M19: 106 | N19: 17550 | O19: 38 | P19: 8754 | Q19: 66 | R19: 11617 | V19: Departamento | W19: Distancia al puerto (Km) | AE19: Distancia al puerto (Km) | AF19: Costo del flete ($) | AP19: PROVINCIA | AQ19: 11.5 | AU19: Curasemilla + Inoculante | AX19: =+SUM('Trigo + Soja 2ª'!F29) -> 17.2032 | AY19: =+SUM('Trigo + Soja 2ª'!G29) -> 0 | AZ19: =+SUM('Trigo + Soja 2ª'!H29) -> 17.2032 | BA19: =+SUM('Trigo + Soja 2ª'!I29) -> 0 | BB19: =+SUM('Trigo + Soja 2ª'!J29) -> 17.2032 | BC19: =+SUM('Trigo + Soja 2ª'!K29) -> 17.2032 | BD19: =+SUM('Trigo + Soja 2ª'!L29) -> 0 | BE19: =+SUM('Trigo + Soja 2ª'!M29) -> 17.2032 | BF19: =+SUM('Trigo + Soja 2ª'!N29) -> 17.2032 | BG19: =+SUM('Trigo + Soja 2ª'!O29) -> 0 | BH19: =+SUM('Trigo + Soja 2ª'!P29) -> 0 | BI19: =+SUM('Trigo + Soja 2ª'!Q29) -> 17.2032 | BJ19: =+SUM('Trigo + Soja 2ª'!R29) -> 0 | BK19: =+SUM('Trigo + Soja 2ª'!S29) -> 17.2032 | BL19: =+SUM('Trigo + Soja 2ª'!T29) -> 17.2032 | BM19: =+SUM('Trigo + Soja 2ª'!U29) -> 17.2032 | BN19: =+SUM('Trigo + Soja 2ª'!V29) -> 17.2032 | BO19: =+SUM('Trigo + Soja 2ª'!W29) -> 0 | BP19: =+SUM('Trigo + Soja 2ª'!X29) -> 0 | BQ19: =+SUM('Trigo + Soja 2ª'!Y29) -> 17.2032 | BR19: =+SUM('Trigo + Soja 2ª'!Z29) -> 17.2032 | BS19: =+SUM('Trigo + Soja 2ª'!AA29) -> 0 | BT19: =+SUM('Trigo + Soja 2ª'!AB29) -> 17.2032 | BU19: =+SUM('Trigo + Soja 2ª'!AC29) -> 17.2032 | BV19: =+SUM('Trigo + Soja 2ª'!AD29) -> 17.2032 | BW19: =+SUM('Trigo + Soja 2ª'!AE29) -> 17.2032 | BX19: =+SUM('Trigo + Soja 2ª'!AF29) -> 17.2032
K20: 42 | L20: 13446 | M20: 110 | N20: 18125 | O20: 40 | P20: 8955 | Q20: 69 | R20: 12428 | AU20: Semillas | AX20: =+'Trigo + Soja 2ª'!F28 -> 81.2 | AY20: =+'Trigo + Soja 2ª'!G28 -> 0 | AZ20: =+'Trigo + Soja 2ª'!H28 -> 52.2 | BA20: =+'Trigo + Soja 2ª'!I28 -> 0 | BB20: =+'Trigo + Soja 2ª'!J28 -> 66.7 | BC20: =+'Trigo + Soja 2ª'!K28 -> 58 | BD20: =+'Trigo + Soja 2ª'!L28 -> 0 | BE20: =+'Trigo + Soja 2ª'!M28 -> 58 | BF20: =+'Trigo + Soja 2ª'!N28 -> 63.8 | BG20: =+'Trigo + Soja 2ª'!O28 -> 0 | BH20: =+'Trigo + Soja 2ª'!P28 -> 0 | BI20: =+'Trigo + Soja 2ª'!Q28 -> 66.7 | BJ20: =+'Trigo + Soja 2ª'!R28 -> 0 | BK20: =+'Trigo + Soja 2ª'!S28 -> 66.7 | BL20: =+'Trigo + Soja 2ª'!T28 -> 56.26 | BM20: =+'Trigo + Soja 2ª'!U28 -> 75.4 | BN20: =+'Trigo + Soja 2ª'!V28 -> 56.26 | BO20: =+'Trigo + Soja 2ª'!W28 -> 0 | BP20: =+'Trigo + Soja 2ª'!X28 -> 0 | BQ20: =+'Trigo + Soja 2ª'!Y28 -> 60.9 | BR20: =+'Trigo + Soja 2ª'!Z28 -> 81.2 | BS20: =+'Trigo + Soja 2ª'!AA28 -> 0 | BT20: =+'Trigo + Soja 2ª'!AB28 -> 78.3 | BU20: =+'Trigo + Soja 2ª'!AC28 -> 75.4 | BV20: =+'Trigo + Soja 2ª'!AD28 -> 72.5 | BW20: =+'Trigo + Soja 2ª'!AE28 -> 69.6 | BX20: =+'Trigo + Soja 2ª'!AF28 -> 63.28509476
K21: 44 | L21: 13936 | M21: 114 | N21: 18740 | O21: 42 | P21: 9165 | Q21: 72 | R21: 13121 | V21: Calamuchita | W21: 429 | AE21: 30 | AF21: 1172.52 | AU21: Total | AX21: =+SUM(AX13:AX20) -> 438.1595053 | AY21: =+SUM(AY13:AY20) -> 0 | AZ21: 363.9062352 | BA21: 0 | BB21: 419.8337184 | BC21: 431.769607 | BD21: 0 | BE21: 530.3344521 | BF21: 535.4888794 | BG21: 0 | BH21: 0 | BI21: 438.4981905 | BJ21: 0 | BK21: 465.5384891 | BL21: 326.1318521 | BM21: 341.939739 | BN21: 396.8495838 | BO21: 0 | BP21: 0 | BQ21: 382.27811 | BR21: 377.237611 | BS21: 0 | BT21: 414.3443094 | BU21: 393.1390665 | BV21: 344.1191696 | BW21: 533.5142671 | BX21: 437.0120864
K22: 46 | L22: 14463 | M22: 118 | N22: 19397 | O22: 44 | P22: 9386 | Q22: 75 | R22: 13897 | V22: Capital | W22: 398 | AE22: 35 | AF22: 1244.25
K23: 48 | L23: 15031 | M23: 122 | N23: 20103 | O23: 46 | P23: 9617 | Q23: 78 | R23: 15073 | V23: Colón | W23: 447 | AE23: =+AE22+5 -> 40 | AF23: 1322.68 | AU23: Opciones avanzadas (completado por el usuario) | AV23: Mes de actualiz. | AW23: Cantidades | AX23: Calamuchita | AY23: Capital | AZ23: Colón | BA23: Cruz del Eje | BB23: Gral. Roca | BC23: Gral. San Martín | BD23: Ischilin | BE23: Juárez Celman | BF23: Marcos Juárez | BG23: Minas | BH23: Pocho | BI23: Pte. R. Sáenz Peña | BJ23: Punilla | BK23: Río Cuarto | BL23: Río Primero | BM23: Río Seco | BN23: Río Segundo | BO23: San Alberto | BP23: San Javier | BQ23: San Justo | BR23: Santa María | BS23: Sobremonte | BT23: Tercero Arriba | BU23: Totoral | BV23: Tulumba | BW23: Unión | BX23: PROVINCIA
K24: 50 | L24: 15646 | M24: 126 | N24: 20861 | O24: 48 | P24: 9860 | Q24: 81 | R24: 16105 | V24: Cruz del Eje | W24: 536 | AE24: =+AE23+5 -> 45 | AF24: 1408.3 | AU24: Servicios de Labranza | AV24: Estos datos son los ingresados en opciones avanzadas | AW24: SOJA DE 2ª | AX24: =+SUM('Trigo + Soja 2ª'!F79:F80,'Trigo + Soja 2ª'!F92) -> 84.1 | AY24: =+SUM('Trigo + Soja 2ª'!G79:G80,'Trigo + Soja 2ª'!G92) -> 0 | AZ24: =+SUM('Trigo + Soja 2ª'!H79:H80,'Trigo + Soja 2ª'!H92) -> 84.1 | BA24: =+SUM('Trigo + Soja 2ª'!I79:I80,'Trigo + Soja 2ª'!I92) -> 0 | BB24: =+SUM('Trigo + Soja 2ª'!J79:J80,'Trigo + Soja 2ª'!J92) -> 84.1 | BC24: =+SUM('Trigo + Soja 2ª'!K79:K80,'Trigo + Soja 2ª'!K92) -> 84.1 | BD24: =+SUM('Trigo + Soja 2ª'!L79:L80,'Trigo + Soja 2ª'!L92) -> 0 | BE24: =+SUM('Trigo + Soja 2ª'!M79:M80,'Trigo + Soja 2ª'!M92) -> 84.1 | BF24: =+SUM('Trigo + Soja 2ª'!N79:N80,'Trigo + Soja 2ª'!N92) -> 84.1 | BG24: =+SUM('Trigo + Soja 2ª'!O79:O80,'Trigo + Soja 2ª'!O92) -> 0 | BH24: =+SUM('Trigo + Soja 2ª'!P79:P80,'Trigo + Soja 2ª'!P92) -> 0 | BI24: =+SUM('Trigo + Soja 2ª'!Q79:Q80,'Trigo + Soja 2ª'!Q92) -> 84.1 | BJ24: =+SUM('Trigo + Soja 2ª'!R79:R80,'Trigo + Soja 2ª'!R92) -> 0 | BK24: =+SUM('Trigo + Soja 2ª'!S79:S80,'Trigo + Soja 2ª'!S92) -> 84.1 | BL24: =+SUM('Trigo + Soja 2ª'!T79:T80,'Trigo + Soja 2ª'!T92) -> 84.1 | BM24: =+SUM('Trigo + Soja 2ª'!U79:U80,'Trigo + Soja 2ª'!U92) -> 84.1 | BN24: =+SUM('Trigo + Soja 2ª'!V79:V80,'Trigo + Soja 2ª'!V92) -> 84.1 | BO24: =+SUM('Trigo + Soja 2ª'!W79:W80,'Trigo + Soja 2ª'!W92) -> 0 | BP24: =+SUM('Trigo + Soja 2ª'!X79:X80,'Trigo + Soja 2ª'!X92) -> 0 | BQ24: =+SUM('Trigo + Soja 2ª'!Y79:Y80,'Trigo + Soja 2ª'!Y92) -> 84.1 | BR24: =+SUM('Trigo + Soja 2ª'!Z79:Z80,'Trigo + Soja 2ª'!Z92) -> 84.1 | BS24: =+SUM('Trigo + Soja 2ª'!AA79:AA80,'Trigo + Soja 2ª'!AA92) -> 0 | BT24: =+SUM('Trigo + Soja 2ª'!AB79:AB80,'Trigo + Soja 2ª'!AB92) -> 84.1 | BU24: =+SUM('Trigo + Soja 2ª'!AC79:AC80,'Trigo + Soja 2ª'!AC92) -> 84.1 | BV24: =+SUM('Trigo + Soja 2ª'!AD79:AD80,'Trigo + Soja 2ª'!AD92) -> 84.1 | BW24: =+SUM('Trigo + Soja 2ª'!AE79:AE80,'Trigo + Soja 2ª'!AE92) -> 84.1 | BX24: =+SUM('Trigo + Soja 2ª'!AF79:AF80,'Trigo + Soja 2ª'!AF92) -> 83.9687663
K25: =+K24+2 -> 52 | L25: =+L24+L24-L23+20 -> 16281 | M25: 130 | N25: 21679 | O25: 50 | P25: 10115 | Q25: =+Q24+3 -> 84 | R25: =+R24*(R24/R23) -> 17207.65773 | V25: Gral. Roca | W25: 435 | AE25: 50 | AF25: 1496.73 | AU25: Servicios de Cosecha | AX25: =+'Trigo + Soja 2ª'!F94 -> 55.22469881 | AY25: =+'Trigo + Soja 2ª'!G94 -> 0 | AZ25: =+'Trigo + Soja 2ª'!H94 -> 72.73427509 | BA25: =+'Trigo + Soja 2ª'!I94 -> 0 | BB25: =+'Trigo + Soja 2ª'!J94 -> 72.73427509 | BC25: =+'Trigo + Soja 2ª'!K94 -> 72.73427509 | BD25: =+'Trigo + Soja 2ª'!L94 -> 0 | BE25: =+'Trigo + Soja 2ª'!M94 -> 72.73427509 | BF25: =+'Trigo + Soja 2ª'!N94 -> 72.73427509 | BG25: =+'Trigo + Soja 2ª'!O94 -> 0 | BH25: =+'Trigo + Soja 2ª'!P94 -> 0 | BI25: =+'Trigo + Soja 2ª'!Q94 -> 72.73427509 | BJ25: =+'Trigo + Soja 2ª'!R94 -> 0 | BK25: =+'Trigo + Soja 2ª'!S94 -> 72.73427509 | BL25: =+'Trigo + Soja 2ª'!T94 -> 72.73427509 | BM25: =+'Trigo + Soja 2ª'!U94 -> 72.73427509 | BN25: =+'Trigo + Soja 2ª'!V94 -> 72.73427509 | BO25: =+'Trigo + Soja 2ª'!W94 -> 0 | BP25: =+'Trigo + Soja 2ª'!X94 -> 0 | BQ25: =+'Trigo + Soja 2ª'!Y94 -> 72.73427509 | BR25: =+'Trigo + Soja 2ª'!Z94 -> 72.73427509 | BS25: =+'Trigo + Soja 2ª'!AA94 -> 0 | BT25: =+'Trigo + Soja 2ª'!AB94 -> 72.73427509 | BU25: =+'Trigo + Soja 2ª'!AC94 -> 72.73427509 | BV25: =+'Trigo + Soja 2ª'!AD94 -> 72.73427509 | BW25: =+'Trigo + Soja 2ª'!AE94 -> 72.73427509 | BX25: =+'Trigo + Soja 2ª'!AF94 -> 72.73427509
K26: =+K25+2 -> 54 | L26: =+L25+L25-L24+20 -> 16936 | M26: =+M25+4 -> 134 | N26: =+N25+N25-N24+26 -> 22523 | O26: =+O25+2 -> 52 | P26: =+P25+P25-P24+6 -> 10376 | Q26: 87 | R26: =+R25*(R25/R24) -> 18385.81091 | V26: Gral. San Martín | W26: 250 | AE26: 55 | AF26: 1564.16 | AU26: Herbicida | AX26: =+SUM('Trigo + Soja 2ª'!F87,'Trigo + Soja 2ª'!F81:F84) -> 71.831 | AY26: =+SUM('Trigo + Soja 2ª'!G87,'Trigo + Soja 2ª'!G81:G84) -> 0 | AZ26: =+SUM('Trigo + Soja 2ª'!H87,'Trigo + Soja 2ª'!H81:H84) -> 71.831 | BA26: =+SUM('Trigo + Soja 2ª'!I87,'Trigo + Soja 2ª'!I81:I84) -> 0 | BB26: =+SUM('Trigo + Soja 2ª'!J87,'Trigo + Soja 2ª'!J81:J84) -> 71.831 | BC26: =+SUM('Trigo + Soja 2ª'!K87,'Trigo + Soja 2ª'!K81:K84) -> 71.831 | BD26: =+SUM('Trigo + Soja 2ª'!L87,'Trigo + Soja 2ª'!L81:L84) -> 0 | BE26: =+SUM('Trigo + Soja 2ª'!M87,'Trigo + Soja 2ª'!M81:M84) -> 71.831 | BF26: =+SUM('Trigo + Soja 2ª'!N87,'Trigo + Soja 2ª'!N81:N84) -> 71.831 | BG26: =+SUM('Trigo + Soja 2ª'!O87,'Trigo + Soja 2ª'!O81:O84) -> 0 | BH26: =+SUM('Trigo + Soja 2ª'!P87,'Trigo + Soja 2ª'!P81:P84) -> 0 | BI26: =+SUM('Trigo + Soja 2ª'!Q87,'Trigo + Soja 2ª'!Q81:Q84) -> 71.831 | BJ26: =+SUM('Trigo + Soja 2ª'!R87,'Trigo + Soja 2ª'!R81:R84) -> 0 | BK26: =+SUM('Trigo + Soja 2ª'!S87,'Trigo + Soja 2ª'!S81:S84) -> 71.831 | BL26: =+SUM('Trigo + Soja 2ª'!T87,'Trigo + Soja 2ª'!T81:T84) -> 71.831 | BM26: =+SUM('Trigo + Soja 2ª'!U87,'Trigo + Soja 2ª'!U81:U84) -> 71.831 | BN26: =+SUM('Trigo + Soja 2ª'!V87,'Trigo + Soja 2ª'!V81:V84) -> 71.831 | BO26: =+SUM('Trigo + Soja 2ª'!W87,'Trigo + Soja 2ª'!W81:W84) -> 0 | BP26: =+SUM('Trigo + Soja 2ª'!X87,'Trigo + Soja 2ª'!X81:X84) -> 0 | BQ26: =+SUM('Trigo + Soja 2ª'!Y87,'Trigo + Soja 2ª'!Y81:Y84) -> 71.831 | BR26: =+SUM('Trigo + Soja 2ª'!Z87,'Trigo + Soja 2ª'!Z81:Z84) -> 71.831 | BS26: =+SUM('Trigo + Soja 2ª'!AA87,'Trigo + Soja 2ª'!AA81:AA84) -> 0 | BT26: =+SUM('Trigo + Soja 2ª'!AB87,'Trigo + Soja 2ª'!AB81:AB84) -> 71.831 | BU26: =+SUM('Trigo + Soja 2ª'!AC87,'Trigo + Soja 2ª'!AC81:AC84) -> 71.831 | BV26: =+SUM('Trigo + Soja 2ª'!AD87,'Trigo + Soja 2ª'!AD81:AD84) -> 71.831 | BW26: =+SUM('Trigo + Soja 2ª'!AE87,'Trigo + Soja 2ª'!AE81:AE84) -> 71.831 | BX26: =+SUM('Trigo + Soja 2ª'!AF87,'Trigo + Soja 2ª'!AF81:AF84) -> 71.75939431
K27: =+K26+2 -> 56 | L27: =+L26+L26-L25+20 -> 17611 | M27: =+M26+4 -> 138 | N27: =+N26+N26-N25+28 -> 23395 | O27: =+O26+2 -> 54 | P27: =+P26+P26-P25+6 -> 10643 | Q27: 90 | R27: 19644.62845 | V27: Ischilín | W27: 517 | AE27: 60 | AF27: 1635.29 | AU27: Fertilizantes | AX27: 0 | AY27: 0 | AZ27: 0 | BA27: 0 | BB27: 0 | BC27: 0 | BD27: 0 | BE27: 0 | BF27: 0 | BG27: 0 | BH27: 0 | BI27: 0 | BJ27: 0 | BK27: 0 | BL27: 0 | BM27: 0 | BN27: 0 | BO27: 0 | BP27: 0 | BQ27: 0 | BR27: 0 | BS27: 0 | BT27: 0 | BU27: 0 | BV27: 0 | BW27: 0 | BX27: 0
A28: Estructura de Producción | B28: Soja 1ª | C28: Trigo | D28: Soja 2ª | E28: Maíz Temprano | F28: Maíz Tardío | G28: Sorgo | O28: =+O27+2 -> 56 | P28: =+P27+P27-P26+7 -> 10917 | Q28: 93 | R28: 20989.6332 | V28: Juárez Celman | W28: 269 | AE28: 65 | AF28: 1712.55 | AU28: Insecticidas | AX28: =+SUM('Trigo + Soja 2ª'!F88:F89) -> 17.038 | AY28: =+SUM('Trigo + Soja 2ª'!G88:G89) -> 0 | AZ28: =+SUM('Trigo + Soja 2ª'!H88:H89) -> 17.038 | BA28: =+SUM('Trigo + Soja 2ª'!I88:I89) -> 0 | BB28: =+SUM('Trigo + Soja 2ª'!J88:J89) -> 17.038 | BC28: =+SUM('Trigo + Soja 2ª'!K88:K89) -> 17.038 | BD28: =+SUM('Trigo + Soja 2ª'!L88:L89) -> 0 | BE28: =+SUM('Trigo + Soja 2ª'!M88:M89) -> 17.038 | BF28: =+SUM('Trigo + Soja 2ª'!N88:N89) -> 17.038 | BG28: =+SUM('Trigo + Soja 2ª'!O88:O89) -> 0 | BH28: =+SUM('Trigo + Soja 2ª'!P88:P89) -> 0 | BI28: =+SUM('Trigo + Soja 2ª'!Q88:Q89) -> 17.038 | BJ28: =+SUM('Trigo + Soja 2ª'!R88:R89) -> 0 | BK28: =+SUM('Trigo + Soja 2ª'!S88:S89) -> 17.038 | BL28: =+SUM('Trigo + Soja 2ª'!T88:T89) -> 17.038 | BM28: =+SUM('Trigo + Soja 2ª'!U88:U89) -> 17.038 | BN28: =+SUM('Trigo + Soja 2ª'!V88:V89) -> 17.038 | BO28: =+SUM('Trigo + Soja 2ª'!W88:W89) -> 0 | BP28: =+SUM('Trigo + Soja 2ª'!X88:X89) -> 0 | BQ28: =+SUM('Trigo + Soja 2ª'!Y88:Y89) -> 17.038 | BR28: =+SUM('Trigo + Soja 2ª'!Z88:Z89) -> 17.038 | BS28: =+SUM('Trigo + Soja 2ª'!AA88:AA89) -> 0 | BT28: =+SUM('Trigo + Soja 2ª'!AB88:AB89) -> 17.038 | BU28: =+SUM('Trigo + Soja 2ª'!AC88:AC89) -> 17.038 | BV28: =+SUM('Trigo + Soja 2ª'!AD88:AD89) -> 17.038 | BW28: =+SUM('Trigo + Soja 2ª'!AE88:AE89) -> 17.038 | BX28: =+SUM('Trigo + Soja 2ª'!AF88:AF89) -> 17.038
A29: Precio disponible ajustado | B29: =+B32*(1-'Calculadora BCCBA'!C25)-Listas!B30 -> 367.5 | C29: =+C32*(1-'Calculadora BCCBA'!C24)-Listas!C30 -> 288.5 | D29: =+D32*(1-'Calculadora BCCBA'!E25)-Listas!D30 -> 346.2 | E29: =+E32*(1-'Calculadora BCCBA'!C26)-Listas!E30 -> 227 | F29: =+F32*(1-'Calculadora BCCBA'!C26)-Listas!F30 -> 205 | G29: =+G32*(1-'Calculadora BCCBA'!C27)-Listas!G30 -> 220 | V29: Marcos Juárez | W29: 135 | AE29: 70 | AF29: 1791.9 | AU29: Fungicidas | AX29: =+'Trigo + Soja 2ª'!F90 -> 11.25 | AY29: =+'Trigo + Soja 2ª'!G90 -> 0 | AZ29: =+'Trigo + Soja 2ª'!H90 -> 11.25 | BA29: =+'Trigo + Soja 2ª'!I90 -> 0 | BB29: =+'Trigo + Soja 2ª'!J90 -> 11.25 | BC29: =+'Trigo + Soja 2ª'!K90 -> 11.25 | BD29: =+'Trigo + Soja 2ª'!L90 -> 0 | BE29: =+'Trigo + Soja 2ª'!M90 -> 11.25 | BF29: =+'Trigo + Soja 2ª'!N90 -> 11.25 | BG29: =+'Trigo + Soja 2ª'!O90 -> 0 | BH29: =+'Trigo + Soja 2ª'!P90 -> 0 | BI29: =+'Trigo + Soja 2ª'!Q90 -> 11.25 | BJ29: =+'Trigo + Soja 2ª'!R90 -> 0 | BK29: =+'Trigo + Soja 2ª'!S90 -> 11.25 | BL29: =+'Trigo + Soja 2ª'!T90 -> 11.25 | BM29: =+'Trigo + Soja 2ª'!U90 -> 11.25 | BN29: =+'Trigo + Soja 2ª'!V90 -> 11.25 | BO29: =+'Trigo + Soja 2ª'!W90 -> 0 | BP29: =+'Trigo + Soja 2ª'!X90 -> 0 | BQ29: =+'Trigo + Soja 2ª'!Y90 -> 11.25 | BR29: =+'Trigo + Soja 2ª'!Z90 -> 11.25 | BS29: =+'Trigo + Soja 2ª'!AA90 -> 0 | BT29: =+'Trigo + Soja 2ª'!AB90 -> 11.25 | BU29: =+'Trigo + Soja 2ª'!AC90 -> 11.25 | BV29: =+'Trigo + Soja 2ª'!AD90 -> 11.25 | BW29: =+'Trigo + Soja 2ª'!AE90 -> 11.25 | BX29: =+'Trigo + Soja 2ª'!AF90 -> 11.25
A30: Gastos Portuarios + gastos comerciales | B30: 21.3 | C30: 16.1 | D30: =+B30 -> 21.3 | E30: 14.3 | F30: 14.3 | G30: 14.2 | V30: Minas | W30: 588 | AE30: 75 | AF30: 1880.2 | AU30: Curasemilla + Inoculante | AX30: =+'Trigo + Soja 2ª'!F86 -> 5.92 | AY30: =+'Trigo + Soja 2ª'!G86 -> 0 | AZ30: =+'Trigo + Soja 2ª'!H86 -> 5.92 | BA30: =+'Trigo + Soja 2ª'!I86 -> 0 | BB30: =+'Trigo + Soja 2ª'!J86 -> 5.92 | BC30: =+'Trigo + Soja 2ª'!K86 -> 5.92 | BD30: =+'Trigo + Soja 2ª'!L86 -> 0 | BE30: =+'Trigo + Soja 2ª'!M86 -> 5.92 | BF30: =+'Trigo + Soja 2ª'!N86 -> 5.92 | BG30: =+'Trigo + Soja 2ª'!O86 -> 0 | BH30: =+'Trigo + Soja 2ª'!P86 -> 0 | BI30: =+'Trigo + Soja 2ª'!Q86 -> 5.92 | BJ30: =+'Trigo + Soja 2ª'!R86 -> 0 | BK30: =+'Trigo + Soja 2ª'!S86 -> 5.92 | BL30: =+'Trigo + Soja 2ª'!T86 -> 5.92 | BM30: =+'Trigo + Soja 2ª'!U86 -> 5.92 | BN30: =+'Trigo + Soja 2ª'!V86 -> 5.92 | BO30: =+'Trigo + Soja 2ª'!W86 -> 0 | BP30: =+'Trigo + Soja 2ª'!X86 -> 0 | BQ30: =+'Trigo + Soja 2ª'!Y86 -> 5.92 | BR30: =+'Trigo + Soja 2ª'!Z86 -> 5.92 | BS30: =+'Trigo + Soja 2ª'!AA86 -> 0 | BT30: =+'Trigo + Soja 2ª'!AB86 -> 5.92 | BU30: =+'Trigo + Soja 2ª'!AC86 -> 5.92 | BV30: =+'Trigo + Soja 2ª'!AD86 -> 5.92 | BW30: =+'Trigo + Soja 2ª'!AE86 -> 5.92 | BX30: =+'Trigo + Soja 2ª'!AF86 -> 5.92
A31: Precio disponible + gastos portuarios + comerciales | B31: =+'Calculadora BCCBA'!C13+B30 -> 388.8 | C31: =+'Calculadora BCCBA'!C12+C30 -> 304.6 | D31: =+B31 -> 388.8 | E31: =+'Calculadora BCCBA'!C14+E30 -> 241.3 | F31: =+'Calculadora BCCBA'!C15+F30 -> 219.3 | G31: =+'Calculadora BCCBA'!C16+G30 -> 234.2 | V31: Pocho | W31: 571 | AE31: 80 | AF31: 1938.64 | AU31: Semillas | AX31: =+'Trigo + Soja 2ª'!F85 -> 64 | AY31: =+'Trigo + Soja 2ª'!G85 -> 0 | AZ31: =+'Trigo + Soja 2ª'!H85 -> 64 | BA31: =+'Trigo + Soja 2ª'!I85 -> 0 | BB31: =+'Trigo + Soja 2ª'!J85 -> 64 | BC31: =+'Trigo + Soja 2ª'!K85 -> 64 | BD31: =+'Trigo + Soja 2ª'!L85 -> 0 | BE31: =+'Trigo + Soja 2ª'!M85 -> 64 | BF31: =+'Trigo + Soja 2ª'!N85 -> 64 | BG31: =+'Trigo + Soja 2ª'!O85 -> 0 | BH31: =+'Trigo + Soja 2ª'!P85 -> 0 | BI31: =+'Trigo + Soja 2ª'!Q85 -> 64 | BJ31: =+'Trigo + Soja 2ª'!R85 -> 0 | BK31: =+'Trigo + Soja 2ª'!S85 -> 64 | BL31: =+'Trigo + Soja 2ª'!T85 -> 64 | BM31: =+'Trigo + Soja 2ª'!U85 -> 64 | BN31: =+'Trigo + Soja 2ª'!V85 -> 64 | BO31: =+'Trigo + Soja 2ª'!W85 -> 0 | BP31: =+'Trigo + Soja 2ª'!X85 -> 0 | BQ31: =+'Trigo + Soja 2ª'!Y85 -> 64 | BR31: =+'Trigo + Soja 2ª'!Z85 -> 64 | BS31: =+'Trigo + Soja 2ª'!AA85 -> 0 | BT31: =+'Trigo + Soja 2ª'!AB85 -> 64 | BU31: =+'Trigo + Soja 2ª'!AC85 -> 64 | BV31: =+'Trigo + Soja 2ª'!AD85 -> 64 | BW31: =+'Trigo + Soja 2ª'!AE85 -> 64 | BX31: =+'Trigo + Soja 2ª'!AF85 -> 63.77780537
A32: FOB estimado | B32: =+B31/(1-0.33) -> 580.2985075 | C32: =+C31/(1-0.12) -> 346.1363636 | D32: =+'Trigo + Soja 2ª'!E148 -> 367.5 | E32: =+E31/(1-0.12) -> 274.2045455 | F32: =+F31/(1-0.12) -> 249.2045455 | G32: =+G31/(1-0.12) -> 266.1363636 | V32: Pte. Roque Sáenz Peña | W32: 321 | AE32: 85 | AF32: 2040.67 | AU32: Total | AX32: =+SUM(AX24:AX31) -> 309.3636988 | AY32: =+SUM(AY24:AY31) -> 0 | AZ32: 326.8732751 | BA32: 0 | BB32: 326.8732751 | BC32: 326.8732751 | BD32: 0 | BE32: 326.8732751 | BF32: 326.8732751 | BG32: 0 | BH32: 0 | BI32: 326.8732751 | BJ32: 0 | BK32: 326.8732751 | BL32: 326.8732751 | BM32: 326.8732751 | BN32: 326.8732751 | BO32: 0 | BP32: 0 | BQ32: 326.8732751 | BR32: 326.8732751 | BS32: 0 | BT32: 326.8732751 | BU32: 326.8732751 | BV32: 326.8732751 | BW32: 326.8732751 | BX32: 326.4482411
A33: Impuesto arancelario | B33: ='Calculadora BCCBA'!#REF!*'Calculadora BCCBA'!C13*B29/10 ->  | C33: - | D33: ='Calculadora BCCBA'!C13*'Calculadora BCCBA'!#REF!*D29/10+'Calculadora BCCBA'!C12*'Calculadora BCCBA'!#REF!*C29/10 ->  | E33: ='Calculadora BCCBA'!C14*'Calculadora BCCBA'!#REF!*E29/10 ->  | F33: ='Calculadora BCCBA'!C15*'Calculadora BCCBA'!#REF!*F29/10 ->  | G33: ='Calculadora BCCBA'!D14*'Calculadora BCCBA'!#REF!*G29/10 ->  | V33: Punilla | W33: 453 | AE33: 90 | AF33: 2111.55
A34: Costos Directos | B34: =+'Calculadora BCCBA'!G7 -> 455.9490276 | C34: - | D34: =+'Calculadora BCCBA'!H7 -> 763.4603275 | E34: =+'Calculadora BCCBA'!I7 -> 693.9010742 | F34: =+'Calculadora BCCBA'!J7 -> 683.8809492 | G34: =+'Calculadora BCCBA'!K7 -> 382.8642681 | V34: Río Cuarto | W34: 380 | AE34: 95 | AF34: 2188.68 | AU34: Opciones avanzadas (completado por el usuario) | AV34: Mes de actualiz. | AW34: Cantidades | AX34: Calamuchita | AY34: Capital | AZ34: Colón | BA34: Cruz del Eje | BB34: Gral. Roca | BC34: Gral. San Martín | BD34: Ischilin | BE34: Juárez Celman | BF34: Marcos Juárez | BG34: Minas | BH34: Pocho | BI34: Pte. R. Sáenz Peña | BJ34: Punilla | BK34: Río Cuarto | BL34: Río Primero | BM34: Río Seco | BN34: Río Segundo | BO34: San Alberto | BP34: San Javier | BQ34: San Justo | BR34: Santa María | BS34: Sobremonte | BT34: Tercero Arriba | BU34: Totoral | BV34: Tulumba | BW34: Unión | BX34: PROVINCIA
A35: Gastos Comerciales | B35: =+'Calculadora BCCBA'!G8 -> 169.8120728 | C35: - | D35: =+'Calculadora BCCBA'!H8 -> 257.9024846 | E35: =+'Calculadora BCCBA'!I8 -> 430.5291256 | F35: =+'Calculadora BCCBA'!J8 -> 404.9036865 | G35: =+'Calculadora BCCBA'!K8 -> 253.5659158 | V35: Río Primero | W35: 407 | AE35: 100 | AF35: 2273.61 | AU35: Servicios de Labranza | AV35: Estos datos son los ingresados en opciones avanzadas | AW35: MAÍZ TEMPRANO | AX35: =+SUM('Maíz temprano'!F22:F23,'Maíz temprano'!F37) -> 69.4 | AY35: =+SUM('Maíz temprano'!G22:G23,'Maíz temprano'!G37) -> 0 | AZ35: =+SUM('Maíz temprano'!H22:H23,'Maíz temprano'!H37) -> 69.4 | BA35: =+SUM('Maíz temprano'!I22:I23,'Maíz temprano'!I37) -> 0 | BB35: =+SUM('Maíz temprano'!J22:J23,'Maíz temprano'!J37) -> 69.4 | BC35: =+SUM('Maíz temprano'!K22:K23,'Maíz temprano'!K37) -> 69.4 | BD35: =+SUM('Maíz temprano'!L22:L23,'Maíz temprano'!L37) -> 0 | BE35: =+SUM('Maíz temprano'!M22:M23,'Maíz temprano'!M37) -> 69.4 | BF35: =+SUM('Maíz temprano'!N22:N23,'Maíz temprano'!N37) -> 69.4 | BG35: =+SUM('Maíz temprano'!O22:O23,'Maíz temprano'!O37) -> 0 | BH35: =+SUM('Maíz temprano'!P22:P23,'Maíz temprano'!P37) -> 0 | BI35: =+SUM('Maíz temprano'!Q22:Q23,'Maíz temprano'!Q37) -> 69.4 | BJ35: =+SUM('Maíz temprano'!R22:R23,'Maíz temprano'!R37) -> 0 | BK35: =+SUM('Maíz temprano'!S22:S23,'Maíz temprano'!S37) -> 69.4 | BL35: =+SUM('Maíz temprano'!T22:T23,'Maíz temprano'!T37) -> 69.4 | BM35: =+SUM('Maíz temprano'!U22:U23,'Maíz temprano'!U37) -> 69.4 | BN35: =+SUM('Maíz temprano'!V22:V23,'Maíz temprano'!V37) -> 69.4 | BO35: =+SUM('Maíz temprano'!W22:W23,'Maíz temprano'!W37) -> 0 | BP35: =+SUM('Maíz temprano'!X22:X23,'Maíz temprano'!X37) -> 0 | BQ35: =+SUM('Maíz temprano'!Y22:Y23,'Maíz temprano'!Y37) -> 69.4 | BR35: =+SUM('Maíz temprano'!Z22:Z23,'Maíz temprano'!Z37) -> 69.4 | BS35: =+SUM('Maíz temprano'!AA22:AA23,'Maíz temprano'!AA37) -> 0 | BT35: =+SUM('Maíz temprano'!AB22:AB23,'Maíz temprano'!AB37) -> 69.4 | BU35: =+SUM('Maíz temprano'!AC22:AC23,'Maíz temprano'!AC37) -> 69.4 | BV35: =+SUM('Maíz temprano'!AD22:AD23,'Maíz temprano'!AD37) -> 69.4 | BW35: =+SUM('Maíz temprano'!AE22:AE23,'Maíz temprano'!AE37) -> 69.4 | BX35: =+SUM('Maíz temprano'!AF22:AF23,'Maíz temprano'!AF37) -> 69.4
A36: Costo de Arrendamiento | B36: =+HLOOKUP('Calculadora BCCBA'!$B$1,'Soja 1ª'!$F$67:$AF$69,3,FALSE) -> 422.625 | C36: - | D36: =+HLOOKUP('Calculadora BCCBA'!B1,'Trigo + Soja 2ª'!$F$118:$AF$120,3,FALSE) -> 422.625 | E36: =+HLOOKUP('Calculadora BCCBA'!B1,'Maíz temprano'!F62:AF64,3,FALSE) -> 422.625 | F36: =+HLOOKUP('Calculadora BCCBA'!B1,'Maíz tardío'!F62:AF64,3,FALSE) -> 422.625 | G36: =+HLOOKUP('Calculadora BCCBA'!B1,Sorgo!F56:AF58,3,FALSE) -> 422.625 | V36: Río Seco | W36: 575 | AE36: 105 | AF36: 2326.96 | AU36: Servicios de Cosecha | AX36: =+'Maíz temprano'!F39 -> 118.5195742 | AY36: =+'Maíz temprano'!G39 -> 0 | AZ36: =+'Maíz temprano'!H39 -> 118.5195742 | BA36: =+'Maíz temprano'!I39 -> 0 | BB36: =+'Maíz temprano'!J39 -> 118.5195742 | BC36: =+'Maíz temprano'!K39 -> 118.5195742 | BD36: =+'Maíz temprano'!L39 -> 0 | BE36: =+'Maíz temprano'!M39 -> 118.5195742 | BF36: =+'Maíz temprano'!N39 -> 118.5195742 | BG36: =+'Maíz temprano'!O39 -> 0 | BH36: =+'Maíz temprano'!P39 -> 0 | BI36: =+'Maíz temprano'!Q39 -> 118.5195742 | BJ36: =+'Maíz temprano'!R39 -> 0 | BK36: =+'Maíz temprano'!S39 -> 118.5195742 | BL36: =+'Maíz temprano'!T39 -> 118.5195742 | BM36: =+'Maíz temprano'!U39 -> 118.5195742 | BN36: =+'Maíz temprano'!V39 -> 118.5195742 | BO36: =+'Maíz temprano'!W39 -> 0 | BP36: =+'Maíz temprano'!X39 -> 0 | BQ36: =+'Maíz temprano'!Y39 -> 118.5195742 | BR36: =+'Maíz temprano'!Z39 -> 118.5195742 | BS36: =+'Maíz temprano'!AA39 -> 0 | BT36: =+'Maíz temprano'!AB39 -> 118.5195742 | BU36: =+'Maíz temprano'!AC39 -> 118.5195742 | BV36: =+'Maíz temprano'!AD39 -> 118.5195742 | BW36: =+'Maíz temprano'!AE39 -> 118.5195742 | BX36: =+'Maíz temprano'!AF39 -> 118.5195742
A37: Otros Costos Indirectos | B37: =+'Calculadora BCCBA'!G11-Listas!B36 -> 72.22330612 | C37: - | D37: =+'Calculadora BCCBA'!H11-Listas!D36 -> 115.521082 | E37: =+'Calculadora BCCBA'!I11-Listas!E36 -> 86.64649246 | F37: =+'Calculadora BCCBA'!J11-Listas!F36 -> 88.39859797 | G37: =+'Calculadora BCCBA'!K11-Listas!G36 -> 83.84590704 | V37: Río Segundo | W37: 348 | AE37: 110 | AF37: 2380 | AU37: Herbicida | AX37: =+SUM('Maíz temprano'!F24:F27,'Maíz temprano'!F33,'Maíz temprano'!F35) -> 101.584 | AY37: =+SUM('Maíz temprano'!G24:G27,'Maíz temprano'!G33,'Maíz temprano'!G35) -> 0 | AZ37: =+SUM('Maíz temprano'!H24:H27,'Maíz temprano'!H33,'Maíz temprano'!H35) -> 101.584 | BA37: =+SUM('Maíz temprano'!I24:I27,'Maíz temprano'!I33,'Maíz temprano'!I35) -> 0 | BB37: =+SUM('Maíz temprano'!J24:J27,'Maíz temprano'!J33,'Maíz temprano'!J35) -> 101.584 | BC37: =+SUM('Maíz temprano'!K24:K27,'Maíz temprano'!K33,'Maíz temprano'!K35) -> 101.584 | BD37: =+SUM('Maíz temprano'!L24:L27,'Maíz temprano'!L33,'Maíz temprano'!L35) -> 0 | BE37: =+SUM('Maíz temprano'!M24:M27,'Maíz temprano'!M33,'Maíz temprano'!M35) -> 101.584 | BF37: =+SUM('Maíz temprano'!N24:N27,'Maíz temprano'!N33,'Maíz temprano'!N35) -> 101.584 | BG37: =+SUM('Maíz temprano'!O24:O27,'Maíz temprano'!O33,'Maíz temprano'!O35) -> 0 | BH37: =+SUM('Maíz temprano'!P24:P27,'Maíz temprano'!P33,'Maíz temprano'!P35) -> 0 | BI37: =+SUM('Maíz temprano'!Q24:Q27,'Maíz temprano'!Q33,'Maíz temprano'!Q35) -> 101.584 | BJ37: =+SUM('Maíz temprano'!R24:R27,'Maíz temprano'!R33,'Maíz temprano'!R35) -> 0 | BK37: =+SUM('Maíz temprano'!S24:S27,'Maíz temprano'!S33,'Maíz temprano'!S35) -> 101.584 | BL37: =+SUM('Maíz temprano'!T24:T27,'Maíz temprano'!T33,'Maíz temprano'!T35) -> 101.584 | BM37: =+SUM('Maíz temprano'!U24:U27,'Maíz temprano'!U33,'Maíz temprano'!U35) -> 101.584 | BN37: =+SUM('Maíz temprano'!V24:V27,'Maíz temprano'!V33,'Maíz temprano'!V35) -> 101.584 | BO37: =+SUM('Maíz temprano'!W24:W27,'Maíz temprano'!W33,'Maíz temprano'!W35) -> 0 | BP37: =+SUM('Maíz temprano'!X24:X27,'Maíz temprano'!X33,'Maíz temprano'!X35) -> 0 | BQ37: =+SUM('Maíz temprano'!Y24:Y27,'Maíz temprano'!Y33,'Maíz temprano'!Y35) -> 101.584 | BR37: =+SUM('Maíz temprano'!Z24:Z27,'Maíz temprano'!Z33,'Maíz temprano'!Z35) -> 101.584 | BS37: =+SUM('Maíz temprano'!AA24:AA27,'Maíz temprano'!AA33,'Maíz temprano'!AA35) -> 0 | BT37: =+SUM('Maíz temprano'!AB24:AB27,'Maíz temprano'!AB33,'Maíz temprano'!AB35) -> 101.584 | BU37: =+SUM('Maíz temprano'!AC24:AC27,'Maíz temprano'!AC33,'Maíz temprano'!AC35) -> 101.584 | BV37: =+SUM('Maíz temprano'!AD24:AD27,'Maíz temprano'!AD33,'Maíz temprano'!AD35) -> 101.584 | BW37: =+SUM('Maíz temprano'!AE24:AE27,'Maíz temprano'!AE33,'Maíz temprano'!AE35) -> 101.584 | BX37: =+SUM('Maíz temprano'!AF24:AF27,'Maíz temprano'!AF33,'Maíz temprano'!AF35) -> 101.584
A38: Impuesto ganancia + otros | B38: =+'Calculadora BCCBA'!G13 -> 42.62470517 | C38: - | D38: =+'Calculadora BCCBA'!H13 -> 111.3317489 | E38: =+'Calculadora BCCBA'!I13 -> 136.2120994 | F38: =+'Calculadora BCCBA'!J13 -> 28.98898999 | G38: =+'Calculadora BCCBA'!K13 -> 21.82795275 | V38: San Alberto | W38: 519 | AE38: 115 | AF38: 2433.2 | AU38: Fertilizantes | AX38: =+SUM('Maíz temprano'!F30:F32) -> 250 | AY38: =+SUM('Maíz temprano'!G30:G32) -> 0 | AZ38: =+SUM('Maíz temprano'!H30:H32) -> 250 | BA38: =+SUM('Maíz temprano'!I30:I32) -> 0 | BB38: =+SUM('Maíz temprano'!J30:J32) -> 250 | BC38: =+SUM('Maíz temprano'!K30:K32) -> 250 | BD38: =+SUM('Maíz temprano'!L30:L32) -> 0 | BE38: =+SUM('Maíz temprano'!M30:M32) -> 250 | BF38: =+SUM('Maíz temprano'!N30:N32) -> 250 | BG38: =+SUM('Maíz temprano'!O30:O32) -> 0 | BH38: =+SUM('Maíz temprano'!P30:P32) -> 0 | BI38: =+SUM('Maíz temprano'!Q30:Q32) -> 250 | BJ38: =+SUM('Maíz temprano'!R30:R32) -> 0 | BK38: =+SUM('Maíz temprano'!S30:S32) -> 250 | BL38: =+SUM('Maíz temprano'!T30:T32) -> 250 | BM38: =+SUM('Maíz temprano'!U30:U32) -> 250 | BN38: =+SUM('Maíz temprano'!V30:V32) -> 250 | BO38: =+SUM('Maíz temprano'!W30:W32) -> 0 | BP38: =+SUM('Maíz temprano'!X30:X32) -> 0 | BQ38: =+SUM('Maíz temprano'!Y30:Y32) -> 250 | BR38: =+SUM('Maíz temprano'!Z30:Z32) -> 250 | BS38: =+SUM('Maíz temprano'!AA30:AA32) -> 0 | BT38: =+SUM('Maíz temprano'!AB30:AB32) -> 250 | BU38: =+SUM('Maíz temprano'!AC30:AC32) -> 250 | BV38: =+SUM('Maíz temprano'!AD30:AD32) -> 250 | BW38: =+SUM('Maíz temprano'!AE30:AE32) -> 250 | BX38: =+SUM('Maíz temprano'!AF30:AF32) -> 250
A39: Intereses sobre el Cap. Inv. | B39: =+'Calculadora BCCBA'!G15 -> 21.59989509 | C39: - | D39: =+'Calculadora BCCBA'!H15 -> 44.90000311 | E39: =+'Calculadora BCCBA'!I15 -> 31.63571228 | F39: =+'Calculadora BCCBA'!J15 -> 36.21350327 | G39: =+'Calculadora BCCBA'!K15 -> 27.33627223 | V39: San Javier | W39: 565 | AE39: 120 | AF39: 2486.41 | AU39: Insecticidas | AX39: =+'Maíz temprano'!F34 -> 1.3975 | AY39: =+'Maíz temprano'!G34 -> 0 | AZ39: =+'Maíz temprano'!H34 -> 1.3975 | BA39: =+'Maíz temprano'!I34 -> 0 | BB39: =+'Maíz temprano'!J34 -> 1.3975 | BC39: =+'Maíz temprano'!K34 -> 1.3975 | BD39: =+'Maíz temprano'!L34 -> 0 | BE39: =+'Maíz temprano'!M34 -> 1.3975 | BF39: =+'Maíz temprano'!N34 -> 1.3975 | BG39: =+'Maíz temprano'!O34 -> 0 | BH39: =+'Maíz temprano'!P34 -> 0 | BI39: =+'Maíz temprano'!Q34 -> 1.3975 | BJ39: =+'Maíz temprano'!R34 -> 0 | BK39: =+'Maíz temprano'!S34 -> 1.3975 | BL39: =+'Maíz temprano'!T34 -> 1.3975 | BM39: =+'Maíz temprano'!U34 -> 1.3975 | BN39: =+'Maíz temprano'!V34 -> 1.3975 | BO39: =+'Maíz temprano'!W34 -> 0 | BP39: =+'Maíz temprano'!X34 -> 0 | BQ39: =+'Maíz temprano'!Y34 -> 1.3975 | BR39: =+'Maíz temprano'!Z34 -> 1.3975 | BS39: =+'Maíz temprano'!AA34 -> 0 | BT39: =+'Maíz temprano'!AB34 -> 1.3975 | BU39: =+'Maíz temprano'!AC34 -> 1.3975 | BV39: =+'Maíz temprano'!AD34 -> 1.3975 | BW39: =+'Maíz temprano'!AE34 -> 1.3975 | BX39: =+'Maíz temprano'!AF34 -> 1.3975
A40: Resultado del productor | B40: =+'Calculadora BCCBA'!G16 -> 11.47026977 | C40: - | D40: =+'Calculadora BCCBA'!H16 -> 114.5443278 | E40: =+'Calculadora BCCBA'!I16 -> 178.0997424 | F40: =+'Calculadora BCCBA'!J16 -> -58.48426276 | G40: =+'Calculadora BCCBA'!K16 -> -40.80794501 | V40: San Justo | W40: 252 | AE40: 125 | AF40: 2539.61 | AU40: Fungicidas | AX40: 0 | AY40: 0 | AZ40: 0 | BA40: 0 | BB40: 0 | BC40: 0 | BD40: 0 | BE40: 0 | BF40: 0 | BG40: 0 | BH40: 0 | BI40: 0 | BJ40: 0 | BK40: 0 | BL40: 0 | BM40: 0 | BN40: 0 | BO40: 0 | BP40: 0 | BQ40: 0 | BR40: 0 | BS40: 0 | BT40: 0 | BU40: 0 | BV40: 0 | BW40: 0 | BX40: 0
V41: Santa María | W41: 399 | AE41: 130 | AF41: 2595.86 | AU41: Curasemilla + Inoculante | AX41: 0 | AY41: 0 | AZ41: 0 | BA41: 0 | BB41: 0 | BC41: 0 | BD41: 0 | BE41: 0 | BF41: 0 | BG41: 0 | BH41: 0 | BI41: 0 | BJ41: 0 | BK41: 0 | BL41: 0 | BM41: 0 | BN41: 0 | BO41: 0 | BP41: 0 | BQ41: 0 | BR41: 0 | BS41: 0 | BT41: 0 | BU41: 0 | BV41: 0 | BW41: 0 | BX41: 0
A42: Estructura de Producción | B42: Soja 1ª | C42: Trigo + Soja 2ª | D42: Maíz Temprano | E42: Maíz Tardío | V42: Sobremonte | W42: 586 | AE42: 135 | AF42: 2656.83 | AU42: Semillas | AX42: =+'Maíz temprano'!F28+'Maíz temprano'!F29 -> 153 | AY42: =+'Maíz temprano'!G28+'Maíz temprano'!G29 -> 0 | AZ42: =+'Maíz temprano'!H28+'Maíz temprano'!H29 -> 153 | BA42: =+'Maíz temprano'!I28+'Maíz temprano'!I29 -> 0 | BB42: =+'Maíz temprano'!J28+'Maíz temprano'!J29 -> 153 | BC42: =+'Maíz temprano'!K28+'Maíz temprano'!K29 -> 153 | BD42: =+'Maíz temprano'!L28+'Maíz temprano'!L29 -> 0 | BE42: =+'Maíz temprano'!M28+'Maíz temprano'!M29 -> 153 | BF42: =+'Maíz temprano'!N28+'Maíz temprano'!N29 -> 153 | BG42: =+'Maíz temprano'!O28+'Maíz temprano'!O29 -> 0 | BH42: =+'Maíz temprano'!P28+'Maíz temprano'!P29 -> 0 | BI42: =+'Maíz temprano'!Q28+'Maíz temprano'!Q29 -> 153 | BJ42: =+'Maíz temprano'!R28+'Maíz temprano'!R29 -> 0 | BK42: =+'Maíz temprano'!S28+'Maíz temprano'!S29 -> 153 | BL42: =+'Maíz temprano'!T28+'Maíz temprano'!T29 -> 153 | BM42: =+'Maíz temprano'!U28+'Maíz temprano'!U29 -> 153 | BN42: =+'Maíz temprano'!V28+'Maíz temprano'!V29 -> 153 | BO42: =+'Maíz temprano'!W28+'Maíz temprano'!W29 -> 0 | BP42: =+'Maíz temprano'!X28+'Maíz temprano'!X29 -> 0 | BQ42: =+'Maíz temprano'!Y28+'Maíz temprano'!Y29 -> 153 | BR42: =+'Maíz temprano'!Z28+'Maíz temprano'!Z29 -> 153 | BS42: =+'Maíz temprano'!AA28+'Maíz temprano'!AA29 -> 0 | BT42: =+'Maíz temprano'!AB28+'Maíz temprano'!AB29 -> 153 | BU42: =+'Maíz temprano'!AC28+'Maíz temprano'!AC29 -> 153 | BV42: =+'Maíz temprano'!AD28+'Maíz temprano'!AD29 -> 153 | BW42: =+'Maíz temprano'!AE28+'Maíz temprano'!AE29 -> 153 | BX42: =+'Maíz temprano'!AF28+'Maíz temprano'!AF29 -> 153
A43: Impuestos y retenciones | B43: =(B33+B38)/($B$31*$B$29/10) ->  | C43: =(D33+D38)/(C31*C29+D31*D29)*10 ->  | D43: =(E33+E38)/($E$31*$E$29/10) ->  | E43: =(F33+F38)/($F$31*$F$29/10) ->  | V43: Tercero Arriba | W43: 298 | AE43: 140 | AF43: 2717.97 | AU43: Total | AX43: =+SUM(AX35:AX42) -> 693.9010742 | AY43: =+SUM(AY35:AY42) -> 0 | AZ43: 693.9010742 | BA43: 0 | BB43: 693.9010742 | BC43: 693.9010742 | BD43: 0 | BE43: 693.9010742 | BF43: 693.9010742 | BG43: 0 | BH43: 0 | BI43: 693.9010742 | BJ43: 0 | BK43: 693.9010742 | BL43: 693.9010742 | BM43: 693.9010742 | BN43: 693.9010742 | BO43: 0 | BP43: 0 | BQ43: 693.9010742 | BR43: 693.9010742 | BS43: 0 | BT43: 693.9010742 | BU43: 693.9010742 | BV43: 693.9010742 | BW43: 693.9010742 | BX43: 693.9010742
A44: Costos Directos | B44: =+B34/($B$31*$B$29/10) -> 0.03191043277 | C44: =+D34*10/($C$31*$C$29+$D$31*$D$29) -> 0.03431596073 | D44: =+E34/($E$31*$E$29/10) -> 0.1266818453 | E44: =+F34/($F$31*$F$29/10) -> 0.1521205942 | V44: Totoral | W44: 477 | AE44: 145 | AF44: 2780.46
A45: Gastos Comerciales | B45: =+B35/($B$31*$B$29/10) -> 0.01188461079 | C45: =+D35*10/($C$31*$C$29+$D$31*$D$29) -> 0.01159218261 | D45: 0.07859942303 | E45: 0.09006566047 | V45: Tulumba | W45: 481 | AE45: 150 | AF45: 2840.52 | AU45: Opciones avanzadas (completado por el usuario) | AV45: Mes de actualiz. | AW45: Cantidades | AX45: Calamuchita | AY45: Capital | AZ45: Colón | BA45: Cruz del Eje | BB45: Gral. Roca | BC45: Gral. San Martín | BD45: Ischilin | BE45: Juárez Celman | BF45: Marcos Juárez | BG45: Minas | BH45: Pocho | BI45: Pte. R. Sáenz Peña | BJ45: Punilla | BK45: Río Cuarto | BL45: Río Primero | BM45: Río Seco | BN45: Río Segundo | BO45: San Alberto | BP45: San Javier | BQ45: San Justo | BR45: Santa María | BS45: Sobremonte | BT45: Tercero Arriba | BU45: Totoral | BV45: Tulumba | BW45: Unión | BX45: PROVINCIA
A46: Costo de Arrendamiento | B46: =+B36/($B$31*$B$29/10) -> 0.0295781893 | C46: =+D36*10/($C$31*$C$29+$D$31*$D$29) -> 0.01899611857 | D46: 0.07715640866 | E46: 0.09400754062 | V46: Unión | W46: 191 | AE46: 155 | AF46: 2895.38 | AU46: Servicios de Labranza | AV46: Estos datos son los ingresados en opciones avanzadas | AW46: MAÍZ TARDÍO | AX46: =+SUM('Maíz tardío'!F22,'Maíz tardío'!F23,'Maíz tardío'!F37) -> 69.4 | AY46: =+SUM('Maíz tardío'!G22,'Maíz tardío'!G23,'Maíz tardío'!G37) -> 0 | AZ46: =+SUM('Maíz tardío'!H22,'Maíz tardío'!H23,'Maíz tardío'!H37) -> 69.4 | BA46: =+SUM('Maíz tardío'!I22,'Maíz tardío'!I23,'Maíz tardío'!I37) -> 0 | BB46: =+SUM('Maíz tardío'!J22,'Maíz tardío'!J23,'Maíz tardío'!J37) -> 69.4 | BC46: =+SUM('Maíz tardío'!K22,'Maíz tardío'!K23,'Maíz tardío'!K37) -> 69.4 | BD46: =+SUM('Maíz tardío'!L22,'Maíz tardío'!L23,'Maíz tardío'!L37) -> 0 | BE46: =+SUM('Maíz tardío'!M22,'Maíz tardío'!M23,'Maíz tardío'!M37) -> 69.4 | BF46: =+SUM('Maíz tardío'!N22,'Maíz tardío'!N23,'Maíz tardío'!N37) -> 69.4 | BG46: =+SUM('Maíz tardío'!O22,'Maíz tardío'!O23,'Maíz tardío'!O37) -> 0 | BH46: =+SUM('Maíz tardío'!P22,'Maíz tardío'!P23,'Maíz tardío'!P37) -> 0 | BI46: =+SUM('Maíz tardío'!Q22,'Maíz tardío'!Q23,'Maíz tardío'!Q37) -> 69.4 | BJ46: =+SUM('Maíz tardío'!R22,'Maíz tardío'!R23,'Maíz tardío'!R37) -> 0 | BK46: =+SUM('Maíz tardío'!S22,'Maíz tardío'!S23,'Maíz tardío'!S37) -> 69.4 | BL46: =+SUM('Maíz tardío'!T22,'Maíz tardío'!T23,'Maíz tardío'!T37) -> 69.4 | BM46: =+SUM('Maíz tardío'!U22,'Maíz tardío'!U23,'Maíz tardío'!U37) -> 69.4 | BN46: =+SUM('Maíz tardío'!V22,'Maíz tardío'!V23,'Maíz tardío'!V37) -> 69.4 | BO46: =+SUM('Maíz tardío'!W22,'Maíz tardío'!W23,'Maíz tardío'!W37) -> 0 | BP46: =+SUM('Maíz tardío'!X22,'Maíz tardío'!X23,'Maíz tardío'!X37) -> 0 | BQ46: =+SUM('Maíz tardío'!Y22,'Maíz tardío'!Y23,'Maíz tardío'!Y37) -> 69.4 | BR46: =+SUM('Maíz tardío'!Z22,'Maíz tardío'!Z23,'Maíz tardío'!Z37) -> 69.4 | BS46: =+SUM('Maíz tardío'!AA22,'Maíz tardío'!AA23,'Maíz tardío'!AA37) -> 0 | BT46: =+SUM('Maíz tardío'!AB22,'Maíz tardío'!AB23,'Maíz tardío'!AB37) -> 69.4 | BU46: =+SUM('Maíz tardío'!AC22,'Maíz tardío'!AC23,'Maíz tardío'!AC37) -> 69.4 | BV46: =+SUM('Maíz tardío'!AD22,'Maíz tardío'!AD23,'Maíz tardío'!AD37) -> 69.4 | BW46: =+SUM('Maíz tardío'!AE22,'Maíz tardío'!AE23,'Maíz tardío'!AE37) -> 69.4 | BX46: =+SUM('Maíz tardío'!AF22,'Maíz tardío'!AF23,'Maíz tardío'!AF37) -> 69.4
A47: Otros Costos Indirectos | B47: =+B37/($B$31*$B$29/10) -> 0.005054681148 | C47: =+D37*10/($C$31*$C$29+$D$31*$D$29) -> 0.005192433414 | D47: 0.01581859138 | E47: 0.01966314059 | V47: PROVINCIA | W47: 280 | AE47: 160 | AF47: 2950.59 | AU47: Servicios de Cosecha | AX47: =+SUM('Maíz tardío'!F39) -> 108.4994492 | AY47: =+SUM('Maíz tardío'!G39) -> 0 | AZ47: =+SUM('Maíz tardío'!H39) -> 108.4994492 | BA47: =+SUM('Maíz tardío'!I39) -> 0 | BB47: =+SUM('Maíz tardío'!J39) -> 108.4994492 | BC47: =+SUM('Maíz tardío'!K39) -> 108.4994492 | BD47: =+SUM('Maíz tardío'!L39) -> 0 | BE47: =+SUM('Maíz tardío'!M39) -> 108.4994492 | BF47: =+SUM('Maíz tardío'!N39) -> 108.4994492 | BG47: =+SUM('Maíz tardío'!O39) -> 0 | BH47: =+SUM('Maíz tardío'!P39) -> 0 | BI47: =+SUM('Maíz tardío'!Q39) -> 108.4994492 | BJ47: =+SUM('Maíz tardío'!R39) -> 0 | BK47: =+SUM('Maíz tardío'!S39) -> 108.4994492 | BL47: =+SUM('Maíz tardío'!T39) -> 108.4994492 | BM47: =+SUM('Maíz tardío'!U39) -> 108.4994492 | BN47: =+SUM('Maíz tardío'!V39) -> 108.4994492 | BO47: =+SUM('Maíz tardío'!W39) -> 0 | BP47: =+SUM('Maíz tardío'!X39) -> 0 | BQ47: =+SUM('Maíz tardío'!Y39) -> 108.4994492 | BR47: =+SUM('Maíz tardío'!Z39) -> 108.4994492 | BS47: =+SUM('Maíz tardío'!AA39) -> 0 | BT47: =+SUM('Maíz tardío'!AB39) -> 108.4994492 | BU47: =+SUM('Maíz tardío'!AC39) -> 108.4994492 | BV47: =+SUM('Maíz tardío'!AD39) -> 108.4994492 | BW47: =+SUM('Maíz tardío'!AE39) -> 108.4994492 | BX47: =+SUM('Maíz tardío'!AF39) -> 108.4994492
A48: Resultado del productor | B48: =+B40/($B$31*$B$29/10) -> 0.0008027679634 | C48: =+D40*10/($C$31*$C$29+$D$31*$D$29) -> 0.005148530332 | D48: =+E40/($E$31*$E$29/10) -> 0.03251472702 | E48: =+F40/($F$31*$F$29/10) -> -0.01300907828 | AE48: 165 | AF48: 3009.74 | AU48: Herbicida | AX48: =+SUM('Maíz tardío'!F24,'Maíz tardío'!F25,'Maíz tardío'!F26,'Maíz tardío'!F27,'Maíz tardío'!F33,'Maíz tardío'!F35) -> 101.584 | AY48: =+SUM('Maíz tardío'!G24,'Maíz tardío'!G25,'Maíz tardío'!G26,'Maíz tardío'!G27,'Maíz tardío'!G33,'Maíz tardío'!G35) -> 0 | AZ48: =+SUM('Maíz tardío'!H24,'Maíz tardío'!H25,'Maíz tardío'!H26,'Maíz tardío'!H27,'Maíz tardío'!H33,'Maíz tardío'!H35) -> 101.584 | BA48: =+SUM('Maíz tardío'!I24,'Maíz tardío'!I25,'Maíz tardío'!I26,'Maíz tardío'!I27,'Maíz tardío'!I33,'Maíz tardío'!I35) -> 0 | BB48: =+SUM('Maíz tardío'!J24,'Maíz tardío'!J25,'Maíz tardío'!J26,'Maíz tardío'!J27,'Maíz tardío'!J33,'Maíz tardío'!J35) -> 101.584 | BC48: =+SUM('Maíz tardío'!K24,'Maíz tardío'!K25,'Maíz tardío'!K26,'Maíz tardío'!K27,'Maíz tardío'!K33,'Maíz tardío'!K35) -> 101.584 | BD48: =+SUM('Maíz tardío'!L24,'Maíz tardío'!L25,'Maíz tardío'!L26,'Maíz tardío'!L27,'Maíz tardío'!L33,'Maíz tardío'!L35) -> 0 | BE48: =+SUM('Maíz tardío'!M24,'Maíz tardío'!M25,'Maíz tardío'!M26,'Maíz tardío'!M27,'Maíz tardío'!M33,'Maíz tardío'!M35) -> 101.584 | BF48: =+SUM('Maíz tardío'!N24,'Maíz tardío'!N25,'Maíz tardío'!N26,'Maíz tardío'!N27,'Maíz tardío'!N33,'Maíz tardío'!N35) -> 101.584 | BG48: =+SUM('Maíz tardío'!O24,'Maíz tardío'!O25,'Maíz tardío'!O26,'Maíz tardío'!O27,'Maíz tardío'!O33,'Maíz tardío'!O35) -> 0 | BH48: =+SUM('Maíz tardío'!P24,'Maíz tardío'!P25,'Maíz tardío'!P26,'Maíz tardío'!P27,'Maíz tardío'!P33,'Maíz tardío'!P35) -> 0 | BI48: =+SUM('Maíz tardío'!Q24,'Maíz tardío'!Q25,'Maíz tardío'!Q26,'Maíz tardío'!Q27,'Maíz tardío'!Q33,'Maíz tardío'!Q35) -> 101.584 | BJ48: =+SUM('Maíz tardío'!R24,'Maíz tardío'!R25,'Maíz tardío'!R26,'Maíz tardío'!R27,'Maíz tardío'!R33,'Maíz tardío'!R35) -> 0 | BK48: =+SUM('Maíz tardío'!S24,'Maíz tardío'!S25,'Maíz tardío'!S26,'Maíz tardío'!S27,'Maíz tardío'!S33,'Maíz tardío'!S35) -> 101.584 | BL48: =+SUM('Maíz tardío'!T24,'Maíz tardío'!T25,'Maíz tardío'!T26,'Maíz tardío'!T27,'Maíz tardío'!T33,'Maíz tardío'!T35) -> 101.584 | BM48: =+SUM('Maíz tardío'!U24,'Maíz tardío'!U25,'Maíz tardío'!U26,'Maíz tardío'!U27,'Maíz tardío'!U33,'Maíz tardío'!U35) -> 101.584 | BN48: =+SUM('Maíz tardío'!V24,'Maíz tardío'!V25,'Maíz tardío'!V26,'Maíz tardío'!V27,'Maíz tardío'!V33,'Maíz tardío'!V35) -> 101.584 | BO48: =+SUM('Maíz tardío'!W24,'Maíz tardío'!W25,'Maíz tardío'!W26,'Maíz tardío'!W27,'Maíz tardío'!W33,'Maíz tardío'!W35) -> 0 | BP48: =+SUM('Maíz tardío'!X24,'Maíz tardío'!X25,'Maíz tardío'!X26,'Maíz tardío'!X27,'Maíz tardío'!X33,'Maíz tardío'!X35) -> 0 | BQ48: =+SUM('Maíz tardío'!Y24,'Maíz tardío'!Y25,'Maíz tardío'!Y26,'Maíz tardío'!Y27,'Maíz tardío'!Y33,'Maíz tardío'!Y35) -> 101.584 | BR48: =+SUM('Maíz tardío'!Z24,'Maíz tardío'!Z25,'Maíz tardío'!Z26,'Maíz tardío'!Z27,'Maíz tardío'!Z33,'Maíz tardío'!Z35) -> 101.584 | BS48: =+SUM('Maíz tardío'!AA24,'Maíz tardío'!AA25,'Maíz tardío'!AA26,'Maíz tardío'!AA27,'Maíz tardío'!AA33,'Maíz tardío'!AA35) -> 0 | BT48: =+SUM('Maíz tardío'!AB24,'Maíz tardío'!AB25,'Maíz tardío'!AB26,'Maíz tardío'!AB27,'Maíz tardío'!AB33,'Maíz tardío'!AB35) -> 101.584 | BU48: =+SUM('Maíz tardío'!AC24,'Maíz tardío'!AC25,'Maíz tardío'!AC26,'Maíz tardío'!AC27,'Maíz tardío'!AC33,'Maíz tardío'!AC35) -> 101.584 | BV48: =+SUM('Maíz tardío'!AD24,'Maíz tardío'!AD25,'Maíz tardío'!AD26,'Maíz tardío'!AD27,'Maíz tardío'!AD33,'Maíz tardío'!AD35) -> 101.584 | BW48: =+SUM('Maíz tardío'!AE24,'Maíz tardío'!AE25,'Maíz tardío'!AE26,'Maíz tardío'!AE27,'Maíz tardío'!AE33,'Maíz tardío'!AE35) -> 101.584 | BX48: =+SUM('Maíz tardío'!AF24,'Maíz tardío'!AF25,'Maíz tardío'!AF26,'Maíz tardío'!AF27,'Maíz tardío'!AF33,'Maíz tardío'!AF35) -> 101.584
AE49: 170 | AF49: 3068.71 | AU49: Fertilizantes | AX49: =+SUM('Maíz tardío'!F30:F32) -> 250 | AY49: =+SUM('Maíz tardío'!G30:G32) -> 0 | AZ49: =+SUM('Maíz tardío'!H30:H32) -> 250 | BA49: =+SUM('Maíz tardío'!I30:I32) -> 0 | BB49: =+SUM('Maíz tardío'!J30:J32) -> 250 | BC49: =+SUM('Maíz tardío'!K30:K32) -> 250 | BD49: =+SUM('Maíz tardío'!L30:L32) -> 0 | BE49: =+SUM('Maíz tardío'!M30:M32) -> 250 | BF49: =+SUM('Maíz tardío'!N30:N32) -> 250 | BG49: =+SUM('Maíz tardío'!O30:O32) -> 0 | BH49: =+SUM('Maíz tardío'!P30:P32) -> 0 | BI49: =+SUM('Maíz tardío'!Q30:Q32) -> 250 | BJ49: =+SUM('Maíz tardío'!R30:R32) -> 0 | BK49: =+SUM('Maíz tardío'!S30:S32) -> 250 | BL49: =+SUM('Maíz tardío'!T30:T32) -> 250 | BM49: =+SUM('Maíz tardío'!U30:U32) -> 250 | BN49: =+SUM('Maíz tardío'!V30:V32) -> 250 | BO49: =+SUM('Maíz tardío'!W30:W32) -> 0 | BP49: =+SUM('Maíz tardío'!X30:X32) -> 0 | BQ49: =+SUM('Maíz tardío'!Y30:Y32) -> 250 | BR49: =+SUM('Maíz tardío'!Z30:Z32) -> 250 | BS49: =+SUM('Maíz tardío'!AA30:AA32) -> 0 | BT49: =+SUM('Maíz tardío'!AB30:AB32) -> 250 | BU49: =+SUM('Maíz tardío'!AC30:AC32) -> 250 | BV49: =+SUM('Maíz tardío'!AD30:AD32) -> 250 | BW49: =+SUM('Maíz tardío'!AE30:AE32) -> 250 | BX49: =+SUM('Maíz tardío'!AF30:AF32) -> 250
A50: Estructura de Producción | B50: Soja 1ª | C50: Trigo + Soja 2ª | D50: Maíz Temprano | E50: Maíz Tardío | F50: Sorgo | AE50: 175 | AF50: 3129.08 | AU50: Insecticidas | AX50: =+SUM('Maíz tardío'!F34) -> 1.3975 | AY50: =+SUM('Maíz tardío'!G34) -> 0 | AZ50: =+SUM('Maíz tardío'!H34) -> 1.3975 | BA50: =+SUM('Maíz tardío'!I34) -> 0 | BB50: =+SUM('Maíz tardío'!J34) -> 1.3975 | BC50: =+SUM('Maíz tardío'!K34) -> 1.3975 | BD50: =+SUM('Maíz tardío'!L34) -> 0 | BE50: =+SUM('Maíz tardío'!M34) -> 1.3975 | BF50: =+SUM('Maíz tardío'!N34) -> 1.3975 | BG50: =+SUM('Maíz tardío'!O34) -> 0 | BH50: =+SUM('Maíz tardío'!P34) -> 0 | BI50: =+SUM('Maíz tardío'!Q34) -> 1.3975 | BJ50: =+SUM('Maíz tardío'!R34) -> 0 | BK50: =+SUM('Maíz tardío'!S34) -> 1.3975 | BL50: =+SUM('Maíz tardío'!T34) -> 1.3975 | BM50: =+SUM('Maíz tardío'!U34) -> 1.3975 | BN50: =+SUM('Maíz tardío'!V34) -> 1.3975 | BO50: =+SUM('Maíz tardío'!W34) -> 0 | BP50: =+SUM('Maíz tardío'!X34) -> 0 | BQ50: =+SUM('Maíz tardío'!Y34) -> 1.3975 | BR50: =+SUM('Maíz tardío'!Z34) -> 1.3975 | BS50: =+SUM('Maíz tardío'!AA34) -> 0 | BT50: =+SUM('Maíz tardío'!AB34) -> 1.3975 | BU50: =+SUM('Maíz tardío'!AC34) -> 1.3975 | BV50: =+SUM('Maíz tardío'!AD34) -> 1.3975 | BW50: =+SUM('Maíz tardío'!AE34) -> 1.3975 | BX50: =+SUM('Maíz tardío'!AF34) -> 1.3975
A51: Impuestos | B51: =(B38)/SUM(B$34:B$38) -> 0.03664327304 | C51: =(D38)/SUM(D$34:D$38) -> 0.06663217667 | D51: =(E38)/SUM(E$34:E$38) -> 0.07695973673 | E51: =(F38)/SUM(F$34:F$38) -> 0.01779778942 | F51: =(G38)/SUM(G$34:G$38) -> 0.01874079888 | AE51: 180 | AF51: 3189.31 | AU51: Fungicidas | AX51: 0 | AY51: 0 | AZ51: 0 | BA51: 0 | BB51: 0 | BC51: 0 | BD51: 0 | BE51: 0 | BF51: 0 | BG51: 0 | BH51: 0 | BI51: 0 | BJ51: 0 | BK51: 0 | BL51: 0 | BM51: 0 | BN51: 0 | BO51: 0 | BP51: 0 | BQ51: 0 | BR51: 0 | BS51: 0 | BT51: 0 | BU51: 0 | BV51: 0 | BW51: 0 | BX51: 0
A52: Costos Directos | B52: =B34/SUM(B$34:B$38) -> 0.3919666927 | C52: =D34/SUM(D$34:D$38) -> 0.4569318628 | D52: 0.3920536003 | E52: 0.4198686855 | F52: 0.3287153095 | AE52: 185 | AF52: 3251.18 | AU52: Curasemilla + Inoculante | AX52: 0 | AY52: 0 | AZ52: 0 | BA52: 0 | BB52: 0 | BC52: 0 | BD52: 0 | BE52: 0 | BF52: 0 | BG52: 0 | BH52: 0 | BI52: 0 | BJ52: 0 | BK52: 0 | BL52: 0 | BM52: 0 | BN52: 0 | BO52: 0 | BP52: 0 | BQ52: 0 | BR52: 0 | BS52: 0 | BT52: 0 | BU52: 0 | BV52: 0 | BW52: 0 | BX52: 0
A53: Gastos Comerciales | B53: =B35/SUM(B$34:B$38) -> 0.1459827141 | C53: 0.1543549265 | D53: 0.2432486416 | E53: 0.2485906045 | F53: 0.2177037803 | AE53: 190 | AF53: 3312.15 | AU53: Semillas | AX53: =+SUM('Maíz tardío'!F28:F29) -> 153 | AY53: =+SUM('Maíz tardío'!G28:G29) -> 0 | AZ53: =+SUM('Maíz tardío'!H28:H29) -> 153 | BA53: =+SUM('Maíz tardío'!I28:I29) -> 0 | BB53: =+SUM('Maíz tardío'!J28:J29) -> 153 | BC53: =+SUM('Maíz tardío'!K28:K29) -> 153 | BD53: =+SUM('Maíz tardío'!L28:L29) -> 0 | BE53: =+SUM('Maíz tardío'!M28:M29) -> 153 | BF53: =+SUM('Maíz tardío'!N28:N29) -> 153 | BG53: =+SUM('Maíz tardío'!O28:O29) -> 0 | BH53: =+SUM('Maíz tardío'!P28:P29) -> 0 | BI53: =+SUM('Maíz tardío'!Q28:Q29) -> 153 | BJ53: =+SUM('Maíz tardío'!R28:R29) -> 0 | BK53: =+SUM('Maíz tardío'!S28:S29) -> 153 | BL53: =+SUM('Maíz tardío'!T28:T29) -> 153 | BM53: =+SUM('Maíz tardío'!U28:U29) -> 153 | BN53: =+SUM('Maíz tardío'!V28:V29) -> 153 | BO53: =+SUM('Maíz tardío'!W28:W29) -> 0 | BP53: =+SUM('Maíz tardío'!X28:X29) -> 0 | BQ53: =+SUM('Maíz tardío'!Y28:Y29) -> 153 | BR53: =+SUM('Maíz tardío'!Z28:Z29) -> 153 | BS53: =+SUM('Maíz tardío'!AA28:AA29) -> 0 | BT53: =+SUM('Maíz tardío'!AB28:AB29) -> 153 | BU53: =+SUM('Maíz tardío'!AC28:AC29) -> 153 | BV53: =+SUM('Maíz tardío'!AD28:AD29) -> 153 | BW53: =+SUM('Maíz tardío'!AE28:AE29) -> 153 | BX53: =+SUM('Maíz tardío'!AF28:AF29) -> 153
A54: Costo de Arrendamiento | B54: =B36/SUM(B$34:B$38) -> 0.3633189534 | C54: 0.2529415368 | D54: 0.2387828164 | E54: 0.2594706044 | F54: 0.3628526328 | AE54: 195 | AF54: 3373.11 | AU54: Total | AX54: =+SUM(AX46:AX53) -> 683.8809492 | AY54: =+SUM(AY46:AY53) -> 0 | AZ54: 683.8809492 | BA54: 0 | BB54: 683.8809492 | BC54: 683.8809492 | BD54: 0 | BE54: 683.8809492 | BF54: 683.8809492 | BG54: 0 | BH54: 0 | BI54: 683.8809492 | BJ54: 0 | BK54: 683.8809492 | BL54: 683.8809492 | BM54: 683.8809492 | BN54: 683.8809492 | BO54: 0 | BP54: 0 | BQ54: 683.8809492 | BR54: 683.8809492 | BS54: 0 | BT54: 683.8809492 | BU54: 683.8809492 | BV54: 683.8809492 | BW54: 683.8809492 | BX54: 683.8809492
A55: Otros Costos Indirectos | B55: =B37/SUM(B$34:B$38) -> 0.06208836673 | C55: 0.06913949725 | D55: 0.04895520498 | E55: 0.05427231622 | F55: 0.07198747854 | AE55: 200 | AF55: 3434.23
AE56: 205 | AF56: 3442.17 | AU56: Opciones avanzadas (completado por el usuario) | AV56: Mes de actualiz. | AW56: Cantidades | AX56: Calamuchita | AY56: Capital | AZ56: Colón | BA56: Cruz del Eje | BB56: Gral. Roca | BC56: Gral. San Martín | BD56: Ischilin | BE56: Juárez Celman | BF56: Marcos Juárez | BG56: Minas | BH56: Pocho | BI56: Pte. R. Sáenz Peña | BJ56: Punilla | BK56: Río Cuarto | BL56: Río Primero | BM56: Río Seco | BN56: Río Segundo | BO56: San Alberto | BP56: San Javier | BQ56: San Justo | BR56: Santa María | BS56: Sobremonte | BT56: Tercero Arriba | BU56: Totoral | BV56: Tulumba | BW56: Unión | BX56: PROVINCIA
AE57: 210 | AF57: 3491.71 | AU57: Servicios de Labranza | AV57: Estos datos son los ingresados en opciones avanzadas | AW57: SORGO | AX57: =+SUM(Sorgo!F19,Sorgo!F20,Sorgo!F31) -> 75.81 | AY57: =+SUM(Sorgo!G19,Sorgo!G20,Sorgo!G31) -> 0 | AZ57: =+SUM(Sorgo!H19,Sorgo!H20,Sorgo!H31) -> 75.81 | BA57: =+SUM(Sorgo!I19,Sorgo!I20,Sorgo!I31) -> 0 | BB57: =+SUM(Sorgo!J19,Sorgo!J20,Sorgo!J31) -> 75.81 | BC57: =+SUM(Sorgo!K19,Sorgo!K20,Sorgo!K31) -> 75.81 | BD57: =+SUM(Sorgo!L19,Sorgo!L20,Sorgo!L31) -> 0 | BE57: =+SUM(Sorgo!M19,Sorgo!M20,Sorgo!M31) -> 75.81 | BF57: =+SUM(Sorgo!N19,Sorgo!N20,Sorgo!N31) -> 75.81 | BG57: =+SUM(Sorgo!O19,Sorgo!O20,Sorgo!O31) -> 0 | BH57: =+SUM(Sorgo!P19,Sorgo!P20,Sorgo!P31) -> 0 | BI57: =+SUM(Sorgo!Q19,Sorgo!Q20,Sorgo!Q31) -> 75.81 | BJ57: =+SUM(Sorgo!R19,Sorgo!R20,Sorgo!R31) -> 0 | BK57: =+SUM(Sorgo!S19,Sorgo!S20,Sorgo!S31) -> 75.81 | BL57: =+SUM(Sorgo!T19,Sorgo!T20,Sorgo!T31) -> 75.81 | BM57: =+SUM(Sorgo!U19,Sorgo!U20,Sorgo!U31) -> 75.81 | BN57: =+SUM(Sorgo!V19,Sorgo!V20,Sorgo!V31) -> 75.81 | BO57: =+SUM(Sorgo!W19,Sorgo!W20,Sorgo!W31) -> 0 | BP57: =+SUM(Sorgo!X19,Sorgo!X20,Sorgo!X31) -> 0 | BQ57: =+SUM(Sorgo!Y19,Sorgo!Y20,Sorgo!Y31) -> 75.81 | BR57: =+SUM(Sorgo!Z19,Sorgo!Z20,Sorgo!Z31) -> 75.81 | BS57: =+SUM(Sorgo!AA19,Sorgo!AA20,Sorgo!AA31) -> 0 | BT57: =+SUM(Sorgo!AB19,Sorgo!AB20,Sorgo!AB31) -> 75.81 | BU57: =+SUM(Sorgo!AC19,Sorgo!AC20,Sorgo!AC31) -> 75.81 | BV57: =+SUM(Sorgo!AD19,Sorgo!AD20,Sorgo!AD31) -> 75.81 | BW57: =+SUM(Sorgo!AE19,Sorgo!AE20,Sorgo!AE31) -> 75.81 | BX57: =+SUM(Sorgo!AF19,Sorgo!AF20,Sorgo!AF31) -> 75.81
AE58: 215 | AF58: 3551.34 | AU58: Servicios de Cosecha | AX58: =+SUM(Sorgo!F33) -> 69.24700808 | AY58: =+SUM(Sorgo!G33) -> 0 | AZ58: =+SUM(Sorgo!H33) -> 69.24700808 | BA58: =+SUM(Sorgo!I33) -> 0 | BB58: =+SUM(Sorgo!J33) -> 69.24700808 | BC58: =+SUM(Sorgo!K33) -> 69.24700808 | BD58: =+SUM(Sorgo!L33) -> 0 | BE58: =+SUM(Sorgo!M33) -> 69.24700808 | BF58: =+SUM(Sorgo!N33) -> 69.24700808 | BG58: =+SUM(Sorgo!O33) -> 0 | BH58: =+SUM(Sorgo!P33) -> 0 | BI58: =+SUM(Sorgo!Q33) -> 69.24700808 | BJ58: =+SUM(Sorgo!R33) -> 0 | BK58: =+SUM(Sorgo!S33) -> 69.24700808 | BL58: =+SUM(Sorgo!T33) -> 69.24700808 | BM58: =+SUM(Sorgo!U33) -> 69.24700808 | BN58: =+SUM(Sorgo!V33) -> 69.24700808 | BO58: =+SUM(Sorgo!W33) -> 0 | BP58: =+SUM(Sorgo!X33) -> 0 | BQ58: =+SUM(Sorgo!Y33) -> 69.24700808 | BR58: =+SUM(Sorgo!Z33) -> 69.24700808 | BS58: =+SUM(Sorgo!AA33) -> 0 | BT58: =+SUM(Sorgo!AB33) -> 69.24700808 | BU58: =+SUM(Sorgo!AC33) -> 69.24700808 | BV58: =+SUM(Sorgo!AD33) -> 69.24700808 | BW58: =+SUM(Sorgo!AE33) -> 69.24700808 | BX58: =+SUM(Sorgo!AF33) -> 69.24700808
AE59: 220 | AF59: 3611.42 | AU59: Herbicida | AX59: =+SUM(Sorgo!F22:F24) -> 55.389 | AY59: =+SUM(Sorgo!G22:G24) -> 0 | AZ59: =+SUM(Sorgo!H22:H24) -> 55.389 | BA59: =+SUM(Sorgo!I22:I24) -> 0 | BB59: =+SUM(Sorgo!J22:J24) -> 55.389 | BC59: =+SUM(Sorgo!K22:K24) -> 55.389 | BD59: =+SUM(Sorgo!L22:L24) -> 0 | BE59: =+SUM(Sorgo!M22:M24) -> 55.389 | BF59: =+SUM(Sorgo!N22:N24) -> 55.389 | BG59: =+SUM(Sorgo!O22:O24) -> 0 | BH59: =+SUM(Sorgo!P22:P24) -> 0 | BI59: =+SUM(Sorgo!Q22:Q24) -> 55.389 | BJ59: =+SUM(Sorgo!R22:R24) -> 0 | BK59: =+SUM(Sorgo!S22:S24) -> 55.389 | BL59: =+SUM(Sorgo!T22:T24) -> 55.389 | BM59: =+SUM(Sorgo!U22:U24) -> 55.389 | BN59: =+SUM(Sorgo!V22:V24) -> 55.389 | BO59: =+SUM(Sorgo!W22:W24) -> 0 | BP59: =+SUM(Sorgo!X22:X24) -> 0 | BQ59: =+SUM(Sorgo!Y22:Y24) -> 55.389 | BR59: =+SUM(Sorgo!Z22:Z24) -> 55.389 | BS59: =+SUM(Sorgo!AA22:AA24) -> 0 | BT59: =+SUM(Sorgo!AB22:AB24) -> 55.389 | BU59: =+SUM(Sorgo!AC22:AC24) -> 55.389 | BV59: =+SUM(Sorgo!AD22:AD24) -> 55.389 | BW59: =+SUM(Sorgo!AE22:AE24) -> 55.389 | BX59: =+SUM(Sorgo!AF22:AF24) -> 55.389
AE60: 225 | AF60: 3677.27 | AU60: Fertilizantes | AX60: =+SUM(Sorgo!F27:F28) -> 137 | AY60: =+SUM(Sorgo!G27:G28) -> 0 | AZ60: =+SUM(Sorgo!H27:H28) -> 137 | BA60: =+SUM(Sorgo!I27:I28) -> 0 | BB60: =+SUM(Sorgo!J27:J28) -> 137 | BC60: =+SUM(Sorgo!K27:K28) -> 137 | BD60: =+SUM(Sorgo!L27:L28) -> 0 | BE60: =+SUM(Sorgo!M27:M28) -> 137 | BF60: =+SUM(Sorgo!N27:N28) -> 137 | BG60: =+SUM(Sorgo!O27:O28) -> 0 | BH60: =+SUM(Sorgo!P27:P28) -> 0 | BI60: =+SUM(Sorgo!Q27:Q28) -> 137 | BJ60: =+SUM(Sorgo!R27:R28) -> 0 | BK60: =+SUM(Sorgo!S27:S28) -> 137 | BL60: =+SUM(Sorgo!T27:T28) -> 137 | BM60: =+SUM(Sorgo!U27:U28) -> 137 | BN60: =+SUM(Sorgo!V27:V28) -> 137 | BO60: =+SUM(Sorgo!W27:W28) -> 0 | BP60: =+SUM(Sorgo!X27:X28) -> 0 | BQ60: =+SUM(Sorgo!Y27:Y28) -> 137 | BR60: =+SUM(Sorgo!Z27:Z28) -> 137 | BS60: =+SUM(Sorgo!AA27:AA28) -> 0 | BT60: =+SUM(Sorgo!AB27:AB28) -> 137 | BU60: =+SUM(Sorgo!AC27:AC28) -> 137 | BV60: =+SUM(Sorgo!AD27:AD28) -> 137 | BW60: =+SUM(Sorgo!AE27:AE28) -> 137 | BX60: =+SUM(Sorgo!AF27:AF28) -> 137
AE61: 230 | AF61: 3743 | AU61: Insecticidas | AX61: =+SUM(Sorgo!F25,Sorgo!F29) -> 3.41826 | AY61: =+SUM(Sorgo!G25,Sorgo!G29) -> 0 | AZ61: =+SUM(Sorgo!H25,Sorgo!H29) -> 3.41826 | BA61: =+SUM(Sorgo!I25,Sorgo!I29) -> 0 | BB61: =+SUM(Sorgo!J25,Sorgo!J29) -> 3.41826 | BC61: =+SUM(Sorgo!K25,Sorgo!K29) -> 3.41826 | BD61: =+SUM(Sorgo!L25,Sorgo!L29) -> 0 | BE61: =+SUM(Sorgo!M25,Sorgo!M29) -> 3.41826 | BF61: =+SUM(Sorgo!N25,Sorgo!N29) -> 3.41826 | BG61: =+SUM(Sorgo!O25,Sorgo!O29) -> 0 | BH61: =+SUM(Sorgo!P25,Sorgo!P29) -> 0 | BI61: =+SUM(Sorgo!Q25,Sorgo!Q29) -> 3.41826 | BJ61: =+SUM(Sorgo!R25,Sorgo!R29) -> 0 | BK61: =+SUM(Sorgo!S25,Sorgo!S29) -> 3.41826 | BL61: =+SUM(Sorgo!T25,Sorgo!T29) -> 3.41826 | BM61: =+SUM(Sorgo!U25,Sorgo!U29) -> 3.41826 | BN61: =+SUM(Sorgo!V25,Sorgo!V29) -> 3.41826 | BO61: =+SUM(Sorgo!W25,Sorgo!W29) -> 0 | BP61: =+SUM(Sorgo!X25,Sorgo!X29) -> 0 | BQ61: =+SUM(Sorgo!Y25,Sorgo!Y29) -> 3.41826 | BR61: =+SUM(Sorgo!Z25,Sorgo!Z29) -> 3.41826 | BS61: =+SUM(Sorgo!AA25,Sorgo!AA29) -> 0 | BT61: =+SUM(Sorgo!AB25,Sorgo!AB29) -> 3.41826 | BU61: =+SUM(Sorgo!AC25,Sorgo!AC29) -> 3.41826 | BV61: =+SUM(Sorgo!AD25,Sorgo!AD29) -> 3.41826 | BW61: =+SUM(Sorgo!AE25,Sorgo!AE29) -> 3.41826 | BX61: =+SUM(Sorgo!AF25,Sorgo!AF29) -> 3.41826
AE62: 235 | AF62: 3808.69 | AU62: Fungicidas | AX62: 0 | AY62: 0 | AZ62: 0 | BA62: 0 | BB62: 0 | BC62: 0 | BD62: 0 | BE62: 0 | BF62: 0 | BG62: 0 | BH62: 0 | BI62: 0 | BJ62: 0 | BK62: 0 | BL62: 0 | BM62: 0 | BN62: 0 | BO62: 0 | BP62: 0 | BQ62: 0 | BR62: 0 | BS62: 0 | BT62: 0 | BU62: 0 | BV62: 0 | BW62: 0 | BX62: 0
AE63: 240 | AF63: 3874.42 | AU63: Curasemilla + Inoculante | AX63: 0 | AY63: 0 | AZ63: 0 | BA63: 0 | BB63: 0 | BC63: 0 | BD63: 0 | BE63: 0 | BF63: 0 | BG63: 0 | BH63: 0 | BI63: 0 | BJ63: 0 | BK63: 0 | BL63: 0 | BM63: 0 | BN63: 0 | BO63: 0 | BP63: 0 | BQ63: 0 | BR63: 0 | BS63: 0 | BT63: 0 | BU63: 0 | BV63: 0 | BW63: 0 | BX63: 0
AE64: 245 | AF64: 3941.29 | AU64: Semillas | AX64: =+SUM(Sorgo!F26) -> 42 | AY64: =+SUM(Sorgo!G26) -> 0 | AZ64: =+SUM(Sorgo!H26) -> 42 | BA64: =+SUM(Sorgo!I26) -> 0 | BB64: =+SUM(Sorgo!J26) -> 42 | BC64: =+SUM(Sorgo!K26) -> 42 | BD64: =+SUM(Sorgo!L26) -> 0 | BE64: =+SUM(Sorgo!M26) -> 42 | BF64: =+SUM(Sorgo!N26) -> 42 | BG64: =+SUM(Sorgo!O26) -> 0 | BH64: =+SUM(Sorgo!P26) -> 0 | BI64: =+SUM(Sorgo!Q26) -> 42 | BJ64: =+SUM(Sorgo!R26) -> 0 | BK64: =+SUM(Sorgo!S26) -> 42 | BL64: =+SUM(Sorgo!T26) -> 42 | BM64: =+SUM(Sorgo!U26) -> 42 | BN64: =+SUM(Sorgo!V26) -> 42 | BO64: =+SUM(Sorgo!W26) -> 0 | BP64: =+SUM(Sorgo!X26) -> 0 | BQ64: =+SUM(Sorgo!Y26) -> 42 | BR64: =+SUM(Sorgo!Z26) -> 42 | BS64: =+SUM(Sorgo!AA26) -> 0 | BT64: =+SUM(Sorgo!AB26) -> 42 | BU64: =+SUM(Sorgo!AC26) -> 42 | BV64: =+SUM(Sorgo!AD26) -> 42 | BW64: =+SUM(Sorgo!AE26) -> 42 | BX64: =+SUM(Sorgo!AF26) -> 42
AE65: 250 | AF65: 4008.51 | AU65: Total | AX65: =+SUM(AX57:AX64) -> 382.8642681 | AY65: =+SUM(AY57:AY64) -> 0 | AZ65: 382.8642681 | BA65: 0 | BB65: 382.8642681 | BC65: 382.8642681 | BD65: 0 | BE65: 382.8642681 | BF65: 382.8642681 | BG65: 0 | BH65: 0 | BI65: 382.8642681 | BJ65: 0 | BK65: 382.8642681 | BL65: 382.8642681 | BM65: 382.8642681 | BN65: 382.8642681 | BO65: 0 | BP65: 0 | BQ65: 382.8642681 | BR65: 382.8642681 | BS65: 0 | BT65: 382.8642681 | BU65: 382.8642681 | BV65: 382.8642681 | BW65: 382.8642681 | BX65: 382.8642681
AE66: 255 | AF66: 4073.13
AE67: 260 | AF67: 4136.89
AE68: 265 | AF68: 4200.83
AE69: 270 | AF69: 4262.17
AE70: 275 | AF70: 4320.237506
AE71: 280 | AF71: 4378.154088
AE72: 285 | AF72: 4436.259325
AE73: 290 | AF73: 4494.175908
AE74: 295 | AF74: 4554.016755
AE75: 300 | AF75: 4614.197178
AE76: 305 | AF76: 4673.924833
AE77: 310 | AF77: 4733.916603
AE78: 315 | AF78: 4739.198897
AE79: 320 | AF79: 4769.760742
AE80: 325 | AF80: 4828.733784
AE81: 330 | AF81: 4887.555903
AE82: 335 | AF82: 4947.132635
AE83: 340 | AF83: 5008.746824
AE84: 345 | AF84: 5070.511936
Y85: =+MROUND(AB85,5) -> 345 | AB85: 345 | AE85: 350 | AF85: 5131.86201
Y86: =+IF(AB85<=MROUND(AB85,5),VLOOKUP(MROUND(AB85-2.5,5),$AE$21:$AF$135,2,FALSE)+(VLOOKUP(MROUND(AB85,5),$AE$21:$AF$135,2,FALSE)-VLOOKUP(MROUND(AB85-2.5,5),$AE$21:$AF$135,2,FALSE))/5*(AB85-MROUND(AB85-2.5,5)),VLOOKUP(MROUND(AB85,5),$AE$21:$AF$135,2,FALSE)+(VLOOKUP(MROUND(AB85+2.5,5),$AE$21:$AF$135,2,FALSE)-VLOOKUP(MROUND(AB85,5),$AE$21:$AF$135,2,FALSE))/5*(AB85-MROUND(AB85,5))) -> 5070.511936 | AE86: 355 | AF86: 5187.024254
Y87: (buscarv(redond.mult(Y85;5);$AB$21:$AC$135;2;falso)-buscarv(redond.mult(Y85-2,5;5);$AB$21:$AC$135;2;falso))/5*(Y85-buscarv(redond.mult(Y85-2,5;5);$AB$21:$AC$135;2;falso))+buscarv(redond.mult(Y85-2,5;5);$AB$21:$AC$135;2;falso) | AE87: 360 | AF87: 5239.809465
Y88: =+(VLOOKUP(Y85,$AE$84:$AF$86,2,FALSE)-VLOOKUP(Y85-5,$AE$84:$AF$86,2,FALSE)) ->  | AE88: 365 | AF88: 5289.236646
AE89: =+AE88+5 -> 370 | AF89: 5336.286795
Y90: =+IF('Opciones Avanzadas'!$E$7<=MROUND('Opciones Avanzadas'!$E$7,5),VLOOKUP(MROUND('Opciones Avanzadas'!$E$7-2.5,5),$AE$21:$AF$135,2,FALSE)+(VLOOKUP(MROUND('Opciones Avanzadas'!$E$7,5),$AE$21:$AF$135,2,FALSE)-VLOOKUP(MROUND('Opciones Avanzadas'!$E$7-2.5,5),$AE$21:$AF$135,2,FALSE))/5*('Opciones Avanzadas'!$E$7-MROUND('Opciones Avanzadas'!$E$7-2.5,5)),VLOOKUP(MROUND('Opciones Avanzadas'!$E$7,5),$AE$21:$AF$135,2,FALSE)+(VLOOKUP(MROUND('Opciones Avanzadas'!$E$7+2.5,5),$AE$21:$AF$135,2,FALSE)-VLOOKUP(MROUND('Opciones Avanzadas'!$E$7,5),$AE$21:$AF$135,2,FALSE))/5*('Opciones Avanzadas'!$E$7-MROUND('Opciones Avanzadas'!$E$7,5))) -> 4378.154088 | AE90: 375 | AF90: 5377.941458
AE91: 380 | AF91: 5411.182181
AE92: 385 | AF92: 5444.837941
AE93: 390 | AF93: 5482.191307
AE94: 395 | AF94: 5523.959162
AE95: 400 | AF95: 5557.199885
AE96: 405 | AF96: 5557.841307
AE97: 410 | AF97: 5558.520459
AE98: 415 | AF98: 5559.16188
AE99: 420 | AF99: 5559.841032
AE100: 425 | AF100: 5560.482454
AE101: 430 | AF101: 5568.481356
AE102: 435 | AF102: 5586.969386
AE103: 440 | AF103: 5605.910184
AE104: 445 | AF104: 5624.964174
AE105: 450 | AF105: 5639.113176
AE106: 455 | AF106: 5646.923425
AE107: 460 | AF107: 5658.770856
AE108: 465 | AF108: 5681.182876
AE109: 470 | AF109: 5703.859011
AE110: 475 | AF110: 5721.932003
AE111: 480 | AF111: 5745.626865
AE112: 485 | AF112: 5769.321728
AE113: 490 | AF113: 5792.865668
AE114: 495 | AF114: 5816.711453
AE115: 500 | AF115: 5841.726889
AE116: 505 | AF116: 5862.818335
AE117: 510 | AF117: 5884.060704
AE118: 515 | AF118: 5905.15215
AE119: 520 | AF119: 5926.243596
AE120: 525 | AF120: 5943.863821
AE121: 530 | AF121: 5961.484045
AE122: 535 | AF122: 5978.991077
AE123: 540 | AF123: 5996.611301
AE124: 545 | AF124: 6008.911501
AE125: 550 | AF125: 6021.324892
AE126: 555 | AF126: 6033.587361
AE127: 560 | AF127: 6045.88756
AE128: 565 | AF128: 6064.979281
AE129: 570 | AF129: 6084.03327
AE130: 575 | AF130: 6102.974068
AE131: 580 | AF131: 6122.028058
AE132: 585 | AF132: 6135.04514
AE133: 590 | AF133: 6147.9113
AE134: 595 | AF134: 6160.890651
AE135: 600 | AF135: 6173.756811

Sheet PDF (hidden)
B2: Rentabilidad Campaña 2022/23 Der. de export. 12% maíz, 12% trigo y 33% soja.
B3: Rendimiento | C3: qq/ha | D3: =+'Calculadora BCCBA'!G4 -> 32.55249732 | E3: =+'Calculadora BCCBA'!H4 -> 29,8 || 26,4 | F3: =+'Calculadora BCCBA'!I4 -> 87.2092179 | G3: =+'Calculadora BCCBA'!J4 -> 78.36714459 | H3: =+'Calculadora BCCBA'!K4 -> 52.3298805
B4: Precio Disponible | C4: USD/qq | D4: =+'Calculadora BCCBA'!G5 -> 367.5 | E4: =+'Calculadora BCCBA'!H5 -> 289 || 368 | F4: =+'Calculadora BCCBA'!I5 -> 227 | G4: =+'Calculadora BCCBA'!J5 -> 205 | H4: =+'Calculadora BCCBA'!K5 -> 220
B5: Ingresos Totales | C5: USD/ha | D5: =+'Calculadora BCCBA'!G6 -> 1196.304277 | E5: =+'Calculadora BCCBA'!H6 -> 1830.284974 | F5: =+'Calculadora BCCBA'!I6 -> 1979.649246 | G5: =+'Calculadora BCCBA'!J6 -> 1606.526464 | H5: =+'Calculadora BCCBA'!K6 -> 1151.257371
B6: Costos Directos | C6: USD/ha | D6: =+'Calculadora BCCBA'!G7 -> 455.9490276 | E6: =+'Calculadora BCCBA'!H7 -> 763.4603275 | F6: =+'Calculadora BCCBA'!I7 -> 693.9010742 | G6: =+'Calculadora BCCBA'!J7 -> 683.8809492 | H6: =+'Calculadora BCCBA'!K7 -> 382.8642681
B7: Gastos Comerciales | C7: USD/ha | D7: =+'Calculadora BCCBA'!G8 -> 169.8120728 | E7: =+'Calculadora BCCBA'!H8 -> 257.9024846 | F7: =+'Calculadora BCCBA'!I8 -> 430.5291256 | G7: =+'Calculadora BCCBA'!J8 -> 404.9036865 | H7: =+'Calculadora BCCBA'!K8 -> 253.5659158
B8: Margen Bruto | C8: USD/ha | D8: =+'Calculadora BCCBA'!G9 -> 570.5431761 | E8: =+'Calculadora BCCBA'!H9 -> 808.9221618 | F8: =+'Calculadora BCCBA'!I9 -> 855.2190466 | G8: =+'Calculadora BCCBA'!J9 -> 517.7418285 | H8: =+'Calculadora BCCBA'!K9 -> 514.827187
B9: Rendimiento de Indiferencia | C9: USD/ha | D9: =+'Calculadora BCCBA'!G10 -> 17.02751294 | E9: =+'Calculadora BCCBA'!H10 -> - | F9: =+'Calculadora BCCBA'!I10 -> 49.53437004 | G9: =+'Calculadora BCCBA'!J10 -> 53.11144564 | H9: =+'Calculadora BCCBA'!K10 -> 28.92864472
B10: Costos Indirectos | C10: USD/ha | D10: =+'Calculadora BCCBA'!G11 -> 494.8483061 | E10: =+'Calculadora BCCBA'!H11 -> 538.146082 | F10: =+'Calculadora BCCBA'!I11 -> 509.2714925 | G10: =+'Calculadora BCCBA'!J11 -> 511.023598 | H10: =+'Calculadora BCCBA'!K11 -> 506.470907
B11: Resultado Operativo | C11: USD/ha | D11: =+'Calculadora BCCBA'!G12 -> 75.69487002 | E11: =+'Calculadora BCCBA'!H12 -> 270.7760798 | F11: =+'Calculadora BCCBA'!I12 -> 345.9475541 | G11: =+'Calculadora BCCBA'!J12 -> 6.718230502 | H11: =+'Calculadora BCCBA'!K12 -> 8.356279975
B12: Impuestos | C12: USD/ha | D12: =+'Calculadora BCCBA'!G13 -> 42.62470517 | E12: =+'Calculadora BCCBA'!H13 -> 111.3317489 | F12: =+'Calculadora BCCBA'!I13 -> 136.2120994 | G12: =+'Calculadora BCCBA'!J13 -> 28.98898999 | H12: =+'Calculadora BCCBA'!K13 -> 21.82795275
B13: Margen Neto | C13: USD/ha | D13: =+'Calculadora BCCBA'!G14 -> 33.07016486 | E13: =+'Calculadora BCCBA'!H14 -> 159.4443309 | F13: =+'Calculadora BCCBA'!I14 -> 209.7354547 | G13: =+'Calculadora BCCBA'!J14 -> -22.27075949 | H13: =+'Calculadora BCCBA'!K14 -> -13.47167278
B14: Intereses sobre el Capital Invertido | C14: USD/ha | D14: =+'Calculadora BCCBA'!G15 -> 21.59989509 | E14: =+'Calculadora BCCBA'!H15 -> 44.90000311 | F14: =+'Calculadora BCCBA'!I15 -> 31.63571228 | G14: =+'Calculadora BCCBA'!J15 -> 36.21350327 | H14: =+'Calculadora BCCBA'!K15 -> 27.33627223
B15: Resultado Económico | C15: USD/ha | D15: =+'Calculadora BCCBA'!G16 -> 11.47026977 | E15: =+'Calculadora BCCBA'!H16 -> 114.5443278 | F15: =+'Calculadora BCCBA'!I16 -> 178.0997424 | G15: =+'Calculadora BCCBA'!J16 -> -58.48426276 | H15: =+'Calculadora BCCBA'!K16 -> -40.80794501
B16: Inversión inicial | C16: USD/ha | D16: =+'Calculadora BCCBA'!G17 -> 863.9958036 | E16: =+'Calculadora BCCBA'!H17 -> 898.0000621 | F16: =+'Calculadora BCCBA'!I17 -> 1084.652992 | G16: =+'Calculadora BCCBA'!J17 -> 1086.405098 | H16: =+'Calculadora BCCBA'!K17 -> 820.088167
B17: Rentabilidad de la Actividad | C17: % | D17: =+'Calculadora BCCBA'!G18 -> 0.01327583968 | E17: =+'Calculadora BCCBA'!H18 -> 0.1275549219 | F17: =+'Calculadora BCCBA'!I18 -> 0.1641997428 | G17: =+'Calculadora BCCBA'!J18 -> -0.05383283166 | H17: =+'Calculadora BCCBA'!K18 -> -0.04976043632

Sheet Trigo + Soja 2ª (hidden)
B2: Planteo Tecnico (Por Ha) | C2: Unidad de medida | D2: Mes de actualiz. | E2: Cantidades | F2: Calamuchita | G2: Capital | H2: Colón | I2: Cruz del Eje | J2: Gral. Roca | K2: Gral. San Martín | L2: Ischilin | M2: Juárez Celman | N2: Marcos Juárez | O2: Minas | P2: Pocho | Q2: Pte. R. Sáenz Peña | R2: Punilla | S2: Río Cuarto | T2: Río Primero | U2: Río Seco | V2: Río Segundo | W2: San Alberto | X2: San Javier | Y2: San Justo | Z2: Santa María | AA2: Sobremonte | AB2: Tercero Arriba | AC2: Totoral | AD2: Tulumba | AE2: Unión | AF2: PROVINCIA
B3: Rendimiento | C3: qq/ha | D3: Enero | E3: - | F3: =+'Calculadora BCCBA'!$M$5 -> 29.78213336 | G3: =+'Calculadora BCCBA'!$M$5 -> 29.78213336 | H3: =+'Calculadora BCCBA'!$M$5 -> 29.78213336 | I3: =+'Calculadora BCCBA'!$M$5 -> 29.78213336 | J3: =+'Calculadora BCCBA'!$M$5 -> 29.78213336 | K3: =+'Calculadora BCCBA'!$M$5 -> 29.78213336 | L3: =+'Calculadora BCCBA'!$M$5 -> 29.78213336 | M3: =+'Calculadora BCCBA'!$M$5 -> 29.78213336 | N3: =+'Calculadora BCCBA'!$M$5 -> 29.78213336 | O3: =+'Calculadora BCCBA'!$M$5 -> 29.78213336 | P3: =+'Calculadora BCCBA'!$M$5 -> 29.78213336 | Q3: =+'Calculadora BCCBA'!$M$5 -> 29.78213336 | R3: =+'Calculadora BCCBA'!$M$5 -> 29.78213336 | S3: =+'Calculadora BCCBA'!$M$5 -> 29.78213336 | T3: =+'Calculadora BCCBA'!$M$5 -> 29.78213336 | U3: =+'Calculadora BCCBA'!$M$5 -> 29.78213336 | V3: =+'Calculadora BCCBA'!$M$5 -> 29.78213336 | W3: =+'Calculadora BCCBA'!$M$5 -> 29.78213336 | X3: =+'Calculadora BCCBA'!$M$5 -> 29.78213336 | Y3: =+'Calculadora BCCBA'!$M$5 -> 29.78213336 | Z3: =+'Calculadora BCCBA'!$M$5 -> 29.78213336 | AA3: =+'Calculadora BCCBA'!$M$5 -> 29.78213336 | AB3: =+'Calculadora BCCBA'!$M$5 -> 29.78213336 | AC3: =+'Calculadora BCCBA'!$M$5 -> 29.78213336 | AD3: =+'Calculadora BCCBA'!$M$5 -> 29.78213336 | AE3: =+'Calculadora BCCBA'!$M$5 -> 29.78213336 | AF3: =+'Calculadora BCCBA'!$M$5 -> 29.78213336
B4: Participación Provincial | C4: Porcentaje | E4: - | F4: 0.003132032298 | H4: 0.01831422969 | J4: 0.05263505989 | K4: 0.05830215585 | M4: 0.05869099803 | N4: 0.1134604296 | Q4: 0.0396488583 | S4: 0.02962846193 | T4: 0.07304470662 | U4: 0.01395643132 | V4: 0.06522615367 | Y4: 0.2378293171 | Z4: 0.006012801751 | AB4: 0.0250706033 | AC4: 0.02855414232 | AD4: 0.01649975008 | AE4: 0.1552171836 | AF4: -
B5: Pulverización terrestre | C5: Cantidad | D5: Junio | E5: 3 | F5: =$E5 -> 3 | H5: =$E5 -> 3 | J5: =$E5 -> 3 | K5: 3 | M5: =$E5 -> 3 | N5: 3 | Q5: =$E5 -> 3 | S5: =$E5 -> 3 | T5: 3 | U5: 3 | V5: 3 | Y5: =$E5 -> 3 | Z5: 3 | AB5: =$E5 -> 3 | AC5: 3 | AD5: 3 | AE5: 3 | AF5: =SUMPRODUCT(F5:AE5,$F$4:$AE$4) -> 2.985669946
B6: Fertilización | C6: Cantidad | D6: =D5 -> Junio | E6: 1 | F6: 1 | H6: 1 | J6: 1 | K6: 1 | M6: 1 | N6: 1 | Q6: 1 | S6: 1 | T6: 1 | U6: 1 | V6: 1 | Y6: 1 | Z6: 1 | AB6: 1 | AC6: 1 | AD6: 1 | AE6: 1 | AF6: =SUMPRODUCT(F6:AE6,$F$4:$AE$4) -> 0.9952233153
B7: Pulverización aerea | C7: Cantidad | D7: =D6 -> Junio | E7: 0 | F7: 0 | H7: 0 | J7: 0 | K7: 0 | M7: 0 | N7: 0 | Q7: 0 | S7: 0 | T7: 0 | U7: 0 | V7: 0 | Y7: 0 | Z7: 0 | AB7: 0 | AC7: 0 | AD7: 0 | AE7: 0 | AF7: =+AVERAGE(F7:AE7) -> 0
B8: Metsulfuron Metil | C8: kg/ha | D8: =D7 -> Junio | E8: 0.006 | F8: 0.006 | H8: 0.006 | J8: 0.006 | K8: 0.006 | M8: 0.006 | N8: 0.006 | Q8: 0.006 | S8: 0.006 | T8: 0.006 | U8: 0.006 | V8: 0.006 | Y8: 0.006 | Z8: 0.006 | AB8: 0.006 | AC8: 0.006 | AD8: 0.006 | AE8: 0.006 | AF8: =+AVERAGE(F8:AE8) -> 0.006
B9: 2 4 D Ester 100% | C9: lt/ha | D9: =D8 -> Junio | E9: 0.62 | F9: 0.62 | H9: 0.62 | J9: 0.62 | K9: 0.62 | M9: 0.62 | N9: 0.62 | Q9: 0.62 | S9: 0.62 | T9: 0.62 | U9: 0.62 | V9: 0.62 | Y9: 0.62 | Z9: 0.62 | AB9: 0.62 | AC9: 0.62 | AD9: 0.62 | AE9: 0.62 | AF9: =+AVERAGE(F9:AE9) -> 0.62
B10: Glifosato 54% | C10: lt/ha | D10: =D9 -> Junio | E10: 1.65 | F10: 1.65 | H10: 1.65 | J10: 1.65 | K10: 1.65 | M10: 1.65 | N10: 1.65 | Q10: 1.65 | S10: 1.65 | T10: 1.65 | U10: 1.65 | V10: 1.65 | Y10: 1.65 | Z10: 1.65 | AB10: 1.65 | AC10: 1.65 | AD10: 1.65 | AE10: 1.65 | AF10: =+AVERAGE(F10:AE10) -> 1.65
B11: Semilla | C11: kg/ha | D11: Junio | E11: - | F11: 140 | H11: 90 | J11: 115 | K11: 100 | M11: 100 | N11: 110 | Q11: 115 | S11: 115 | T11: 97 | U11: 130 | V11: 97 | Y11: 105 | Z11: 140 | AB11: 135 | AC11: 130 | AD11: 125 | AE11: 120 | AF11: =SUMPRODUCT(F11:AE11,$F$4:$AE$4) -> 109.1122323
B12: Curasem. Chucaro | C12: kg/ha | D12: Junio | E12: 0.21 | F12: =$E12 -> 0.21 | H12: =$E12 -> 0.21 | J12: =$E12 -> 0.21 | K12: =$E12 -> 0.21 | M12: =$E12 -> 0.21 | N12: =$E12 -> 0.21 | Q12: =$E12 -> 0.21 | S12: =$E12 -> 0.21 | T12: =$E12 -> 0.21 | U12: =$E12 -> 0.21 | V12: =$E12 -> 0.21 | Y12: =$E12 -> 0.21 | Z12: =$E12 -> 0.21 | AB12: =$E12 -> 0.21 | AC12: =$E12 -> 0.21 | AD12: =$E12 -> 0.21 | AE12: =$E12 -> 0.21 | AF12: =+AVERAGE(F12:AE12) -> 0.21
B13: Urea | C13: kg/ha | D13: Junio | E13: - | F13: 30.48226671 | H13: 61.24443597 | J13: 95.29954698 | K13: 93.25852183 | M13: 109.1774738 | N13: 164.1439152 | Q13: 86.04892427 | S13: 98.88899484 | T13: 26.45387751 | U13: 1.326086957 | V13: 74.48764393 | Y13: 52.83721727 | Z13: 32.46661219 | AB13: 59.82447536 | AC13: 56.37343926 | AD13: 10.55197436 | AE13: 167.4695765 | AF13: =SUMPRODUCT(F13:AE13,$F$4:$AE$4) -> 91.89224291
B14: Fosfato diamónico | C14: kg/ha | D14: Junio | E14: - | F14: 82.30099681 | H14: 29.10290334 | J14: 35.58513743 | K14: 51.71003923 | M14: 111.311354 | N14: 73.55157398 | Q14: 55.19411152 | S14: 65.79570543 | T14: 22.82908009 | U14: 37.5 | V14: 40.74740407 | Y14: 41.71628371 | Z14: 37.43883792 | AB14: 47.45078678 | AC14: 36.71738775 | AD14: 34.86774117 | AE14: 65.7415808 | AF14: =SUMPRODUCT(F14:AE14,$F$4:$AE$4) -> 52.70733498
B15: Banvel | C15: lt/ha | D15: Junio | E15: 0 | F15: =$E15 -> 0 | H15: =$E15 -> 0 | J15: =$E15 -> 0 | K15: 0 | M15: =$E15 -> 0 | N15: 0 | Q15: =$E15 -> 0 | S15: =$E15 -> 0 | T15: 0 | U15: 0 | V15: 0 | Y15: =$E15 -> 0 | Z15: 0 | AB15: =$E15 -> 0 | AC15: 0 | AD15: 0 | AE15: 0 | AF15: =+AVERAGE(F15:AE15) -> 0
B16: Tordon 24k | C16: lt/ha | D16: Junio | E16: 0 | F16: =$E16 -> 0 | H16: =$E16 -> 0 | J16: 0 | K16: 0 | M16: 0 | N16: 0 | Q16: =$E16 -> 0 | S16: 0 | T16: 0 | U16: 0 | V16: 0 | Y16: 0 | Z16: 0 | AB16: 0 | AC16: 0 | AD16: 0 | AE16: 0 | AF16: =+AVERAGE(F16:AE16) -> 0
B17: Amistar Extra Gold | C17: lt/ha | D17: Junio | E17: 0.4 | F17: =$E17 -> 0.4 | H17: =$E17 -> 0.4 | J17: 0.4 | K17: 0.4 | M17: 0.4 | N17: 0.4 | Q17: =$E17 -> 0.4 | S17: 0.4 | T17: 0.4 | U17: 0.4 | V17: 0.4 | Y17: 0.4 | Z17: 0.4 | AB17: 0.4 | AC17: 0.4 | AD17: 0.4 | AE17: 0.4 | AF17: =+AVERAGE(F17:AE17) -> 0.4
B18: Karate Zeon 25% | C18: lt/ha | D18: Junio | E18: 0.025 | F18: =$E18 -> 0.025 | H18: =$E18 -> 0.025 | J18: 0.025 | K18: 0.025 | M18: 0.025 | N18: 0.025 | Q18: =$E18 -> 0.025 | S18: 0.025 | T18: 0.025 | U18: 0.025 | V18: 0.025 | Y18: 0.025 | Z18: 0.025 | AB18: 0.025 | AC18: 0.025 | AD18: 0.025 | AE18: 0.025 | AF18: =+AVERAGE(F18:AE18) -> 0.025
B19: Riego | C19: mm/ha | D19: - | E19: - | F19: 0 | H19: =+$F$19 -> 0 | J19: =+$F$19 -> 0 | K19: 0 | M19: 0 | N19: 0 | Q19: 0 | S19: 0 | T19: 0 | U19: 0 | V19: =+$F$19 -> 0 | Y19: =+$F$19 -> 0 | Z19: 0 | AB19: 0 | AC19: =+$F$19 -> 0 | AD19: =+$F$19 -> 0 | AE19: =+$F$19 -> 0 | AF19: 0
B21: Costos Directos (Por Ha) | C21: =C$2 -> Unidad de medida | D21: =D$2 -> Mes de actualiz. | E21: Precio | F21: Calamuchita | G21: Capital | H21: Colón | I21: Cruz del Eje | J21: Gral. Roca | K21: Gral. San Martín | L21: Ischilin | M21: Juárez Celman | N21: Marcos Juárez | O21: Minas | P21: Pocho | Q21: Pte. R. Sáenz Peña | R21: Punilla | S21: Río Cuarto | T21: Río Primero | U21: Río Seco | V21: Río Segundo | W21: San Alberto | X21: San Javier | Y21: San Justo | Z21: Santa María | AA21: Sobremonte | AB21: Tercero Arriba | AC21: Totoral | AD21: Tulumba | AE21: Unión | AF21: PROVINCIA
A22: L | B22: Pulverización terrestre | C22: USD/Unidad | D22: Junio | E22: 6.32 | F22: =$E22*F5 -> 18.96 | H22: =$E22*H5 -> 18.96 | J22: =$E22*J5 -> 18.96 | K22: 18.96 | M22: =$E22*M5 -> 18.96 | N22: 18.96 | Q22: =$E22*Q5 -> 18.96 | S22: =$E22*S5 -> 18.96 | T22: 18.96 | U22: 18.96 | V22: 18.96 | Y22: =$E22*Y5 -> 18.96 | Z22: 18.96 | AB22: =$E22*AB5 -> 18.96 | AC22: 18.96 | AD22: 18.96 | AE22: 18.96 | AF22: 18.86943406
A23: L | B23: Fertilización | C23: USD/Unidad | D23: =D22 -> Junio | E23: 10.53 | F23: 10.53 | H23: 10.53 | J23: 10.53 | K23: 10.53 | M23: 10.53 | N23: 10.53 | Q23: 10.53 | S23: 10.53 | T23: 10.53 | U23: 10.53 | V23: 10.53 | Y23: 10.53 | Z23: 10.53 | AB23: 10.53 | AC23: 10.53 | AD23: 10.53 | AE23: 10.53 | AF23: 10.47970151
A24: L | B24: Pulverización aerea | C24: USD/Unidad | D24: =D23 -> Junio | E24: 12.63 | F24: 0 | H24: 0 | J24: 0 | K24: 0 | M24: 0 | N24: 0 | Q24: 0 | S24: 0 | T24: 0 | U24: 0 | V24: 0 | Y24: 0 | Z24: 0 | AB24: 0 | AC24: 0 | AD24: 0 | AE24: 0 | AF24: 0
A25: H | B25: Metsulfuron Metil | C25: =+"USD/"&LEFT(C8,2) -> USD/kg | D25: =D24 -> Junio | E25: 48.4 | F25: 0.2904 | H25: 0.2904 | J25: 0.2904 | K25: 0.2904 | M25: 0.2904 | N25: 0.2904 | Q25: 0.2904 | S25: 0.2904 | T25: 0.2904 | U25: 0.2904 | V25: 0.2904 | Y25: 0.2904 | Z25: 0.2904 | AB25: 0.2904 | AC25: 0.2904 | AD25: 0.2904 | AE25: 0.2904 | AF25: 0.2904
A26: H | B26: 2 4 D Ester 100% | C26: USD/lt | D26: =D25 -> Junio | E26: 7.2 | F26: 4.464 | H26: 4.464 | J26: 4.464 | K26: 4.464 | M26: 4.464 | N26: 4.464 | Q26: 4.464 | S26: 4.464 | T26: 4.464 | U26: 4.464 | V26: 4.464 | Y26: 4.464 | Z26: 4.464 | AB26: 4.464 | AC26: 4.464 | AD26: 4.464 | AE26: 4.464 | AF26: 4.464
A27: H | B27: Glifosato | C27: USD/lt | D27: =D26 -> Junio | E27: 12.5 | F27: 20.625 | H27: 20.625 | J27: 20.625 | K27: 20.625 | M27: 20.625 | N27: 20.625 | Q27: 20.625 | S27: 20.625 | T27: 20.625 | U27: 20.625 | V27: 20.625 | Y27: 20.625 | Z27: 20.625 | AB27: 20.625 | AC27: 20.625 | AD27: 20.625 | AE27: 20.625 | AF27: 20.625
A28: S | B28: Semilla | C28: USD/kg | D28: =D27 -> Junio | E28: 0.58 | F28: 81.2 | H28: 52.2 | J28: 66.7 | K28: 58 | M28: 58 | N28: 63.8 | Q28: 66.7 | S28: 66.7 | T28: 56.26 | U28: 75.4 | V28: 56.26 | Y28: 60.9 | Z28: 81.2 | AB28: 78.3 | AC28: 75.4 | AD28: 72.5 | AE28: 69.6 | AF28: 63.28509476
A29: Cu | B29: Curasem. Chucaro | C29: USD/kg | D29: Junio | E29: 81.92 | F29: 17.2032 | H29: 17.2032 | J29: 17.2032 | K29: 17.2032 | M29: 17.2032 | N29: 17.2032 | Q29: 17.2032 | S29: 17.2032 | T29: 17.2032 | U29: 17.2032 | V29: 17.2032 | Y29: 17.2032 | Z29: 17.2032 | AB29: 17.2032 | AC29: 17.2032 | AD29: 17.2032 | AE29: 17.2032 | AF29: 17.2032
A30: Fe | B30: Urea | C30: USD/kg | D30: Junio | E30: 0.95 | F30: 28.95815337 | H30: 58.18221418 | J30: 90.53456963 | K30: 88.59559574 | M30: 103.7186001 | N30: 155.9367194 | Q30: 81.74647805 | S30: 93.9445451 | T30: 25.13118363 | U30: 1.259782609 | V30: 70.76326173 | Y30: 50.19535641 | Z30: 30.84328158 | AB30: 56.83325159 | AC30: 53.55476729 | AD30: 10.02437564 | AE30: 159.0960977 | AF30: 87.29763076
A31: Fe | B31: Fosfato diamónico | C31: USD/kg | D31: Junio | E31: 1.4 | F31: 115.2213955 | H31: 40.74406468 | J31: 49.8191924 | K31: 72.39405492 | M31: 155.8358956 | N31: 102.9722036 | Q31: 77.27175612 | S31: 92.1139876 | T31: 31.96071213 | U31: 52.5 | V31: 57.0463657 | Y31: 58.4027972 | Z31: 52.41437309 | AB31: 66.43110149 | AC31: 51.40434285 | AD31: 48.81483764 | AE31: 92.03821311 | AF31: 73.79026898
A32: He | B32: Banvel | C32: USD/lt | D32: Junio | E32: 10.6 | F32: 0 | H32: 0 | J32: 0 | K32: 0 | M32: 0 | N32: 0 | Q32: 0 | S32: 0 | T32: 0 | U32: 0 | V32: 0 | Y32: 0 | Z32: 0 | AB32: 0 | AC32: 0 | AD32: 0 | AE32: 0 | AF32: 0
A33: He | B33: Tordon 24k | C33: USD/lt | D33: Junio | E33: 24 | F33: 0 | H33: 0 | J33: 0 | K33: 0 | M33: 0 | N33: 0 | Q33: 0 | S33: 0 | T33: 0 | U33: 0 | V33: 0 | Y33: 0 | Z33: 0 | AB33: 0 | AC33: 0 | AD33: 0 | AE33: 0 | AF33: 0
A34: Fu | B34: Amistar Extra Gold | C34: USD/lt | D34: Junio | E34: 39.58 | F34: 15.832 | H34: 15.832 | J34: 15.832 | K34: 15.832 | M34: 15.832 | N34: 15.832 | Q34: 15.832 | S34: 15.832 | T34: 15.832 | U34: 15.832 | V34: 15.832 | Y34: 15.832 | Z34: 15.832 | AB34: 15.832 | AC34: 15.832 | AD34: 15.832 | AE34: 15.832 | AF34: 15.832
A35: Ins | B35: Karate Zeon 5% | C35: USD/lt | D35: Junio | E35: 55.89 | F35: 1.39725 | H35: 1.39725 | J35: 1.39725 | K35: 1.39725 | M35: 1.39725 | N35: 1.39725 | Q35: 1.39725 | S35: 1.39725 | T35: 1.39725 | U35: 1.39725 | V35: 1.39725 | Y35: 1.39725 | Z35: 1.39725 | AB35: 1.39725 | AC35: 1.39725 | AD35: 1.39725 | AE35: 1.39725 | AF35: 1.39725
B36: Riego | C36: =+"USD/"&LEFT(C19,2) -> USD/mm | D36: =D35 -> Junio | E36: 1 | F36: 0 | H36: 0 | J36: 0 | K36: 0 | M36: 0 | N36: 0 | Q36: 0 | S36: 0 | T36: 0 | U36: 0 | V36: 0 | Y36: 0 | Z36: 0 | AB36: 0 | AC36: 0 | AD36: 0 | AE36: 0 | AF36: 0
A37: L | B37: Siembra | C37: USD/Unidad | D37: Junio | E37: 46.32 | F37: =$E$37 -> 46.32 | H37: =$E$37 -> 46.32 | J37: =$E$37 -> 46.32 | K37: =$E$37 -> 46.32 | M37: =$E$37 -> 46.32 | N37: =$E$37 -> 46.32 | Q37: =$E$37 -> 46.32 | S37: =$E$37 -> 46.32 | T37: =$E$37 -> 46.32 | U37: =$E$37 -> 46.32 | V37: =$E$37 -> 46.32 | Y37: =$E$37 -> 46.32 | Z37: =$E$37 -> 46.32 | AB37: =$E$37 -> 46.32 | AC37: =$E$37 -> 46.32 | AD37: =$E$37 -> 46.32 | AE37: =$E$37 -> 46.32 | AF37: =$E$37 -> 46.32
B38: Cosecha | C38: $/Unidad | E38: - | F38: =+Listas!$AC$10 -> 8015.352802 | G38: =+Listas!$AC$10 -> 8015.352802 | H38: =+Listas!$AC$10 -> 8015.352802 | I38: =+Listas!$AC$10 -> 8015.352802 | J38: =+Listas!$AC$10 -> 8015.352802 | K38: =+Listas!$AC$10 -> 8015.352802 | L38: =+Listas!$AC$10 -> 8015.352802 | M38: =+Listas!$AC$10 -> 8015.352802 | N38: =+Listas!$AC$10 -> 8015.352802 | O38: =+Listas!$AC$10 -> 8015.352802 | P38: =+Listas!$AC$10 -> 8015.352802 | Q38: =+Listas!$AC$10 -> 8015.352802 | R38: =+Listas!$AC$10 -> 8015.352802 | S38: =+Listas!$AC$10 -> 8015.352802 | T38: =+Listas!$AC$10 -> 8015.352802 | U38: =+Listas!$AC$10 -> 8015.352802 | V38: =+Listas!$AC$10 -> 8015.352802 | W38: =+Listas!$AC$10 -> 8015.352802 | X38: =+Listas!$AC$10 -> 8015.352802 | Y38: =+Listas!$AC$10 -> 8015.352802 | Z38: =+Listas!$AC$10 -> 8015.352802 | AA38: =+Listas!$AC$10 -> 8015.352802 | AB38: =+Listas!$AC$10 -> 8015.352802 | AC38: =+Listas!$AC$10 -> 8015.352802 | AD38: =+Listas!$AC$10 -> 8015.352802 | AE38: =+Listas!$AC$10 -> 8015.352802 | AF38: =+Listas!$AC$10 -> 8015.352802
A39: Co | B39: Cosecha en USD | C39: USD/Unidad | E39: - | F39: =F38*(1+$E$155)/$E$150 -> 77.15810637 | H39: =H38*(1+$E$155)/$E$150 -> 77.15810637 | J39: =J38*(1+$E$155)/$E$150 -> 77.15810637 | K39: =K38*(1+$E$155)/$E$150 -> 77.15810637 | M39: =M38*(1+$E$155)/$E$150 -> 77.15810637 | N39: =N38*(1+$E$155)/$E$150 -> 77.15810637 | Q39: =Q38*(1+$E$155)/$E$150 -> 77.15810637 | S39: =S38*(1+$E$155)/$E$150 -> 77.15810637 | T39: =T38*(1+$E$155)/$E$150 -> 77.15810637 | U39: =U38*(1+$E$155)/$E$150 -> 77.15810637 | V39: =V38*(1+$E$155)/$E$150 -> 77.15810637 | Y39: =Y38*(1+$E$155)/$E$150 -> 77.15810637 | Z39: =Z38*(1+$E$155)/$E$150 -> 77.15810637 | AB39: =AB38*(1+$E$155)/$E$150 -> 77.15810637 | AC39: =AC38*(1+$E$155)/$E$150 -> 77.15810637 | AD39: =AD38*(1+$E$155)/$E$150 -> 77.15810637 | AE39: =AE38*(1+$E$155)/$E$150 -> 77.15810637 | AF39: =AF38*(1+$E$155)/$E$150 -> 77.15810637
B40: Costos directos | C40: USD/ha | F40: =SUM(F39,F22:F37) -> 438.1595053 | H40: =SUM(H39,H22:H37) -> 363.9062352 | J40: =SUM(J39,J22:J37) -> 419.8337184 | K40: =SUM(K39,K22:K37) -> 431.769607 | M40: =SUM(M39,M22:M37) -> 530.3344521 | N40: =SUM(N39,N22:N37) -> 535.4888794 | Q40: =SUM(Q39,Q22:Q37) -> 438.4981905 | S40: =SUM(S39,S22:S37) -> 465.5384891 | T40: =SUM(T39,T22:T37) -> 326.1318521 | U40: =SUM(U39,U22:U37) -> 341.939739 | V40: =SUM(V39,V22:V37) -> 396.8495838 | Y40: =SUM(Y39,Y22:Y37) -> 382.27811 | Z40: =SUM(Z39,Z22:Z37) -> 377.237611 | AB40: =SUM(AB39,AB22:AB37) -> 414.3443094 | AC40: =SUM(AC39,AC22:AC37) -> 393.1390665 | AD40: =SUM(AD39,AD22:AD37) -> 344.1191696 | AE40: =SUM(AE39,AE22:AE37) -> 533.5142671 | AF40: =SUM(AF39,AF22:AF37) -> 437.0120864
B42: Opciones avanzadas SOJA 2ª (completado por el usuario) | C42: =C$2 -> Unidad de medida | D42: =D$2 -> Mes de actualiz. | E42: Precio | F42: Calamuchita | G42: Capital | H42: Colón | I42: Cruz del Eje | J42: Gral. Roca | K42: Gral. San Martín | L42: Ischilin | M42: Juárez Celman | N42: Marcos Juárez | O42: Minas | P42: Pocho | Q42: Pte. R. Sáenz Peña | R42: Punilla | S42: Río Cuarto | T42: Río Primero | U42: Río Seco | V42: Río Segundo | W42: San Alberto | X42: San Javier | Y42: San Justo | Z42: Santa María | AA42: Sobremonte | AB42: Tercero Arriba | AC42: Totoral | AD42: Tulumba | AE42: Unión | AF42: PROVINCIA
B43: Servicios de labranza | C43: USD/ha | D43: Estos datos son los ingresados en opciones avanzadas | E43: - | F43: =+'Opciones Avanzadas'!$E13 -> 75.66913557 | G43: =+'Opciones Avanzadas'!$E13 -> 75.66913557 | H43: =+'Opciones Avanzadas'!$E13 -> 75.66913557 | I43: =+'Opciones Avanzadas'!$E13 -> 75.66913557 | J43: =+'Opciones Avanzadas'!$E13 -> 75.66913557 | K43: =+'Opciones Avanzadas'!$E13 -> 75.66913557 | L43: =+'Opciones Avanzadas'!$E13 -> 75.66913557 | M43: =+'Opciones Avanzadas'!$E13 -> 75.66913557 | N43: =+'Opciones Avanzadas'!$E13 -> 75.66913557 | O43: =+'Opciones Avanzadas'!$E13 -> 75.66913557 | P43: =+'Opciones Avanzadas'!$E13 -> 75.66913557 | Q43: =+'Opciones Avanzadas'!$E13 -> 75.66913557 | R43: =+'Opciones Avanzadas'!$E13 -> 75.66913557 | S43: =+'Opciones Avanzadas'!$E13 -> 75.66913557 | T43: =+'Opciones Avanzadas'!$E13 -> 75.66913557 | U43: =+'Opciones Avanzadas'!$E13 -> 75.66913557 | V43: =+'Opciones Avanzadas'!$E13 -> 75.66913557 | W43: =+'Opciones Avanzadas'!$E13 -> 75.66913557 | X43: =+'Opciones Avanzadas'!$E13 -> 75.66913557 | Y43: =+'Opciones Avanzadas'!$E13 -> 75.66913557 | Z43: =+'Opciones Avanzadas'!$E13 -> 75.66913557 | AA43: =+'Opciones Avanzadas'!$E13 -> 75.66913557 | AB43: =+'Opciones Avanzadas'!$E13 -> 75.66913557 | AC43: =+'Opciones Avanzadas'!$E13 -> 75.66913557 | AD43: =+'Opciones Avanzadas'!$E13 -> 75.66913557 | AE43: =+'Opciones Avanzadas'!$E13 -> 75.66913557 | AF43: =+'Opciones Avanzadas'!$E13 -> 75.66913557
B44: Cosecha | C44: USD/ha | E44: - | F44: =+'Opciones Avanzadas'!$E14 -> 77.15810637 | G44: =+'Opciones Avanzadas'!$E14 -> 77.15810637 | H44: =+'Opciones Avanzadas'!$E14 -> 77.15810637 | I44: =+'Opciones Avanzadas'!$E14 -> 77.15810637 | J44: =+'Opciones Avanzadas'!$E14 -> 77.15810637 | K44: =+'Opciones Avanzadas'!$E14 -> 77.15810637 | L44: =+'Opciones Avanzadas'!$E14 -> 77.15810637 | M44: =+'Opciones Avanzadas'!$E14 -> 77.15810637 | N44: =+'Opciones Avanzadas'!$E14 -> 77.15810637 | O44: =+'Opciones Avanzadas'!$E14 -> 77.15810637 | P44: =+'Opciones Avanzadas'!$E14 -> 77.15810637 | Q44: =+'Opciones Avanzadas'!$E14 -> 77.15810637 | R44: =+'Opciones Avanzadas'!$E14 -> 77.15810637 | S44: =+'Opciones Avanzadas'!$E14 -> 77.15810637 | T44: =+'Opciones Avanzadas'!$E14 -> 77.15810637 | U44: =+'Opciones Avanzadas'!$E14 -> 77.15810637 | V44: =+'Opciones Avanzadas'!$E14 -> 77.15810637 | W44: =+'Opciones Avanzadas'!$E14 -> 77.15810637 | X44: =+'Opciones Avanzadas'!$E14 -> 77.15810637 | Y44: =+'Opciones Avanzadas'!$E14 -> 77.15810637 | Z44: =+'Opciones Avanzadas'!$E14 -> 77.15810637 | AA44: =+'Opciones Avanzadas'!$E14 -> 77.15810637 | AB44: =+'Opciones Avanzadas'!$E14 -> 77.15810637 | AC44: =+'Opciones Avanzadas'!$E14 -> 77.15810637 | AD44: =+'Opciones Avanzadas'!$E14 -> 77.15810637 | AE44: =+'Opciones Avanzadas'!$E14 -> 77.15810637 | AF44: =+'Opciones Avanzadas'!$E14 -> 77.15810637
B45: Herbicida | C45: USD/ha | E45: - | F45: =+'Opciones Avanzadas'!$E15 -> 25.3794 | G45: =+'Opciones Avanzadas'!$E15 -> 25.3794 | H45: =+'Opciones Avanzadas'!$E15 -> 25.3794 | I45: =+'Opciones Avanzadas'!$E15 -> 25.3794 | J45: =+'Opciones Avanzadas'!$E15 -> 25.3794 | K45: =+'Opciones Avanzadas'!$E15 -> 25.3794 | L45: =+'Opciones Avanzadas'!$E15 -> 25.3794 | M45: =+'Opciones Avanzadas'!$E15 -> 25.3794 | N45: =+'Opciones Avanzadas'!$E15 -> 25.3794 | O45: =+'Opciones Avanzadas'!$E15 -> 25.3794 | P45: =+'Opciones Avanzadas'!$E15 -> 25.3794 | Q45: =+'Opciones Avanzadas'!$E15 -> 25.3794 | R45: =+'Opciones Avanzadas'!$E15 -> 25.3794 | S45: =+'Opciones Avanzadas'!$E15 -> 25.3794 | T45: =+'Opciones Avanzadas'!$E15 -> 25.3794 | U45: =+'Opciones Avanzadas'!$E15 -> 25.3794 | V45: =+'Opciones Avanzadas'!$E15 -> 25.3794 | W45: =+'Opciones Avanzadas'!$E15 -> 25.3794 | X45: =+'Opciones Avanzadas'!$E15 -> 25.3794 | Y45: =+'Opciones Avanzadas'!$E15 -> 25.3794 | Z45: =+'Opciones Avanzadas'!$E15 -> 25.3794 | AA45: =+'Opciones Avanzadas'!$E15 -> 25.3794 | AB45: =+'Opciones Avanzadas'!$E15 -> 25.3794 | AC45: =+'Opciones Avanzadas'!$E15 -> 25.3794 | AD45: =+'Opciones Avanzadas'!$E15 -> 25.3794 | AE45: =+'Opciones Avanzadas'!$E15 -> 25.3794 | AF45: =+'Opciones Avanzadas'!$E15 -> 25.3794
B46: Fertilizantes | C46: USD/ha | E46: - | F46: =+'Opciones Avanzadas'!$E16 -> 161.0878997 | G46: =+'Opciones Avanzadas'!$E16 -> 161.0878997 | H46: =+'Opciones Avanzadas'!$E16 -> 161.0878997 | I46: =+'Opciones Avanzadas'!$E16 -> 161.0878997 | J46: =+'Opciones Avanzadas'!$E16 -> 161.0878997 | K46: =+'Opciones Avanzadas'!$E16 -> 161.0878997 | L46: =+'Opciones Avanzadas'!$E16 -> 161.0878997 | M46: =+'Opciones Avanzadas'!$E16 -> 161.0878997 | N46: =+'Opciones Avanzadas'!$E16 -> 161.0878997 | O46: =+'Opciones Avanzadas'!$E16 -> 161.0878997 | P46: =+'Opciones Avanzadas'!$E16 -> 161.0878997 | Q46: =+'Opciones Avanzadas'!$E16 -> 161.0878997 | R46: =+'Opciones Avanzadas'!$E16 -> 161.0878997 | S46: =+'Opciones Avanzadas'!$E16 -> 161.0878997 | T46: =+'Opciones Avanzadas'!$E16 -> 161.0878997 | U46: =+'Opciones Avanzadas'!$E16 -> 161.0878997 | V46: =+'Opciones Avanzadas'!$E16 -> 161.0878997 | W46: =+'Opciones Avanzadas'!$E16 -> 161.0878997 | X46: =+'Opciones Avanzadas'!$E16 -> 161.0878997 | Y46: =+'Opciones Avanzadas'!$E16 -> 161.0878997 | Z46: =+'Opciones Avanzadas'!$E16 -> 161.0878997 | AA46: =+'Opciones Avanzadas'!$E16 -> 161.0878997 | AB46: =+'Opciones Avanzadas'!$E16 -> 161.0878997 | AC46: =+'Opciones Avanzadas'!$E16 -> 161.0878997 | AD46: =+'Opciones Avanzadas'!$E16 -> 161.0878997 | AE46: =+'Opciones Avanzadas'!$E16 -> 161.0878997 | AF46: =+'Opciones Avanzadas'!$E16 -> 161.0878997
B47: Insecticidas | C47: USD/ha | E47: - | F47: =+'Opciones Avanzadas'!$E17 -> 1.39725 | G47: =+'Opciones Avanzadas'!$E17 -> 1.39725 | H47: =+'Opciones Avanzadas'!$E17 -> 1.39725 | I47: =+'Opciones Avanzadas'!$E17 -> 1.39725 | J47: =+'Opciones Avanzadas'!$E17 -> 1.39725 | K47: =+'Opciones Avanzadas'!$E17 -> 1.39725 | L47: =+'Opciones Avanzadas'!$E17 -> 1.39725 | M47: =+'Opciones Avanzadas'!$E17 -> 1.39725 | N47: =+'Opciones Avanzadas'!$E17 -> 1.39725 | O47: =+'Opciones Avanzadas'!$E17 -> 1.39725 | P47: =+'Opciones Avanzadas'!$E17 -> 1.39725 | Q47: =+'Opciones Avanzadas'!$E17 -> 1.39725 | R47: =+'Opciones Avanzadas'!$E17 -> 1.39725 | S47: =+'Opciones Avanzadas'!$E17 -> 1.39725 | T47: =+'Opciones Avanzadas'!$E17 -> 1.39725 | U47: =+'Opciones Avanzadas'!$E17 -> 1.39725 | V47: =+'Opciones Avanzadas'!$E17 -> 1.39725 | W47: =+'Opciones Avanzadas'!$E17 -> 1.39725 | X47: =+'Opciones Avanzadas'!$E17 -> 1.39725 | Y47: =+'Opciones Avanzadas'!$E17 -> 1.39725 | Z47: =+'Opciones Avanzadas'!$E17 -> 1.39725 | AA47: =+'Opciones Avanzadas'!$E17 -> 1.39725 | AB47: =+'Opciones Avanzadas'!$E17 -> 1.39725 | AC47: =+'Opciones Avanzadas'!$E17 -> 1.39725 | AD47: =+'Opciones Avanzadas'!$E17 -> 1.39725 | AE47: =+'Opciones Avanzadas'!$E17 -> 1.39725 | AF47: =+'Opciones Avanzadas'!$E17 -> 1.39725
B48: Fungicidas | C48: USD/ha | E48: - | F48: =+'Opciones Avanzadas'!$E18 -> 15.832 | G48: =+'Opciones Avanzadas'!$E18 -> 15.832 | H48: =+'Opciones Avanzadas'!$E18 -> 15.832 | I48: =+'Opciones Avanzadas'!$E18 -> 15.832 | J48: =+'Opciones Avanzadas'!$E18 -> 15.832 | K48: =+'Opciones Avanzadas'!$E18 -> 15.832 | L48: =+'Opciones Avanzadas'!$E18 -> 15.832 | M48: =+'Opciones Avanzadas'!$E18 -> 15.832 | N48: =+'Opciones Avanzadas'!$E18 -> 15.832 | O48: =+'Opciones Avanzadas'!$E18 -> 15.832 | P48: =+'Opciones Avanzadas'!$E18 -> 15.832 | Q48: =+'Opciones Avanzadas'!$E18 -> 15.832 | R48: =+'Opciones Avanzadas'!$E18 -> 15.832 | S48: =+'Opciones Avanzadas'!$E18 -> 15.832 | T48: =+'Opciones Avanzadas'!$E18 -> 15.832 | U48: =+'Opciones Avanzadas'!$E18 -> 15.832 | V48: =+'Opciones Avanzadas'!$E18 -> 15.832 | W48: =+'Opciones Avanzadas'!$E18 -> 15.832 | X48: =+'Opciones Avanzadas'!$E18 -> 15.832 | Y48: =+'Opciones Avanzadas'!$E18 -> 15.832 | Z48: =+'Opciones Avanzadas'!$E18 -> 15.832 | AA48: =+'Opciones Avanzadas'!$E18 -> 15.832 | AB48: =+'Opciones Avanzadas'!$E18 -> 15.832 | AC48: =+'Opciones Avanzadas'!$E18 -> 15.832 | AD48: =+'Opciones Avanzadas'!$E18 -> 15.832 | AE48: =+'Opciones Avanzadas'!$E18 -> 15.832 | AF48: =+'Opciones Avanzadas'!$E18 -> 15.832
B49: Curasemillas | C49: USD/ha | E49: - | F49: =+'Opciones Avanzadas'!$E19 -> 17.2032 | G49: =+'Opciones Avanzadas'!$E19 -> 17.2032 | H49: =+'Opciones Avanzadas'!$E19 -> 17.2032 | I49: =+'Opciones Avanzadas'!$E19 -> 17.2032 | J49: =+'Opciones Avanzadas'!$E19 -> 17.2032 | K49: =+'Opciones Avanzadas'!$E19 -> 17.2032 | L49: =+'Opciones Avanzadas'!$E19 -> 17.2032 | M49: =+'Opciones Avanzadas'!$E19 -> 17.2032 | N49: =+'Opciones Avanzadas'!$E19 -> 17.2032 | O49: =+'Opciones Avanzadas'!$E19 -> 17.2032 | P49: =+'Opciones Avanzadas'!$E19 -> 17.2032 | Q49: =+'Opciones Avanzadas'!$E19 -> 17.2032 | R49: =+'Opciones Avanzadas'!$E19 -> 17.2032 | S49: =+'Opciones Avanzadas'!$E19 -> 17.2032 | T49: =+'Opciones Avanzadas'!$E19 -> 17.2032 | U49: =+'Opciones Avanzadas'!$E19 -> 17.2032 | V49: =+'Opciones Avanzadas'!$E19 -> 17.2032 | W49: =+'Opciones Avanzadas'!$E19 -> 17.2032 | X49: =+'Opciones Avanzadas'!$E19 -> 17.2032 | Y49: =+'Opciones Avanzadas'!$E19 -> 17.2032 | Z49: =+'Opciones Avanzadas'!$E19 -> 17.2032 | AA49: =+'Opciones Avanzadas'!$E19 -> 17.2032 | AB49: =+'Opciones Avanzadas'!$E19 -> 17.2032 | AC49: =+'Opciones Avanzadas'!$E19 -> 17.2032 | AD49: =+'Opciones Avanzadas'!$E19 -> 17.2032 | AE49: =+'Opciones Avanzadas'!$E19 -> 17.2032 | AF49: =+'Opciones Avanzadas'!$E19 -> 17.2032
B50: Semillas | C50: USD/ha | E50: - | F50: =+'Opciones Avanzadas'!$E20 -> 63.28509476 | G50: =+'Opciones Avanzadas'!$E20 -> 63.28509476 | H50: =+'Opciones Avanzadas'!$E20 -> 63.28509476 | I50: =+'Opciones Avanzadas'!$E20 -> 63.28509476 | J50: =+'Opciones Avanzadas'!$E20 -> 63.28509476 | K50: =+'Opciones Avanzadas'!$E20 -> 63.28509476 | L50: =+'Opciones Avanzadas'!$E20 -> 63.28509476 | M50: =+'Opciones Avanzadas'!$E20 -> 63.28509476 | N50: =+'Opciones Avanzadas'!$E20 -> 63.28509476 | O50: =+'Opciones Avanzadas'!$E20 -> 63.28509476 | P50: =+'Opciones Avanzadas'!$E20 -> 63.28509476 | Q50: =+'Opciones Avanzadas'!$E20 -> 63.28509476 | R50: =+'Opciones Avanzadas'!$E20 -> 63.28509476 | S50: =+'Opciones Avanzadas'!$E20 -> 63.28509476 | T50: =+'Opciones Avanzadas'!$E20 -> 63.28509476 | U50: =+'Opciones Avanzadas'!$E20 -> 63.28509476 | V50: =+'Opciones Avanzadas'!$E20 -> 63.28509476 | W50: =+'Opciones Avanzadas'!$E20 -> 63.28509476 | X50: =+'Opciones Avanzadas'!$E20 -> 63.28509476 | Y50: =+'Opciones Avanzadas'!$E20 -> 63.28509476 | Z50: =+'Opciones Avanzadas'!$E20 -> 63.28509476 | AA50: =+'Opciones Avanzadas'!$E20 -> 63.28509476 | AB50: =+'Opciones Avanzadas'!$E20 -> 63.28509476 | AC50: =+'Opciones Avanzadas'!$E20 -> 63.28509476 | AD50: =+'Opciones Avanzadas'!$E20 -> 63.28509476 | AE50: =+'Opciones Avanzadas'!$E20 -> 63.28509476 | AF50: =+'Opciones Avanzadas'!$E20 -> 63.28509476
B51: Total | C51: USD/ha | E51: - | F51: =+'Opciones Avanzadas'!$E21 -> 437.0120864 | G51: =+'Opciones Avanzadas'!$E21 -> 437.0120864 | H51: =+'Opciones Avanzadas'!$E21 -> 437.0120864 | I51: =+'Opciones Avanzadas'!$E21 -> 437.0120864 | J51: =+'Opciones Avanzadas'!$E21 -> 437.0120864 | K51: =+'Opciones Avanzadas'!$E21 -> 437.0120864 | L51: =+'Opciones Avanzadas'!$E21 -> 437.0120864 | M51: =+'Opciones Avanzadas'!$E21 -> 437.0120864 | N51: =+'Opciones Avanzadas'!$E21 -> 437.0120864 | O51: =+'Opciones Avanzadas'!$E21 -> 437.0120864 | P51: =+'Opciones Avanzadas'!$E21 -> 437.0120864 | Q51: =+'Opciones Avanzadas'!$E21 -> 437.0120864 | R51: =+'Opciones Avanzadas'!$E21 -> 437.0120864 | S51: =+'Opciones Avanzadas'!$E21 -> 437.0120864 | T51: =+'Opciones Avanzadas'!$E21 -> 437.0120864 | U51: =+'Opciones Avanzadas'!$E21 -> 437.0120864 | V51: =+'Opciones Avanzadas'!$E21 -> 437.0120864 | W51: =+'Opciones Avanzadas'!$E21 -> 437.0120864 | X51: =+'Opciones Avanzadas'!$E21 -> 437.0120864 | Y51: =+'Opciones Avanzadas'!$E21 -> 437.0120864 | Z51: =+'Opciones Avanzadas'!$E21 -> 437.0120864 | AA51: =+'Opciones Avanzadas'!$E21 -> 437.0120864 | AB51: =+'Opciones Avanzadas'!$E21 -> 437.0120864 | AC51: =+'Opciones Avanzadas'!$E21 -> 437.0120864 | AD51: =+'Opciones Avanzadas'!$E21 -> 437.0120864 | AE51: =+'Opciones Avanzadas'!$E21 -> 437.0120864 | AF51: =+'Opciones Avanzadas'!$E21 -> 437.0120864
B53: Gastos comerciales (Por tonelada) | C53: =C$2 -> Unidad de medida | D53: =D$2 -> Mes de actualiz. | E53: Costo | F53: Calamuchita | G53: Capital | H53: Colón | I53: Cruz del Eje | J53: Gral. Roca | K53: Gral. San Martín | L53: Ischilin | M53: Juárez Celman | N53: Marcos Juárez | O53: Minas | P53: Pocho | Q53: Pte. R. Sáenz Peña | R53: Punilla | S53: Río Cuarto | T53: Río Primero | U53: Río Seco | V53: Río Segundo | W53: San Alberto | X53: San Javier | Y53: San Justo | Z53: Santa María | AA53: Sobremonte | AB53: Tercero Arriba | AC53: Totoral | AD53: Tulumba | AE53: Unión | AF53: PROVINCIA
B54: Flete Largo | C54: $/tn | D54: Abril | E54: - | F54: =+IF('Opciones Avanzadas'!$E$7<=MROUND('Opciones Avanzadas'!$E$7,5),VLOOKUP(MROUND('Opciones Avanzadas'!$E$7-2.5,5),Listas!$AE$21:$AF$135,2,FALSE)+(VLOOKUP(MROUND('Opciones Avanzadas'!$E$7,5),Listas!$AE$21:$AF$135,2,FALSE)-VLOOKUP(MROUND('Opciones Avanzadas'!$E$7-2.5,5),Listas!$AE$21:$AF$135,2,FALSE))/5*('Opciones Avanzadas'!$E$7-MROUND('Opciones Avanzadas'!$E$7-2.5,5)),VLOOKUP(MROUND('Opciones Avanzadas'!$E$7,5),Listas!$AE$21:$AF$135,2,FALSE)+(VLOOKUP(MROUND('Opciones Avanzadas'!$E$7+2.5,5),Listas!$AE$21:$AF$135,2,FALSE)-VLOOKUP(MROUND('Opciones Avanzadas'!$E$7,5),Listas!$AE$21:$AF$135,2,FALSE))/5*('Opciones Avanzadas'!$E$7-MROUND('Opciones Avanzadas'!$E$7,5))) -> 4378.154088 | G54: =+IF('Opciones Avanzadas'!$E$7<=MROUND('Opciones Avanzadas'!$E$7,5),VLOOKUP(MROUND('Opciones Avanzadas'!$E$7-2.5,5),Listas!$AE$21:$AF$135,2,FALSE)+(VLOOKUP(MROUND('Opciones Avanzadas'!$E$7,5),Listas!$AE$21:$AF$135,2,FALSE)-VLOOKUP(MROUND('Opciones Avanzadas'!$E$7-2.5,5),Listas!$AE$21:$AF$135,2,FALSE))/5*('Opciones Avanzadas'!$E$7-MROUND('Opciones Avanzadas'!$E$7-2.5,5)),VLOOKUP(MROUND('Opciones Avanzadas'!$E$7,5),Listas!$AE$21:$AF$135,2,FALSE)+(VLOOKUP(MROUND('Opciones Avanzadas'!$E$7+2.5,5),Listas!$AE$21:$AF$135,2,FALSE)-VLOOKUP(MROUND('Opciones Avanzadas'!$E$7,5),Listas!$AE$21:$AF$135,2,FALSE))/5*('Opciones Avanzadas'!$E$7-MROUND('Opciones Avanzadas'!$E$7,5))) -> 4378.154088 | H54: =+IF('Opciones Avanzadas'!$E$7<=MROUND('Opciones Avanzadas'!$E$7,5),VLOOKUP(MROUND('Opciones Avanzadas'!$E$7-2.5,5),Listas!$AE$21:$AF$135,2,FALSE)+(VLOOKUP(MROUND('Opciones Avanzadas'!$E$7,5),Listas!$AE$21:$AF$135,2,FALSE)-VLOOKUP(MROUND('Opciones Avanzadas'!$E$7-2.5,5),Listas!$AE$21:$AF$135,2,FALSE))/5*('Opciones Avanzadas'!$E$7-MROUND('Opciones Avanzadas'!$E$7-2.5,5)),VLOOKUP(MROUND('Opciones Avanzadas'!$E$7,5),Listas!$AE$21:$AF$135,2,FALSE)+(VLOOKUP(MROUND('Opciones Avanzadas'!$E$7+2.5,5),Listas!$AE$21:$AF$135,2,FALSE)-VLOOKUP(MROUND('Opciones Avanzadas'!$E$7,5),Listas!$AE$21:$AF$135,2,FALSE))/5*('Opciones Avanzadas'!$E$7-MROUND('Opciones Avanzadas'!$E$7,5))) -> 4378.154088 | I54: =+IF('Opciones Avanzadas'!$E$7<=MROUND('Opciones Avanzadas'!$E$7,5),VLOOKUP(MROUND('Opciones Avanzadas'!$E$7-2.5,5),Listas!$AE$21:$AF$135,2,FALSE)+(VLOOKUP(MROUND('Opciones Avanzadas'!$E$7,5),Listas!$AE$21:$AF$135,2,FALSE)-VLOOKUP(MROUND('Opciones Avanzadas'!$E$7-2.5,5),Listas!$AE$21:$AF$135,2,FALSE))/5*('Opciones Avanzadas'!$E$7-MROUND('Opciones Avanzadas'!$E$7-2.5,5)),VLOOKUP(MROUND('Opciones Avanzadas'!$E$7,5),Listas!$AE$21:$AF$135,2,FALSE)+(VLOOKUP(MROUND('Opciones Avanzadas'!$E$7+2.5,5),Listas!$AE$21:$AF$135,2,FALSE)-VLOOKUP(MROUND('Opciones Avanzadas'!$E$7,5),Listas!$AE$21:$AF$135,2,FALSE))/5*('Opciones Avanzadas'!$E$7-MROUND('Opciones Avanzadas'!$E$7,5))) -> 4378.154088 | J54: =+IF('Opciones Avanzadas'!$E$7<=MROUND('Opciones Avanzadas'!$E$7,5),VLOOKUP(MROUND('Opciones Avanzadas'!$E$7-2.5,5),Listas!$AE$21:$AF$135,2,FALSE)+(VLOOKUP(MROUND('Opciones Avanzadas'!$E$7,5),Listas!$AE$21:$AF$135,2,FALSE)-VLOOKUP(MROUND('Opciones Avanzadas'!$E$7-2.5,5),Listas!$AE$21:$AF$135,2,FALSE))/5*('Opciones Avanzadas'!$E$7-MROUND('Opciones Avanzadas'!$E$7-2.5,5)),VLOOKUP(MROUND('Opciones Avanzadas'!$E$7,5),Listas!$AE$21:$AF$135,2,FALSE)+(VLOOKUP(MROUND('Opciones Avanzadas'!$E$7+2.5,5),Listas!$AE$21:$AF$135,2,FALSE)-VLOOKUP(MROUND('Opciones Avanzadas'!$E$7,5),Listas!$AE$21:$AF$135,2,FALSE))/5*('Opciones Avanzadas'!$E$7-MROUND('Opciones Avanzadas'!$E$7,5))) -> 4378.154088 | K54: =+IF('Opciones Avanzadas'!$E$7<=MROUND('Opciones Avanzadas'!$E$7,5),VLOOKUP(MROUND('Opciones Avanzadas'!$E$7-2.5,5),Listas!$AE$21:$AF$135,2,FALSE)+(VLOOKUP(MROUND('Opciones Avanzadas'!$E$7,5),Listas!$AE$21:$AF$135,2,FALSE)-VLOOKUP(MROUND('Opciones Avanzadas'!$E$7-2.5,5),Listas!$AE$21:$AF$135,2,FALSE))/5*('Opciones Avanzadas'!$E$7-MROUND('Opciones Avanzadas'!$E$7-2.5,5)),VLOOKUP(MROUND('Opciones Avanzadas'!$E$7,5),Listas!$AE$21:$AF$135,2,FALSE)+(VLOOKUP(MROUND('Opciones Avanzadas'!$E$7+2.5,5),Listas!$AE$21:$AF$135,2,FALSE)-VLOOKUP(MROUND('Opciones Avanzadas'!$E$7,5),Listas!$AE$21:$AF$135,2,FALSE))/5*('Opciones Avanzadas'!$E$7-MROUND('Opciones Avanzadas'!$E$7,5))) -> 4378.154088 | L54: =+IF('Opciones Avanzadas'!$E$7<=MROUND('Opciones Avanzadas'!$E$7,5),VLOOKUP(MROUND('Opciones Avanzadas'!$E$7-2.5,5),Listas!$AE$21:$AF$135,2,FALSE)+(VLOOKUP(MROUND('Opciones Avanzadas'!$E$7,5),Listas!$AE$21:$AF$135,2,FALSE)-VLOOKUP(MROUND('Opciones Avanzadas'!$E$7-2.5,5),Listas!$AE$21:$AF$135,2,FALSE))/5*('Opciones Avanzadas'!$E$7-MROUND('Opciones Avanzadas'!$E$7-2.5,5)),VLOOKUP(MROUND('Opciones Avanzadas'!$E$7,5),Listas!$AE$21:$AF$135,2,FALSE)+(VLOOKUP(MROUND('Opciones Avanzadas'!$E$7+2.5,5),Listas!$AE$21:$AF$135,2,FALSE)-VLOOKUP(MROUND('Opciones Avanzadas'!$E$7,5),Listas!$AE$21:$AF$135,2,FALSE))/5*('Opciones Avanzadas'!$E$7-MROUND('Opciones Avanzadas'!$E$7,5))) -> 4378.154088 | M54: =+IF('Opciones Avanzadas'!$E$7<=MROUND('Opciones Avanzadas'!$E$7,5),VLOOKUP(MROUND('Opciones Avanzadas'!$E$7-2.5,5),Listas!$AE$21:$AF$135,2,FALSE)+(VLOOKUP(MROUND('Opciones Avanzadas'!$E$7,5),Listas!$AE$21:$AF$135,2,FALSE)-VLOOKUP(MROUND('Opciones Avanzadas'!$E$7-2.5,5),Listas!$AE$21:$AF$135,2,FALSE))/5*('Opciones Avanzadas'!$E$7-MROUND('Opciones Avanzadas'!$E$7-2.5,5)),VLOOKUP(MROUND('Opciones Avanzadas'!$E$7,5),Listas!$AE$21:$AF$135,2,FALSE)+(VLOOKUP(MROUND('Opciones Avanzadas'!$E$7+2.5,5),Listas!$AE$21:$AF$135,2,FALSE)-VLOOKUP(MROUND('Opciones Avanzadas'!$E$7,5),Listas!$AE$21:$AF$135,2,FALSE))/5*('Opciones Avanzadas'!$E$7-MROUND('Opciones Avanzadas'!$E$7,5))) -> 4378.154088 | N54: =+IF('Opciones Avanzadas'!$E$7<=MROUND('Opciones Avanzadas'!$E$7,5),VLOOKUP(MROUND('Opciones Avanzadas'!$E$7-2.5,5),Listas!$AE$21:$AF$135,2,FALSE)+(VLOOKUP(MROUND('Opciones Avanzadas'!$E$7,5),Listas!$AE$21:$AF$135,2,FALSE)-VLOOKUP(MROUND('Opciones Avanzadas'!$E$7-2.5,5),Listas!$AE$21:$AF$135,2,FALSE))/5*('Opciones Avanzadas'!$E$7-MROUND('Opciones Avanzadas'!$E$7-2.5,5)),VLOOKUP(MROUND('Opciones Avanzadas'!$E$7,5),Listas!$AE$21:$AF$135,2,FALSE)+(VLOOKUP(MROUND('Opciones Avanzadas'!$E$7+2.5,5),Listas!$AE$21:$AF$135,2,FALSE)-VLOOKUP(MROUND('Opciones Avanzadas'!$E$7,5),Listas!$AE$21:$AF$135,2,FALSE))/5*('Opciones Avanzadas'!$E$7-MROUND('Opciones Avanzadas'!$E$7,5))) -> 4378.154088 | O54: =+IF('Opciones Avanzadas'!$E$7<=MROUND('Opciones Avanzadas'!$E$7,5),VLOOKUP(MROUND('Opciones Avanzadas'!$E$7-2.5,5),Listas!$AE$21:$AF$135,2,FALSE)+(VLOOKUP(MROUND('Opciones Avanzadas'!$E$7,5),Listas!$AE$21:$AF$135,2,FALSE)-VLOOKUP(MROUND('Opciones Avanzadas'!$E$7-2.5,5),Listas!$AE$21:$AF$135,2,FALSE))/5*('Opciones Avanzadas'!$E$7-MROUND('Opciones Avanzadas'!$E$7-2.5,5)),VLOOKUP(MROUND('Opciones Avanzadas'!$E$7,5),Listas!$AE$21:$AF$135,2,FALSE)+(VLOOKUP(MROUND('Opciones Avanzadas'!$E$7+2.5,5),Listas!$AE$21:$AF$135,2,FALSE)-VLOOKUP(MROUND('Opciones Avanzadas'!$E$7,5),Listas!$AE$21:$AF$135,2,FALSE))/5*('Opciones Avanzadas'!$E$7-MROUND('Opciones Avanzadas'!$E$7,5))) -> 4378.154088 | P54: =+IF('Opciones Avanzadas'!$E$7<=MROUND('Opciones Avanzadas'!$E$7,5),VLOOKUP(MROUND('Opciones Avanzadas'!$E$7-2.5,5),Listas!$AE$21:$AF$135,2,FALSE)+(VLOOKUP(MROUND('Opciones Avanzadas'!$E$7,5),Listas!$AE$21:$AF$135,2,FALSE)-VLOOKUP(MROUND('Opciones Avanzadas'!$E$7-2.5,5),Listas!$AE$21:$AF$135,2,FALSE))/5*('Opciones Avanzadas'!$E$7-MROUND('Opciones Avanzadas'!$E$7-2.5,5)),VLOOKUP(MROUND('Opciones Avanzadas'!$E$7,5),Listas!$AE$21:$AF$135,2,FALSE)+(VLOOKUP(MROUND('Opciones Avanzadas'!$E$7+2.5,5),Listas!$AE$21:$AF$135,2,FALSE)-VLOOKUP(MROUND('Opciones Avanzadas'!$E$7,5),Listas!$AE$21:$AF$135,2,FALSE))/5*('Opciones Avanzadas'!$E$7-MROUND('Opciones Avanzadas'!$E$7,5))) -> 4378.154088 | Q54: =+IF('Opciones Avanzadas'!$E$7<=MROUND('Opciones Avanzadas'!$E$7,5),VLOOKUP(MROUND('Opciones Avanzadas'!$E$7-2.5,5),Listas!$AE$21:$AF$135,2,FALSE)+(VLOOKUP(MROUND('Opciones Avanzadas'!$E$7,5),Listas!$AE$21:$AF$135,2,FALSE)-VLOOKUP(MROUND('Opciones Avanzadas'!$E$7-2.5,5),Listas!$AE$21:$AF$135,2,FALSE))/5*('Opciones Avanzadas'!$E$7-MROUND('Opciones Avanzadas'!$E$7-2.5,5)),VLOOKUP(MROUND('Opciones Avanzadas'!$E$7,5),Listas!$AE$21:$AF$135,2,FALSE)+(VLOOKUP(MROUND('Opciones Avanzadas'!$E$7+2.5,5),Listas!$AE$21:$AF$135,2,FALSE)-VLOOKUP(MROUND('Opciones Avanzadas'!$E$7,5),Listas!$AE$21:$AF$135,2,FALSE))/5*('Opciones Avanzadas'!$E$7-MROUND('Opciones Avanzadas'!$E$7,5))) -> 4378.154088 | R54: =+IF('Opciones Avanzadas'!$E$7<=MROUND('Opciones Avanzadas'!$E$7,5),VLOOKUP(MROUND('Opciones Avanzadas'!$E$7-2.5,5),Listas!$AE$21:$AF$135,2,FALSE)+(VLOOKUP(MROUND('Opciones Avanzadas'!$E$7,5),Listas!$AE$21:$AF$135,2,FALSE)-VLOOKUP(MROUND('Opciones Avanzadas'!$E$7-2.5,5),Listas!$AE$21:$AF$135,2,FALSE))/5*('Opciones Avanzadas'!$E$7-MROUND('Opciones Avanzadas'!$E$7-2.5,5)),VLOOKUP(MROUND('Opciones Avanzadas'!$E$7,5),Listas!$AE$21:$AF$135,2,FALSE)+(VLOOKUP(MROUND('Opciones Avanzadas'!$E$7+2.5,5),Listas!$AE$21:$AF$135,2,FALSE)-VLOOKUP(MROUND('Opciones Avanzadas'!$E$7,5),Listas!$AE$21:$AF$135,2,FALSE))/5*('Opciones Avanzadas'!$E$7-MROUND('Opciones Avanzadas'!$E$7,5))) -> 4378.154088 | S54: =+IF('Opciones Avanzadas'!$E$7<=MROUND('Opciones Avanzadas'!$E$7,5),VLOOKUP(MROUND('Opciones Avanzadas'!$E$7-2.5,5),Listas!$AE$21:$AF$135,2,FALSE)+(VLOOKUP(MROUND('Opciones Avanzadas'!$E$7,5),Listas!$AE$21:$AF$135,2,FALSE)-VLOOKUP(MROUND('Opciones Avanzadas'!$E$7-2.5,5),Listas!$AE$21:$AF$135,2,FALSE))/5*('Opciones Avanzadas'!$E$7-MROUND('Opciones Avanzadas'!$E$7-2.5,5)),VLOOKUP(MROUND('Opciones Avanzadas'!$E$7,5),Listas!$AE$21:$AF$135,2,FALSE)+(VLOOKUP(MROUND('Opciones Avanzadas'!$E$7+2.5,5),Listas!$AE$21:$AF$135,2,FALSE)-VLOOKUP(MROUND('Opciones Avanzadas'!$E$7,5),Listas!$AE$21:$AF$135,2,FALSE))/5*('Opciones Avanzadas'!$E$7-MROUND('Opciones Avanzadas'!$E$7,5))) -> 4378.154088 | T54: =+IF('Opciones Avanzadas'!$E$7<=MROUND('Opciones Avanzadas'!$E$7,5),VLOOKUP(MROUND('Opciones Avanzadas'!$E$7-2.5,5),Listas!$AE$21:$AF$135,2,FALSE)+(VLOOKUP(MROUND('Opciones Avanzadas'!$E$7,5),Listas!$AE$21:$AF$135,2,FALSE)-VLOOKUP(MROUND('Opciones Avanzadas'!$E$7-2.5,5),Listas!$AE$21:$AF$135,2,FALSE))/5*('Opciones Avanzadas'!$E$7-MROUND('Opciones Avanzadas'!$E$7-2.5,5)),VLOOKUP(MROUND('Opciones Avanzadas'!$E$7,5),Listas!$AE$21:$AF$135,2,FALSE)+(VLOOKUP(MROUND('Opciones Avanzadas'!$E$7+2.5,5),Listas!$AE$21:$AF$135,2,FALSE)-VLOOKUP(MROUND('Opciones Avanzadas'!$E$7,5),Listas!$AE$21:$AF$135,2,FALSE))/5*('Opciones Avanzadas'!$E$7-MROUND('Opciones Avanzadas'!$E$7,5))) -> 4378.154088 | U54: =+IF('Opciones Avanzadas'!$E$7<=MROUND('Opciones Avanzadas'!$E$7,5),VLOOKUP(MROUND('Opciones Avanzadas'!$E$7-2.5,5),Listas!$AE$21:$AF$135,2,FALSE)+(VLOOKUP(MROUND('Opciones Avanzadas'!$E$7,5),Listas!$AE$21:$AF$135,2,FALSE)-VLOOKUP(MROUND('Opciones Avanzadas'!$E$7-2.5,5),Listas!$AE$21:$AF$135,2,FALSE))/5*('Opciones Avanzadas'!$E$7-MROUND('Opciones Avanzadas'!$E$7-2.5,5)),VLOOKUP(MROUND('Opciones Avanzadas'!$E$7,5),Listas!$AE$21:$AF$135,2,FALSE)+(VLOOKUP(MROUND('Opciones Avanzadas'!$E$7+2.5,5),Listas!$AE$21:$AF$135,2,FALSE)-VLOOKUP(MROUND('Opciones Avanzadas'!$E$7,5),Listas!$AE$21:$AF$135,2,FALSE))/5*('Opciones Avanzadas'!$E$7-MROUND('Opciones Avanzadas'!$E$7,5))) -> 4378.154088 | V54: =+IF('Opciones Avanzadas'!$E$7<=MROUND('Opciones Avanzadas'!$E$7,5),VLOOKUP(MROUND('Opciones Avanzadas'!$E$7-2.5,5),Listas!$AE$21:$AF$135,2,FALSE)+(VLOOKUP(MROUND('Opciones Avanzadas'!$E$7,5),Listas!$AE$21:$AF$135,2,FALSE)-VLOOKUP(MROUND('Opciones Avanzadas'!$E$7-2.5,5),Listas!$AE$21:$AF$135,2,FALSE))/5*('Opciones Avanzadas'!$E$7-MROUND('Opciones Avanzadas'!$E$7-2.5,5)),VLOOKUP(MROUND('Opciones Avanzadas'!$E$7,5),Listas!$AE$21:$AF$135,2,FALSE)+(VLOOKUP(MROUND('Opciones Avanzadas'!$E$7+2.5,5),Listas!$AE$21:$AF$135,2,FALSE)-VLOOKUP(MROUND('Opciones Avanzadas'!$E$7,5),Listas!$AE$21:$AF$135,2,FALSE))/5*('Opciones Avanzadas'!$E$7-MROUND('Opciones Avanzadas'!$E$7,5))) -> 4378.154088 | W54: =+IF('Opciones Avanzadas'!$E$7<=MROUND('Opciones Avanzadas'!$E$7,5),VLOOKUP(MROUND('Opciones Avanzadas'!$E$7-2.5,5),Listas!$AE$21:$AF$135,2,FALSE)+(VLOOKUP(MROUND('Opciones Avanzadas'!$E$7,5),Listas!$AE$21:$AF$135,2,FALSE)-VLOOKUP(MROUND('Opciones Avanzadas'!$E$7-2.5,5),Listas!$AE$21:$AF$135,2,FALSE))/5*('Opciones Avanzadas'!$E$7-MROUND('Opciones Avanzadas'!$E$7-2.5,5)),VLOOKUP(MROUND('Opciones Avanzadas'!$E$7,5),Listas!$AE$21:$AF$135,2,FALSE)+(VLOOKUP(MROUND('Opciones Avanzadas'!$E$7+2.5,5),Listas!$AE$21:$AF$135,2,FALSE)-VLOOKUP(MROUND('Opciones Avanzadas'!$E$7,5),Listas!$AE$21:$AF$135,2,FALSE))/5*('Opciones Avanzadas'!$E$7-MROUND('Opciones Avanzadas'!$E$7,5))) -> 4378.154088 | X54: =+IF('Opciones Avanzadas'!$E$7<=MROUND('Opciones Avanzadas'!$E$7,5),VLOOKUP(MROUND('Opciones Avanzadas'!$E$7-2.5,5),Listas!$AE$21:$AF$135,2,FALSE)+(VLOOKUP(MROUND('Opciones Avanzadas'!$E$7,5),Listas!$AE$21:$AF$135,2,FALSE)-VLOOKUP(MROUND('Opciones Avanzadas'!$E$7-2.5,5),Listas!$AE$21:$AF$135,2,FALSE))/5*('Opciones Avanzadas'!$E$7-MROUND('Opciones Avanzadas'!$E$7-2.5,5)),VLOOKUP(MROUND('Opciones Avanzadas'!$E$7,5),Listas!$AE$21:$AF$135,2,FALSE)+(VLOOKUP(MROUND('Opciones Avanzadas'!$E$7+2.5,5),Listas!$AE$21:$AF$135,2,FALSE)-VLOOKUP(MROUND('Opciones Avanzadas'!$E$7,5),Listas!$AE$21:$AF$135,2,FALSE))/5*('Opciones Avanzadas'!$E$7-MROUND('Opciones Avanzadas'!$E$7,5))) -> 4378.154088 | Y54: =+IF('Opciones Avanzadas'!$E$7<=MROUND('Opciones Avanzadas'!$E$7,5),VLOOKUP(MROUND('Opciones Avanzadas'!$E$7-2.5,5),Listas!$AE$21:$AF$135,2,FALSE)+(VLOOKUP(MROUND('Opciones Avanzadas'!$E$7,5),Listas!$AE$21:$AF$135,2,FALSE)-VLOOKUP(MROUND('Opciones Avanzadas'!$E$7-2.5,5),Listas!$AE$21:$AF$135,2,FALSE))/5*('Opciones Avanzadas'!$E$7-MROUND('Opciones Avanzadas'!$E$7-2.5,5)),VLOOKUP(MROUND('Opciones Avanzadas'!$E$7,5),Listas!$AE$21:$AF$135,2,FALSE)+(VLOOKUP(MROUND('Opciones Avanzadas'!$E$7+2.5,5),Listas!$AE$21:$AF$135,2,FALSE)-VLOOKUP(MROUND('Opciones Avanzadas'!$E$7,5),Listas!$AE$21:$AF$135,2,FALSE))/5*('Opciones Avanzadas'!$E$7-MROUND('Opciones Avanzadas'!$E$7,5))) -> 4378.154088 | Z54: =+IF('Opciones Avanzadas'!$E$7<=MROUND('Opciones Avanzadas'!$E$7,5),VLOOKUP(MROUND('Opciones Avanzadas'!$E$7-2.5,5),Listas!$AE$21:$AF$135,2,FALSE)+(VLOOKUP(MROUND('Opciones Avanzadas'!$E$7,5),Listas!$AE$21:$AF$135,2,FALSE)-VLOOKUP(MROUND('Opciones Avanzadas'!$E$7-2.5,5),Listas!$AE$21:$AF$135,2,FALSE))/5*('Opciones Avanzadas'!$E$7-MROUND('Opciones Avanzadas'!$E$7-2.5,5)),VLOOKUP(MROUND('Opciones Avanzadas'!$E$7,5),Listas!$AE$21:$AF$135,2,FALSE)+(VLOOKUP(MROUND('Opciones Avanzadas'!$E$7+2.5,5),Listas!$AE$21:$AF$135,2,FALSE)-VLOOKUP(MROUND('Opciones Avanzadas'!$E$7,5),Listas!$AE$21:$AF$135,2,FALSE))/5*('Opciones Avanzadas'!$E$7-MROUND('Opciones Avanzadas'!$E$7,5))) -> 4378.154088 | AA54: =+IF('Opciones Avanzadas'!$E$7<=MROUND('Opciones Avanzadas'!$E$7,5),VLOOKUP(MROUND('Opciones Avanzadas'!$E$7-2.5,5),Listas!$AE$21:$AF$135,2,FALSE)+(VLOOKUP(MROUND('Opciones Avanzadas'!$E$7,5),Listas!$AE$21:$AF$135,2,FALSE)-VLOOKUP(MROUND('Opciones Avanzadas'!$E$7-2.5,5),Listas!$AE$21:$AF$135,2,FALSE))/5*('Opciones Avanzadas'!$E$7-MROUND('Opciones Avanzadas'!$E$7-2.5,5)),VLOOKUP(MROUND('Opciones Avanzadas'!$E$7,5),Listas!$AE$21:$AF$135,2,FALSE)+(VLOOKUP(MROUND('Opciones Avanzadas'!$E$7+2.5,5),Listas!$AE$21:$AF$135,2,FALSE)-VLOOKUP(MROUND('Opciones Avanzadas'!$E$7,5),Listas!$AE$21:$AF$135,2,FALSE))/5*('Opciones Avanzadas'!$E$7-MROUND('Opciones Avanzadas'!$E$7,5))) -> 4378.154088 | AB54: =+IF('Opciones Avanzadas'!$E$7<=MROUND('Opciones Avanzadas'!$E$7,5),VLOOKUP(MROUND('Opciones Avanzadas'!$E$7-2.5,5),Listas!$AE$21:$AF$135,2,FALSE)+(VLOOKUP(MROUND('Opciones Avanzadas'!$E$7,5),Listas!$AE$21:$AF$135,2,FALSE)-VLOOKUP(MROUND('Opciones Avanzadas'!$E$7-2.5,5),Listas!$AE$21:$AF$135,2,FALSE))/5*('Opciones Avanzadas'!$E$7-MROUND('Opciones Avanzadas'!$E$7-2.5,5)),VLOOKUP(MROUND('Opciones Avanzadas'!$E$7,5),Listas!$AE$21:$AF$135,2,FALSE)+(VLOOKUP(MROUND('Opciones Avanzadas'!$E$7+2.5,5),Listas!$AE$21:$AF$135,2,FALSE)-VLOOKUP(MROUND('Opciones Avanzadas'!$E$7,5),Listas!$AE$21:$AF$135,2,FALSE))/5*('Opciones Avanzadas'!$E$7-MROUND('Opciones Avanzadas'!$E$7,5))) -> 4378.154088 | AC54: =+IF('Opciones Avanzadas'!$E$7<=MROUND('Opciones Avanzadas'!$E$7,5),VLOOKUP(MROUND('Opciones Avanzadas'!$E$7-2.5,5),Listas!$AE$21:$AF$135,2,FALSE)+(VLOOKUP(MROUND('Opciones Avanzadas'!$E$7,5),Listas!$AE$21:$AF$135,2,FALSE)-VLOOKUP(MROUND('Opciones Avanzadas'!$E$7-2.5,5),Listas!$AE$21:$AF$135,2,FALSE))/5*('Opciones Avanzadas'!$E$7-MROUND('Opciones Avanzadas'!$E$7-2.5,5)),VLOOKUP(MROUND('Opciones Avanzadas'!$E$7,5),Listas!$AE$21:$AF$135,2,FALSE)+(VLOOKUP(MROUND('Opciones Avanzadas'!$E$7+2.5,5),Listas!$AE$21:$AF$135,2,FALSE)-VLOOKUP(MROUND('Opciones Avanzadas'!$E$7,5),Listas!$AE$21:$AF$135,2,FALSE))/5*('Opciones Avanzadas'!$E$7-MROUND('Opciones Avanzadas'!$E$7,5))) -> 4378.154088 | AD54: =+IF('Opciones Avanzadas'!$E$7<=MROUND('Opciones Avanzadas'!$E$7,5),VLOOKUP(MROUND('Opciones Avanzadas'!$E$7-2.5,5),Listas!$AE$21:$AF$135,2,FALSE)+(VLOOKUP(MROUND('Opciones Avanzadas'!$E$7,5),Listas!$AE$21:$AF$135,2,FALSE)-VLOOKUP(MROUND('Opciones Avanzadas'!$E$7-2.5,5),Listas!$AE$21:$AF$135,2,FALSE))/5*('Opciones Avanzadas'!$E$7-MROUND('Opciones Avanzadas'!$E$7-2.5,5)),VLOOKUP(MROUND('Opciones Avanzadas'!$E$7,5),Listas!$AE$21:$AF$135,2,FALSE)+(VLOOKUP(MROUND('Opciones Avanzadas'!$E$7+2.5,5),Listas!$AE$21:$AF$135,2,FALSE)-VLOOKUP(MROUND('Opciones Avanzadas'!$E$7,5),Listas!$AE$21:$AF$135,2,FALSE))/5*('Opciones Avanzadas'!$E$7-MROUND('Opciones Avanzadas'!$E$7,5))) -> 4378.154088 | AE54: =+IF('Opciones Avanzadas'!$E$7<=MROUND('Opciones Avanzadas'!$E$7,5),VLOOKUP(MROUND('Opciones Avanzadas'!$E$7-2.5,5),Listas!$AE$21:$AF$135,2,FALSE)+(VLOOKUP(MROUND('Opciones Avanzadas'!$E$7,5),Listas!$AE$21:$AF$135,2,FALSE)-VLOOKUP(MROUND('Opciones Avanzadas'!$E$7-2.5,5),Listas!$AE$21:$AF$135,2,FALSE))/5*('Opciones Avanzadas'!$E$7-MROUND('Opciones Avanzadas'!$E$7-2.5,5)),VLOOKUP(MROUND('Opciones Avanzadas'!$E$7,5),Listas!$AE$21:$AF$135,2,FALSE)+(VLOOKUP(MROUND('Opciones Avanzadas'!$E$7+2.5,5),Listas!$AE$21:$AF$135,2,FALSE)-VLOOKUP(MROUND('Opciones Avanzadas'!$E$7,5),Listas!$AE$21:$AF$135,2,FALSE))/5*('Opciones Avanzadas'!$E$7-MROUND('Opciones Avanzadas'!$E$7,5))) -> 4378.154088 | AF54: =+IF('Opciones Avanzadas'!$E$7<=MROUND('Opciones Avanzadas'!$E$7,5),VLOOKUP(MROUND('Opciones Avanzadas'!$E$7-2.5,5),Listas!$AE$21:$AF$135,2,FALSE)+(VLOOKUP(MROUND('Opciones Avanzadas'!$E$7,5),Listas!$AE$21:$AF$135,2,FALSE)-VLOOKUP(MROUND('Opciones Avanzadas'!$E$7-2.5,5),Listas!$AE$21:$AF$135,2,FALSE))/5*('Opciones Avanzadas'!$E$7-MROUND('Opciones Avanzadas'!$E$7-2.5,5)),VLOOKUP(MROUND('Opciones Avanzadas'!$E$7,5),Listas!$AE$21:$AF$135,2,FALSE)+(VLOOKUP(MROUND('Opciones Avanzadas'!$E$7+2.5,5),Listas!$AE$21:$AF$135,2,FALSE)-VLOOKUP(MROUND('Opciones Avanzadas'!$E$7,5),Listas!$AE$21:$AF$135,2,FALSE))/5*('Opciones Avanzadas'!$E$7-MROUND('Opciones Avanzadas'!$E$7,5))) -> 4378.154088
B55: Flete Corto (30Km) | C55: $/tn | D55: =D54 -> Abril | E55: =+VLOOKUP(30,Listas!$AE$21:$AF$135,2,FALSE) -> 1172.52 | F55: =+E55 -> 1172.52 | G55: =+F55 -> 1172.52 | H55: =+G55 -> 1172.52 | I55: =+H55 -> 1172.52 | J55: =+I55 -> 1172.52 | K55: =+J55 -> 1172.52 | L55: =+K55 -> 1172.52 | M55: =+L55 -> 1172.52 | N55: =+M55 -> 1172.52 | O55: =+N55 -> 1172.52 | P55: =+O55 -> 1172.52 | Q55: =+P55 -> 1172.52 | R55: =+Q55 -> 1172.52 | S55: =+R55 -> 1172.52 | T55: =+S55 -> 1172.52 | U55: =+T55 -> 1172.52 | V55: =+U55 -> 1172.52 | W55: =+V55 -> 1172.52 | X55: =+W55 -> 1172.52 | Y55: =+X55 -> 1172.52 | Z55: =+Y55 -> 1172.52 | AA55: =+Z55 -> 1172.52 | AB55: =+AA55 -> 1172.52 | AC55: =+AB55 -> 1172.52 | AD55: =+AC55 -> 1172.52 | AE55: =+AD55 -> 1172.52 | AF55: =+AE55 -> 1172.52
B56: Flete Conjunto | C56: USD/tn | D56: - | E56: - | F56: =0.95*(1+$E$157)*(F54+F55)/$E$150 -> 35.4708417 | H56: =0.95*(1+$E$157)*(H54+H55)/$E$150 -> 35.4708417 | I56: 35.4708417 | J56: 35.4708417 | K56: 35.4708417 | L56: 35.4708417 | M56: 35.4708417 | N56: 35.4708417 | O56: 35.4708417 | P56: 35.4708417 | Q56: 35.4708417 | R56: 35.4708417 | S56: 35.4708417 | T56: 35.4708417 | U56: 35.4708417 | V56: 35.4708417 | W56: 35.4708417 | X56: 35.4708417 | Y56: 35.4708417 | Z56: 35.4708417 | AA56: 35.4708417 | AB56: 35.4708417 | AC56: 35.4708417 | AD56: 35.4708417 | AE56: 35.4708417 | AF56: 35.4708417
B57: Paritaria | C57: USD/tn | D57: Junio | E57: 3.4 | F57: =$E$57 -> 3.4 | H57: =$E$57 -> 3.4 | I57: 3.4 | J57: 3.4 | K57: 3.4 | L57: 3.4 | M57: 3.4 | N57: 3.4 | O57: 3.4 | P57: 3.4 | Q57: 3.4 | R57: 3.4 | S57: 3.4 | T57: 3.4 | U57: 3.4 | V57: 3.4 | W57: 3.4 | X57: 3.4 | Y57: 3.4 | Z57: 3.4 | AA57: 3.4 | AB57: 3.4 | AC57: 3.4 | AD57: 3.4 | AE57: 3.4 | AF57: 3.4
B58: Comisión Acopio | C58: % s. Precio Cosecha | D58: - | E58: 0.005 | F58: =$E$147*$E58 -> 1.4425 | H58: =$E$147*$E58 -> 1.4425 | I58: 1.4425 | J58: 1.4425 | K58: 1.4425 | L58: 1.4425 | M58: 1.4425 | N58: 1.4425 | O58: 1.4425 | P58: 1.4425 | Q58: 1.4425 | R58: 1.4425 | S58: 1.4425 | T58: 1.4425 | U58: 1.4425 | V58: 1.4425 | W58: 1.4425 | X58: 1.4425 | Y58: 1.4425 | Z58: 1.4425 | AA58: 1.4425 | AB58: 1.4425 | AC58: 1.4425 | AD58: 1.4425 | AE58: 1.4425 | AF58: 1.4425
B59: Total Gastos Comerciales | C59: USD/tn | F59: =SUM(F56:F58) -> 40.3133417 | H59: =SUM(H56:H58) -> 40.3133417 | I59: 40.3133417 | J59: 40.3133417 | K59: 40.3133417 | L59: 40.3133417 | M59: 40.3133417 | N59: 40.3133417 | O59: 40.3133417 | P59: 40.3133417 | Q59: 40.3133417 | R59: 40.3133417 | S59: 40.3133417 | T59: 40.3133417 | U59: 40.3133417 | V59: 40.3133417 | W59: 40.3133417 | X59: 40.3133417 | Y59: 40.3133417 | Z59: 40.3133417 | AA59: 40.3133417 | AB59: 40.3133417 | AC59: 40.3133417 | AD59: 40.3133417 | AE59: 40.3133417 | AF59: =SUM(AF56:AF58) -> 40.3133417
B61: Planteo Tecnico (Por Ha) | C61: =C$2 -> Unidad de medida | D61: Mes de actualiz. | E61: Cantidades | F61: Calamuchita | G61: Capital | H61: Colón | I61: Cruz del Eje | J61: Gral. Roca | K61: Gral. San Martín | L61: Ischilin | M61: Juárez Celman | N61: Marcos Juárez | O61: Minas | P61: Pocho | Q61: Pte. R. Sáenz Peña | R61: Punilla | S61: Río Cuarto | T61: Río Primero | U61: Río Seco | V61: Río Segundo | W61: San Alberto | X61: San Javier | Y61: San Justo | Z61: Santa María | AA61: Sobremonte | AB61: Tercero Arriba | AC61: Totoral | AD61: Tulumba | AE61: Unión | AF61: =AF$2 -> PROVINCIA
B62: Rendimiento | C62: qq/ha | E62: - | F62: =+'Calculadora BCCBA'!$M$7 -> 26.42368508 | G62: =+'Calculadora BCCBA'!$M$7 -> 26.42368508 | H62: =+'Calculadora BCCBA'!$M$7 -> 26.42368508 | I62: =+'Calculadora BCCBA'!$M$7 -> 26.42368508 | J62: =+'Calculadora BCCBA'!$M$7 -> 26.42368508 | K62: =+'Calculadora BCCBA'!$M$7 -> 26.42368508 | L62: =+'Calculadora BCCBA'!$M$7 -> 26.42368508 | M62: =+'Calculadora BCCBA'!$M$7 -> 26.42368508 | N62: =+'Calculadora BCCBA'!$M$7 -> 26.42368508 | O62: =+'Calculadora BCCBA'!$M$7 -> 26.42368508 | P62: =+'Calculadora BCCBA'!$M$7 -> 26.42368508 | Q62: =+'Calculadora BCCBA'!$M$7 -> 26.42368508 | R62: =+'Calculadora BCCBA'!$M$7 -> 26.42368508 | S62: =+'Calculadora BCCBA'!$M$7 -> 26.42368508 | T62: =+'Calculadora BCCBA'!$M$7 -> 26.42368508 | U62: =+'Calculadora BCCBA'!$M$7 -> 26.42368508 | V62: =+'Calculadora BCCBA'!$M$7 -> 26.42368508 | W62: =+'Calculadora BCCBA'!$M$7 -> 26.42368508 | X62: =+'Calculadora BCCBA'!$M$7 -> 26.42368508 | Y62: =+'Calculadora BCCBA'!$M$7 -> 26.42368508 | Z62: =+'Calculadora BCCBA'!$M$7 -> 26.42368508 | AA62: =+'Calculadora BCCBA'!$M$7 -> 26.42368508 | AB62: =+'Calculadora BCCBA'!$M$7 -> 26.42368508 | AC62: =+'Calculadora BCCBA'!$M$7 -> 26.42368508 | AD62: =+'Calculadora BCCBA'!$M$7 -> 26.42368508 | AE62: =+'Calculadora BCCBA'!$M$7 -> 26.42368508 | AF62: =+'Calculadora BCCBA'!$M$7 -> 26.42368508
B63: Participación Provincial | C63: Porcentaje | E63: - | F63: 0.001742049361 | H63: 0.01186196578 | J63: 0.03350425799 | K63: 0.05303851776 | M63: 0.04699934324 | N63: 0.2012491081 | Q63: 0.05259377195 | S63: 0.1388426156 | T63: 0.0578190491 | U63: 0.007351933704 | V63: 0.08116932004 | Y63: 0.1310691353 | Z63: 0.0034817501 | AB63: 0.04969430625 | AC63: 0.02062094546 | AD63: 0.01236140206 | AE63: 0.09312873711 | AF63: -
B64: Pulverización terrestre | C64: Cantidad | D64: Junio | E64: 2 | F64: =$E64 -> 2 | H64: =$E64 -> 2 | J64: =$E64 -> 2 | K64: 2 | M64: =$E64 -> 2 | N64: 2 | Q64: =$E64 -> 2 | S64: =$E64 -> 2 | T64: 2 | U64: 2 | V64: 2 | Y64: =$E64 -> 2 | Z64: 2 | AB64: =$E64 -> 2 | AC64: 2 | AD64: 2 | AE64: 2 | AF64: =SUMPRODUCT(F64:AE64,$F$63:$AE$63) -> 1.993056418
B65: Pulverización aerea | C65: Cantidad | D65: =D64 -> Junio | E65: 2 | F65: 2 | H65: 2 | J65: 2 | K65: 2 | M65: 2 | N65: 2 | Q65: 2 | S65: 2 | T65: 2 | U65: 2 | V65: 2 | Y65: 2 | Z65: 2 | AB65: 2 | AC65: 2 | AD65: 2 | AE65: 2 | AF65: =SUMPRODUCT(F65:AE65,$F$63:$AE$63) -> 1.993056418
B66: Glifosato | C66: lt/ha | D66: =D65 -> Junio | E66: 1.65 | F66: 1.65 | H66: 1.65 | J66: 1.65 | K66: 1.65 | M66: 1.65 | N66: 1.65 | Q66: 1.65 | S66: 1.65 | T66: 1.65 | U66: 1.65 | V66: 1.65 | Y66: 1.65 | Z66: 1.65 | AB66: 1.65 | AC66: 1.65 | AD66: 1.65 | AE66: 1.65 | AF66: =SUMPRODUCT(F66:AE66,$F$63:$AE$63) -> 1.644271545
B67: Authority | C67: lt/ha | D67: =D71 -> Junio | E67: 0.4 | F67: =$E67 -> 0.4 | H67: =$E67 -> 0.4 | J67: =$E67 -> 0.4 | K67: 0.4 | M67: =$E67 -> 0.4 | N67: 0.4 | Q67: =$E67 -> 0.4 | S67: =$E67 -> 0.4 | T67: 0.4 | U67: 0.4 | V67: 0.4 | Y67: =$E67 -> 0.4 | Z67: 0.4 | AB67: =$E67 -> 0.4 | AC67: 0.4 | AD67: 0.4 | AE67: 0.4 | AF67: 0.4
B68: Dual Gold | C68: lt/ha | D68: =D72 -> Junio | E68: 1.2 | F68: =$E68 -> 1.2 | H68: =$E68 -> 1.2 | J68: 1.2 | K68: 1.2 | M68: 1.2 | N68: 1.2 | Q68: =$E68 -> 1.2 | S68: 1.2 | T68: 1.2 | U68: 1.2 | V68: 1.2 | Y68: 1.2 | Z68: 1.2 | AB68: 1.2 | AC68: 1.2 | AD68: 1.2 | AE68: 1.2 | AF68: 1.2
B69: COMMAND 36 CS | C69: lt/ha | D69: =D73 -> Junio | E69: 0 | F69: =$E69 -> 0 | H69: =$E69 -> 0 | J69: 0 | K69: 0 | M69: 0 | N69: 0 | Q69: =$E69 -> 0 | S69: 0 | T69: 0 | U69: 0 | V69: 0 | Y69: 0 | Z69: 0 | AB69: 0 | AC69: 0 | AD69: 0 | AE69: 0 | AF69: 0
B70: Semilla RR | C70: kg/ha | D70: =D66 -> Junio | E70: 80 | F70: 80 | H70: 80 | J70: 80 | K70: 80 | M70: 80 | N70: 80 | Q70: 80 | S70: 80 | T70: 80 | U70: 80 | V70: 80 | Y70: 80 | Z70: 80 | AB70: 80 | AC70: 80 | AD70: 80 | AE70: 80 | AF70: =SUMPRODUCT(F70:AE70,$F$63:$AE$63) -> 79.72225672
B71: Inoculante + Fungicida | C71: c/50 kg | D71: =D70 -> Junio | E71: 1.6 | F71: 1.6 | H71: 1.6 | J71: 1.6 | K71: 1.6 | M71: 1.6 | N71: 1.6 | Q71: 1.6 | S71: 1.6 | T71: 1.6 | U71: 1.6 | V71: 1.6 | Y71: 1.6 | Z71: 1.6 | AB71: 1.6 | AC71: 1.6 | AD71: 1.6 | AE71: 1.6 | AF71: 1.6
B72: Roundup control max | C72: kg/ha | D72: =D67 -> Junio | E72: 1.1 | F72: 1.1 | H72: 1.1 | J72: 1.1 | K72: 1.1 | M72: 1.1 | N72: 1.1 | Q72: 1.1 | S72: 1.1 | T72: 1.1 | U72: 1.1 | V72: 1.1 | Y72: 1.1 | Z72: 1.1 | AB72: 1.1 | AC72: 1.1 | AD72: 1.1 | AE72: 1.1 | AF72: 1.1
B73: Coragen | C73: kg/ha | D73: =D72 -> Junio | E73: 0.03 | F73: 0.03 | H73: 0.03 | J73: 0.03 | K73: 0.03 | M73: 0.03 | N73: 0.03 | Q73: 0.03 | S73: 0.03 | T73: 0.03 | U73: 0.03 | V73: 0.03 | Y73: 0.03 | Z73: 0.03 | AB73: 0.03 | AC73: 0.03 | AD73: 0.03 | AE73: 0.03 | AF73: 0.03
B74: Engeo | C74: lt/ha | D74: Junio | E74: 0.2 | F74: 0.2 | H74: 0.2 | J74: 0.2 | K74: 0.2 | M74: 0.2 | N74: 0.2 | Q74: 0.2 | S74: 0.2 | T74: 0.2 | U74: 0.2 | V74: 0.2 | Y74: 0.2 | Z74: 0.2 | AB74: 0.2 | AC74: 0.2 | AD74: 0.2 | AE74: 0.2 | AF74: 0.2
B75: Opera | C75: lt/ha | D75: Junio | E75: 0.5 | F75: 0.5 | H75: 0.5 | J75: 0.5 | K75: 0.5 | M75: 0.5 | N75: 0.5 | Q75: 0.5 | S75: 0.5 | T75: 0.5 | U75: 0.5 | V75: 0.5 | Y75: 0.5 | Z75: 0.5 | AB75: 0.5 | AC75: 0.5 | AD75: 0.5 | AE75: 0.5 | AF75: 0.5
B76: Riego | C76: mm/ha | D76: - | E76: - | F76: 0 | H76: 0 | J76: 0 | K76: 0 | M76: 0 | N76: 0 | Q76: 0 | S76: 0 | T76: 0 | U76: 0 | V76: 0 | Y76: 0 | Z76: 0 | AB76: 0 | AC76: 0 | AD76: 0 | AE76: 0 | AF76: 0
B78: Costos Directos (Por Ha) | C78: =C$2 -> Unidad de medida | D78: Mes de actualiz. | E78: Precio | F78: Calamuchita | G78: Capital | H78: Colón | I78: Cruz del Eje | J78: Gral. Roca | K78: Gral. San Martín | L78: Ischilin | M78: Juárez Celman | N78: Marcos Juárez | O78: Minas | P78: Pocho | Q78: Pte. R. Sáenz Peña | R78: Punilla | S78: Río Cuarto | T78: Río Primero | U78: Río Seco | V78: Río Segundo | W78: San Alberto | X78: San Javier | Y78: San Justo | Z78: Santa María | AA78: Sobremonte | AB78: Tercero Arriba | AC78: Totoral | AD78: Tulumba | AE78: Unión | AF78: =AF$2 -> PROVINCIA
A79: L | B79: Pulverización terrestre | C79: Cantidad | D79: Junio | E79: 6.3 | F79: =$E79*F64 -> 12.6 | H79: =$E79*H64 -> 12.6 | J79: =$E79*J64 -> 12.6 | K79: 12.6 | M79: =$E79*M64 -> 12.6 | N79: 12.6 | Q79: =$E79*Q64 -> 12.6 | S79: =$E79*S64 -> 12.6 | T79: 12.6 | U79: 12.6 | V79: 12.6 | Y79: =$E79*Y64 -> 12.6 | Z79: 12.6 | AB79: =$E79*AB64 -> 12.6 | AC79: 12.6 | AD79: 12.6 | AE79: 12.6 | AF79: 12.55625543
A80: L | B80: Pulverización aerea | C80: Cantidad | D80: =D79 -> Junio | E80: 12.6 | F80: 25.2 | H80: 25.2 | J80: 25.2 | K80: 25.2 | M80: 25.2 | N80: 25.2 | Q80: 25.2 | S80: 25.2 | T80: 25.2 | U80: 25.2 | V80: 25.2 | Y80: 25.2 | Z80: 25.2 | AB80: 25.2 | AC80: 25.2 | AD80: 25.2 | AE80: 25.2 | AF80: 25.11251087
A81: He | B81: Glifosato | C81: lt/ha | D81: =D80 -> Junio | E81: 12.5 | F81: 20.625 | H81: 20.625 | J81: 20.625 | K81: 20.625 | M81: 20.625 | N81: 20.625 | Q81: 20.625 | S81: 20.625 | T81: 20.625 | U81: 20.625 | V81: 20.625 | Y81: 20.625 | Z81: 20.625 | AB81: 20.625 | AC81: 20.625 | AD81: 20.625 | AE81: 20.625 | AF81: 20.55339431
A82: He | B82: Authority | C82: lt/ha | D82: =D86 -> Junio | E82: 35 | F82: 14 | H82: 14 | J82: 14 | K82: 14 | M82: 14 | N82: 14 | Q82: 14 | S82: 14 | T82: 14 | U82: 14 | V82: 14 | Y82: 14 | Z82: 14 | AB82: 14 | AC82: 14 | AD82: 14 | AE82: 14 | AF82: 14
A83: He | B83: Dual Gold | C83: lt/ha | D83: =D87 -> Junio | E83: 13.9 | F83: 16.68 | H83: 16.68 | J83: 16.68 | K83: 16.68 | M83: 16.68 | N83: 16.68 | Q83: 16.68 | S83: 16.68 | T83: 16.68 | U83: 16.68 | V83: 16.68 | Y83: 16.68 | Z83: 16.68 | AB83: 16.68 | AC83: 16.68 | AD83: 16.68 | AE83: 16.68 | AF83: 16.68
A84: He | B84: COMMAND 36 CS | C84: lt/ha | D84: =D88 -> Junio | E84: 12.32 | F84: 0 | H84: 0 | J84: 0 | K84: 0 | M84: 0 | N84: 0 | Q84: 0 | S84: 0 | T84: 0 | U84: 0 | V84: 0 | Y84: 0 | Z84: 0 | AB84: 0 | AC84: 0 | AD84: 0 | AE84: 0 | AF84: 0
A85: Se | B85: Semilla RR | C85: lt/ha | D85: =D81 -> Junio | E85: 0.8 | F85: 64 | H85: 64 | J85: 64 | K85: 64 | M85: 64 | N85: 64 | Q85: 64 | S85: 64 | T85: 64 | U85: 64 | V85: 64 | Y85: 64 | Z85: 64 | AB85: 64 | AC85: 64 | AD85: 64 | AE85: 64 | AF85: 63.77780537
A86: Cu | B86: Inoculante + Fungicida | C86: kg/ha | D86: =D85 -> Junio | E86: 3.7 | F86: 5.92 | H86: 5.92 | J86: 5.92 | K86: 5.92 | M86: 5.92 | N86: 5.92 | Q86: 5.92 | S86: 5.92 | T86: 5.92 | U86: 5.92 | V86: 5.92 | Y86: 5.92 | Z86: 5.92 | AB86: 5.92 | AC86: 5.92 | AD86: 5.92 | AE86: 5.92 | AF86: 5.92
A87: He | B87: Roundup control max | C87: lt/ha | D87: =D82 -> Junio | E87: 18.66 | F87: 20.526 | H87: 20.526 | J87: 20.526 | K87: 20.526 | M87: 20.526 | N87: 20.526 | Q87: 20.526 | S87: 20.526 | T87: 20.526 | U87: 20.526 | V87: 20.526 | Y87: 20.526 | Z87: 20.526 | AB87: 20.526 | AC87: 20.526 | AD87: 20.526 | AE87: 20.526 | AF87: 20.526
A88: Ins | B88: Coragen | C88: kg/ha | D88: =D87 -> Junio | E88: 235 | F88: 7.05 | H88: 7.05 | J88: 7.05 | K88: 7.05 | M88: 7.05 | N88: 7.05 | Q88: 7.05 | S88: 7.05 | T88: 7.05 | U88: 7.05 | V88: 7.05 | Y88: 7.05 | Z88: 7.05 | AB88: 7.05 | AC88: 7.05 | AD88: 7.05 | AE88: 7.05 | AF88: 7.05
A89: Ins | B89: Engeo | C89: b 200 gr | D89: =D88 -> Junio | E89: 49.94 | F89: 9.988 | H89: 9.988 | J89: 9.988 | K89: 9.988 | M89: 9.988 | N89: 9.988 | Q89: 9.988 | S89: 9.988 | T89: 9.988 | U89: 9.988 | V89: 9.988 | Y89: 9.988 | Z89: 9.988 | AB89: 9.988 | AC89: 9.988 | AD89: 9.988 | AE89: 9.988 | AF89: 9.988
A90: Fu | B90: Opera | C90: kg/ha | D90: =D89 -> Junio | E90: 22.5 | F90: 11.25 | H90: 11.25 | J90: 11.25 | K90: 11.25 | M90: 11.25 | N90: 11.25 | Q90: 11.25 | S90: 11.25 | T90: 11.25 | U90: 11.25 | V90: 11.25 | Y90: 11.25 | Z90: 11.25 | AB90: 11.25 | AC90: 11.25 | AD90: 11.25 | AE90: 11.25 | AF90: 11.25
B91: Riego | C91: =+"USD/"&LEFT(C76,2) -> USD/mm | D91: Junio | E91: 1 | F91: 0 | H91: 0 | J91: 0 | K91: 0 | M91: 0 | N91: 0 | Q91: 0 | S91: 0 | T91: 0 | U91: 0 | V91: 0 | Y91: 0 | Z91: 0 | AB91: 0 | AC91: 0 | AD91: 0 | AE91: 0 | AF91: 0
A92: L | B92: Siembra | C92: USD/Unidad | D92: Junio | E92: 46.3 | F92: =$E92 -> 46.3 | H92: =$E92 -> 46.3 | J92: =$E92 -> 46.3 | K92: =$E92 -> 46.3 | M92: =$E92 -> 46.3 | N92: =$E92 -> 46.3 | Q92: =$E92 -> 46.3 | S92: =$E92 -> 46.3 | T92: =$E92 -> 46.3 | U92: =$E92 -> 46.3 | V92: =$E92 -> 46.3 | Y92: =$E92 -> 46.3 | Z92: =$E92 -> 46.3 | AB92: =$E92 -> 46.3 | AC92: =$E92 -> 46.3 | AD92: =$E92 -> 46.3 | AE92: =$E92 -> 46.3 | AF92: =$E92 -> 46.3
B93: Cosecha | C93: $/Unidad | E93: - | F93: =+Listas!$AC$10 -> 8015.352802 | G93: =+Listas!$Z$10 -> 10556.70539 | H93: =+Listas!$Z$10 -> 10556.70539 | I93: =+Listas!$Z$10 -> 10556.70539 | J93: =+Listas!$Z$10 -> 10556.70539 | K93: =+Listas!$Z$10 -> 10556.70539 | L93: =+Listas!$Z$10 -> 10556.70539 | M93: =+Listas!$Z$10 -> 10556.70539 | N93: =+Listas!$Z$10 -> 10556.70539 | O93: =+Listas!$Z$10 -> 10556.70539 | P93: =+Listas!$Z$10 -> 10556.70539 | Q93: =+Listas!$Z$10 -> 10556.70539 | R93: =+Listas!$Z$10 -> 10556.70539 | S93: =+Listas!$Z$10 -> 10556.70539 | T93: =+Listas!$Z$10 -> 10556.70539 | U93: =+Listas!$Z$10 -> 10556.70539 | V93: =+Listas!$Z$10 -> 10556.70539 | W93: =+Listas!$Z$10 -> 10556.70539 | X93: =+Listas!$Z$10 -> 10556.70539 | Y93: =+Listas!$Z$10 -> 10556.70539 | Z93: =+Listas!$Z$10 -> 10556.70539 | AA93: =+Listas!$Z$10 -> 10556.70539 | AB93: =+Listas!$Z$10 -> 10556.70539 | AC93: =+Listas!$Z$10 -> 10556.70539 | AD93: =+Listas!$Z$10 -> 10556.70539 | AE93: =+Listas!$Z$10 -> 10556.70539 | AF93: =+Listas!$Z$10 -> 10556.70539
A94: Co | B94: Cosecha en USD | C94: USD/Unidad | E94: - | F94: =F93*(1+$E$156)/$E$153 -> 55.22469881 | H94: =H93*(1+$E$156)/$E$153 -> 72.73427509 | J94: =J93*(1+$E$156)/$E$153 -> 72.73427509 | K94: =K93*(1+$E$156)/$E$153 -> 72.73427509 | M94: =M93*(1+$E$156)/$E$153 -> 72.73427509 | N94: =N93*(1+$E$156)/$E$153 -> 72.73427509 | Q94: =Q93*(1+$E$156)/$E$153 -> 72.73427509 | S94: =S93*(1+$E$156)/$E$153 -> 72.73427509 | T94: =T93*(1+$E$156)/$E$153 -> 72.73427509 | U94: =U93*(1+$E$156)/$E$153 -> 72.73427509 | V94: =V93*(1+$E$156)/$E$153 -> 72.73427509 | Y94: =Y93*(1+$E$156)/$E$153 -> 72.73427509 | Z94: =Z93*(1+$E$156)/$E$153 -> 72.73427509 | AB94: =AB93*(1+$E$156)/$E$153 -> 72.73427509 | AC94: =AC93*(1+$E$156)/$E$153 -> 72.73427509 | AD94: =AD93*(1+$E$156)/$E$153 -> 72.73427509 | AE94: =AE93*(1+$E$156)/$E$153 -> 72.73427509 | AF94: =AF93*(1+$E$156)/$E$153 -> 72.73427509
B95: Costos directos | C95: USD/ha | F95: =SUM(F94,F79:F92) -> 309.3636988 | H95: =SUM(H94,H79:H92) -> 326.8732751 | J95: =SUM(J94,J79:J92) -> 326.8732751 | K95: =SUM(K94,K79:K92) -> 326.8732751 | M95: =SUM(M94,M79:M92) -> 326.8732751 | N95: =SUM(N94,N79:N92) -> 326.8732751 | Q95: =SUM(Q94,Q79:Q92) -> 326.8732751 | S95: =SUM(S94,S79:S92) -> 326.8732751 | T95: =SUM(T94,T79:T92) -> 326.8732751 | U95: =SUM(U94,U79:U92) -> 326.8732751 | V95: =SUM(V94,V79:V92) -> 326.8732751 | Y95: =SUM(Y94,Y79:Y92) -> 326.8732751 | Z95: =SUM(Z94,Z79:Z92) -> 326.8732751 | AB95: =SUM(AB94,AB79:AB92) -> 326.8732751 | AC95: =SUM(AC94,AC79:AC92) -> 326.8732751 | AD95: =SUM(AD94,AD79:AD92) -> 326.8732751 | AE95: =SUM(AE94,AE79:AE92) -> 326.8732751 | AF95: =SUM(AF94,AF79:AF92) -> 326.4482411
A96: =30*12 -> 360 | B96: =+A96*A97 -> 289440 | AF96: a
A97: 804 | B97: Opciones avanzadas SOJA 2ª (completado por el usuario) | C97: =C$2 -> Unidad de medida | D97: Mes de actualiz. | E97: - | F97: Calamuchita | G97: Capital | H97: Colón | I97: Cruz del Eje | J97: Gral. Roca | K97: Gral. San Martín | L97: Ischilin | M97: Juárez Celman | N97: Marcos Juárez | O97: Minas | P97: Pocho | Q97: Pte. R. Sáenz Peña | R97: Punilla | S97: Río Cuarto | T97: Río Primero | U97: Río Seco | V97: Río Segundo | W97: San Alberto | X97: San Javier | Y97: San Justo | Z97: Santa María | AA97: Sobremonte | AB97: Tercero Arriba | AC97: Totoral | AD97: Tulumba | AE97: Unión | AF97: =AF$2 -> PROVINCIA
B98: Servicios de labranza | C98: USD/ha | D98: Estos datos son los ingresados en opciones avanzadas | E98: - | F98: =+'Opciones Avanzadas'!$D13 -> 83.9687663 | G98: =+'Opciones Avanzadas'!$D13 -> 83.9687663 | H98: =+'Opciones Avanzadas'!$D13 -> 83.9687663 | I98: =+'Opciones Avanzadas'!$D13 -> 83.9687663 | J98: =+'Opciones Avanzadas'!$D13 -> 83.9687663 | K98: =+'Opciones Avanzadas'!$D13 -> 83.9687663 | L98: =+'Opciones Avanzadas'!$D13 -> 83.9687663 | M98: =+'Opciones Avanzadas'!$D13 -> 83.9687663 | N98: =+'Opciones Avanzadas'!$D13 -> 83.9687663 | O98: =+'Opciones Avanzadas'!$D13 -> 83.9687663 | P98: =+'Opciones Avanzadas'!$D13 -> 83.9687663 | Q98: =+'Opciones Avanzadas'!$D13 -> 83.9687663 | R98: =+'Opciones Avanzadas'!$D13 -> 83.9687663 | S98: =+'Opciones Avanzadas'!$D13 -> 83.9687663 | T98: =+'Opciones Avanzadas'!$D13 -> 83.9687663 | U98: =+'Opciones Avanzadas'!$D13 -> 83.9687663 | V98: =+'Opciones Avanzadas'!$D13 -> 83.9687663 | W98: =+'Opciones Avanzadas'!$D13 -> 83.9687663 | X98: =+'Opciones Avanzadas'!$D13 -> 83.9687663 | Y98: =+'Opciones Avanzadas'!$D13 -> 83.9687663 | Z98: =+'Opciones Avanzadas'!$D13 -> 83.9687663 | AA98: =+'Opciones Avanzadas'!$D13 -> 83.9687663 | AB98: =+'Opciones Avanzadas'!$D13 -> 83.9687663 | AC98: =+'Opciones Avanzadas'!$D13 -> 83.9687663 | AD98: =+'Opciones Avanzadas'!$D13 -> 83.9687663 | AE98: =+'Opciones Avanzadas'!$D13 -> 83.9687663 | AF98: =+'Opciones Avanzadas'!$D13 -> 83.9687663
B99: Cosecha | C99: USD/ha | E99: - | F99: =+'Opciones Avanzadas'!$D14 -> 72.73427509 | G99: =+'Opciones Avanzadas'!$D14 -> 72.73427509 | H99: =+'Opciones Avanzadas'!$D14 -> 72.73427509 | I99: =+'Opciones Avanzadas'!$D14 -> 72.73427509 | J99: =+'Opciones Avanzadas'!$D14 -> 72.73427509 | K99: =+'Opciones Avanzadas'!$D14 -> 72.73427509 | L99: =+'Opciones Avanzadas'!$D14 -> 72.73427509 | M99: =+'Opciones Avanzadas'!$D14 -> 72.73427509 | N99: =+'Opciones Avanzadas'!$D14 -> 72.73427509 | O99: =+'Opciones Avanzadas'!$D14 -> 72.73427509 | P99: =+'Opciones Avanzadas'!$D14 -> 72.73427509 | Q99: =+'Opciones Avanzadas'!$D14 -> 72.73427509 | R99: =+'Opciones Avanzadas'!$D14 -> 72.73427509 | S99: =+'Opciones Avanzadas'!$D14 -> 72.73427509 | T99: =+'Opciones Avanzadas'!$D14 -> 72.73427509 | U99: =+'Opciones Avanzadas'!$D14 -> 72.73427509 | V99: =+'Opciones Avanzadas'!$D14 -> 72.73427509 | W99: =+'Opciones Avanzadas'!$D14 -> 72.73427509 | X99: =+'Opciones Avanzadas'!$D14 -> 72.73427509 | Y99: =+'Opciones Avanzadas'!$D14 -> 72.73427509 | Z99: =+'Opciones Avanzadas'!$D14 -> 72.73427509 | AA99: =+'Opciones Avanzadas'!$D14 -> 72.73427509 | AB99: =+'Opciones Avanzadas'!$D14 -> 72.73427509 | AC99: =+'Opciones Avanzadas'!$D14 -> 72.73427509 | AD99: =+'Opciones Avanzadas'!$D14 -> 72.73427509 | AE99: =+'Opciones Avanzadas'!$D14 -> 72.73427509 | AF99: =+'Opciones Avanzadas'!$D14 -> 72.73427509
B100: Herbicida | C100: USD/ha | E100: - | F100: =+'Opciones Avanzadas'!$D15 -> 71.75939431 | G100: =+'Opciones Avanzadas'!$D15 -> 71.75939431 | H100: =+'Opciones Avanzadas'!$D15 -> 71.75939431 | I100: =+'Opciones Avanzadas'!$D15 -> 71.75939431 | J100: =+'Opciones Avanzadas'!$D15 -> 71.75939431 | K100: =+'Opciones Avanzadas'!$D15 -> 71.75939431 | L100: =+'Opciones Avanzadas'!$D15 -> 71.75939431 | M100: =+'Opciones Avanzadas'!$D15 -> 71.75939431 | N100: =+'Opciones Avanzadas'!$D15 -> 71.75939431 | O100: =+'Opciones Avanzadas'!$D15 -> 71.75939431 | P100: =+'Opciones Avanzadas'!$D15 -> 71.75939431 | Q100: =+'Opciones Avanzadas'!$D15 -> 71.75939431 | R100: =+'Opciones Avanzadas'!$D15 -> 71.75939431 | S100: =+'Opciones Avanzadas'!$D15 -> 71.75939431 | T100: =+'Opciones Avanzadas'!$D15 -> 71.75939431 | U100: =+'Opciones Avanzadas'!$D15 -> 71.75939431 | V100: =+'Opciones Avanzadas'!$D15 -> 71.75939431 | W100: =+'Opciones Avanzadas'!$D15 -> 71.75939431 | X100: =+'Opciones Avanzadas'!$D15 -> 71.75939431 | Y100: =+'Opciones Avanzadas'!$D15 -> 71.75939431 | Z100: =+'Opciones Avanzadas'!$D15 -> 71.75939431 | AA100: =+'Opciones Avanzadas'!$D15 -> 71.75939431 | AB100: =+'Opciones Avanzadas'!$D15 -> 71.75939431 | AC100: =+'Opciones Avanzadas'!$D15 -> 71.75939431 | AD100: =+'Opciones Avanzadas'!$D15 -> 71.75939431 | AE100: =+'Opciones Avanzadas'!$D15 -> 71.75939431 | AF100: =+'Opciones Avanzadas'!$D15 -> 71.75939431
B101: Fertilizantes | C101: USD/ha | E101: - | F101: =+'Opciones Avanzadas'!$D16 -> 0 | G101: =+'Opciones Avanzadas'!$D16 -> 0 | H101: =+'Opciones Avanzadas'!$D16 -> 0 | I101: =+'Opciones Avanzadas'!$D16 -> 0 | J101: =+'Opciones Avanzadas'!$D16 -> 0 | K101: =+'Opciones Avanzadas'!$D16 -> 0 | L101: =+'Opciones Avanzadas'!$D16 -> 0 | M101: =+'Opciones Avanzadas'!$D16 -> 0 | N101: =+'Opciones Avanzadas'!$D16 -> 0 | O101: =+'Opciones Avanzadas'!$D16 -> 0 | P101: =+'Opciones Avanzadas'!$D16 -> 0 | Q101: =+'Opciones Avanzadas'!$D16 -> 0 | R101: =+'Opciones Avanzadas'!$D16 -> 0 | S101: =+'Opciones Avanzadas'!$D16 -> 0 | T101: =+'Opciones Avanzadas'!$D16 -> 0 | U101: =+'Opciones Avanzadas'!$D16 -> 0 | V101: =+'Opciones Avanzadas'!$D16 -> 0 | W101: =+'Opciones Avanzadas'!$D16 -> 0 | X101: =+'Opciones Avanzadas'!$D16 -> 0 | Y101: =+'Opciones Avanzadas'!$D16 -> 0 | Z101: =+'Opciones Avanzadas'!$D16 -> 0 | AA101: =+'Opciones Avanzadas'!$D16 -> 0 | AB101: =+'Opciones Avanzadas'!$D16 -> 0 | AC101: =+'Opciones Avanzadas'!$D16 -> 0 | AD101: =+'Opciones Avanzadas'!$D16 -> 0 | AE101: =+'Opciones Avanzadas'!$D16 -> 0 | AF101: =+'Opciones Avanzadas'!$D16 -> 0
B102: Insecticidas | C102: USD/ha | E102: - | F102: =+'Opciones Avanzadas'!$D17 -> 17.038 | G102: =+'Opciones Avanzadas'!$D17 -> 17.038 | H102: =+'Opciones Avanzadas'!$D17 -> 17.038 | I102: =+'Opciones Avanzadas'!$D17 -> 17.038 | J102: =+'Opciones Avanzadas'!$D17 -> 17.038 | K102: =+'Opciones Avanzadas'!$D17 -> 17.038 | L102: =+'Opciones Avanzadas'!$D17 -> 17.038 | M102: =+'Opciones Avanzadas'!$D17 -> 17.038 | N102: =+'Opciones Avanzadas'!$D17 -> 17.038 | O102: =+'Opciones Avanzadas'!$D17 -> 17.038 | P102: =+'Opciones Avanzadas'!$D17 -> 17.038 | Q102: =+'Opciones Avanzadas'!$D17 -> 17.038 | R102: =+'Opciones Avanzadas'!$D17 -> 17.038 | S102: =+'Opciones Avanzadas'!$D17 -> 17.038 | T102: =+'Opciones Avanzadas'!$D17 -> 17.038 | U102: =+'Opciones Avanzadas'!$D17 -> 17.038 | V102: =+'Opciones Avanzadas'!$D17 -> 17.038 | W102: =+'Opciones Avanzadas'!$D17 -> 17.038 | X102: =+'Opciones Avanzadas'!$D17 -> 17.038 | Y102: =+'Opciones Avanzadas'!$D17 -> 17.038 | Z102: =+'Opciones Avanzadas'!$D17 -> 17.038 | AA102: =+'Opciones Avanzadas'!$D17 -> 17.038 | AB102: =+'Opciones Avanzadas'!$D17 -> 17.038 | AC102: =+'Opciones Avanzadas'!$D17 -> 17.038 | AD102: =+'Opciones Avanzadas'!$D17 -> 17.038 | AE102: =+'Opciones Avanzadas'!$D17 -> 17.038 | AF102: =+'Opciones Avanzadas'!$D17 -> 17.038
B103: Fungicidas | C103: USD/ha | E103: - | F103: =+'Opciones Avanzadas'!$D18 -> 11.25 | G103: =+'Opciones Avanzadas'!$D18 -> 11.25 | H103: =+'Opciones Avanzadas'!$D18 -> 11.25 | I103: =+'Opciones Avanzadas'!$D18 -> 11.25 | J103: =+'Opciones Avanzadas'!$D18 -> 11.25 | K103: =+'Opciones Avanzadas'!$D18 -> 11.25 | L103: =+'Opciones Avanzadas'!$D18 -> 11.25 | M103: =+'Opciones Avanzadas'!$D18 -> 11.25 | N103: =+'Opciones Avanzadas'!$D18 -> 11.25 | O103: =+'Opciones Avanzadas'!$D18 -> 11.25 | P103: =+'Opciones Avanzadas'!$D18 -> 11.25 | Q103: =+'Opciones Avanzadas'!$D18 -> 11.25 | R103: =+'Opciones Avanzadas'!$D18 -> 11.25 | S103: =+'Opciones Avanzadas'!$D18 -> 11.25 | T103: =+'Opciones Avanzadas'!$D18 -> 11.25 | U103: =+'Opciones Avanzadas'!$D18 -> 11.25 | V103: =+'Opciones Avanzadas'!$D18 -> 11.25 | W103: =+'Opciones Avanzadas'!$D18 -> 11.25 | X103: =+'Opciones Avanzadas'!$D18 -> 11.25 | Y103: =+'Opciones Avanzadas'!$D18 -> 11.25 | Z103: =+'Opciones Avanzadas'!$D18 -> 11.25 | AA103: =+'Opciones Avanzadas'!$D18 -> 11.25 | AB103: =+'Opciones Avanzadas'!$D18 -> 11.25 | AC103: =+'Opciones Avanzadas'!$D18 -> 11.25 | AD103: =+'Opciones Avanzadas'!$D18 -> 11.25 | AE103: =+'Opciones Avanzadas'!$D18 -> 11.25 | AF103: =+'Opciones Avanzadas'!$D18 -> 11.25
B104: Curasemillas | C104: USD/ha | E104: - | F104: =+'Opciones Avanzadas'!$D19 -> 5.92 | G104: =+'Opciones Avanzadas'!$D19 -> 5.92 | H104: =+'Opciones Avanzadas'!$D19 -> 5.92 | I104: =+'Opciones Avanzadas'!$D19 -> 5.92 | J104: =+'Opciones Avanzadas'!$D19 -> 5.92 | K104: =+'Opciones Avanzadas'!$D19 -> 5.92 | L104: =+'Opciones Avanzadas'!$D19 -> 5.92 | M104: =+'Opciones Avanzadas'!$D19 -> 5.92 | N104: =+'Opciones Avanzadas'!$D19 -> 5.92 | O104: =+'Opciones Avanzadas'!$D19 -> 5.92 | P104: =+'Opciones Avanzadas'!$D19 -> 5.92 | Q104: =+'Opciones Avanzadas'!$D19 -> 5.92 | R104: =+'Opciones Avanzadas'!$D19 -> 5.92 | S104: =+'Opciones Avanzadas'!$D19 -> 5.92 | T104: =+'Opciones Avanzadas'!$D19 -> 5.92 | U104: =+'Opciones Avanzadas'!$D19 -> 5.92 | V104: =+'Opciones Avanzadas'!$D19 -> 5.92 | W104: =+'Opciones Avanzadas'!$D19 -> 5.92 | X104: =+'Opciones Avanzadas'!$D19 -> 5.92 | Y104: =+'Opciones Avanzadas'!$D19 -> 5.92 | Z104: =+'Opciones Avanzadas'!$D19 -> 5.92 | AA104: =+'Opciones Avanzadas'!$D19 -> 5.92 | AB104: =+'Opciones Avanzadas'!$D19 -> 5.92 | AC104: =+'Opciones Avanzadas'!$D19 -> 5.92 | AD104: =+'Opciones Avanzadas'!$D19 -> 5.92 | AE104: =+'Opciones Avanzadas'!$D19 -> 5.92 | AF104: =+'Opciones Avanzadas'!$D19 -> 5.92
B105: Semillas | C105: USD/ha | E105: - | F105: =+'Opciones Avanzadas'!$D20 -> 63.77780537 | G105: =+'Opciones Avanzadas'!$D20 -> 63.77780537 | H105: =+'Opciones Avanzadas'!$D20 -> 63.77780537 | I105: =+'Opciones Avanzadas'!$D20 -> 63.77780537 | J105: =+'Opciones Avanzadas'!$D20 -> 63.77780537 | K105: =+'Opciones Avanzadas'!$D20 -> 63.77780537 | L105: =+'Opciones Avanzadas'!$D20 -> 63.77780537 | M105: =+'Opciones Avanzadas'!$D20 -> 63.77780537 | N105: =+'Opciones Avanzadas'!$D20 -> 63.77780537 | O105: =+'Opciones Avanzadas'!$D20 -> 63.77780537 | P105: =+'Opciones Avanzadas'!$D20 -> 63.77780537 | Q105: =+'Opciones Avanzadas'!$D20 -> 63.77780537 | R105: =+'Opciones Avanzadas'!$D20 -> 63.77780537 | S105: =+'Opciones Avanzadas'!$D20 -> 63.77780537 | T105: =+'Opciones Avanzadas'!$D20 -> 63.77780537 | U105: =+'Opciones Avanzadas'!$D20 -> 63.77780537 | V105: =+'Opciones Avanzadas'!$D20 -> 63.77780537 | W105: =+'Opciones Avanzadas'!$D20 -> 63.77780537 | X105: =+'Opciones Avanzadas'!$D20 -> 63.77780537 | Y105: =+'Opciones Avanzadas'!$D20 -> 63.77780537 | Z105: =+'Opciones Avanzadas'!$D20 -> 63.77780537 | AA105: =+'Opciones Avanzadas'!$D20 -> 63.77780537 | AB105: =+'Opciones Avanzadas'!$D20 -> 63.77780537 | AC105: =+'Opciones Avanzadas'!$D20 -> 63.77780537 | AD105: =+'Opciones Avanzadas'!$D20 -> 63.77780537 | AE105: =+'Opciones Avanzadas'!$D20 -> 63.77780537 | AF105: =+'Opciones Avanzadas'!$D20 -> 63.77780537
B106: Total | C106: USD/ha | E106: - | F106: =+'Opciones Avanzadas'!$D21 -> 326.4482411 | G106: =+'Opciones Avanzadas'!$D21 -> 326.4482411 | H106: =+'Opciones Avanzadas'!$D21 -> 326.4482411 | I106: =+'Opciones Avanzadas'!$D21 -> 326.4482411 | J106: =+'Opciones Avanzadas'!$D21 -> 326.4482411 | K106: =+'Opciones Avanzadas'!$D21 -> 326.4482411 | L106: =+'Opciones Avanzadas'!$D21 -> 326.4482411 | M106: =+'Opciones Avanzadas'!$D21 -> 326.4482411 | N106: =+'Opciones Avanzadas'!$D21 -> 326.4482411 | O106: =+'Opciones Avanzadas'!$D21 -> 326.4482411 | P106: =+'Opciones Avanzadas'!$D21 -> 326.4482411 | Q106: =+'Opciones Avanzadas'!$D21 -> 326.4482411 | R106: =+'Opciones Avanzadas'!$D21 -> 326.4482411 | S106: =+'Opciones Avanzadas'!$D21 -> 326.4482411 | T106: =+'Opciones Avanzadas'!$D21 -> 326.4482411 | U106: =+'Opciones Avanzadas'!$D21 -> 326.4482411 | V106: =+'Opciones Avanzadas'!$D21 -> 326.4482411 | W106: =+'Opciones Avanzadas'!$D21 -> 326.4482411 | X106: =+'Opciones Avanzadas'!$D21 -> 326.4482411 | Y106: =+'Opciones Avanzadas'!$D21 -> 326.4482411 | Z106: =+'Opciones Avanzadas'!$D21 -> 326.4482411 | AA106: =+'Opciones Avanzadas'!$D21 -> 326.4482411 | AB106: =+'Opciones Avanzadas'!$D21 -> 326.4482411 | AC106: =+'Opciones Avanzadas'!$D21 -> 326.4482411 | AD106: =+'Opciones Avanzadas'!$D21 -> 326.4482411 | AE106: =+'Opciones Avanzadas'!$D21 -> 326.4482411 | AF106: =+'Opciones Avanzadas'!$D21 -> 326.4482411
B108: Gastos Comerciales (Por Tn) | C108: =C$2 -> Unidad de medida | D108: Mes de actualiz. | E108: Costo | F108: Calamuchita | G108: Capital | H108: Colón | I108: Cruz del Eje | J108: Gral. Roca | K108: Gral. San Martín | L108: Ischilin | M108: Juárez Celman | N108: Marcos Juárez | O108: Minas | P108: Pocho | Q108: Pte. R. Sáenz Peña | R108: Punilla | S108: Río Cuarto | T108: Río Primero | U108: Río Seco | V108: Río Segundo | W108: San Alberto | X108: San Javier | Y108: San Justo | Z108: Santa María | AA108: Sobremonte | AB108: Tercero Arriba | AC108: Totoral | AD108: Tulumba | AE108: Unión | AF108: PROVINCIA
B109: Flete Largo | C109: $/tn | D109: 2021-04-01 | E109: - | F109: =+IF('Opciones Avanzadas'!$E$7<=MROUND('Opciones Avanzadas'!$E$7,5),VLOOKUP(MROUND('Opciones Avanzadas'!$E$7-2.5,5),Listas!$AE$21:$AF$135,2,FALSE)+(VLOOKUP(MROUND('Opciones Avanzadas'!$E$7,5),Listas!$AE$21:$AF$135,2,FALSE)-VLOOKUP(MROUND('Opciones Avanzadas'!$E$7-2.5,5),Listas!$AE$21:$AF$135,2,FALSE))/5*('Opciones Avanzadas'!$E$7-MROUND('Opciones Avanzadas'!$E$7-2.5,5)),VLOOKUP(MROUND('Opciones Avanzadas'!$E$7,5),Listas!$AE$21:$AF$135,2,FALSE)+(VLOOKUP(MROUND('Opciones Avanzadas'!$E$7+2.5,5),Listas!$AE$21:$AF$135,2,FALSE)-VLOOKUP(MROUND('Opciones Avanzadas'!$E$7,5),Listas!$AE$21:$AF$135,2,FALSE))/5*('Opciones Avanzadas'!$E$7-MROUND('Opciones Avanzadas'!$E$7,5))) -> 4378.154088 | G109: =+IF('Opciones Avanzadas'!$E$7<=MROUND('Opciones Avanzadas'!$E$7,5),VLOOKUP(MROUND('Opciones Avanzadas'!$E$7-2.5,5),Listas!$AE$21:$AF$135,2,FALSE)+(VLOOKUP(MROUND('Opciones Avanzadas'!$E$7,5),Listas!$AE$21:$AF$135,2,FALSE)-VLOOKUP(MROUND('Opciones Avanzadas'!$E$7-2.5,5),Listas!$AE$21:$AF$135,2,FALSE))/5*('Opciones Avanzadas'!$E$7-MROUND('Opciones Avanzadas'!$E$7-2.5,5)),VLOOKUP(MROUND('Opciones Avanzadas'!$E$7,5),Listas!$AE$21:$AF$135,2,FALSE)+(VLOOKUP(MROUND('Opciones Avanzadas'!$E$7+2.5,5),Listas!$AE$21:$AF$135,2,FALSE)-VLOOKUP(MROUND('Opciones Avanzadas'!$E$7,5),Listas!$AE$21:$AF$135,2,FALSE))/5*('Opciones Avanzadas'!$E$7-MROUND('Opciones Avanzadas'!$E$7,5))) -> 4378.154088 | H109: =+IF('Opciones Avanzadas'!$E$7<=MROUND('Opciones Avanzadas'!$E$7,5),VLOOKUP(MROUND('Opciones Avanzadas'!$E$7-2.5,5),Listas!$AE$21:$AF$135,2,FALSE)+(VLOOKUP(MROUND('Opciones Avanzadas'!$E$7,5),Listas!$AE$21:$AF$135,2,FALSE)-VLOOKUP(MROUND('Opciones Avanzadas'!$E$7-2.5,5),Listas!$AE$21:$AF$135,2,FALSE))/5*('Opciones Avanzadas'!$E$7-MROUND('Opciones Avanzadas'!$E$7-2.5,5)),VLOOKUP(MROUND('Opciones Avanzadas'!$E$7,5),Listas!$AE$21:$AF$135,2,FALSE)+(VLOOKUP(MROUND('Opciones Avanzadas'!$E$7+2.5,5),Listas!$AE$21:$AF$135,2,FALSE)-VLOOKUP(MROUND('Opciones Avanzadas'!$E$7,5),Listas!$AE$21:$AF$135,2,FALSE))/5*('Opciones Avanzadas'!$E$7-MROUND('Opciones Avanzadas'!$E$7,5))) -> 4378.154088 | I109: =+IF('Opciones Avanzadas'!$E$7<=MROUND('Opciones Avanzadas'!$E$7,5),VLOOKUP(MROUND('Opciones Avanzadas'!$E$7-2.5,5),Listas!$AE$21:$AF$135,2,FALSE)+(VLOOKUP(MROUND('Opciones Avanzadas'!$E$7,5),Listas!$AE$21:$AF$135,2,FALSE)-VLOOKUP(MROUND('Opciones Avanzadas'!$E$7-2.5,5),Listas!$AE$21:$AF$135,2,FALSE))/5*('Opciones Avanzadas'!$E$7-MROUND('Opciones Avanzadas'!$E$7-2.5,5)),VLOOKUP(MROUND('Opciones Avanzadas'!$E$7,5),Listas!$AE$21:$AF$135,2,FALSE)+(VLOOKUP(MROUND('Opciones Avanzadas'!$E$7+2.5,5),Listas!$AE$21:$AF$135,2,FALSE)-VLOOKUP(MROUND('Opciones Avanzadas'!$E$7,5),Listas!$AE$21:$AF$135,2,FALSE))/5*('Opciones Avanzadas'!$E$7-MROUND('Opciones Avanzadas'!$E$7,5))) -> 4378.154088 | J109: =+IF('Opciones Avanzadas'!$E$7<=MROUND('Opciones Avanzadas'!$E$7,5),VLOOKUP(MROUND('Opciones Avanzadas'!$E$7-2.5,5),Listas!$AE$21:$AF$135,2,FALSE)+(VLOOKUP(MROUND('Opciones Avanzadas'!$E$7,5),Listas!$AE$21:$AF$135,2,FALSE)-VLOOKUP(MROUND('Opciones Avanzadas'!$E$7-2.5,5),Listas!$AE$21:$AF$135,2,FALSE))/5*('Opciones Avanzadas'!$E$7-MROUND('Opciones Avanzadas'!$E$7-2.5,5)),VLOOKUP(MROUND('Opciones Avanzadas'!$E$7,5),Listas!$AE$21:$AF$135,2,FALSE)+(VLOOKUP(MROUND('Opciones Avanzadas'!$E$7+2.5,5),Listas!$AE$21:$AF$135,2,FALSE)-VLOOKUP(MROUND('Opciones Avanzadas'!$E$7,5),Listas!$AE$21:$AF$135,2,FALSE))/5*('Opciones Avanzadas'!$E$7-MROUND('Opciones Avanzadas'!$E$7,5))) -> 4378.154088 | K109: =+IF('Opciones Avanzadas'!$E$7<=MROUND('Opciones Avanzadas'!$E$7,5),VLOOKUP(MROUND('Opciones Avanzadas'!$E$7-2.5,5),Listas!$AE$21:$AF$135,2,FALSE)+(VLOOKUP(MROUND('Opciones Avanzadas'!$E$7,5),Listas!$AE$21:$AF$135,2,FALSE)-VLOOKUP(MROUND('Opciones Avanzadas'!$E$7-2.5,5),Listas!$AE$21:$AF$135,2,FALSE))/5*('Opciones Avanzadas'!$E$7-MROUND('Opciones Avanzadas'!$E$7-2.5,5)),VLOOKUP(MROUND('Opciones Avanzadas'!$E$7,5),Listas!$AE$21:$AF$135,2,FALSE)+(VLOOKUP(MROUND('Opciones Avanzadas'!$E$7+2.5,5),Listas!$AE$21:$AF$135,2,FALSE)-VLOOKUP(MROUND('Opciones Avanzadas'!$E$7,5),Listas!$AE$21:$AF$135,2,FALSE))/5*('Opciones Avanzadas'!$E$7-MROUND('Opciones Avanzadas'!$E$7,5))) -> 4378.154088 | L109: =+IF('Opciones Avanzadas'!$E$7<=MROUND('Opciones Avanzadas'!$E$7,5),VLOOKUP(MROUND('Opciones Avanzadas'!$E$7-2.5,5),Listas!$AE$21:$AF$135,2,FALSE)+(VLOOKUP(MROUND('Opciones Avanzadas'!$E$7,5),Listas!$AE$21:$AF$135,2,FALSE)-VLOOKUP(MROUND('Opciones Avanzadas'!$E$7-2.5,5),Listas!$AE$21:$AF$135,2,FALSE))/5*('Opciones Avanzadas'!$E$7-MROUND('Opciones Avanzadas'!$E$7-2.5,5)),VLOOKUP(MROUND('Opciones Avanzadas'!$E$7,5),Listas!$AE$21:$AF$135,2,FALSE)+(VLOOKUP(MROUND('Opciones Avanzadas'!$E$7+2.5,5),Listas!$AE$21:$AF$135,2,FALSE)-VLOOKUP(MROUND('Opciones Avanzadas'!$E$7,5),Listas!$AE$21:$AF$135,2,FALSE))/5*('Opciones Avanzadas'!$E$7-MROUND('Opciones Avanzadas'!$E$7,5))) -> 4378.154088 | M109: =+IF('Opciones Avanzadas'!$E$7<=MROUND('Opciones Avanzadas'!$E$7,5),VLOOKUP(MROUND('Opciones Avanzadas'!$E$7-2.5,5),Listas!$AE$21:$AF$135,2,FALSE)+(VLOOKUP(MROUND('Opciones Avanzadas'!$E$7,5),Listas!$AE$21:$AF$135,2,FALSE)-VLOOKUP(MROUND('Opciones Avanzadas'!$E$7-2.5,5),Listas!$AE$21:$AF$135,2,FALSE))/5*('Opciones Avanzadas'!$E$7-MROUND('Opciones Avanzadas'!$E$7-2.5,5)),VLOOKUP(MROUND('Opciones Avanzadas'!$E$7,5),Listas!$AE$21:$AF$135,2,FALSE)+(VLOOKUP(MROUND('Opciones Avanzadas'!$E$7+2.5,5),Listas!$AE$21:$AF$135,2,FALSE)-VLOOKUP(MROUND('Opciones Avanzadas'!$E$7,5),Listas!$AE$21:$AF$135,2,FALSE))/5*('Opciones Avanzadas'!$E$7-MROUND('Opciones Avanzadas'!$E$7,5))) -> 4378.154088 | N109: =+IF('Opciones Avanzadas'!$E$7<=MROUND('Opciones Avanzadas'!$E$7,5),VLOOKUP(MROUND('Opciones Avanzadas'!$E$7-2.5,5),Listas!$AE$21:$AF$135,2,FALSE)+(VLOOKUP(MROUND('Opciones Avanzadas'!$E$7,5),Listas!$AE$21:$AF$135,2,FALSE)-VLOOKUP(MROUND('Opciones Avanzadas'!$E$7-2.5,5),Listas!$AE$21:$AF$135,2,FALSE))/5*('Opciones Avanzadas'!$E$7-MROUND('Opciones Avanzadas'!$E$7-2.5,5)),VLOOKUP(MROUND('Opciones Avanzadas'!$E$7,5),Listas!$AE$21:$AF$135,2,FALSE)+(VLOOKUP(MROUND('Opciones Avanzadas'!$E$7+2.5,5),Listas!$AE$21:$AF$135,2,FALSE)-VLOOKUP(MROUND('Opciones Avanzadas'!$E$7,5),Listas!$AE$21:$AF$135,2,FALSE))/5*('Opciones Avanzadas'!$E$7-MROUND('Opciones Avanzadas'!$E$7,5))) -> 4378.154088 | O109: =+IF('Opciones Avanzadas'!$E$7<=MROUND('Opciones Avanzadas'!$E$7,5),VLOOKUP(MROUND('Opciones Avanzadas'!$E$7-2.5,5),Listas!$AE$21:$AF$135,2,FALSE)+(VLOOKUP(MROUND('Opciones Avanzadas'!$E$7,5),Listas!$AE$21:$AF$135,2,FALSE)-VLOOKUP(MROUND('Opciones Avanzadas'!$E$7-2.5,5),Listas!$AE$21:$AF$135,2,FALSE))/5*('Opciones Avanzadas'!$E$7-MROUND('Opciones Avanzadas'!$E$7-2.5,5)),VLOOKUP(MROUND('Opciones Avanzadas'!$E$7,5),Listas!$AE$21:$AF$135,2,FALSE)+(VLOOKUP(MROUND('Opciones Avanzadas'!$E$7+2.5,5),Listas!$AE$21:$AF$135,2,FALSE)-VLOOKUP(MROUND('Opciones Avanzadas'!$E$7,5),Listas!$AE$21:$AF$135,2,FALSE))/5*('Opciones Avanzadas'!$E$7-MROUND('Opciones Avanzadas'!$E$7,5))) -> 4378.154088 | P109: =+IF('Opciones Avanzadas'!$E$7<=MROUND('Opciones Avanzadas'!$E$7,5),VLOOKUP(MROUND('Opciones Avanzadas'!$E$7-2.5,5),Listas!$AE$21:$AF$135,2,FALSE)+(VLOOKUP(MROUND('Opciones Avanzadas'!$E$7,5),Listas!$AE$21:$AF$135,2,FALSE)-VLOOKUP(MROUND('Opciones Avanzadas'!$E$7-2.5,5),Listas!$AE$21:$AF$135,2,FALSE))/5*('Opciones Avanzadas'!$E$7-MROUND('Opciones Avanzadas'!$E$7-2.5,5)),VLOOKUP(MROUND('Opciones Avanzadas'!$E$7,5),Listas!$AE$21:$AF$135,2,FALSE)+(VLOOKUP(MROUND('Opciones Avanzadas'!$E$7+2.5,5),Listas!$AE$21:$AF$135,2,FALSE)-VLOOKUP(MROUND('Opciones Avanzadas'!$E$7,5),Listas!$AE$21:$AF$135,2,FALSE))/5*('Opciones Avanzadas'!$E$7-MROUND('Opciones Avanzadas'!$E$7,5))) -> 4378.154088 | Q109: =+IF('Opciones Avanzadas'!$E$7<=MROUND('Opciones Avanzadas'!$E$7,5),VLOOKUP(MROUND('Opciones Avanzadas'!$E$7-2.5,5),Listas!$AE$21:$AF$135,2,FALSE)+(VLOOKUP(MROUND('Opciones Avanzadas'!$E$7,5),Listas!$AE$21:$AF$135,2,FALSE)-VLOOKUP(MROUND('Opciones Avanzadas'!$E$7-2.5,5),Listas!$AE$21:$AF$135,2,FALSE))/5*('Opciones Avanzadas'!$E$7-MROUND('Opciones Avanzadas'!$E$7-2.5,5)),VLOOKUP(MROUND('Opciones Avanzadas'!$E$7,5),Listas!$AE$21:$AF$135,2,FALSE)+(VLOOKUP(MROUND('Opciones Avanzadas'!$E$7+2.5,5),Listas!$AE$21:$AF$135,2,FALSE)-VLOOKUP(MROUND('Opciones Avanzadas'!$E$7,5),Listas!$AE$21:$AF$135,2,FALSE))/5*('Opciones Avanzadas'!$E$7-MROUND('Opciones Avanzadas'!$E$7,5))) -> 4378.154088 | R109: =+IF('Opciones Avanzadas'!$E$7<=MROUND('Opciones Avanzadas'!$E$7,5),VLOOKUP(MROUND('Opciones Avanzadas'!$E$7-2.5,5),Listas!$AE$21:$AF$135,2,FALSE)+(VLOOKUP(MROUND('Opciones Avanzadas'!$E$7,5),Listas!$AE$21:$AF$135,2,FALSE)-VLOOKUP(MROUND('Opciones Avanzadas'!$E$7-2.5,5),Listas!$AE$21:$AF$135,2,FALSE))/5*('Opciones Avanzadas'!$E$7-MROUND('Opciones Avanzadas'!$E$7-2.5,5)),VLOOKUP(MROUND('Opciones Avanzadas'!$E$7,5),Listas!$AE$21:$AF$135,2,FALSE)+(VLOOKUP(MROUND('Opciones Avanzadas'!$E$7+2.5,5),Listas!$AE$21:$AF$135,2,FALSE)-VLOOKUP(MROUND('Opciones Avanzadas'!$E$7,5),Listas!$AE$21:$AF$135,2,FALSE))/5*('Opciones Avanzadas'!$E$7-MROUND('Opciones Avanzadas'!$E$7,5))) -> 4378.154088 | S109: =+IF('Opciones Avanzadas'!$E$7<=MROUND('Opciones Avanzadas'!$E$7,5),VLOOKUP(MROUND('Opciones Avanzadas'!$E$7-2.5,5),Listas!$AE$21:$AF$135,2,FALSE)+(VLOOKUP(MROUND('Opciones Avanzadas'!$E$7,5),Listas!$AE$21:$AF$135,2,FALSE)-VLOOKUP(MROUND('Opciones Avanzadas'!$E$7-2.5,5),Listas!$AE$21:$AF$135,2,FALSE))/5*('Opciones Avanzadas'!$E$7-MROUND('Opciones Avanzadas'!$E$7-2.5,5)),VLOOKUP(MROUND('Opciones Avanzadas'!$E$7,5),Listas!$AE$21:$AF$135,2,FALSE)+(VLOOKUP(MROUND('Opciones Avanzadas'!$E$7+2.5,5),Listas!$AE$21:$AF$135,2,FALSE)-VLOOKUP(MROUND('Opciones Avanzadas'!$E$7,5),Listas!$AE$21:$AF$135,2,FALSE))/5*('Opciones Avanzadas'!$E$7-MROUND('Opciones Avanzadas'!$E$7,5))) -> 4378.154088 | T109: =+IF('Opciones Avanzadas'!$E$7<=MROUND('Opciones Avanzadas'!$E$7,5),VLOOKUP(MROUND('Opciones Avanzadas'!$E$7-2.5,5),Listas!$AE$21:$AF$135,2,FALSE)+(VLOOKUP(MROUND('Opciones Avanzadas'!$E$7,5),Listas!$AE$21:$AF$135,2,FALSE)-VLOOKUP(MROUND('Opciones Avanzadas'!$E$7-2.5,5),Listas!$AE$21:$AF$135,2,FALSE))/5*('Opciones Avanzadas'!$E$7-MROUND('Opciones Avanzadas'!$E$7-2.5,5)),VLOOKUP(MROUND('Opciones Avanzadas'!$E$7,5),Listas!$AE$21:$AF$135,2,FALSE)+(VLOOKUP(MROUND('Opciones Avanzadas'!$E$7+2.5,5),Listas!$AE$21:$AF$135,2,FALSE)-VLOOKUP(MROUND('Opciones Avanzadas'!$E$7,5),Listas!$AE$21:$AF$135,2,FALSE))/5*('Opciones Avanzadas'!$E$7-MROUND('Opciones Avanzadas'!$E$7,5))) -> 4378.154088 | U109: =+IF('Opciones Avanzadas'!$E$7<=MROUND('Opciones Avanzadas'!$E$7,5),VLOOKUP(MROUND('Opciones Avanzadas'!$E$7-2.5,5),Listas!$AE$21:$AF$135,2,FALSE)+(VLOOKUP(MROUND('Opciones Avanzadas'!$E$7,5),Listas!$AE$21:$AF$135,2,FALSE)-VLOOKUP(MROUND('Opciones Avanzadas'!$E$7-2.5,5),Listas!$AE$21:$AF$135,2,FALSE))/5*('Opciones Avanzadas'!$E$7-MROUND('Opciones Avanzadas'!$E$7-2.5,5)),VLOOKUP(MROUND('Opciones Avanzadas'!$E$7,5),Listas!$AE$21:$AF$135,2,FALSE)+(VLOOKUP(MROUND('Opciones Avanzadas'!$E$7+2.5,5),Listas!$AE$21:$AF$135,2,FALSE)-VLOOKUP(MROUND('Opciones Avanzadas'!$E$7,5),Listas!$AE$21:$AF$135,2,FALSE))/5*('Opciones Avanzadas'!$E$7-MROUND('Opciones Avanzadas'!$E$7,5))) -> 4378.154088 | V109: =+IF('Opciones Avanzadas'!$E$7<=MROUND('Opciones Avanzadas'!$E$7,5),VLOOKUP(MROUND('Opciones Avanzadas'!$E$7-2.5,5),Listas!$AE$21:$AF$135,2,FALSE)+(VLOOKUP(MROUND('Opciones Avanzadas'!$E$7,5),Listas!$AE$21:$AF$135,2,FALSE)-VLOOKUP(MROUND('Opciones Avanzadas'!$E$7-2.5,5),Listas!$AE$21:$AF$135,2,FALSE))/5*('Opciones Avanzadas'!$E$7-MROUND('Opciones Avanzadas'!$E$7-2.5,5)),VLOOKUP(MROUND('Opciones Avanzadas'!$E$7,5),Listas!$AE$21:$AF$135,2,FALSE)+(VLOOKUP(MROUND('Opciones Avanzadas'!$E$7+2.5,5),Listas!$AE$21:$AF$135,2,FALSE)-VLOOKUP(MROUND('Opciones Avanzadas'!$E$7,5),Listas!$AE$21:$AF$135,2,FALSE))/5*('Opciones Avanzadas'!$E$7-MROUND('Opciones Avanzadas'!$E$7,5))) -> 4378.154088 | W109: =+IF('Opciones Avanzadas'!$E$7<=MROUND('Opciones Avanzadas'!$E$7,5),VLOOKUP(MROUND('Opciones Avanzadas'!$E$7-2.5,5),Listas!$AE$21:$AF$135,2,FALSE)+(VLOOKUP(MROUND('Opciones Avanzadas'!$E$7,5),Listas!$AE$21:$AF$135,2,FALSE)-VLOOKUP(MROUND('Opciones Avanzadas'!$E$7-2.5,5),Listas!$AE$21:$AF$135,2,FALSE))/5*('Opciones Avanzadas'!$E$7-MROUND('Opciones Avanzadas'!$E$7-2.5,5)),VLOOKUP(MROUND('Opciones Avanzadas'!$E$7,5),Listas!$AE$21:$AF$135,2,FALSE)+(VLOOKUP(MROUND('Opciones Avanzadas'!$E$7+2.5,5),Listas!$AE$21:$AF$135,2,FALSE)-VLOOKUP(MROUND('Opciones Avanzadas'!$E$7,5),Listas!$AE$21:$AF$135,2,FALSE))/5*('Opciones Avanzadas'!$E$7-MROUND('Opciones Avanzadas'!$E$7,5))) -> 4378.154088 | X109: =+IF('Opciones Avanzadas'!$E$7<=MROUND('Opciones Avanzadas'!$E$7,5),VLOOKUP(MROUND('Opciones Avanzadas'!$E$7-2.5,5),Listas!$AE$21:$AF$135,2,FALSE)+(VLOOKUP(MROUND('Opciones Avanzadas'!$E$7,5),Listas!$AE$21:$AF$135,2,FALSE)-VLOOKUP(MROUND('Opciones Avanzadas'!$E$7-2.5,5),Listas!$AE$21:$AF$135,2,FALSE))/5*('Opciones Avanzadas'!$E$7-MROUND('Opciones Avanzadas'!$E$7-2.5,5)),VLOOKUP(MROUND('Opciones Avanzadas'!$E$7,5),Listas!$AE$21:$AF$135,2,FALSE)+(VLOOKUP(MROUND('Opciones Avanzadas'!$E$7+2.5,5),Listas!$AE$21:$AF$135,2,FALSE)-VLOOKUP(MROUND('Opciones Avanzadas'!$E$7,5),Listas!$AE$21:$AF$135,2,FALSE))/5*('Opciones Avanzadas'!$E$7-MROUND('Opciones Avanzadas'!$E$7,5))) -> 4378.154088 | Y109: =+IF('Opciones Avanzadas'!$E$7<=MROUND('Opciones Avanzadas'!$E$7,5),VLOOKUP(MROUND('Opciones Avanzadas'!$E$7-2.5,5),Listas!$AE$21:$AF$135,2,FALSE)+(VLOOKUP(MROUND('Opciones Avanzadas'!$E$7,5),Listas!$AE$21:$AF$135,2,FALSE)-VLOOKUP(MROUND('Opciones Avanzadas'!$E$7-2.5,5),Listas!$AE$21:$AF$135,2,FALSE))/5*('Opciones Avanzadas'!$E$7-MROUND('Opciones Avanzadas'!$E$7-2.5,5)),VLOOKUP(MROUND('Opciones Avanzadas'!$E$7,5),Listas!$AE$21:$AF$135,2,FALSE)+(VLOOKUP(MROUND('Opciones Avanzadas'!$E$7+2.5,5),Listas!$AE$21:$AF$135,2,FALSE)-VLOOKUP(MROUND('Opciones Avanzadas'!$E$7,5),Listas!$AE$21:$AF$135,2,FALSE))/5*('Opciones Avanzadas'!$E$7-MROUND('Opciones Avanzadas'!$E$7,5))) -> 4378.154088 | Z109: =+IF('Opciones Avanzadas'!$E$7<=MROUND('Opciones Avanzadas'!$E$7,5),VLOOKUP(MROUND('Opciones Avanzadas'!$E$7-2.5,5),Listas!$AE$21:$AF$135,2,FALSE)+(VLOOKUP(MROUND('Opciones Avanzadas'!$E$7,5),Listas!$AE$21:$AF$135,2,FALSE)-VLOOKUP(MROUND('Opciones Avanzadas'!$E$7-2.5,5),Listas!$AE$21:$AF$135,2,FALSE))/5*('Opciones Avanzadas'!$E$7-MROUND('Opciones Avanzadas'!$E$7-2.5,5)),VLOOKUP(MROUND('Opciones Avanzadas'!$E$7,5),Listas!$AE$21:$AF$135,2,FALSE)+(VLOOKUP(MROUND('Opciones Avanzadas'!$E$7+2.5,5),Listas!$AE$21:$AF$135,2,FALSE)-VLOOKUP(MROUND('Opciones Avanzadas'!$E$7,5),Listas!$AE$21:$AF$135,2,FALSE))/5*('Opciones Avanzadas'!$E$7-MROUND('Opciones Avanzadas'!$E$7,5))) -> 4378.154088 | AA109: =+IF('Opciones Avanzadas'!$E$7<=MROUND('Opciones Avanzadas'!$E$7,5),VLOOKUP(MROUND('Opciones Avanzadas'!$E$7-2.5,5),Listas!$AE$21:$AF$135,2,FALSE)+(VLOOKUP(MROUND('Opciones Avanzadas'!$E$7,5),Listas!$AE$21:$AF$135,2,FALSE)-VLOOKUP(MROUND('Opciones Avanzadas'!$E$7-2.5,5),Listas!$AE$21:$AF$135,2,FALSE))/5*('Opciones Avanzadas'!$E$7-MROUND('Opciones Avanzadas'!$E$7-2.5,5)),VLOOKUP(MROUND('Opciones Avanzadas'!$E$7,5),Listas!$AE$21:$AF$135,2,FALSE)+(VLOOKUP(MROUND('Opciones Avanzadas'!$E$7+2.5,5),Listas!$AE$21:$AF$135,2,FALSE)-VLOOKUP(MROUND('Opciones Avanzadas'!$E$7,5),Listas!$AE$21:$AF$135,2,FALSE))/5*('Opciones Avanzadas'!$E$7-MROUND('Opciones Avanzadas'!$E$7,5))) -> 4378.154088 | AB109: =+IF('Opciones Avanzadas'!$E$7<=MROUND('Opciones Avanzadas'!$E$7,5),VLOOKUP(MROUND('Opciones Avanzadas'!$E$7-2.5,5),Listas!$AE$21:$AF$135,2,FALSE)+(VLOOKUP(MROUND('Opciones Avanzadas'!$E$7,5),Listas!$AE$21:$AF$135,2,FALSE)-VLOOKUP(MROUND('Opciones Avanzadas'!$E$7-2.5,5),Listas!$AE$21:$AF$135,2,FALSE))/5*('Opciones Avanzadas'!$E$7-MROUND('Opciones Avanzadas'!$E$7-2.5,5)),VLOOKUP(MROUND('Opciones Avanzadas'!$E$7,5),Listas!$AE$21:$AF$135,2,FALSE)+(VLOOKUP(MROUND('Opciones Avanzadas'!$E$7+2.5,5),Listas!$AE$21:$AF$135,2,FALSE)-VLOOKUP(MROUND('Opciones Avanzadas'!$E$7,5),Listas!$AE$21:$AF$135,2,FALSE))/5*('Opciones Avanzadas'!$E$7-MROUND('Opciones Avanzadas'!$E$7,5))) -> 4378.154088 | AC109: =+IF('Opciones Avanzadas'!$E$7<=MROUND('Opciones Avanzadas'!$E$7,5),VLOOKUP(MROUND('Opciones Avanzadas'!$E$7-2.5,5),Listas!$AE$21:$AF$135,2,FALSE)+(VLOOKUP(MROUND('Opciones Avanzadas'!$E$7,5),Listas!$AE$21:$AF$135,2,FALSE)-VLOOKUP(MROUND('Opciones Avanzadas'!$E$7-2.5,5),Listas!$AE$21:$AF$135,2,FALSE))/5*('Opciones Avanzadas'!$E$7-MROUND('Opciones Avanzadas'!$E$7-2.5,5)),VLOOKUP(MROUND('Opciones Avanzadas'!$E$7,5),Listas!$AE$21:$AF$135,2,FALSE)+(VLOOKUP(MROUND('Opciones Avanzadas'!$E$7+2.5,5),Listas!$AE$21:$AF$135,2,FALSE)-VLOOKUP(MROUND('Opciones Avanzadas'!$E$7,5),Listas!$AE$21:$AF$135,2,FALSE))/5*('Opciones Avanzadas'!$E$7-MROUND('Opciones Avanzadas'!$E$7,5))) -> 4378.154088 | AD109: =+IF('Opciones Avanzadas'!$E$7<=MROUND('Opciones Avanzadas'!$E$7,5),VLOOKUP(MROUND('Opciones Avanzadas'!$E$7-2.5,5),Listas!$AE$21:$AF$135,2,FALSE)+(VLOOKUP(MROUND('Opciones Avanzadas'!$E$7,5),Listas!$AE$21:$AF$135,2,FALSE)-VLOOKUP(MROUND('Opciones Avanzadas'!$E$7-2.5,5),Listas!$AE$21:$AF$135,2,FALSE))/5*('Opciones Avanzadas'!$E$7-MROUND('Opciones Avanzadas'!$E$7-2.5,5)),VLOOKUP(MROUND('Opciones Avanzadas'!$E$7,5),Listas!$AE$21:$AF$135,2,FALSE)+(VLOOKUP(MROUND('Opciones Avanzadas'!$E$7+2.5,5),Listas!$AE$21:$AF$135,2,FALSE)-VLOOKUP(MROUND('Opciones Avanzadas'!$E$7,5),Listas!$AE$21:$AF$135,2,FALSE))/5*('Opciones Avanzadas'!$E$7-MROUND('Opciones Avanzadas'!$E$7,5))) -> 4378.154088 | AE109: =+IF('Opciones Avanzadas'!$E$7<=MROUND('Opciones Avanzadas'!$E$7,5),VLOOKUP(MROUND('Opciones Avanzadas'!$E$7-2.5,5),Listas!$AE$21:$AF$135,2,FALSE)+(VLOOKUP(MROUND('Opciones Avanzadas'!$E$7,5),Listas!$AE$21:$AF$135,2,FALSE)-VLOOKUP(MROUND('Opciones Avanzadas'!$E$7-2.5,5),Listas!$AE$21:$AF$135,2,FALSE))/5*('Opciones Avanzadas'!$E$7-MROUND('Opciones Avanzadas'!$E$7-2.5,5)),VLOOKUP(MROUND('Opciones Avanzadas'!$E$7,5),Listas!$AE$21:$AF$135,2,FALSE)+(VLOOKUP(MROUND('Opciones Avanzadas'!$E$7+2.5,5),Listas!$AE$21:$AF$135,2,FALSE)-VLOOKUP(MROUND('Opciones Avanzadas'!$E$7,5),Listas!$AE$21:$AF$135,2,FALSE))/5*('Opciones Avanzadas'!$E$7-MROUND('Opciones Avanzadas'!$E$7,5))) -> 4378.154088 | AF109: =+IF('Opciones Avanzadas'!$E$7<=MROUND('Opciones Avanzadas'!$E$7,5),VLOOKUP(MROUND('Opciones Avanzadas'!$E$7-2.5,5),Listas!$AE$21:$AF$135,2,FALSE)+(VLOOKUP(MROUND('Opciones Avanzadas'!$E$7,5),Listas!$AE$21:$AF$135,2,FALSE)-VLOOKUP(MROUND('Opciones Avanzadas'!$E$7-2.5,5),Listas!$AE$21:$AF$135,2,FALSE))/5*('Opciones Avanzadas'!$E$7-MROUND('Opciones Avanzadas'!$E$7-2.5,5)),VLOOKUP(MROUND('Opciones Avanzadas'!$E$7,5),Listas!$AE$21:$AF$135,2,FALSE)+(VLOOKUP(MROUND('Opciones Avanzadas'!$E$7+2.5,5),Listas!$AE$21:$AF$135,2,FALSE)-VLOOKUP(MROUND('Opciones Avanzadas'!$E$7,5),Listas!$AE$21:$AF$135,2,FALSE))/5*('Opciones Avanzadas'!$E$7-MROUND('Opciones Avanzadas'!$E$7,5))) -> 4378.154088 | AG109: =+AF109/E153 -> 18.3570402
B110: Flete Corto (30Km) | C110: $/tn | D110: =D109 -> 2021-04-01 | E110: =+VLOOKUP(30,Listas!$AE$21:$AF$135,2,FALSE) -> 1172.52 | F110: =+E110 -> 1172.52 | G110: =+F110 -> 1172.52 | H110: 1172.52 | I110: 1172.52 | J110: 1172.52 | K110: 1172.52 | L110: 1172.52 | M110: 1172.52 | N110: 1172.52 | O110: 1172.52 | P110: 1172.52 | Q110: 1172.52 | R110: 1172.52 | S110: 1172.52 | T110: 1172.52 | U110: 1172.52 | V110: 1172.52 | W110: 1172.52 | X110: 1172.52 | Y110: 1172.52 | Z110: 1172.52 | AA110: 1172.52 | AB110: 1172.52 | AC110: 1172.52 | AD110: 1172.52 | AE110: 1172.52 | AF110: 1172.52
B111: Flete Conjunto | C111: USD/tn | D111: - | E111: - | F111: =0.95*(1+$E$158)*(F109+F110)/$E$153 -> 35.92810534 | H111: =0.95*(1+$E$158)*(H109+H110)/$E$153 -> 35.92810534 | J111: =0.95*(1+$E$158)*(J109+J110)/$E$153 -> 35.92810534 | K111: =0.95*(1+$E$158)*(K109+K110)/$E$153 -> 35.92810534 | M111: =0.95*(1+$E$158)*(M109+M110)/$E$153 -> 35.92810534 | N111: =0.95*(1+$E$158)*(N109+N110)/$E$153 -> 35.92810534 | Q111: =0.95*(1+$E$158)*(Q109+Q110)/$E$153 -> 35.92810534 | S111: =0.95*(1+$E$158)*(S109+S110)/$E$153 -> 35.92810534 | T111: =0.95*(1+$E$158)*(T109+T110)/$E$153 -> 35.92810534 | U111: =0.95*(1+$E$158)*(U109+U110)/$E$153 -> 35.92810534 | V111: =0.95*(1+$E$158)*(V109+V110)/$E$153 -> 35.92810534 | Y111: =0.95*(1+$E$158)*(Y109+Y110)/$E$153 -> 35.92810534 | Z111: =0.95*(1+$E$158)*(Z109+Z110)/$E$153 -> 35.92810534 | AB111: =0.95*(1+$E$158)*(AB109+AB110)/$E$153 -> 35.92810534 | AC111: =0.95*(1+$E$158)*(AC109+AC110)/$E$153 -> 35.92810534 | AD111: =0.95*(1+$E$158)*(AD109+AD110)/$E$153 -> 35.92810534 | AE111: =0.95*(1+$E$158)*(AE109+AE110)/$E$153 -> 35.92810534 | AF111: =0.95*(1+$E$158)*(AF109+AF110)/$E$153 -> 35.92810534
B112: Paritaria | C112: USD/tn | D112: Junio | E112: 3.4 | F112: =$E112 -> 3.4 | H112: =$E112 -> 3.4 | J112: =$E112 -> 3.4 | K112: 3.4 | M112: =$E112 -> 3.4 | N112: 3.4 | Q112: =$E112 -> 3.4 | S112: =$E112 -> 3.4 | T112: 3.4 | U112: 3.4 | V112: 3.4 | Y112: =$E112 -> 3.4 | Z112: 3.4 | AB112: =$E112 -> 3.4 | AC112: 3.4 | AD112: 3.4 | AE112: 3.4 | AF112: 3.4
B113: Secado | C113: USD/tn | D113: =D112 -> Junio | E113: 9 | F113: =$E113 -> 9 | H113: =$E113 -> 9 | J113: 9 | K113: 9 | M113: 9 | N113: 9 | Q113: =$E113 -> 9 | S113: 9 | T113: 9 | U113: 9 | V113: 9 | Y113: 9 | Z113: 9 | AB113: 9 | AC113: 9 | AD113: 9 | AE113: 9 | AF113: 9
B114: Zarandeo | C114: USD/tn | D114: =D113 -> Junio | E114: 2 | F114: =$E114 -> 2 | H114: =$E114 -> 2 | J114: 2 | K114: 2 | M114: 2 | N114: 2 | Q114: =$E114 -> 2 | S114: 2 | T114: 2 | U114: 2 | V114: 2 | Y114: 2 | Z114: 2 | AB114: 2 | AC114: 2 | AD114: 2 | AE114: 2 | AF114: 2
B115: Comisión Acopio | C115: % s. Precio Cosecha | D115: - | E115: 0.005 | F115: =$E115*$E$148 -> 1.8375 | H115: =$E115*$E$148 -> 1.8375 | J115: =$E115*$E$148 -> 1.8375 | K115: =$E115*$E$148 -> 1.8375 | M115: =$E115*$E$148 -> 1.8375 | N115: =$E115*$E$148 -> 1.8375 | Q115: =$E115*$E$148 -> 1.8375 | S115: =$E115*$E$148 -> 1.8375 | T115: =$E115*$E$148 -> 1.8375 | U115: =$E115*$E$148 -> 1.8375 | V115: =$E115*$E$148 -> 1.8375 | Y115: =$E115*$E$148 -> 1.8375 | Z115: =$E115*$E$148 -> 1.8375 | AB115: =$E115*$E$148 -> 1.8375 | AC115: =$E115*$E$148 -> 1.8375 | AD115: =$E115*$E$148 -> 1.8375 | AE115: =$E115*$E$148 -> 1.8375 | AF115: =$E115*$E$148 -> 1.8375
B116: Total Gastos Comerciales | C116: USD/tn | F116: =SUM(F111:F115) -> 52.16560534 | H116: =SUM(H111:H115) -> 52.16560534 | J116: =SUM(J111:J115) -> 52.16560534 | K116: 52.16560534 | M116: 52.16560534 | N116: 52.16560534 | Q116: 52.16560534 | S116: 52.16560534 | T116: 52.16560534 | U116: 52.16560534 | V116: 52.16560534 | Y116: 52.16560534 | Z116: 52.16560534 | AB116: 52.16560534 | AC116: 52.16560534 | AD116: 52.16560534 | AE116: 52.16560534 | AF116: =SUM(AF111:AF115) -> 52.16560534
B118: Costos Indirectos (Por Ha) | C118: =C$2 -> Unidad de medida | D118: Mes de actualiz. | E118: Costo | F118: =F$2 -> Calamuchita | G118: Capital | H118: Colón | I118: Cruz del Eje | J118: Gral. Roca | K118: Gral. San Martín | L118: Ischilin | M118: Juárez Celman | N118: Marcos Juárez | O118: Minas | P118: Pocho | Q118: Pte. R. Sáenz Peña | R118: Punilla | S118: Río Cuarto | T118: Río Primero | U118: Río Seco | V118: Río Segundo | W118: San Alberto | X118: San Javier | Y118: San Justo | Z118: Santa María | AA118: Sobremonte | AB118: Tercero Arriba | AC118: Totoral | AD118: Tulumba | AE118: Unión | AF118: =AF$2 -> PROVINCIA
B119: Arrendamiento en qq | C119: qq/ha | D119: Abril | E119: - | F119: =+'Opciones Avanzadas'!$E$9 -> 11.5 | G119: =+'Opciones Avanzadas'!$E$9 -> 11.5 | H119: =+'Opciones Avanzadas'!$E$9 -> 11.5 | I119: =+'Opciones Avanzadas'!$E$9 -> 11.5 | J119: =+'Opciones Avanzadas'!$E$9 -> 11.5 | K119: =+'Opciones Avanzadas'!$E$9 -> 11.5 | L119: =+'Opciones Avanzadas'!$E$9 -> 11.5 | M119: =+'Opciones Avanzadas'!$E$9 -> 11.5 | N119: =+'Opciones Avanzadas'!$E$9 -> 11.5 | O119: =+'Opciones Avanzadas'!$E$9 -> 11.5 | P119: =+'Opciones Avanzadas'!$E$9 -> 11.5 | Q119: =+'Opciones Avanzadas'!$E$9 -> 11.5 | R119: =+'Opciones Avanzadas'!$E$9 -> 11.5 | S119: =+'Opciones Avanzadas'!$E$9 -> 11.5 | T119: =+'Opciones Avanzadas'!$E$9 -> 11.5 | U119: =+'Opciones Avanzadas'!$E$9 -> 11.5 | V119: =+'Opciones Avanzadas'!$E$9 -> 11.5 | W119: =+'Opciones Avanzadas'!$E$9 -> 11.5 | X119: =+'Opciones Avanzadas'!$E$9 -> 11.5 | Y119: =+'Opciones Avanzadas'!$E$9 -> 11.5 | Z119: =+'Opciones Avanzadas'!$E$9 -> 11.5 | AA119: =+'Opciones Avanzadas'!$E$9 -> 11.5 | AB119: =+'Opciones Avanzadas'!$E$9 -> 11.5 | AC119: =+'Opciones Avanzadas'!$E$9 -> 11.5 | AD119: =+'Opciones Avanzadas'!$E$9 -> 11.5 | AE119: =+'Opciones Avanzadas'!$E$9 -> 11.5 | AF119: =+'Opciones Avanzadas'!$E$9 -> 11.5
B120: Arrendamiento en USD | C120: USD/ha | D120: =D119 -> Abril | E120: =$E$148 -> 367.5 | F120: =$E$120*F119/10 -> 422.625 | H120: =$E$120*H119/10 -> 422.625 | J120: =$E$120*J119/10 -> 422.625 | K120: =$E$120*K119/10 -> 422.625 | M120: =$E$120*M119/10 -> 422.625 | N120: =$E$120*N119/10 -> 422.625 | Q120: =$E$120*Q119/10 -> 422.625 | S120: =$E$120*S119/10 -> 422.625 | T120: =$E$120*T119/10 -> 422.625 | U120: =$E$120*U119/10 -> 422.625 | V120: =$E$120*V119/10 -> 422.625 | Y120: =$E$120*Y119/10 -> 422.625 | Z120: =$E$120*Z119/10 -> 422.625 | AB120: =$E$120*AB119/10 -> 422.625 | AC120: =$E$120*AC119/10 -> 422.625 | AD120: =$E$120*AD119/10 -> 422.625 | AE120: =$E$120*AE119/10 -> 422.625 | AF120: =$E$120*AF119/10 -> 422.625
B121: Movilidad Campo (Campo + Adm) | C121: USD/ha | E121: ='Soja 1ª'!E70*1.3 -> 15.99 | F121: =$E121 -> 15.99 | H121: =$E121 -> 15.99 | J121: =$E121 -> 15.99 | K121: =$E121 -> 15.99 | M121: =$E121 -> 15.99 | N121: =$E121 -> 15.99 | Q121: =$E121 -> 15.99 | S121: =$E121 -> 15.99 | T121: 15.99 | U121: 15.99 | V121: 15.99 | Y121: =$E121 -> 15.99 | Z121: =$E121 -> 15.99 | AB121: =$E121 -> 15.99 | AC121: 15.99 | AD121: 15.99 | AE121: 15.99 | AF121: 15.99
B122: Personal (Salarios) | C122: USD/ha | D122: Noviembre | E122: 64.45823231 | F122: =$E122 -> 64.45823231 | H122: =$E122 -> 64.45823231 | J122: =$E122 -> 64.45823231 | K122: =$E122 -> 64.45823231 | M122: =$E122 -> 64.45823231 | N122: =$E122 -> 64.45823231 | Q122: =$E122 -> 64.45823231 | S122: 64.45823231 | T122: 64.45823231 | U122: 64.45823231 | V122: 64.45823231 | Y122: =$E122 -> 64.45823231 | Z122: =$E122 -> 64.45823231 | AB122: 64.45823231 | AC122: 64.45823231 | AD122: 64.45823231 | AE122: 64.45823231 | AF122: 64.45823231
B123: Asesoramiento Técnico | C123: USD/ha | E123: 0.01 | F123: =$E$123*F167 -> 18.30284974 | H123: =$E$123*H167 -> 18.30284974 | J123: =$E$123*J167 -> 18.30284974 | K123: =$E$123*K167 -> 18.30284974 | M123: =$E$123*M167 -> 18.30284974 | N123: =$E$123*N167 -> 18.30284974 | Q123: =$E$123*Q167 -> 18.30284974 | S123: =$E$123*S167 -> 18.30284974 | T123: =$E$123*T167 -> 18.30284974 | U123: =$E$123*U167 -> 18.30284974 | V123: =$E$123*V167 -> 18.30284974 | Y123: =$E$123*Y167 -> 18.30284974 | Z123: =$E$123*Z167 -> 18.30284974 | AB123: =$E$123*AB167 -> 18.30284974 | AC123: =$E$123*AC167 -> 18.30284974 | AD123: =$E$123*AD167 -> 18.30284974 | AE123: =$E$123*AE167 -> 18.30284974 | AF123: =$E$123*AF167 -> 18.30284974
B124: Asesoramiento Contable | C124: USD/ha | E124: ='Soja 1ª'!E73*1.3 -> 7.8 | F124: =$E124 -> 7.8 | H124: =$E124 -> 7.8 | J124: =$E124 -> 7.8 | K124: 7.8 | M124: =$E124 -> 7.8 | N124: 7.8 | Q124: =$E124 -> 7.8 | S124: =$E124 -> 7.8 | T124: 7.8 | U124: 7.8 | V124: 7.8 | Y124: =$E124 -> 7.8 | Z124: 7.8 | AB124: =$E124 -> 7.8 | AC124: 7.8 | AD124: 7.8 | AE124: 7.8 | AF124: 7.8
B125: Gastos de oficina/comunicaciones | C125: USD/ha | E125: ='Soja 1ª'!E74*1.3 -> 5.07 | F125: 5.07 | H125: 5.07 | J125: 5.07 | K125: 5.07 | M125: 5.07 | N125: 5.07 | Q125: 5.07 | S125: 5.07 | T125: 5.07 | U125: 5.07 | V125: 5.07 | Y125: 5.07 | Z125: 5.07 | AB125: 5.07 | AC125: 5.07 | AD125: 5.07 | AE125: 5.07 | AF125: 5.07
B126: Receta Fitosanitaria | C126: USD/ha | E126: 0 | F126: 0 | H126: 0 | J126: 0 | K126: 0 | M126: 0 | N126: 0 | Q126: 0 | S126: 0 | T126: 0 | U126: 0 | V126: 0 | Y126: 0 | Z126: 0 | AB126: 0 | AC126: 0 | AD126: 0 | AE126: 0 | AF126: 0
B127: Asesor Financiero | C127: USD/ha | E127: 0 | F127: 0 | H127: 0 | J127: 0 | K127: 0 | M127: 0 | N127: 0 | Q127: 0 | S127: 0 | T127: 0 | U127: 0 | V127: 0 | Y127: 0 | Z127: 0 | AB127: 0 | AC127: 0 | AD127: 0 | AE127: 0 | AF127: 0
B128: Seguro Climatico | C128: USD/ha | E128: 0 | F128: 0 | H128: 0 | J128: 0 | K128: 0 | M128: 0 | N128: 0 | Q128: 0 | S128: 0 | T128: 0 | U128: 0 | V128: 0 | Y128: 0 | Z128: 0 | AB128: 0 | AC128: 0 | AD128: 0 | AE128: 0 | AF128: 0
B129: Conservaciones y Mejoras | C129: USD/ha | E129: ='Soja 1ª'!E78*1.3 -> 3.9 | F129: 3.9 | H129: 3.9 | J129: 3.9 | K129: 3.9 | M129: 3.9 | N129: 3.9 | Q129: 3.9 | S129: 3.9 | T129: 3.9 | U129: 3.9 | V129: 3.9 | Y129: 3.9 | Z129: 3.9 | AB129: 3.9 | AC129: 3.9 | AD129: 3.9 | AE129: 3.9 | AF129: 3.9
B130: Gastos imprevistos/Otros | C130: USD/ha | E130: 0 | F130: 0 | H130: 0 | J130: 0 | K130: 0 | M130: 0 | N130: 0 | Q130: 0 | S130: 0 | T130: 0 | U130: 0 | V130: 0 | Y130: 0 | Z130: 0 | AB130: 0 | AC130: 0 | AD130: 0 | AE130: 0 | AF130: 0
B131: Total Costos Indirectos | F131: =+SUM(F120:F130) -> 538.146082 | H131: =+SUM(H120:H130) -> 538.146082 | J131: 538.146082 | K131: 538.146082 | M131: 538.146082 | N131: 538.146082 | Q131: 538.146082 | S131: 538.146082 | T131: 538.146082 | U131: 538.146082 | V131: 538.146082 | Y131: 538.146082 | Z131: 538.146082 | AB131: 538.146082 | AC131: 538.146082 | AD131: 538.146082 | AE131: 538.146082 | AF131: 538.146082
B133: Impuestos (Por Ha) | C133: =C$2 -> Unidad de medida | D133: =D$2 -> Mes de actualiz. | E133: Porcentaje | F133: =F$2 -> Calamuchita | G133: Capital | H133: Colón | I133: Cruz del Eje | J133: Gral. Roca | K133: Gral. San Martín | L133: Ischilin | M133: Juárez Celman | N133: Marcos Juárez | O133: Minas | P133: Pocho | Q133: Pte. R. Sáenz Peña | R133: Punilla | S133: Río Cuarto | T133: Río Primero | U133: Río Seco | V133: Río Segundo | W133: San Alberto | X133: San Javier | Y133: San Justo | Z133: Santa María | AA133: Sobremonte | AB133: Tercero Arriba | AC133: Totoral | AD133: Tulumba | AE133: Unión | AF133: =AF$2 -> PROVINCIA
B134: Impuesto a las ganancias | C134: % s. Resultado Positivo | D134: - | E134: 0.3 | F134: =IF(F172<0,0,$E$134*F172) -> 81.23282394 | H134: =IF(H172<0,0,$E$134*H172) -> 81.23282394 | J134: 81.23282394 | K134: 81.23282394 | M134: 81.23282394 | N134: 81.23282394 | Q134: 81.23282394 | S134: 81.23282394 | T134: 81.23282394 | U134: 81.23282394 | V134: 81.23282394 | Y134: 81.23282394 | Z134: 81.23282394 | AB134: 81.23282394 | AC134: 81.23282394 | AD134: 81.23282394 | AE134: 81.23282394 | AF134: 81.23282394
B135: Impuesto a la ganancia mínima presunta | C135: - | D135: - | E135: -
B136: Impuestos a los combustibles | C136: - | D136: - | E136: -
B137: Impuesto al cheque | C137: % s. Ingresos Totales | D137: - | E137: 0.012 | F137: =$E$137/2*(F167+F168+F169+F171)*0.4 -> 8.135505284 | H137: =$E$137/2*(H167+H168+H169+H171)*0.4 -> 8.135505284 | J137: =$E$137/2*(J167+J168+J169+J171)*0.4 -> 8.135505284 | K137: =$E$137/2*(K167+K168+K169+K171)*0.4 -> 8.135505284 | M137: =$E$137/2*(M167+M168+M169+M171)*0.4 -> 8.135505284 | N137: =$E$137/2*(N167+N168+N169+N171)*0.4 -> 8.135505284 | Q137: =$E$137/2*(Q167+Q168+Q169+Q171)*0.4 -> 8.135505284 | S137: =$E$137/2*(S167+S168+S169+S171)*0.4 -> 8.135505284 | T137: =$E$137/2*(T167+T168+T169+T171)*0.4 -> 8.135505284 | U137: =$E$137/2*(U167+U168+U169+U171)*0.4 -> 8.135505284 | V137: =$E$137/2*(V167+V168+V169+V171)*0.4 -> 8.135505284 | Y137: =$E$137/2*(Y167+Y168+Y169+Y171)*0.4 -> 8.135505284 | Z137: =$E$137/2*(Z167+Z168+Z169+Z171)*0.4 -> 8.135505284 | AB137: =$E$137/2*(AB167+AB168+AB169+AB171)*0.4 -> 8.135505284 | AC137: =$E$137/2*(AC167+AC168+AC169+AC171)*0.4 -> 8.135505284 | AD137: =$E$137/2*(AD167+AD168+AD169+AD171)*0.4 -> 8.135505284 | AE137: =$E$137/2*(AE167+AE168+AE169+AE171)*0.4 -> 8.135505284 | AF137: =$E$137/2*(AF167+AF168+AF169+AF171)*0.4 -> 8.135505284
B138: Impuesto a los sellos | C138: % s. Ingresos Totales | D138: - | E138: 0.012 | F138: =$E$138*F167 -> 21.96341969 | H138: =$E$138*H167 -> 21.96341969 | J138: =$E$138*J167 -> 21.96341969 | K138: =$E$138*K167 -> 21.96341969 | M138: =$E$138*M167 -> 21.96341969 | N138: =$E$138*N167 -> 21.96341969 | Q138: =$E$138*Q167 -> 21.96341969 | S138: =$E$138*S167 -> 21.96341969 | T138: =$E$138*T167 -> 21.96341969 | U138: =$E$138*U167 -> 21.96341969 | V138: =$E$138*V167 -> 21.96341969 | Y138: =$E$138*Y167 -> 21.96341969 | Z138: =$E$138*Z167 -> 21.96341969 | AB138: =$E$138*AB167 -> 21.96341969 | AC138: =$E$138*AC167 -> 21.96341969 | AD138: =$E$138*AD167 -> 21.96341969 | AE138: =$E$138*AE167 -> 21.96341969 | AF138: =$E$138*AF167 -> 21.96341969
B139: Impuesto inmobiliario | C139: - | D139: - | E139: -
B140: Impuesto a los automotores (rentas) | C140: - | D140: - | E140: -
B141: Impuesto a la renta financiera | C141: - | D141: - | E141: -
B142: Impuesto a utilidades y dividendos | C142: - | D142: - | E142: -
B143: IVA crédito | C143: - | D143: - | E143: -
B144: IVA Débito | C144: - | D144: - | E144: -
B145: Total impuestos | F145: =+SUM(F134:F144) -> 111.3317489 | H145: =+SUM(H134:H144) -> 111.3317489 | J145: 111.3317489 | K145: 111.3317489 | M145: 111.3317489 | N145: 111.3317489 | Q145: 111.3317489 | S145: 111.3317489 | T145: 111.3317489 | U145: 111.3317489 | V145: 111.3317489 | Y145: 111.3317489 | Z145: 111.3317489 | AB145: 111.3317489 | AC145: 111.3317489 | AD145: 111.3317489 | AE145: 111.3317489 | AF145: =+SUM(AF134:AF144) -> 111.3317489
B147: Precio trigo cosecha USD/tn | E147: =+Listas!C29 -> 288.5
B148: Precio cosecha Soja USD/tn | E148: =+Listas!B29 -> 367.5
B149: Dólar siembra Trigo | D149: Junio | E149: 122.74
B150: Dólar Cosecha Trigo | E150: =+'Calculadora BCCBA'!C18 -> 191
B151: Dólar Promedio Trigo | E151: =AVERAGE(E149:E150) -> 156.87
B152: Dólar siembra Soja | D152: Julio | E152: 179.6
B153: Dólar Cosecha Soja | E153: =+'Calculadora BCCBA'!C19 -> 238.5
B154: Dólar Promedio Soja | D154: - | E154: =+AVERAGE(E152:E153) -> 209.05
B155: Inflación esperada hasta dato FACMA trigo de esta campaña | D155: Abril | E155: 0.838621291
B156: Inflación esperada hasta dato FACMA soja de esta campaña | D156: Abril | E156: 0.6432328047
B157: Inflación esp. desde FECOTAC hasta diciembre | D157: Junio | E157: 0.2848
B158: Inflación esp. desde FECOTAC hasta mayo | D158: Junio | E158: 0.625
B159: Tasa de interes del costo de oportunidad | D159: Abril | E159: 0.05
B160: Precio combustible | D160: - | E160: -
B162: RENTABILIDAD EN DÓLARES | F162: =F$2 -> Calamuchita | G162: Capital | H162: Colón | I162: Cruz del Eje | J162: Gral. Roca | K162: Gral. San Martín | L162: Ischilin | M162: Juárez Celman | N162: Marcos Juárez | O162: Minas | P162: Pocho | Q162: Pte. R. Sáenz Peña | R162: Punilla | S162: Río Cuarto | T162: Río Primero | U162: Río Seco | V162: Río Segundo | W162: San Alberto | X162: San Javier | Y162: San Justo | Z162: Santa María | AA162: Sobremonte | AB162: Tercero Arriba | AC162: Totoral | AD162: Tulumba | AE162: Unión | AF162: PROVINCIA
B163: Rendimiento Trigo | D163: qq/ha | F163: =F3 -> 29.78213336 | H163: =H3 -> 29.78213336 | J163: =J3 -> 29.78213336 | K163: =K3 -> 29.78213336 | M163: =M3 -> 29.78213336 | N163: =N3 -> 29.78213336 | Q163: =Q3 -> 29.78213336 | S163: =S3 -> 29.78213336 | T163: =T3 -> 29.78213336 | U163: =U3 -> 29.78213336 | V163: =V3 -> 29.78213336 | Y163: =Y3 -> 29.78213336 | Z163: =Z3 -> 29.78213336 | AB163: =AB3 -> 29.78213336 | AC163: =AC3 -> 29.78213336 | AD163: =AD3 -> 29.78213336 | AE163: =AE3 -> 29.78213336 | AF163: =AF3 -> 29.78213336
B164: Rendimiento Soja | D164: qq/ha | F164: =F62 -> 26.42368508 | H164: =H62 -> 26.42368508 | J164: =J62 -> 26.42368508 | K164: =K62 -> 26.42368508 | M164: =M62 -> 26.42368508 | N164: =N62 -> 26.42368508 | Q164: =Q62 -> 26.42368508 | S164: =S62 -> 26.42368508 | T164: =T62 -> 26.42368508 | U164: =U62 -> 26.42368508 | V164: =V62 -> 26.42368508 | Y164: =Y62 -> 26.42368508 | Z164: =Z62 -> 26.42368508 | AB164: =AB62 -> 26.42368508 | AC164: =AC62 -> 26.42368508 | AD164: =AD62 -> 26.42368508 | AE164: =AE62 -> 26.42368508 | AF164: =AF62 -> 26.42368508
B165: Precio Trigo | D165: USD/qq | F165: =IF(F163=0,"",$E$147) -> 288.5 | H165: 288.5 | J165: 288.5 | K165: 288.5 | M165: 288.5 | N165: 288.5 | Q165: 288.5 | S165: 288.5 | T165: 288.5 | U165: 288.5 | V165: 288.5 | Y165: 288.5 | Z165: 288.5 | AB165: 288.5 | AC165: 288.5 | AD165: 288.5 | AE165: 288.5 | AF165: 288.5
B166: Precio Soja | D166: USD/qq | F166: =IF(F163=0,"",$E$148) -> 367.5 | H166: 367.5 | J166: 367.5 | K166: 367.5 | M166: 367.5 | N166: 367.5 | Q166: 367.5 | S166: 367.5 | T166: 367.5 | U166: 367.5 | V166: 367.5 | Y166: 367.5 | Z166: 367.5 | AB166: 367.5 | AC166: 367.5 | AD166: 367.5 | AE166: 367.5 | AF166: 367.5
B167: Ingresos Totales | D167: USD/ha | F167: =IF(F163=0,"",(F165*F163+F164*F166)/10) -> 1830.284974 | G167: =IF(G163=0,"",(G165*G163+G164*G166)/10) ->  | H167: 1830.284974 | J167: 1830.284974 | K167: 1830.284974 | M167: 1830.284974 | N167: 1830.284974 | Q167: 1830.284974 | S167: 1830.284974 | T167: 1830.284974 | U167: 1830.284974 | V167: 1830.284974 | Y167: 1830.284974 | Z167: 1830.284974 | AB167: 1830.284974 | AC167: 1830.284974 | AD167: 1830.284974 | AE167: 1830.284974 | AF167: =IF(AF163=0,"",(AF165*AF163+AF164*AF166)/10) -> 1830.284974
B168: Costos Directos | D168: USD/ha | F168: =IF(F163=0,"",F106+F51) -> 763.4603275 | H168: 763.4603275 | J168: 763.4603275 | K168: 763.4603275 | M168: 763.4603275 | N168: 763.4603275 | Q168: 763.4603275 | S168: 763.4603275 | T168: 763.4603275 | U168: 763.4603275 | V168: 763.4603275 | Y168: 763.4603275 | Z168: 763.4603275 | AB168: 763.4603275 | AC168: 763.4603275 | AD168: 763.4603275 | AE168: 763.4603275 | AF168: 763.4603275
B169: Gastos Comerciales | D169: USD/ha | F169: =IF(F163=0,"",(F163*F59+F116*F164)/10) -> 257.9024846 | H169: 257.9024846 | J169: 257.9024846 | K169: 257.9024846 | M169: 257.9024846 | N169: 257.9024846 | Q169: 257.9024846 | S169: 257.9024846 | T169: 257.9024846 | U169: 257.9024846 | V169: 257.9024846 | Y169: 257.9024846 | Z169: 257.9024846 | AB169: 257.9024846 | AC169: 257.9024846 | AD169: 257.9024846 | AE169: 257.9024846 | AF169: 257.9024846
B170: Margen Bruto | D170: USD/ha | F170: =IF(F163=0,"",F167-F168-F169) -> 808.9221618 | H170: 808.9221618 | J170: 808.9221618 | K170: 808.9221618 | M170: 808.9221618 | N170: 808.9221618 | Q170: 808.9221618 | S170: 808.9221618 | T170: 808.9221618 | U170: 808.9221618 | V170: 808.9221618 | Y170: 808.9221618 | Z170: 808.9221618 | AB170: 808.9221618 | AC170: 808.9221618 | AD170: 808.9221618 | AE170: 808.9221618 | AF170: =IF(AF163=0,"",AF167-AF168-AF169) -> 808.9221618
B171: Costos Indirectos | D171: USD/ha | F171: =IF(F163=0,"",F131) -> 538.146082 | H171: 538.146082 | J171: 538.146082 | K171: 538.146082 | M171: 538.146082 | N171: 538.146082 | Q171: 538.146082 | S171: 538.146082 | T171: 538.146082 | U171: 538.146082 | V171: 538.146082 | Y171: 538.146082 | Z171: 538.146082 | AB171: 538.146082 | AC171: 538.146082 | AD171: 538.146082 | AE171: 538.146082 | AF171: =IF(AF163=0,"",AF131) -> 538.146082
B172: Resultado Operativo | D172: USD/ha | F172: =IF(F163=0,"",F170-F171) -> 270.7760798 | H172: 270.7760798 | J172: 270.7760798 | K172: 270.7760798 | M172: 270.7760798 | N172: 270.7760798 | Q172: 270.7760798 | S172: 270.7760798 | T172: 270.7760798 | U172: 270.7760798 | V172: 270.7760798 | Y172: 270.7760798 | Z172: 270.7760798 | AB172: 270.7760798 | AC172: 270.7760798 | AD172: 270.7760798 | AE172: 270.7760798 | AF172: =IF(AF163=0,"",AF170-AF171) -> 270.7760798
B173: Impuestos | D173: USD/ha | F173: =IF(F163=0,"",F145) -> 111.3317489 | H173: 111.3317489 | J173: 111.3317489 | K173: 111.3317489 | M173: 111.3317489 | N173: 111.3317489 | Q173: 111.3317489 | S173: 111.3317489 | T173: 111.3317489 | U173: 111.3317489 | V173: 111.3317489 | Y173: 111.3317489 | Z173: 111.3317489 | AB173: 111.3317489 | AC173: 111.3317489 | AD173: 111.3317489 | AE173: 111.3317489 | AF173: =IF(AF163=0,"",AF145) -> 111.3317489
B174: Margen Neto | D174: USD/ha | F174: =IF(F163=0,"",F172-F173) -> 159.4443309 | H174: 159.4443309 | J174: 159.4443309 | K174: 159.4443309 | M174: 159.4443309 | N174: 159.4443309 | Q174: 159.4443309 | S174: 159.4443309 | T174: 159.4443309 | U174: 159.4443309 | V174: 159.4443309 | Y174: 159.4443309 | Z174: 159.4443309 | AB174: 159.4443309 | AC174: 159.4443309 | AD174: 159.4443309 | AE174: 159.4443309 | AF174: =IF(AF163=0,"",AF172-AF173) -> 159.4443309
B175: Intereses sobre el Capital Invertido | D175: USD/ha | F175: =IF(F163=0,"",$E$159*(F131+F40-F39)) -> 44.95737405 | H175: 41.24471054 | J175: 44.0410847 | K175: 44.63787914 | M175: 49.56612139 | N175: 49.82384275 | Q175: 44.97430831 | S175: 46.32632324 | T175: 39.35599139 | U175: 40.14638573 | V175: 42.89187797 | Y175: 42.16330428 | Z175: 41.91127934 | AB175: 43.76661426 | AC175: 42.70635211 | AD175: 40.25535727 | AE175: 49.72511214 | AF175: 44.90000311
B176: Resultado Económico | D176: USD/ha | F176: =IF(F163=0,"",F174-F175) -> 114.4869568 | H176: 118.1996203 | J176: 115.4032462 | K176: 114.8064518 | M176: 109.8782095 | N176: 109.6204881 | Q176: 114.4700226 | S176: 113.1180077 | T176: 120.0883395 | U176: 119.2979452 | V176: 116.5524529 | Y176: 117.2810266 | Z176: 117.5330516 | AB176: 115.6777166 | AC176: 116.7379788 | AD176: 119.1889736 | AE176: 109.7192187 | AF176: =IF(AF163=0,"",AF174-AF175) -> 114.5443278
B177: Inversión inicial | D177: USD/ha | F177: =IF(F163=0,"",F131+F51-F44) -> 898.0000621 | H177: 898.0000621 | J177: 898.0000621 | K177: 898.0000621 | M177: 898.0000621 | N177: 898.0000621 | Q177: 898.0000621 | S177: 898.0000621 | T177: 898.0000621 | U177: 898.0000621 | V177: 898.0000621 | Y177: 898.0000621 | Z177: 898.0000621 | AB177: 898.0000621 | AC177: 898.0000621 | AD177: 898.0000621 | AE177: 898.0000621 | AF177: 898.0000621
B178: Rentabilidad de la Actividad | D178: % | F178: =IF(F163=0,"",F176/F177) -> 0.1274910344 | H178: 0.1316254033 | J178: 0.1285114011 | K178: 0.1278468194 | M178: 0.1223587994 | N178: 0.1220718046 | Q178: 0.1274721767 | S178: 0.1259665922 | T178: 0.1337286539 | U178: 0.1328484821 | V178: 0.1297911413 | Y178: 0.1306024705 | Z178: 0.1308831219 | AB178: 0.1288170475 | AC178: 0.1299977402 | AD178: 0.1327271329 | AE178: 0.1221817496 | AF178: =IF(AF163=0,"",AF176/AF177) -> 0.1275549219
E179: =+COUNTIF($F$178:$AF$178,"<"&0) -> 0
F183: Santa María | G183: -0.3669071657
F184: Calamuchita | G184: -0.3371217238
F185: Río Cuarto | G185: -0.3176450905
F186: Río Seco | G186: -0.2540205393
F187: Tulumba | G187: -0.1973714661
F188: Tercero Arriba | G188: -0.1963853966
F189: Río Primero | G189: -0.1720387207
F190: Colón | G190: -0.1712084063
F191: Río Segundo | G191: -0.1587345479
F192: Totoral | G192: -0.1294765428
F193: Gral. Roca | G193: -0.1235690033
F194: San Justo | G194: -0.1129158654
F195: Pte. R. Sáenz Peña | G195: -0.06734077169
F196: Gral. San Martín | G196: -0.0664917053
F197: Juárez Celman | G197: -0.04620611813
F198: Unión | G198: 0.03178184107
F199: Marcos Juárez | G199: 0.03285328866

Sheet Opciones Avanzadas
B7: Distancia al puerto (Km) | E7: =VLOOKUP('Calculadora BCCBA'!B1,Listas!$V$21:$W$47,2,FALSE) -> 280
B9: Arrendamiento (qq/ha) | E9: =VLOOKUP('Calculadora BCCBA'!B1,Listas!$AP$2:$AQ$19,2,FALSE) -> 11.5
B11: Planteo técnico (USD/ha)
C12: Soja de 1ª | D12: Soja de 2ª | E12: Trigo | F12: Maíz Temprano | G12: Maíz Tardío | H12: Sorgo
